Workbook

Sheet Report - ALL (DASHBOARD)
A1: PRELIMINARY - NOT FOR DISTRIBUTION
A2: Dashboard | B2: Select Parameter: | F2: Select Statistic: | I2: Select Seasonal Period: | L2: Do you want to convert CFS values to TAF/Mon? | W2: 1
W3: 1
W4: 16
L5: News | W5: FALSE
L6: - parameter list updated to include all items on the appendix list (in addition to other locations of interest)
L7: - year type sorting is now done by calendar year
L8: - year type sorting is provided for 60-20-20 index as well as 40-30-30 index
L9: - format modified to be consistent with appendix reports
L10: - check out the new spinners!
B13: =CONCATENATE('Report Data'!$P$7," / seasonal statistics (",$W$2,"-",$W$3,"-",$W$4,"-",IF(NOT($W$5),1,2),"a):") -> Shasta Storage (PRELIMINARY) / seasonal statistics (1-1-16-1a):
C17: ='Report Data'!P6 -> October-September
C18: ='Report Data'!P7 -> Shasta Storage (PRELIMINARY)
C19: ='Report Data'!P9 -> (S4/STORAGE)
C20: ='Report Data'!P8 -> Averages
C21: ='Report Data'!P11 -> Volume (TAF) | F21: =CONCATENATE("Difference from ",'Report Data'!Q13) -> Difference from NAA 091720
C25: ='Report Data'!O14 -> NAA 091720 | E25: ='Report Data'!P14 -> 3280.058277
C26: ='Report Data'!O15 -> ALTA2 PEA | E26: ='Report Data'!P15 -> 3295.429227 | F26: ='Report Data'!Q15 -> 15.37095088
B60: =CONCATENATE('Report Data'!$P$7," / monthly statistics (",$W$2,"-",$W$3,"-",$W$4,"-",IF(NOT($W$5),1,2),"b):") -> Shasta Storage (PRELIMINARY) / monthly statistics (1-1-16-1b):
B116: =CONCATENATE('Report Data'!$P$7," / time series (",$W$2,"-",$W$3,"-",$W$4,"-",IF(NOT($W$5),1,2),"c):") -> Shasta Storage (PRELIMINARY) / time series (1-1-16-1c):

Sheet Chart - Prob Exc

Sheet Chart - Pattern

Sheet Report Data
A2: Information, Tables and Calculations for Reports
A4: Table of Selected Values for Monthly Chart: | O4: Trend Evaluation: | U4: Water Year Type Averages:
A6: Title: | B6: ='Compile Data'!$B$5&" (PRELIMINARY)" -> Shasta Storage (PRELIMINARY) | O6: Title: | P6: =INDEX(Other!$B$9:$B$33,'Report - ALL (DASHBOARD)'!$W$4) -> October-September | U6: Title: | V6: =INDEX(Other!$B$9:$B$33,'Report - ALL (DASHBOARD)'!$W$4) -> October-September
B7: =INDEX(Other!$C$9:$C$33,'Report - ALL (DASHBOARD)'!$W$3) -> Averages | P7: ='Compile Data'!$B$5&" (PRELIMINARY)" -> Shasta Storage (PRELIMINARY) | V7: ='Compile Data'!$B$5&" (PRELIMINARY)" -> Shasta Storage (PRELIMINARY)
B8: =CONCATENATE("(",'Compile Data'!$B$6,"/",'Compile Data'!$B$7,")") -> (S4/STORAGE) | P8: =CONCATENATE(INDEX(Other!$C$9:$C$33,'Report - ALL (DASHBOARD)'!$W$3)," ",IF('Report - ALL (DASHBOARD)'!$W$3>4,IF(AND('Compile Data'!$B$10="TAF",'Compile Data'!$B$8="PER-AVER"),"Totals","Averages"),"")) -> Averages | V8: =CONCATENATE(INDEX(Other!$C$9:$C$33,'Report - ALL (DASHBOARD)'!$W$3)," ",IF('Report - ALL (DASHBOARD)'!$W$3>4,IF(AND('Compile Data'!$B$10="TAF",'Compile Data'!$B$8="PER-AVER"),"Totals","Averages"),"")) -> Averages
P9: =CONCATENATE("(",'Compile Data'!$B$6,"/",'Compile Data'!$B$7,")") -> (S4/STORAGE) | V9: =CONCATENATE("(",'Compile Data'!$B$6,"/",'Compile Data'!$B$7,")") -> (S4/STORAGE)
A11: Y-axis: | B11: =IF('Compile Data'!$B$10="CFS","Flow (CFS)",IF('Compile Data'!$B$10="TAF","Volume (TAF)",IF('Compile Data'!$B$10="KM","POSITION (KM)",IF('Compile Data'!$B$10="DEGF","Temperature (deg F)","")))) -> Volume (TAF) | P11: =IF('Compile Data'!$B$10="CFS","Flow (CFS)",IF('Compile Data'!$B$10="TAF","Volume (TAF)",IF('Compile Data'!$B$10="KM","POSITION (KM)",IF('Compile Data'!$B$10="DEGF","Temperature (deg F)","")))) -> Volume (TAF) | V11: =IF('Compile Data'!$B$10="CFS","Flow (CFS)",IF('Compile Data'!$B$10="TAF","Volume (TAF)",IF('Compile Data'!$B$10="KM","POSITION (KM)",""))) -> Volume (TAF)
Q12: Diff from
B13: OCT | C13: NOV | D13: DEC | E13: JAN | F13: FEB | G13: MAR | H13: APR | I13: MAY | J13: JUN | K13: JUL | L13: AUG | M13: SEP | P13: Value | Q13: =$O$14 -> NAA 091720 | V13: Wet | W13: Above Normal | X13: Below Normal | Y13: Dry | Z13: Critically Dry
A14: ='Compile Data'!$B$1 -> NAA 091720 | B14: =INDEX('Compile Data'!J$95:J$118,'Report - ALL (DASHBOARD)'!$W$3) -> 2726.202664 | C14: =INDEX('Compile Data'!K$95:K$118,'Report - ALL (DASHBOARD)'!$W$3) -> 2730.626797 | D14: =INDEX('Compile Data'!L$95:L$118,'Report - ALL (DASHBOARD)'!$W$3) -> 2854.540238 | E14: =INDEX('Compile Data'!M$95:M$118,'Report - ALL (DASHBOARD)'!$W$3) -> 3097.836605 | F14: =INDEX('Compile Data'!N$95:N$118,'Report - ALL (DASHBOARD)'!$W$3) -> 3339.429527 | G14: =INDEX('Compile Data'!O$95:O$118,'Report - ALL (DASHBOARD)'!$W$3) -> 3692.368303 | H14: =INDEX('Compile Data'!P$95:P$118,'Report - ALL (DASHBOARD)'!$W$3) -> 4051.276105 | I14: =INDEX('Compile Data'!Q$95:Q$118,'Report - ALL (DASHBOARD)'!$W$3) -> 4043.839792 | J14: =INDEX('Compile Data'!R$95:R$118,'Report - ALL (DASHBOARD)'!$W$3) -> 3755.269276 | K14: =INDEX('Compile Data'!S$95:S$118,'Report - ALL (DASHBOARD)'!$W$3) -> 3285.653284 | L14: =INDEX('Compile Data'!T$95:T$118,'Report - ALL (DASHBOARD)'!$W$3) -> 2960.150692 | M14: =INDEX('Compile Data'!U$95:U$118,'Report - ALL (DASHBOARD)'!$W$3) -> 2823.506035 | O14: ='Compile Data'!$B$1 -> NAA 091720 | P14: =INDEX('Compile Data'!$J$95:$AG$118,'Report - ALL (DASHBOARD)'!$W$3,'Report - ALL (DASHBOARD)'!$W$4) -> 3280.058277 | U14: ='Compile Data'!$B$1 -> NAA 091720 | V14: =INDEX('Compile Data'!$J$95:$AG$118,12,'Report - ALL (DASHBOARD)'!$W$4) -> 3585.022821 | W14: =INDEX('Compile Data'!$J$95:$AG$118,13,'Report - ALL (DASHBOARD)'!$W$4) -> 3439.995209 | X14: =INDEX('Compile Data'!$J$95:$AG$118,14,'Report - ALL (DASHBOARD)'!$W$4) -> 3464.732524 | Y14: =INDEX('Compile Data'!$J$95:$AG$118,15,'Report - ALL (DASHBOARD)'!$W$4) -> 3247.119247 | Z14: =INDEX('Compile Data'!$J$95:$AG$118,16,'Report - ALL (DASHBOARD)'!$W$4) -> 2293.320087
A15: ='Compile Data'!$C$1 -> ALTA2 PEA | B15: =INDEX('Compile Data'!AJ$95:AJ$118,'Report - ALL (DASHBOARD)'!$W$3) -> 2742.050611 | C15: =INDEX('Compile Data'!AK$95:AK$118,'Report - ALL (DASHBOARD)'!$W$3) -> 2741.951322 | D15: =INDEX('Compile Data'!AL$95:AL$118,'Report - ALL (DASHBOARD)'!$W$3) -> 2865.014033 | E15: =INDEX('Compile Data'!AM$95:AM$118,'Report - ALL (DASHBOARD)'!$W$3) -> 3110.87431 | F15: =INDEX('Compile Data'!AN$95:AN$118,'Report - ALL (DASHBOARD)'!$W$3) -> 3350.301613 | G15: =INDEX('Compile Data'!AO$95:AO$118,'Report - ALL (DASHBOARD)'!$W$3) -> 3702.701423 | H15: =INDEX('Compile Data'!AP$95:AP$118,'Report - ALL (DASHBOARD)'!$W$3) -> 4063.169484 | I15: =INDEX('Compile Data'!AQ$95:AQ$118,'Report - ALL (DASHBOARD)'!$W$3) -> 4060.177595 | J15: =INDEX('Compile Data'!AR$95:AR$118,'Report - ALL (DASHBOARD)'!$W$3) -> 3778.341557 | K15: =INDEX('Compile Data'!AS$95:AS$118,'Report - ALL (DASHBOARD)'!$W$3) -> 3306.991906 | L15: =INDEX('Compile Data'!AT$95:AT$118,'Report - ALL (DASHBOARD)'!$W$3) -> 2980.443088 | M15: =INDEX('Compile Data'!AU$95:AU$118,'Report - ALL (DASHBOARD)'!$W$3) -> 2843.133787 | O15: ='Compile Data'!$C$1 -> ALTA2 PEA | P15: =INDEX('Compile Data'!$AJ$95:$BG$118,'Report - ALL (DASHBOARD)'!$W$3,'Report - ALL (DASHBOARD)'!$W$4) -> 3295.429227 | Q15: =$P15-$P$14 -> 15.37095088 | U15: ='Compile Data'!$C$1 -> ALTA2 PEA | V15: =INDEX('Compile Data'!$AJ$95:$BG$118,12,'Report - ALL (DASHBOARD)'!$W$4) -> 3593.203219 | W15: =INDEX('Compile Data'!$AJ$95:$BG$118,13,'Report - ALL (DASHBOARD)'!$W$4) -> 3466.151573 | X15: =INDEX('Compile Data'!$AJ$95:$BG$118,14,'Report - ALL (DASHBOARD)'!$W$4) -> 3466.179962 | Y15: =INDEX('Compile Data'!$AJ$95:$BG$118,15,'Report - ALL (DASHBOARD)'!$W$4) -> 3263.397965 | Z15: =INDEX('Compile Data'!$AJ$95:$BG$118,16,'Report - ALL (DASHBOARD)'!$W$4) -> 2328.367604
A22: Annuals Plot: | O22: Exceedence Plot:
A24: Title: | B24: =INDEX(Other!$B$9:$B$33,'Report - ALL (DASHBOARD)'!$W$4) -> October-September | O24: Title: | P24: =INDEX(Other!$B$9:$B$33,'Report - ALL (DASHBOARD)'!$W$4) -> October-September
B25: ='Compile Data'!$B$5&" (PRELIMINARY)" -> Shasta Storage (PRELIMINARY) | P25: ='Compile Data'!$B$5&" (PRELIMINARY)" -> Shasta Storage (PRELIMINARY)
B26: =IF('Compile Data'!$B$10="CFS","Flow (CFS)",IF('Compile Data'!$B$10="TAF","Volume (TAF)",IF('Compile Data'!$B$10="KM","POSITION (KM)",IF('Compile Data'!$B$10="DEGF","Temperature (deg F)","")))) -> Volume (TAF) | P26: =IF('Compile Data'!$B$10="CFS","Flow (CFS)",IF('Compile Data'!$B$10="TAF","Volume (TAF)",IF('Compile Data'!$B$10="KM","POSITION (KM)",IF('Compile Data'!$B$10="DEGF","Temperature (deg F)","")))) -> Volume (TAF)
B28: ='Compile Data'!$B$1 -> NAA 091720 | C28: ='Compile Data'!$C$1 -> ALTA2 PEA | Q28: ='Compile Data'!$B$1 -> NAA 091720 | R28: ='Compile Data'!$C$1 -> ALTA2 PEA
A29: 1922 | B29: =INDEX('Compile Data'!$J$12:$AG$93,$A29-1921,'Report - ALL (DASHBOARD)'!$W$4) -> 3569.749296 | C29: =INDEX('Compile Data'!$AJ$12:$BG$93,$A29-1921,'Report - ALL (DASHBOARD)'!$W$4) -> 3584.151834 | O29: 1 | P29: =(O29-1)/81 -> 0 | Q29: =INDEX('Compile Data'!$J$121:$AG$202,$O29,'Report - ALL (DASHBOARD)'!$W$4) -> 3809.925454 | R29: =INDEX('Compile Data'!$AJ$121:$BG$202,$O29,'Report - ALL (DASHBOARD)'!$W$4) -> 3810.702192
A30: =A29+1 -> 1923 | B30: =INDEX('Compile Data'!$J$12:$AG$93,$A30-1921,'Report - ALL (DASHBOARD)'!$W$4) -> 3513.044875 | C30: =INDEX('Compile Data'!$AJ$12:$BG$93,$A30-1921,'Report - ALL (DASHBOARD)'!$W$4) -> 3500.217632 | O30: 2 | P30: 0.01234567901 | Q30: =INDEX('Compile Data'!$J$121:$AG$202,$O30,'Report - ALL (DASHBOARD)'!$W$4) -> 3803.387383 | R30: =INDEX('Compile Data'!$AJ$121:$BG$202,$O30,'Report - ALL (DASHBOARD)'!$W$4) -> 3799.909938
A31: =A30+1 -> 1924 | B31: =INDEX('Compile Data'!$J$12:$AG$93,$A31-1921,'Report - ALL (DASHBOARD)'!$W$4) -> 2330.445945 | C31: =INDEX('Compile Data'!$AJ$12:$BG$93,$A31-1921,'Report - ALL (DASHBOARD)'!$W$4) -> 2279.2157 | O31: 3 | P31: 0.02469135802 | Q31: =INDEX('Compile Data'!$J$121:$AG$202,$O31,'Report - ALL (DASHBOARD)'!$W$4) -> 3799.219166 | R31: =INDEX('Compile Data'!$AJ$121:$BG$202,$O31,'Report - ALL (DASHBOARD)'!$W$4) -> 3791.007596
A32: 1925 | B32: =INDEX('Compile Data'!$J$12:$AG$93,$A32-1921,'Report - ALL (DASHBOARD)'!$W$4) -> 2782.529503 | C32: =INDEX('Compile Data'!$AJ$12:$BG$93,$A32-1921,'Report - ALL (DASHBOARD)'!$W$4) -> 2777.905952 | O32: 4 | P32: 0.03703703704 | Q32: =INDEX('Compile Data'!$J$121:$AG$202,$O32,'Report - ALL (DASHBOARD)'!$W$4) -> 3789.527723 | R32: =INDEX('Compile Data'!$AJ$121:$BG$202,$O32,'Report - ALL (DASHBOARD)'!$W$4) -> 3786.315516
A33: 1926 | B33: =INDEX('Compile Data'!$J$12:$AG$93,$A33-1921,'Report - ALL (DASHBOARD)'!$W$4) -> 3124.942251 | C33: =INDEX('Compile Data'!$AJ$12:$BG$93,$A33-1921,'Report - ALL (DASHBOARD)'!$W$4) -> 3092.50438 | O33: 5 | P33: 0.04938271605 | Q33: =INDEX('Compile Data'!$J$121:$AG$202,$O33,'Report - ALL (DASHBOARD)'!$W$4) -> 3779.264151 | R33: =INDEX('Compile Data'!$AJ$121:$BG$202,$O33,'Report - ALL (DASHBOARD)'!$W$4) -> 3777.907103
A34: 1927 | B34: =INDEX('Compile Data'!$J$12:$AG$93,$A34-1921,'Report - ALL (DASHBOARD)'!$W$4) -> 3636.767098 | C34: =INDEX('Compile Data'!$AJ$12:$BG$93,$A34-1921,'Report - ALL (DASHBOARD)'!$W$4) -> 3631.349601 | O34: 6 | P34: 0.06172839506 | Q34: =INDEX('Compile Data'!$J$121:$AG$202,$O34,'Report - ALL (DASHBOARD)'!$W$4) -> 3775.04652 | R34: =INDEX('Compile Data'!$AJ$121:$BG$202,$O34,'Report - ALL (DASHBOARD)'!$W$4) -> 3772.880777
A35: 1928 | B35: =INDEX('Compile Data'!$J$12:$AG$93,$A35-1921,'Report - ALL (DASHBOARD)'!$W$4) -> 3550.413218 | C35: =INDEX('Compile Data'!$AJ$12:$BG$93,$A35-1921,'Report - ALL (DASHBOARD)'!$W$4) -> 3572.827928 | O35: 7 | P35: 0.07407407407 | Q35: =INDEX('Compile Data'!$J$121:$AG$202,$O35,'Report - ALL (DASHBOARD)'!$W$4) -> 3772.481525 | R35: =INDEX('Compile Data'!$AJ$121:$BG$202,$O35,'Report - ALL (DASHBOARD)'!$W$4) -> 3772.481525
A36: 1929 | B36: =INDEX('Compile Data'!$J$12:$AG$93,$A36-1921,'Report - ALL (DASHBOARD)'!$W$4) -> 2456.978388 | C36: =INDEX('Compile Data'!$AJ$12:$BG$93,$A36-1921,'Report - ALL (DASHBOARD)'!$W$4) -> 2534.108682 | O36: 8 | P36: 0.08641975309 | Q36: =INDEX('Compile Data'!$J$121:$AG$202,$O36,'Report - ALL (DASHBOARD)'!$W$4) -> 3760.395223 | R36: =INDEX('Compile Data'!$AJ$121:$BG$202,$O36,'Report - ALL (DASHBOARD)'!$W$4) -> 3763.708352
A37: 1930 | B37: =INDEX('Compile Data'!$J$12:$AG$93,$A37-1921,'Report - ALL (DASHBOARD)'!$W$4) -> 2509.196399 | C37: =INDEX('Compile Data'!$AJ$12:$BG$93,$A37-1921,'Report - ALL (DASHBOARD)'!$W$4) -> 2583.155213 | O37: 9 | P37: 0.0987654321 | Q37: =INDEX('Compile Data'!$J$121:$AG$202,$O37,'Report - ALL (DASHBOARD)'!$W$4) -> 3757.028969 | R37: =INDEX('Compile Data'!$AJ$121:$BG$202,$O37,'Report - ALL (DASHBOARD)'!$W$4) -> 3757.668918
A38: 1931 | B38: =INDEX('Compile Data'!$J$12:$AG$93,$A38-1921,'Report - ALL (DASHBOARD)'!$W$4) -> 1808.015016 | C38: =INDEX('Compile Data'!$AJ$12:$BG$93,$A38-1921,'Report - ALL (DASHBOARD)'!$W$4) -> 1972.111158 | O38: 10 | P38: 0.1111111111 | Q38: =INDEX('Compile Data'!$J$121:$AG$202,$O38,'Report - ALL (DASHBOARD)'!$W$4) -> 3749.494449 | R38: =INDEX('Compile Data'!$AJ$121:$BG$202,$O38,'Report - ALL (DASHBOARD)'!$W$4) -> 3749.445667
A39: 1932 | B39: =INDEX('Compile Data'!$J$12:$AG$93,$A39-1921,'Report - ALL (DASHBOARD)'!$W$4) -> 1323.06747 | C39: =INDEX('Compile Data'!$AJ$12:$BG$93,$A39-1921,'Report - ALL (DASHBOARD)'!$W$4) -> 1492.854642 | O39: 11 | P39: 0.1234567901 | Q39: =INDEX('Compile Data'!$J$121:$AG$202,$O39,'Report - ALL (DASHBOARD)'!$W$4) -> 3747.795551 | R39: =INDEX('Compile Data'!$AJ$121:$BG$202,$O39,'Report - ALL (DASHBOARD)'!$W$4) -> 3746.060763
A40: 1933 | B40: =INDEX('Compile Data'!$J$12:$AG$93,$A40-1921,'Report - ALL (DASHBOARD)'!$W$4) -> 1338.068526 | C40: =INDEX('Compile Data'!$AJ$12:$BG$93,$A40-1921,'Report - ALL (DASHBOARD)'!$W$4) -> 1477.653724 | O40: 12 | P40: 0.1358024691 | Q40: =INDEX('Compile Data'!$J$121:$AG$202,$O40,'Report - ALL (DASHBOARD)'!$W$4) -> 3743.810385 | R40: =INDEX('Compile Data'!$AJ$121:$BG$202,$O40,'Report - ALL (DASHBOARD)'!$W$4) -> 3743.425925
A41: 1934 | B41: =INDEX('Compile Data'!$J$12:$AG$93,$A41-1921,'Report - ALL (DASHBOARD)'!$W$4) -> 1085.649126 | C41: =INDEX('Compile Data'!$AJ$12:$BG$93,$A41-1921,'Report - ALL (DASHBOARD)'!$W$4) -> 1221.687199 | O41: 13 | P41: 0.1481481481 | Q41: =INDEX('Compile Data'!$J$121:$AG$202,$O41,'Report - ALL (DASHBOARD)'!$W$4) -> 3726.186898 | R41: =INDEX('Compile Data'!$AJ$121:$BG$202,$O41,'Report - ALL (DASHBOARD)'!$W$4) -> 3734.904204
A42: 1935 | B42: =INDEX('Compile Data'!$J$12:$AG$93,$A42-1921,'Report - ALL (DASHBOARD)'!$W$4) -> 1743.334641 | C42: =INDEX('Compile Data'!$AJ$12:$BG$93,$A42-1921,'Report - ALL (DASHBOARD)'!$W$4) -> 1785.579395 | O42: 14 | P42: 0.1604938272 | Q42: =INDEX('Compile Data'!$J$121:$AG$202,$O42,'Report - ALL (DASHBOARD)'!$W$4) -> 3716.821506 | R42: =INDEX('Compile Data'!$AJ$121:$BG$202,$O42,'Report - ALL (DASHBOARD)'!$W$4) -> 3728.663644
A43: 1936 | B43: =INDEX('Compile Data'!$J$12:$AG$93,$A43-1921,'Report - ALL (DASHBOARD)'!$W$4) -> 3168.437389 | C43: =INDEX('Compile Data'!$AJ$12:$BG$93,$A43-1921,'Report - ALL (DASHBOARD)'!$W$4) -> 3206.380376 | O43: 15 | P43: 0.1728395062 | Q43: =INDEX('Compile Data'!$J$121:$AG$202,$O43,'Report - ALL (DASHBOARD)'!$W$4) -> 3714.920734 | R43: =INDEX('Compile Data'!$AJ$121:$BG$202,$O43,'Report - ALL (DASHBOARD)'!$W$4) -> 3722.686949
A44: 1937 | B44: =INDEX('Compile Data'!$J$12:$AG$93,$A44-1921,'Report - ALL (DASHBOARD)'!$W$4) -> 3175.270149 | C44: =INDEX('Compile Data'!$AJ$12:$BG$93,$A44-1921,'Report - ALL (DASHBOARD)'!$W$4) -> 3202.896614 | O44: 16 | P44: 0.1851851852 | Q44: =INDEX('Compile Data'!$J$121:$AG$202,$O44,'Report - ALL (DASHBOARD)'!$W$4) -> 3709.5 | R44: =INDEX('Compile Data'!$AJ$121:$BG$202,$O44,'Report - ALL (DASHBOARD)'!$W$4) -> 3718.786853
A45: 1938 | B45: =INDEX('Compile Data'!$J$12:$AG$93,$A45-1921,'Report - ALL (DASHBOARD)'!$W$4) -> 3706.629122 | C45: =INDEX('Compile Data'!$AJ$12:$BG$93,$A45-1921,'Report - ALL (DASHBOARD)'!$W$4) -> 3706.055989 | O45: 17 | P45: 0.1975308642 | Q45: =INDEX('Compile Data'!$J$121:$AG$202,$O45,'Report - ALL (DASHBOARD)'!$W$4) -> 3706.629122 | R45: =INDEX('Compile Data'!$AJ$121:$BG$202,$O45,'Report - ALL (DASHBOARD)'!$W$4) -> 3709.5
A46: 1939 | B46: =INDEX('Compile Data'!$J$12:$AG$93,$A46-1921,'Report - ALL (DASHBOARD)'!$W$4) -> 3200.144558 | C46: =INDEX('Compile Data'!$AJ$12:$BG$93,$A46-1921,'Report - ALL (DASHBOARD)'!$W$4) -> 3215.069556 | O46: 18 | P46: 0.2098765432 | Q46: =INDEX('Compile Data'!$J$121:$AG$202,$O46,'Report - ALL (DASHBOARD)'!$W$4) -> 3700.250686 | R46: =INDEX('Compile Data'!$AJ$121:$BG$202,$O46,'Report - ALL (DASHBOARD)'!$W$4) -> 3709.450535
A47: 1940 | B47: =INDEX('Compile Data'!$J$12:$AG$93,$A47-1921,'Report - ALL (DASHBOARD)'!$W$4) -> 3126.147116 | C47: =INDEX('Compile Data'!$AJ$12:$BG$93,$A47-1921,'Report - ALL (DASHBOARD)'!$W$4) -> 3127.357087 | O47: 19 | P47: 0.2222222222 | Q47: =INDEX('Compile Data'!$J$121:$AG$202,$O47,'Report - ALL (DASHBOARD)'!$W$4) -> 3693.776853 | R47: =INDEX('Compile Data'!$AJ$121:$BG$202,$O47,'Report - ALL (DASHBOARD)'!$W$4) -> 3706.055989
A48: 1941 | B48: =INDEX('Compile Data'!$J$12:$AG$93,$A48-1921,'Report - ALL (DASHBOARD)'!$W$4) -> 3648.333862 | C48: =INDEX('Compile Data'!$AJ$12:$BG$93,$A48-1921,'Report - ALL (DASHBOARD)'!$W$4) -> 3651.249663 | O48: 20 | P48: 0.2345679012 | Q48: =INDEX('Compile Data'!$J$121:$AG$202,$O48,'Report - ALL (DASHBOARD)'!$W$4) -> 3692.618915 | R48: =INDEX('Compile Data'!$AJ$121:$BG$202,$O48,'Report - ALL (DASHBOARD)'!$W$4) -> 3702.561068
A49: 1942 | B49: =INDEX('Compile Data'!$J$12:$AG$93,$A49-1921,'Report - ALL (DASHBOARD)'!$W$4) -> 3772.481525 | C49: =INDEX('Compile Data'!$AJ$12:$BG$93,$A49-1921,'Report - ALL (DASHBOARD)'!$W$4) -> 3772.481525 | O49: 21 | P49: 0.2469135802 | Q49: =INDEX('Compile Data'!$J$121:$AG$202,$O49,'Report - ALL (DASHBOARD)'!$W$4) -> 3687.166667 | R49: =INDEX('Compile Data'!$AJ$121:$BG$202,$O49,'Report - ALL (DASHBOARD)'!$W$4) -> 3698.984508
A50: 1943 | B50: =INDEX('Compile Data'!$J$12:$AG$93,$A50-1921,'Report - ALL (DASHBOARD)'!$W$4) -> 3757.028969 | C50: =INDEX('Compile Data'!$AJ$12:$BG$93,$A50-1921,'Report - ALL (DASHBOARD)'!$W$4) -> 3749.445667 | O50: 22 | P50: 0.2592592593 | Q50: =INDEX('Compile Data'!$J$121:$AG$202,$O50,'Report - ALL (DASHBOARD)'!$W$4) -> 3675.57689 | R50: =INDEX('Compile Data'!$AJ$121:$BG$202,$O50,'Report - ALL (DASHBOARD)'!$W$4) -> 3691.918428
A51: 1944 | B51: =INDEX('Compile Data'!$J$12:$AG$93,$A51-1921,'Report - ALL (DASHBOARD)'!$W$4) -> 3153.838574 | C51: =INDEX('Compile Data'!$AJ$12:$BG$93,$A51-1921,'Report - ALL (DASHBOARD)'!$W$4) -> 3177.324352 | O51: 23 | P51: 0.2716049383 | Q51: =INDEX('Compile Data'!$J$121:$AG$202,$O51,'Report - ALL (DASHBOARD)'!$W$4) -> 3672.866082 | R51: =INDEX('Compile Data'!$AJ$121:$BG$202,$O51,'Report - ALL (DASHBOARD)'!$W$4) -> 3687.166667
A52: 1945 | B52: =INDEX('Compile Data'!$J$12:$AG$93,$A52-1921,'Report - ALL (DASHBOARD)'!$W$4) -> 3651.439567 | C52: =INDEX('Compile Data'!$AJ$12:$BG$93,$A52-1921,'Report - ALL (DASHBOARD)'!$W$4) -> 3668.215898 | O52: 24 | P52: 0.2839506173 | Q52: =INDEX('Compile Data'!$J$121:$AG$202,$O52,'Report - ALL (DASHBOARD)'!$W$4) -> 3664.553052 | R52: =INDEX('Compile Data'!$AJ$121:$BG$202,$O52,'Report - ALL (DASHBOARD)'!$W$4) -> 3681.293746
A53: 1946 | B53: =INDEX('Compile Data'!$J$12:$AG$93,$A53-1921,'Report - ALL (DASHBOARD)'!$W$4) -> 3716.821506 | C53: =INDEX('Compile Data'!$AJ$12:$BG$93,$A53-1921,'Report - ALL (DASHBOARD)'!$W$4) -> 3718.786853 | O53: 25 | P53: 0.2962962963 | Q53: =INDEX('Compile Data'!$J$121:$AG$202,$O53,'Report - ALL (DASHBOARD)'!$W$4) -> 3651.439567 | R53: =INDEX('Compile Data'!$AJ$121:$BG$202,$O53,'Report - ALL (DASHBOARD)'!$W$4) -> 3675.668882
A54: 1947 | B54: =INDEX('Compile Data'!$J$12:$AG$93,$A54-1921,'Report - ALL (DASHBOARD)'!$W$4) -> 3302.839211 | C54: =INDEX('Compile Data'!$AJ$12:$BG$93,$A54-1921,'Report - ALL (DASHBOARD)'!$W$4) -> 3283.798892 | O54: 26 | P54: 0.3086419753 | Q54: =INDEX('Compile Data'!$J$121:$AG$202,$O54,'Report - ALL (DASHBOARD)'!$W$4) -> 3650.578144 | R54: =INDEX('Compile Data'!$AJ$121:$BG$202,$O54,'Report - ALL (DASHBOARD)'!$W$4) -> 3668.215898
A55: 1948 | B55: =INDEX('Compile Data'!$J$12:$AG$93,$A55-1921,'Report - ALL (DASHBOARD)'!$W$4) -> 3543.493432 | C55: =INDEX('Compile Data'!$AJ$12:$BG$93,$A55-1921,'Report - ALL (DASHBOARD)'!$W$4) -> 3532.323537 | O55: 27 | P55: 0.3209876543 | Q55: =INDEX('Compile Data'!$J$121:$AG$202,$O55,'Report - ALL (DASHBOARD)'!$W$4) -> 3648.333862 | R55: =INDEX('Compile Data'!$AJ$121:$BG$202,$O55,'Report - ALL (DASHBOARD)'!$W$4) -> 3663.671335
A56: 1949 | B56: =INDEX('Compile Data'!$J$12:$AG$93,$A56-1921,'Report - ALL (DASHBOARD)'!$W$4) -> 3581.179795 | C56: =INDEX('Compile Data'!$AJ$12:$BG$93,$A56-1921,'Report - ALL (DASHBOARD)'!$W$4) -> 3574.203467 | O56: 28 | P56: 0.3333333333 | Q56: =INDEX('Compile Data'!$J$121:$AG$202,$O56,'Report - ALL (DASHBOARD)'!$W$4) -> 3646.650866 | R56: =INDEX('Compile Data'!$AJ$121:$BG$202,$O56,'Report - ALL (DASHBOARD)'!$W$4) -> 3661.026348
A57: 1950 | B57: =INDEX('Compile Data'!$J$12:$AG$93,$A57-1921,'Report - ALL (DASHBOARD)'!$W$4) -> 3425.110024 | C57: =INDEX('Compile Data'!$AJ$12:$BG$93,$A57-1921,'Report - ALL (DASHBOARD)'!$W$4) -> 3451.632967 | O57: 29 | P57: 0.3456790123 | Q57: =INDEX('Compile Data'!$J$121:$AG$202,$O57,'Report - ALL (DASHBOARD)'!$W$4) -> 3642.54502 | R57: =INDEX('Compile Data'!$AJ$121:$BG$202,$O57,'Report - ALL (DASHBOARD)'!$W$4) -> 3651.249663
A58: 1951 | B58: =INDEX('Compile Data'!$J$12:$AG$93,$A58-1921,'Report - ALL (DASHBOARD)'!$W$4) -> 3664.553052 | C58: =INDEX('Compile Data'!$AJ$12:$BG$93,$A58-1921,'Report - ALL (DASHBOARD)'!$W$4) -> 3681.293746 | O58: 30 | P58: 0.3580246914 | Q58: =INDEX('Compile Data'!$J$121:$AG$202,$O58,'Report - ALL (DASHBOARD)'!$W$4) -> 3640.733676 | R58: =INDEX('Compile Data'!$AJ$121:$BG$202,$O58,'Report - ALL (DASHBOARD)'!$W$4) -> 3643.923382
A59: 1952 | B59: =INDEX('Compile Data'!$J$12:$AG$93,$A59-1921,'Report - ALL (DASHBOARD)'!$W$4) -> 3749.494449 | C59: =INDEX('Compile Data'!$AJ$12:$BG$93,$A59-1921,'Report - ALL (DASHBOARD)'!$W$4) -> 3763.708352 | O59: 31 | P59: 0.3703703704 | Q59: =INDEX('Compile Data'!$J$121:$AG$202,$O59,'Report - ALL (DASHBOARD)'!$W$4) -> 3636.767098 | R59: =INDEX('Compile Data'!$AJ$121:$BG$202,$O59,'Report - ALL (DASHBOARD)'!$W$4) -> 3638.754649
A60: 1953 | B60: =INDEX('Compile Data'!$J$12:$AG$93,$A60-1921,'Report - ALL (DASHBOARD)'!$W$4) -> 3809.925454 | C60: =INDEX('Compile Data'!$AJ$12:$BG$93,$A60-1921,'Report - ALL (DASHBOARD)'!$W$4) -> 3810.702192 | O60: 32 | P60: 0.3827160494 | Q60: =INDEX('Compile Data'!$J$121:$AG$202,$O60,'Report - ALL (DASHBOARD)'!$W$4) -> 3628.982956 | R60: =INDEX('Compile Data'!$AJ$121:$BG$202,$O60,'Report - ALL (DASHBOARD)'!$W$4) -> 3631.349601
A61: 1954 | B61: =INDEX('Compile Data'!$J$12:$AG$93,$A61-1921,'Report - ALL (DASHBOARD)'!$W$4) -> 3672.866082 | C61: =INDEX('Compile Data'!$AJ$12:$BG$93,$A61-1921,'Report - ALL (DASHBOARD)'!$W$4) -> 3709.450535 | O61: 33 | P61: 0.3950617284 | Q61: =INDEX('Compile Data'!$J$121:$AG$202,$O61,'Report - ALL (DASHBOARD)'!$W$4) -> 3623.352983 | R61: =INDEX('Compile Data'!$AJ$121:$BG$202,$O61,'Report - ALL (DASHBOARD)'!$W$4) -> 3613.368022
A62: 1955 | B62: =INDEX('Compile Data'!$J$12:$AG$93,$A62-1921,'Report - ALL (DASHBOARD)'!$W$4) -> 3516.673867 | C62: =INDEX('Compile Data'!$AJ$12:$BG$93,$A62-1921,'Report - ALL (DASHBOARD)'!$W$4) -> 3544.397839 | O62: 34 | P62: 0.4074074074 | Q62: =INDEX('Compile Data'!$J$121:$AG$202,$O62,'Report - ALL (DASHBOARD)'!$W$4) -> 3616.082909 | R62: =INDEX('Compile Data'!$AJ$121:$BG$202,$O62,'Report - ALL (DASHBOARD)'!$W$4) -> 3609.928514
A63: 1956 | B63: =INDEX('Compile Data'!$J$12:$AG$93,$A63-1921,'Report - ALL (DASHBOARD)'!$W$4) -> 3700.250686 | C63: =INDEX('Compile Data'!$AJ$12:$BG$93,$A63-1921,'Report - ALL (DASHBOARD)'!$W$4) -> 3698.984508 | O63: 35 | P63: 0.4197530864 | Q63: =INDEX('Compile Data'!$J$121:$AG$202,$O63,'Report - ALL (DASHBOARD)'!$W$4) -> 3596.036471 | R63: =INDEX('Compile Data'!$AJ$121:$BG$202,$O63,'Report - ALL (DASHBOARD)'!$W$4) -> 3608.853051
A64: 1957 | B64: =INDEX('Compile Data'!$J$12:$AG$93,$A64-1921,'Report - ALL (DASHBOARD)'!$W$4) -> 3675.57689 | C64: =INDEX('Compile Data'!$AJ$12:$BG$93,$A64-1921,'Report - ALL (DASHBOARD)'!$W$4) -> 3702.561068 | O64: 36 | P64: 0.4320987654 | Q64: =INDEX('Compile Data'!$J$121:$AG$202,$O64,'Report - ALL (DASHBOARD)'!$W$4) -> 3582.715277 | R64: =INDEX('Compile Data'!$AJ$121:$BG$202,$O64,'Report - ALL (DASHBOARD)'!$W$4) -> 3608.662727
A65: 1958 | B65: =INDEX('Compile Data'!$J$12:$AG$93,$A65-1921,'Report - ALL (DASHBOARD)'!$W$4) -> 3709.5 | C65: =INDEX('Compile Data'!$AJ$12:$BG$93,$A65-1921,'Report - ALL (DASHBOARD)'!$W$4) -> 3709.5 | O65: 37 | P65: 0.4444444444 | Q65: =INDEX('Compile Data'!$J$121:$AG$202,$O65,'Report - ALL (DASHBOARD)'!$W$4) -> 3581.179795 | R65: =INDEX('Compile Data'!$AJ$121:$BG$202,$O65,'Report - ALL (DASHBOARD)'!$W$4) -> 3595.863501
A66: 1959 | B66: =INDEX('Compile Data'!$J$12:$AG$93,$A66-1921,'Report - ALL (DASHBOARD)'!$W$4) -> 3552.040776 | C66: =INDEX('Compile Data'!$AJ$12:$BG$93,$A66-1921,'Report - ALL (DASHBOARD)'!$W$4) -> 3593.26913 | O66: 38 | P66: 0.4567901235 | Q66: =INDEX('Compile Data'!$J$121:$AG$202,$O66,'Report - ALL (DASHBOARD)'!$W$4) -> 3571.077745 | R66: =INDEX('Compile Data'!$AJ$121:$BG$202,$O66,'Report - ALL (DASHBOARD)'!$W$4) -> 3593.26913
A67: 1960 | B67: =INDEX('Compile Data'!$J$12:$AG$93,$A67-1921,'Report - ALL (DASHBOARD)'!$W$4) -> 3300.105819 | C67: =INDEX('Compile Data'!$AJ$12:$BG$93,$A67-1921,'Report - ALL (DASHBOARD)'!$W$4) -> 3270.714856 | O67: 39 | P67: 0.4691358025 | Q67: =INDEX('Compile Data'!$J$121:$AG$202,$O67,'Report - ALL (DASHBOARD)'!$W$4) -> 3569.749296 | R67: =INDEX('Compile Data'!$AJ$121:$BG$202,$O67,'Report - ALL (DASHBOARD)'!$W$4) -> 3584.151834
A68: 1961 | B68: =INDEX('Compile Data'!$J$12:$AG$93,$A68-1921,'Report - ALL (DASHBOARD)'!$W$4) -> 3640.733676 | C68: =INDEX('Compile Data'!$AJ$12:$BG$93,$A68-1921,'Report - ALL (DASHBOARD)'!$W$4) -> 3613.368022 | O68: 40 | P68: 0.4814814815 | Q68: =INDEX('Compile Data'!$J$121:$AG$202,$O68,'Report - ALL (DASHBOARD)'!$W$4) -> 3566.260548 | R68: =INDEX('Compile Data'!$AJ$121:$BG$202,$O68,'Report - ALL (DASHBOARD)'!$W$4) -> 3574.203467
A69: 1962 | B69: =INDEX('Compile Data'!$J$12:$AG$93,$A69-1921,'Report - ALL (DASHBOARD)'!$W$4) -> 3582.715277 | C69: =INDEX('Compile Data'!$AJ$12:$BG$93,$A69-1921,'Report - ALL (DASHBOARD)'!$W$4) -> 3571.645633 | O69: 41 | P69: 0.4938271605 | Q69: =INDEX('Compile Data'!$J$121:$AG$202,$O69,'Report - ALL (DASHBOARD)'!$W$4) -> 3552.040776 | R69: =INDEX('Compile Data'!$AJ$121:$BG$202,$O69,'Report - ALL (DASHBOARD)'!$W$4) -> 3572.827928
A70: 1963 | B70: =INDEX('Compile Data'!$J$12:$AG$93,$A70-1921,'Report - ALL (DASHBOARD)'!$W$4) -> 3760.395223 | C70: =INDEX('Compile Data'!$AJ$12:$BG$93,$A70-1921,'Report - ALL (DASHBOARD)'!$W$4) -> 3757.668918 | O70: 42 | P70: 0.5061728395 | Q70: =INDEX('Compile Data'!$J$121:$AG$202,$O70,'Report - ALL (DASHBOARD)'!$W$4) -> 3550.413218 | R70: =INDEX('Compile Data'!$AJ$121:$BG$202,$O70,'Report - ALL (DASHBOARD)'!$W$4) -> 3571.645633
A71: 1964 | B71: =INDEX('Compile Data'!$J$12:$AG$93,$A71-1921,'Report - ALL (DASHBOARD)'!$W$4) -> 3487.335387 | C71: =INDEX('Compile Data'!$AJ$12:$BG$93,$A71-1921,'Report - ALL (DASHBOARD)'!$W$4) -> 3493.46056 | O71: 43 | P71: 0.5185185185 | Q71: =INDEX('Compile Data'!$J$121:$AG$202,$O71,'Report - ALL (DASHBOARD)'!$W$4) -> 3543.493432 | R71: =INDEX('Compile Data'!$AJ$121:$BG$202,$O71,'Report - ALL (DASHBOARD)'!$W$4) -> 3566.853084
A72: 1965 | B72: =INDEX('Compile Data'!$J$12:$AG$93,$A72-1921,'Report - ALL (DASHBOARD)'!$W$4) -> 3693.776853 | C72: =INDEX('Compile Data'!$AJ$12:$BG$93,$A72-1921,'Report - ALL (DASHBOARD)'!$W$4) -> 3691.918428 | O72: 44 | P72: 0.5308641975 | Q72: =INDEX('Compile Data'!$J$121:$AG$202,$O72,'Report - ALL (DASHBOARD)'!$W$4) -> 3530.839663 | R72: =INDEX('Compile Data'!$AJ$121:$BG$202,$O72,'Report - ALL (DASHBOARD)'!$W$4) -> 3544.397839
A73: 1966 | B73: =INDEX('Compile Data'!$J$12:$AG$93,$A73-1921,'Report - ALL (DASHBOARD)'!$W$4) -> 3650.578144 | C73: =INDEX('Compile Data'!$AJ$12:$BG$93,$A73-1921,'Report - ALL (DASHBOARD)'!$W$4) -> 3638.754649 | O73: 45 | P73: 0.5432098765 | Q73: =INDEX('Compile Data'!$J$121:$AG$202,$O73,'Report - ALL (DASHBOARD)'!$W$4) -> 3516.673867 | R73: =INDEX('Compile Data'!$AJ$121:$BG$202,$O73,'Report - ALL (DASHBOARD)'!$W$4) -> 3532.323537
A74: 1967 | B74: =INDEX('Compile Data'!$J$12:$AG$93,$A74-1921,'Report - ALL (DASHBOARD)'!$W$4) -> 3803.387383 | C74: =INDEX('Compile Data'!$AJ$12:$BG$93,$A74-1921,'Report - ALL (DASHBOARD)'!$W$4) -> 3791.007596 | O74: 46 | P74: 0.5555555556 | Q74: =INDEX('Compile Data'!$J$121:$AG$202,$O74,'Report - ALL (DASHBOARD)'!$W$4) -> 3513.044875 | R74: =INDEX('Compile Data'!$AJ$121:$BG$202,$O74,'Report - ALL (DASHBOARD)'!$W$4) -> 3500.217632
A75: 1968 | B75: =INDEX('Compile Data'!$J$12:$AG$93,$A75-1921,'Report - ALL (DASHBOARD)'!$W$4) -> 3566.260548 | C75: =INDEX('Compile Data'!$AJ$12:$BG$93,$A75-1921,'Report - ALL (DASHBOARD)'!$W$4) -> 3595.863501 | O75: 47 | P75: 0.5679012346 | Q75: =INDEX('Compile Data'!$J$121:$AG$202,$O75,'Report - ALL (DASHBOARD)'!$W$4) -> 3487.335387 | R75: =INDEX('Compile Data'!$AJ$121:$BG$202,$O75,'Report - ALL (DASHBOARD)'!$W$4) -> 3493.46056
A76: 1969 | B76: =INDEX('Compile Data'!$J$12:$AG$93,$A76-1921,'Report - ALL (DASHBOARD)'!$W$4) -> 3726.186898 | C76: =INDEX('Compile Data'!$AJ$12:$BG$93,$A76-1921,'Report - ALL (DASHBOARD)'!$W$4) -> 3734.904204 | O76: 48 | P76: 0.5802469136 | Q76: =INDEX('Compile Data'!$J$121:$AG$202,$O76,'Report - ALL (DASHBOARD)'!$W$4) -> 3473.102437 | R76: =INDEX('Compile Data'!$AJ$121:$BG$202,$O76,'Report - ALL (DASHBOARD)'!$W$4) -> 3459.78567
A77: 1970 | B77: =INDEX('Compile Data'!$J$12:$AG$93,$A77-1921,'Report - ALL (DASHBOARD)'!$W$4) -> 3424.297924 | C77: =INDEX('Compile Data'!$AJ$12:$BG$93,$A77-1921,'Report - ALL (DASHBOARD)'!$W$4) -> 3420.80838 | O77: 49 | P77: 0.5925925926 | Q77: =INDEX('Compile Data'!$J$121:$AG$202,$O77,'Report - ALL (DASHBOARD)'!$W$4) -> 3460.215066 | R77: =INDEX('Compile Data'!$AJ$121:$BG$202,$O77,'Report - ALL (DASHBOARD)'!$W$4) -> 3451.632967
A78: 1971 | B78: =INDEX('Compile Data'!$J$12:$AG$93,$A78-1921,'Report - ALL (DASHBOARD)'!$W$4) -> 3747.795551 | C78: =INDEX('Compile Data'!$AJ$12:$BG$93,$A78-1921,'Report - ALL (DASHBOARD)'!$W$4) -> 3743.425925 | O78: 50 | P78: 0.6049382716 | Q78: =INDEX('Compile Data'!$J$121:$AG$202,$O78,'Report - ALL (DASHBOARD)'!$W$4) -> 3425.110024 | R78: =INDEX('Compile Data'!$AJ$121:$BG$202,$O78,'Report - ALL (DASHBOARD)'!$W$4) -> 3450.791853
A79: 1972 | B79: =INDEX('Compile Data'!$J$12:$AG$93,$A79-1921,'Report - ALL (DASHBOARD)'!$W$4) -> 3642.54502 | C79: =INDEX('Compile Data'!$AJ$12:$BG$93,$A79-1921,'Report - ALL (DASHBOARD)'!$W$4) -> 3663.671335 | O79: 51 | P79: 0.6172839506 | Q79: =INDEX('Compile Data'!$J$121:$AG$202,$O79,'Report - ALL (DASHBOARD)'!$W$4) -> 3424.297924 | R79: =INDEX('Compile Data'!$AJ$121:$BG$202,$O79,'Report - ALL (DASHBOARD)'!$W$4) -> 3428.455805
A80: 1973 | B80: =INDEX('Compile Data'!$J$12:$AG$93,$A80-1921,'Report - ALL (DASHBOARD)'!$W$4) -> 3646.650866 | C80: =INDEX('Compile Data'!$AJ$12:$BG$93,$A80-1921,'Report - ALL (DASHBOARD)'!$W$4) -> 3675.668882 | O80: 52 | P80: 0.6296296296 | Q80: =INDEX('Compile Data'!$J$121:$AG$202,$O80,'Report - ALL (DASHBOARD)'!$W$4) -> 3422.120467 | R80: =INDEX('Compile Data'!$AJ$121:$BG$202,$O80,'Report - ALL (DASHBOARD)'!$W$4) -> 3420.80838
A81: 1974 | B81: =INDEX('Compile Data'!$J$12:$AG$93,$A81-1921,'Report - ALL (DASHBOARD)'!$W$4) -> 3714.920734 | C81: =INDEX('Compile Data'!$AJ$12:$BG$93,$A81-1921,'Report - ALL (DASHBOARD)'!$W$4) -> 3722.686949 | O81: 53 | P81: 0.6419753086 | Q81: =INDEX('Compile Data'!$J$121:$AG$202,$O81,'Report - ALL (DASHBOARD)'!$W$4) -> 3393.840282 | R81: =INDEX('Compile Data'!$AJ$121:$BG$202,$O81,'Report - ALL (DASHBOARD)'!$W$4) -> 3420.75739
A82: 1975 | B82: =INDEX('Compile Data'!$J$12:$AG$93,$A82-1921,'Report - ALL (DASHBOARD)'!$W$4) -> 3799.219166 | C82: =INDEX('Compile Data'!$AJ$12:$BG$93,$A82-1921,'Report - ALL (DASHBOARD)'!$W$4) -> 3799.909938 | O82: 54 | P82: 0.6543209877 | Q82: =INDEX('Compile Data'!$J$121:$AG$202,$O82,'Report - ALL (DASHBOARD)'!$W$4) -> 3333.148229 | R82: =INDEX('Compile Data'!$AJ$121:$BG$202,$O82,'Report - ALL (DASHBOARD)'!$W$4) -> 3342.328794
A83: 1976 | B83: =INDEX('Compile Data'!$J$12:$AG$93,$A83-1921,'Report - ALL (DASHBOARD)'!$W$4) -> 3422.120467 | C83: =INDEX('Compile Data'!$AJ$12:$BG$93,$A83-1921,'Report - ALL (DASHBOARD)'!$W$4) -> 3428.455805 | O83: 55 | P83: 0.6666666667 | Q83: =INDEX('Compile Data'!$J$121:$AG$202,$O83,'Report - ALL (DASHBOARD)'!$W$4) -> 3302.839211 | R83: =INDEX('Compile Data'!$AJ$121:$BG$202,$O83,'Report - ALL (DASHBOARD)'!$W$4) -> 3283.798892
A84: 1977 | B84: =INDEX('Compile Data'!$J$12:$AG$93,$A84-1921,'Report - ALL (DASHBOARD)'!$W$4) -> 1644.104469 | C84: =INDEX('Compile Data'!$AJ$12:$BG$93,$A84-1921,'Report - ALL (DASHBOARD)'!$W$4) -> 1743.836089 | O84: 56 | P84: 0.6790123457 | Q84: =INDEX('Compile Data'!$J$121:$AG$202,$O84,'Report - ALL (DASHBOARD)'!$W$4) -> 3300.105819 | R84: =INDEX('Compile Data'!$AJ$121:$BG$202,$O84,'Report - ALL (DASHBOARD)'!$W$4) -> 3281.043214
A85: 1978 | B85: =INDEX('Compile Data'!$J$12:$AG$93,$A85-1921,'Report - ALL (DASHBOARD)'!$W$4) -> 3062.804204 | C85: =INDEX('Compile Data'!$AJ$12:$BG$93,$A85-1921,'Report - ALL (DASHBOARD)'!$W$4) -> 3071.617425 | O85: 57 | P85: 0.6913580247 | Q85: =INDEX('Compile Data'!$J$121:$AG$202,$O85,'Report - ALL (DASHBOARD)'!$W$4) -> 3200.144558 | R85: =INDEX('Compile Data'!$AJ$121:$BG$202,$O85,'Report - ALL (DASHBOARD)'!$W$4) -> 3270.714856
A86: 1979 | B86: =INDEX('Compile Data'!$J$12:$AG$93,$A86-1921,'Report - ALL (DASHBOARD)'!$W$4) -> 3571.077745 | C86: =INDEX('Compile Data'!$AJ$12:$BG$93,$A86-1921,'Report - ALL (DASHBOARD)'!$W$4) -> 3609.928514 | O86: 58 | P86: 0.7037037037 | Q86: =INDEX('Compile Data'!$J$121:$AG$202,$O86,'Report - ALL (DASHBOARD)'!$W$4) -> 3195.998831 | R86: =INDEX('Compile Data'!$AJ$121:$BG$202,$O86,'Report - ALL (DASHBOARD)'!$W$4) -> 3215.069556
A87: 1980 | B87: =INDEX('Compile Data'!$J$12:$AG$93,$A87-1921,'Report - ALL (DASHBOARD)'!$W$4) -> 3623.352983 | C87: =INDEX('Compile Data'!$AJ$12:$BG$93,$A87-1921,'Report - ALL (DASHBOARD)'!$W$4) -> 3643.923382 | O87: 59 | P87: 0.7160493827 | Q87: =INDEX('Compile Data'!$J$121:$AG$202,$O87,'Report - ALL (DASHBOARD)'!$W$4) -> 3175.270149 | R87: =INDEX('Compile Data'!$AJ$121:$BG$202,$O87,'Report - ALL (DASHBOARD)'!$W$4) -> 3206.380376
A88: 1981 | B88: =INDEX('Compile Data'!$J$12:$AG$93,$A88-1921,'Report - ALL (DASHBOARD)'!$W$4) -> 3530.839663 | C88: =INDEX('Compile Data'!$AJ$12:$BG$93,$A88-1921,'Report - ALL (DASHBOARD)'!$W$4) -> 3566.853084 | O88: 60 | P88: 0.7283950617 | Q88: =INDEX('Compile Data'!$J$121:$AG$202,$O88,'Report - ALL (DASHBOARD)'!$W$4) -> 3168.437389 | R88: =INDEX('Compile Data'!$AJ$121:$BG$202,$O88,'Report - ALL (DASHBOARD)'!$W$4) -> 3202.896614
A89: 1982 | B89: =INDEX('Compile Data'!$J$12:$AG$93,$A89-1921,'Report - ALL (DASHBOARD)'!$W$4) -> 3743.810385 | C89: =INDEX('Compile Data'!$AJ$12:$BG$93,$A89-1921,'Report - ALL (DASHBOARD)'!$W$4) -> 3746.060763 | O89: 61 | P89: 0.7407407407 | Q89: =INDEX('Compile Data'!$J$121:$AG$202,$O89,'Report - ALL (DASHBOARD)'!$W$4) -> 3157.459873 | R89: =INDEX('Compile Data'!$AJ$121:$BG$202,$O89,'Report - ALL (DASHBOARD)'!$W$4) -> 3177.324352
A90: 1983 | B90: =INDEX('Compile Data'!$J$12:$AG$93,$A90-1921,'Report - ALL (DASHBOARD)'!$W$4) -> 3687.166667 | C90: =INDEX('Compile Data'!$AJ$12:$BG$93,$A90-1921,'Report - ALL (DASHBOARD)'!$W$4) -> 3687.166667 | O90: 62 | P90: 0.7530864198 | Q90: =INDEX('Compile Data'!$J$121:$AG$202,$O90,'Report - ALL (DASHBOARD)'!$W$4) -> 3153.838574 | R90: =INDEX('Compile Data'!$AJ$121:$BG$202,$O90,'Report - ALL (DASHBOARD)'!$W$4) -> 3170.293261
A91: 1984 | B91: =INDEX('Compile Data'!$J$12:$AG$93,$A91-1921,'Report - ALL (DASHBOARD)'!$W$4) -> 3775.04652 | C91: =INDEX('Compile Data'!$AJ$12:$BG$93,$A91-1921,'Report - ALL (DASHBOARD)'!$W$4) -> 3772.880777 | O91: 63 | P91: 0.7654320988 | Q91: =INDEX('Compile Data'!$J$121:$AG$202,$O91,'Report - ALL (DASHBOARD)'!$W$4) -> 3141.869751 | R91: =INDEX('Compile Data'!$AJ$121:$BG$202,$O91,'Report - ALL (DASHBOARD)'!$W$4) -> 3127.357087
A92: 1985 | B92: =INDEX('Compile Data'!$J$12:$AG$93,$A92-1921,'Report - ALL (DASHBOARD)'!$W$4) -> 3393.840282 | C92: =INDEX('Compile Data'!$AJ$12:$BG$93,$A92-1921,'Report - ALL (DASHBOARD)'!$W$4) -> 3420.75739 | O92: 64 | P92: 0.7777777778 | Q92: =INDEX('Compile Data'!$J$121:$AG$202,$O92,'Report - ALL (DASHBOARD)'!$W$4) -> 3126.147116 | R92: =INDEX('Compile Data'!$AJ$121:$BG$202,$O92,'Report - ALL (DASHBOARD)'!$W$4) -> 3125.973114
A93: 1986 | B93: =INDEX('Compile Data'!$J$12:$AG$93,$A93-1921,'Report - ALL (DASHBOARD)'!$W$4) -> 3333.148229 | C93: =INDEX('Compile Data'!$AJ$12:$BG$93,$A93-1921,'Report - ALL (DASHBOARD)'!$W$4) -> 3342.328794 | O93: 65 | P93: =(O93-1)/81 -> 0.7901234568 | Q93: =INDEX('Compile Data'!$J$121:$AG$202,$O93,'Report - ALL (DASHBOARD)'!$W$4) -> 3124.942251 | R93: =INDEX('Compile Data'!$AJ$121:$BG$202,$O93,'Report - ALL (DASHBOARD)'!$W$4) -> 3092.50438
A94: 1987 | B94: =INDEX('Compile Data'!$J$12:$AG$93,$A94-1921,'Report - ALL (DASHBOARD)'!$W$4) -> 3195.998831 | C94: =INDEX('Compile Data'!$AJ$12:$BG$93,$A94-1921,'Report - ALL (DASHBOARD)'!$W$4) -> 3170.293261 | O94: 66 | P94: 0.8024691358 | Q94: =INDEX('Compile Data'!$J$121:$AG$202,$O94,'Report - ALL (DASHBOARD)'!$W$4) -> 3062.804204 | R94: =INDEX('Compile Data'!$AJ$121:$BG$202,$O94,'Report - ALL (DASHBOARD)'!$W$4) -> 3071.617425
A95: =A94+1 -> 1988 | B95: =INDEX('Compile Data'!$J$12:$AG$93,$A95-1921,'Report - ALL (DASHBOARD)'!$W$4) -> 2799.594905 | C95: =INDEX('Compile Data'!$AJ$12:$BG$93,$A95-1921,'Report - ALL (DASHBOARD)'!$W$4) -> 2798.818592 | O95: 67 | P95: 0.8148148148 | Q95: =INDEX('Compile Data'!$J$121:$AG$202,$O95,'Report - ALL (DASHBOARD)'!$W$4) -> 3011.478012 | R95: =INDEX('Compile Data'!$AJ$121:$BG$202,$O95,'Report - ALL (DASHBOARD)'!$W$4) -> 2989.571175
A96: 1989 | B96: =INDEX('Compile Data'!$J$12:$AG$93,$A96-1921,'Report - ALL (DASHBOARD)'!$W$4) -> 2996.545279 | C96: =INDEX('Compile Data'!$AJ$12:$BG$93,$A96-1921,'Report - ALL (DASHBOARD)'!$W$4) -> 2989.571175 | O96: 68 | P96: 0.8271604938 | Q96: =INDEX('Compile Data'!$J$121:$AG$202,$O96,'Report - ALL (DASHBOARD)'!$W$4) -> 2996.545279 | R96: =INDEX('Compile Data'!$AJ$121:$BG$202,$O96,'Report - ALL (DASHBOARD)'!$W$4) -> 2987.373582
A97: 1990 | B97: =INDEX('Compile Data'!$J$12:$AG$93,$A97-1921,'Report - ALL (DASHBOARD)'!$W$4) -> 3011.478012 | C97: =INDEX('Compile Data'!$AJ$12:$BG$93,$A97-1921,'Report - ALL (DASHBOARD)'!$W$4) -> 2987.373582 | O97: 69 | P97: 0.8395061728 | Q97: =INDEX('Compile Data'!$J$121:$AG$202,$O97,'Report - ALL (DASHBOARD)'!$W$4) -> 2962.967638 | R97: =INDEX('Compile Data'!$AJ$121:$BG$202,$O97,'Report - ALL (DASHBOARD)'!$W$4) -> 2972.159764
A98: 1991 | B98: =INDEX('Compile Data'!$J$12:$AG$93,$A98-1921,'Report - ALL (DASHBOARD)'!$W$4) -> 2128.243162 | C98: =INDEX('Compile Data'!$AJ$12:$BG$93,$A98-1921,'Report - ALL (DASHBOARD)'!$W$4) -> 2076.310367 | O98: 70 | P98: 0.8518518519 | Q98: =INDEX('Compile Data'!$J$121:$AG$202,$O98,'Report - ALL (DASHBOARD)'!$W$4) -> 2799.594905 | R98: =INDEX('Compile Data'!$AJ$121:$BG$202,$O98,'Report - ALL (DASHBOARD)'!$W$4) -> 2798.818592
A99: 1992 | B99: =INDEX('Compile Data'!$J$12:$AG$93,$A99-1921,'Report - ALL (DASHBOARD)'!$W$4) -> 1808.296716 | C99: =INDEX('Compile Data'!$AJ$12:$BG$93,$A99-1921,'Report - ALL (DASHBOARD)'!$W$4) -> 1765.948356 | O99: 71 | P99: 0.8641975309 | Q99: =INDEX('Compile Data'!$J$121:$AG$202,$O99,'Report - ALL (DASHBOARD)'!$W$4) -> 2782.529503 | R99: =INDEX('Compile Data'!$AJ$121:$BG$202,$O99,'Report - ALL (DASHBOARD)'!$W$4) -> 2777.905952
A100: 1993 | B100: =INDEX('Compile Data'!$J$12:$AG$93,$A100-1921,'Report - ALL (DASHBOARD)'!$W$4) -> 2962.967638 | C100: =INDEX('Compile Data'!$AJ$12:$BG$93,$A100-1921,'Report - ALL (DASHBOARD)'!$W$4) -> 2972.159764 | O100: 72 | P100: 0.8765432099 | Q100: =INDEX('Compile Data'!$J$121:$AG$202,$O100,'Report - ALL (DASHBOARD)'!$W$4) -> 2509.196399 | R100: =INDEX('Compile Data'!$AJ$121:$BG$202,$O100,'Report - ALL (DASHBOARD)'!$W$4) -> 2583.155213
A101: 1994 | B101: =INDEX('Compile Data'!$J$12:$AG$93,$A101-1921,'Report - ALL (DASHBOARD)'!$W$4) -> 3157.459873 | C101: =INDEX('Compile Data'!$AJ$12:$BG$93,$A101-1921,'Report - ALL (DASHBOARD)'!$W$4) -> 3125.973114 | O101: 73 | P101: 0.8888888889 | Q101: =INDEX('Compile Data'!$J$121:$AG$202,$O101,'Report - ALL (DASHBOARD)'!$W$4) -> 2456.978388 | R101: =INDEX('Compile Data'!$AJ$121:$BG$202,$O101,'Report - ALL (DASHBOARD)'!$W$4) -> 2534.108682
A102: 1995 | B102: =INDEX('Compile Data'!$J$12:$AG$93,$A102-1921,'Report - ALL (DASHBOARD)'!$W$4) -> 3473.102437 | C102: =INDEX('Compile Data'!$AJ$12:$BG$93,$A102-1921,'Report - ALL (DASHBOARD)'!$W$4) -> 3459.78567 | O102: 74 | P102: 0.9012345679 | Q102: =INDEX('Compile Data'!$J$121:$AG$202,$O102,'Report - ALL (DASHBOARD)'!$W$4) -> 2330.445945 | R102: =INDEX('Compile Data'!$AJ$121:$BG$202,$O102,'Report - ALL (DASHBOARD)'!$W$4) -> 2279.2157
A103: 1996 | B103: =INDEX('Compile Data'!$J$12:$AG$93,$A103-1921,'Report - ALL (DASHBOARD)'!$W$4) -> 3779.264151 | C103: =INDEX('Compile Data'!$AJ$12:$BG$93,$A103-1921,'Report - ALL (DASHBOARD)'!$W$4) -> 3777.907103 | O103: 75 | P103: 0.9135802469 | Q103: =INDEX('Compile Data'!$J$121:$AG$202,$O103,'Report - ALL (DASHBOARD)'!$W$4) -> 2128.243162 | R103: =INDEX('Compile Data'!$AJ$121:$BG$202,$O103,'Report - ALL (DASHBOARD)'!$W$4) -> 2076.310367
A104: 1997 | B104: =INDEX('Compile Data'!$J$12:$AG$93,$A104-1921,'Report - ALL (DASHBOARD)'!$W$4) -> 3460.215066 | C104: =INDEX('Compile Data'!$AJ$12:$BG$93,$A104-1921,'Report - ALL (DASHBOARD)'!$W$4) -> 3450.791853 | O104: 76 | P104: 0.9259259259 | Q104: =INDEX('Compile Data'!$J$121:$AG$202,$O104,'Report - ALL (DASHBOARD)'!$W$4) -> 1808.296716 | R104: =INDEX('Compile Data'!$AJ$121:$BG$202,$O104,'Report - ALL (DASHBOARD)'!$W$4) -> 1972.111158
A105: 1998 | B105: =INDEX('Compile Data'!$J$12:$AG$93,$A105-1921,'Report - ALL (DASHBOARD)'!$W$4) -> 3616.082909 | C105: =INDEX('Compile Data'!$AJ$12:$BG$93,$A105-1921,'Report - ALL (DASHBOARD)'!$W$4) -> 3608.662727 | O105: 77 | P105: 0.9382716049 | Q105: =INDEX('Compile Data'!$J$121:$AG$202,$O105,'Report - ALL (DASHBOARD)'!$W$4) -> 1808.015016 | R105: =INDEX('Compile Data'!$AJ$121:$BG$202,$O105,'Report - ALL (DASHBOARD)'!$W$4) -> 1785.579395
A106: 1999 | B106: =INDEX('Compile Data'!$J$12:$AG$93,$A106-1921,'Report - ALL (DASHBOARD)'!$W$4) -> 3789.527723 | C106: =INDEX('Compile Data'!$AJ$12:$BG$93,$A106-1921,'Report - ALL (DASHBOARD)'!$W$4) -> 3786.315516 | O106: 78 | P106: 0.950617284 | Q106: =INDEX('Compile Data'!$J$121:$AG$202,$O106,'Report - ALL (DASHBOARD)'!$W$4) -> 1743.334641 | R106: =INDEX('Compile Data'!$AJ$121:$BG$202,$O106,'Report - ALL (DASHBOARD)'!$W$4) -> 1765.948356
A107: 2000 | B107: =INDEX('Compile Data'!$J$12:$AG$93,$A107-1921,'Report - ALL (DASHBOARD)'!$W$4) -> 3628.982956 | C107: =INDEX('Compile Data'!$AJ$12:$BG$93,$A107-1921,'Report - ALL (DASHBOARD)'!$W$4) -> 3661.026348 | O107: 79 | P107: 0.962962963 | Q107: =INDEX('Compile Data'!$J$121:$AG$202,$O107,'Report - ALL (DASHBOARD)'!$W$4) -> 1644.104469 | R107: =INDEX('Compile Data'!$AJ$121:$BG$202,$O107,'Report - ALL (DASHBOARD)'!$W$4) -> 1743.836089
A108: 2001 | B108: =INDEX('Compile Data'!$J$12:$AG$93,$A108-1921,'Report - ALL (DASHBOARD)'!$W$4) -> 3141.869751 | C108: =INDEX('Compile Data'!$AJ$12:$BG$93,$A108-1921,'Report - ALL (DASHBOARD)'!$W$4) -> 3281.043214 | O108: 80 | P108: 0.975308642 | Q108: =INDEX('Compile Data'!$J$121:$AG$202,$O108,'Report - ALL (DASHBOARD)'!$W$4) -> 1338.068526 | R108: =INDEX('Compile Data'!$AJ$121:$BG$202,$O108,'Report - ALL (DASHBOARD)'!$W$4) -> 1492.854642
A109: 2002 | B109: =INDEX('Compile Data'!$J$12:$AG$93,$A109-1921,'Report - ALL (DASHBOARD)'!$W$4) -> 3596.036471 | C109: =INDEX('Compile Data'!$AJ$12:$BG$93,$A109-1921,'Report - ALL (DASHBOARD)'!$W$4) -> 3608.853051 | O109: 81 | P109: 0.987654321 | Q109: =INDEX('Compile Data'!$J$121:$AG$202,$O109,'Report - ALL (DASHBOARD)'!$W$4) -> 1323.06747 | R109: =INDEX('Compile Data'!$AJ$121:$BG$202,$O109,'Report - ALL (DASHBOARD)'!$W$4) -> 1477.653724
A110: 2003 | B110: =INDEX('Compile Data'!$J$12:$AG$93,$A110-1921,'Report - ALL (DASHBOARD)'!$W$4) -> 3692.618915 | C110: =INDEX('Compile Data'!$AJ$12:$BG$93,$A110-1921,'Report - ALL (DASHBOARD)'!$W$4) -> 3728.663644 | O110: 82 | P110: 1 | Q110: =INDEX('Compile Data'!$J$121:$AG$202,$O110,'Report - ALL (DASHBOARD)'!$W$4) -> 1085.649126 | R110: =INDEX('Compile Data'!$AJ$121:$BG$202,$O110,'Report - ALL (DASHBOARD)'!$W$4) -> 1221.687199

Sheet Compile Data
B1: =Control!$B$5 -> NAA 091720 | C1: =Control!$B$6 -> ALTA2 PEA | AC1: =$B$8 -> INST-VAL | BC1: =$C$8 -> INST-VAL
A2: Index: | B2: ='Report - ALL (DASHBOARD)'!W2 -> 1 | C2: =B2 -> 1
A3: Convert? | B3: =IF('Report - ALL (DASHBOARD)'!W5,1,0) -> 0 | C3: 0
A4: Column: | B4: =TRIM(VLOOKUP(B$2+2,DSSPathnames!$H$7:$K$183,2)) -> C | C4: C
A5: Title: | B5: =TRIM(VLOOKUP(B$2+2,DSSPathnames!$H$7:$K$183,4)) -> Shasta Storage | C5: =TRIM(VLOOKUP(C$2+2,DSSPathnames!$H$7:$K$183,4)) -> Shasta Storage
A6: Parameter: | B6: =INDIRECT(CONCATENATE("'",B$1,"'!",B$4,2)) -> S4 | C6: S4
B7: =INDIRECT(CONCATENATE("'",B$1,"'!",B$4,3)) -> STORAGE | C7: STORAGE
A8: Type: | B8: =TRIM(VLOOKUP(B$2+2,DSSPathnames!$H$7:$K$183,3)) -> INST-VAL | C8: =TRIM(VLOOKUP(C$2+2,DSSPathnames!$H$7:$K$183,3)) -> INST-VAL | I8: =CONCATENATE(TRIM(B$1),": ",TRIM(B$5)," - ",TRIM(B$6)," ",TRIM(B$7)," (",TRIM(B$10),") ",TRIM(B$11)) -> NAA 091720: Shasta Storage - S4 STORAGE (TAF) | AI8: =CONCATENATE(TRIM(C$1),": ",TRIM(C$5)," - ",TRIM(C$6)," ",TRIM(C$7)," (",TRIM(C$10),") ",TRIM(C$11)) -> ALTA2 PEA: Shasta Storage - S4 STORAGE (TAF)
A9: Units-native: | B9: =TRIM(INDIRECT(CONCATENATE("'",B$1,"'!",B$4,11))) -> TAF | C9: TAF
A10: Units-shown: | B10: =IF(AND(B$3>0,B$9="CFS"),"TAF",B$9) -> TAF | C10: TAF | W10: Jan-Dec | X10: Mar-Feb | Y10: Oct-Sep | AA10: Nov-Mar | AB10: Aug-Oct | AC10: Oct-Jan | AD10: Dec-Feb | AE10: Mar-Jun | AF10: Jun-Sep | AG10: Sep-Nov | AW10: Jan-Dec | AX10: Mar-Feb | AY10: Oct-Sep | BA10: Nov-Mar | BB10: Aug-Oct | BC10: Oct-Jan | BD10: Dec-Feb | BE10: Mar-Jun | BF10: Jun-Sep | BG10: Sep-Nov
A11: Date | B11: =IF(ISNUMBER(FIND("PRV",B$6)),"SHIFTED","") ->  | I11: YEAR | J11: OCT | K11: NOV | L11: DEC | M11: JAN | N11: FEB | O11: MAR | P11: APR | Q11: MAY | R11: JUN | S11: JUL | T11: AUG | U11: SEP | W11: =IF(AND($B$10="TAF",$B$8="PER-AVER"),"TOT","AVG") -> AVG | X11: =IF(AND($B$10="TAF",$B$8="PER-AVER"),"TOT","AVG") -> AVG | Y11: =IF(AND($B$10="TAF",$B$8="PER-AVER"),"TOT","AVG") -> AVG | AA11: =IF(AND($B$10="TAF",$B$8="PER-AVER"),"TOT","AVG") -> AVG | AB11: AVG | AC11: =IF(AND($B$10="TAF",$B$8="PER-AVER"),"TOT","AVG") -> AVG | AD11: =IF(AND($B$10="TAF",$B$8="PER-AVER"),"TOT","AVG") -> AVG | AE11: =IF(AND($B$10="TAF",$B$8="PER-AVER"),"TOT","AVG") -> AVG | AF11: =IF(AND($B$10="TAF",$B$8="PER-AVER"),"TOT","AVG") -> AVG | AG11: =IF(AND($B$10="TAF",$B$8="PER-AVER"),"TOT","AVG") -> AVG | AI11: YEAR | AJ11: OCT | AK11: NOV | AL11: DEC | AM11: JAN | AN11: FEB | AO11: MAR | AP11: APR | AQ11: MAY | AR11: JUN | AS11: JUL | AT11: AUG | AU11: SEP | AW11: =IF(AND($C$10="TAF",$C$8="PER-AVER"),"TOT","AVG") -> AVG | AX11: =IF(AND($C$10="TAF",$C$8="PER-AVER"),"TOT","AVG") -> AVG | AY11: =IF(AND($C$10="TAF",$C$8="PER-AVER"),"TOT","AVG") -> AVG | BA11: =IF(AND($B$10="TAF",$B$8="PER-AVER"),"TOT","AVG") -> AVG | BB11: AVG | BC11: =IF(AND($C$10="TAF",$C$8="PER-AVER"),"TOT","AVG") -> AVG | BD11: =IF(AND($C$10="TAF",$C$8="PER-AVER"),"TOT","AVG") -> AVG | BE11: =IF(AND($C$10="TAF",$C$8="PER-AVER"),"TOT","AVG") -> AVG | BF11: =IF(AND($C$10="TAF",$C$8="PER-AVER"),"TOT","AVG") -> AVG | BG11: =IF(AND($C$10="TAF",$C$8="PER-AVER"),"TOT","AVG") -> AVG
A12: 1921-09-30 | I12: 1922 | J12: =B13 -> 2738.245676 | K12: =B14 -> 2695.093439 | L12: =B15 -> 2865.853868 | M12: =B16 -> 3007.902974 | N12: =B17 -> 3434.540455 | O12: =B18 -> 3955.209256 | P12: =B19 -> 4493.273586 | Q12: =B20 -> 4552 | R12: =B21 -> 4291.806919 | S12: =B22 -> 3879.682073 | T12: =B23 -> 3523.383302 | U12: =B24 -> 3400 | W12: =IF(W$11="AVG",AVERAGE(M12:U12,J13:L13),SUM(M12:U12,J13:L13)) -> 3700.733214 | X12: =IF(X$11="AVG",AVERAGE(O12:U12,J13:N13),SUM(O12:U12,J13:N13)) -> 3768.615398 | Y12: =IF(Y$11="AVG",AVERAGE(J12:U12),SUM(J12:U12)) -> 3569.749296 | AA12: =IF(AA$11="AVG",IF(AC$1="INST-VAL",AVERAGE(J12:N12,K12:O12),AVERAGE(K12:O12)),SUM(K12:O12)) -> 3070.023641 | AB12: =IF(AB$11="AVG",IF(AC$1="INST-VAL",AVERAGE(S12:U12,T12:U12,J13),AVERAGE(T12:U12,J13)),SUM(T12:U12,J13)) -> 3496.074779 | AC12: =IF(AC$11="AVG",IF(AC$1="INST-VAL",AVERAGE(U11,J12:L12,J12:M12),AVERAGE(J12:M12)),SUM(J12:M12)) -> 2800.89842 | AD12: =IF(AD$11="AVG",IF(AC$1="INST-VAL",AVERAGE(K12:M12,L12:N12),AVERAGE(L12:N12)),SUM(L12:N12)) -> 2979.524597 | AE12: =IF(AE$11="AVG",IF(AC$1="INST-VAL",AVERAGE(N12:Q12,O12:R12),AVERAGE(O12:R12)),SUM(O12:R12)) -> 4215.914132 | AF12: =IF(AF$11="AVG",IF(AC$1="INST-VAL",AVERAGE(Q12:T12,R12:U12),AVERAGE(R12:U12)),SUM(R12:U12)) -> 3917.718073 | AG12: =IF(AG$11="AVG",IF(AC$1="INST-VAL",AVERAGE(T12:U12,J13,U12,J13:K13),AVERAGE(U12,J13:K13)),SUM(U12,J13:K13)) -> 3345.897217 | AI12: 1922 | AJ12: ='Compile Data'!C13 -> 2750.729696 | AK12: ='Compile Data'!C14 -> 2725.843337 | AL12: ='Compile Data'!C15 -> 2896.581187 | AM12: ='Compile Data'!C16 -> 3038.611558 | AN12: ='Compile Data'!C17 -> 3465.228949 | AO12: ='Compile Data'!C18 -> 3910.905842 | AP12: ='Compile Data'!C19 -> 4523.980404 | AQ12: ='Compile Data'!C20 -> 4552 | AR12: ='Compile Data'!C21 -> 4281.3116 | AS12: ='Compile Data'!C22 -> 3910.599699 | AT12: ='Compile Data'!C23 -> 3554.029737 | AU12: ='Compile Data'!C24 -> 3400 | AW12: =IF(AW$11="AVG",AVERAGE(AM12:AU12,AJ13:AL13),SUM(AM12:AU12,AJ13:AL13)) -> 3708.972316 | AX12: =IF(AX$11="AVG",AVERAGE(AO12:AU12,AJ13:AN13),SUM(AO12:AU12,AJ13:AN13)) -> 3772.369195 | AY12: =IF(AY$11="AVG",AVERAGE(AJ12:AU12),SUM(AJ12:AU12)) -> 3584.151834 | BA12: =IF(BA$11="AVG",IF(BC$1="INST-VAL",AVERAGE(AJ12:AN12,AK12:AO12),AVERAGE(AK12:AO12)),SUM(AK12:AO12)) -> 3091.41656 | BB12: =IF(BB$11="AVG",IF(BC$1="INST-VAL",AVERAGE(AS12:AU12,AT12:AU12,AJ13),AVERAGE(AT12:AU12,AJ13)),SUM(AT12:AU12,AJ13)) -> 3511.443196 | BC12: =IF(BC$11="AVG",IF(BC$1="INST-VAL",AVERAGE(AU11,AJ12:AL12,AJ12:AM12),AVERAGE(AJ12:AM12)),SUM(AJ12:AM12)) -> 2826.417143 | BD12: =IF(BD$11="AVG",IF(BC$1="INST-VAL",AVERAGE(AK12:AM12,AL12:AN12),AVERAGE(AL12:AN12)),SUM(AL12:AN12)) -> 3010.242963 | BE12: =IF(BE$11="AVG",IF(BC$1="INST-VAL",AVERAGE(AN12:AQ12,AO12:AR12),AVERAGE(AO12:AR12)),SUM(AO12:AR12)) -> 4215.03913 | BF12: =IF(BF$11="AVG",IF(BC$1="INST-VAL",AVERAGE(AQ12:AT12,AR12:AU12),AVERAGE(AR12:AU12)),SUM(AR12:AU12)) -> 3930.485259 | BG12: =IF(BG$11="AVG",IF(BC$1="INST-VAL",AVERAGE(AT12:AU12,AJ13,AU12,AJ13:AK13),AVERAGE(AU12,AJ13:AK13)),SUM(AU12,AJ13:AK13)) -> 3351.004956
A13: 1921-10-31 | B13: =IF(B$7="TEMP",NA(),INDIRECT(CONCATENATE("'",B$1,"'!",B$4,(YEAR($A13)-1921)*12+MONTH($A13)+3+IF(ISNUMBER(FIND("PRV",B$6)),1,0)))*IF(AND(B$3>0,TRIM(B$9)="CFS"),Conv_Flags!$C13,1)) -> 2738.245676 | C13: =IF(C$7="TEMP",NA(),INDIRECT(CONCATENATE("'",C$1,"'!",C$4,(YEAR($A13)-1921)*12+MONTH($A13)+3+IF(ISNUMBER(FIND("PRV",C$6)),1,0)))*IF(AND(C$3>0,TRIM(C$9)="CFS"),Conv_Flags!$C13,1)) -> 2750.729696 | I13: 1923 | J13: =B25 -> 3250 | K13: =B26 -> 3252 | L13: =B27 -> 3369 | M13: =B28 -> 3589.959766 | N13: =B29 -> 3667.069871 | O13: =B30 -> 3803.038186 | P13: =B31 -> 4254.489081 | Q13: =B32 -> 4000.336829 | R13: =B33 -> 3677.717686 | S13: =B34 -> 3315.216989 | T13: =B35 -> 3002.761681 | U13: =B36 -> 2974.948406 | W13: 3401.521423 | X13: 3289.941588 | Y13: 3513.044875 | AA13: =IF(AA$11="AVG",IF(AC$1="INST-VAL",AVERAGE(J13:N13,K13:O13),AVERAGE(K13:O13)),SUM(K13:O13)) -> 3480.909746 | AB13: =IF(AB$11="AVG",IF(AC$1="INST-VAL",AVERAGE(S13:U13,T13:U13,J14),AVERAGE(T13:U13,J14)),SUM(T13:U13,J14)) -> 3033.582559 | AC13: =IF(AC$11="AVG",IF(AC$1="INST-VAL",AVERAGE(U12,J13:L13,J13:M13),AVERAGE(J13:M13)),SUM(J13:M13)) -> 3341.494971 | AD13: 3472.831567 | AE13: 3932.564469 | AF13: 3370.834744 | AG13: 2941.950654 | AI13: 1923 | AJ13: ='Compile Data'!C25 -> 3250 | AK13: ='Compile Data'!C26 -> 3252 | AL13: ='Compile Data'!C27 -> 3369 | AM13: ='Compile Data'!C28 -> 3589.959766 | AN13: ='Compile Data'!C29 -> 3674.643296 | AO13: ='Compile Data'!C30 -> 3810.600741 | AP13: ='Compile Data'!C31 -> 4262.041295 | AQ13: ='Compile Data'!C32 -> 4008.745809 | AR13: ='Compile Data'!C33 -> 3631.554191 | AS13: ='Compile Data'!C34 -> 3265.734675 | AT13: ='Compile Data'!C35 -> 2950.0237 | AU13: ='Compile Data'!C36 -> 2938.308112 | AW13: 3369.342179 | AX13: 3237.347888 | AY13: 3500.217632 | BA13: =IF(BA$11="AVG",IF(BC$1="INST-VAL",AVERAGE(AJ13:AN13,AK13:AO13),AVERAGE(AK13:AO13)),SUM(AK13:AO13)) -> 3483.180686 | BB13: =IF(BB$11="AVG",IF(BC$1="INST-VAL",AVERAGE(AS13:AU13,AT13:AU13,AJ14),AVERAGE(AT13:AU13,AJ14)),SUM(AT13:AU13,AJ14)) -> 2985.924601 | BC13: 3341.494971 | BD13: 3474.093805 | BE13: 3933.621647 | BF13: 3330.209882 | BG13: 2892.518927
A14: 1921-11-30 | B14: =IF(B$7="TEMP",NA(),INDIRECT(CONCATENATE("'",B$1,"'!",B$4,(YEAR($A14)-1921)*12+MONTH($A14)+3+IF(ISNUMBER(FIND("PRV",B$6)),1,0)))*IF(AND(B$3>0,TRIM(B$9)="CFS"),Conv_Flags!$C14,1)) -> 2695.093439 | C14: =IF(C$7="TEMP",NA(),INDIRECT(CONCATENATE("'",C$1,"'!",C$4,(YEAR($A14)-1921)*12+MONTH($A14)+3+IF(ISNUMBER(FIND("PRV",C$6)),1,0)))*IF(AND(C$3>0,TRIM(C$9)="CFS"),Conv_Flags!$C14,1)) -> 2725.843337 | I14: 1924 | J14: =B37 -> 2930.858194 | K14: =B38 -> 2837.329044 | L14: =B39 -> 2764.531349 | M14: =B40 -> 2855.536528 | N14: =B41 -> 3062.535089 | O14: =B42 -> 2795.948702 | P14: =B43 -> 2689.662917 | Q14: =B44 -> 2339.76599 | R14: =B45 -> 1867.039217 | S14: =B46 -> 1485.967431 | T14: =B47 -> 1218.275627 | U14: =B48 -> 1117.901249 | W14: 1941.120524 | X14: 1837.812632 | Y14: 2330.445945 | AA14: =IF(AA$11="AVG",IF(AC$1="INST-VAL",AVERAGE(J14:N14,K14:O14),AVERAGE(K14:O14)),SUM(K14:O14)) -> 2876.667091 | AB14: =IF(AB$11="AVG",IF(AC$1="INST-VAL",AVERAGE(S14:U14,T14:U14,J15),AVERAGE(T14:U14,J15)),SUM(T14:U14,J15)) -> 1216.646484 | AC14: =IF(AC$11="AVG",IF(AC$1="INST-VAL",AVERAGE(U13,J14:L14,J14:M14),AVERAGE(J14:M14)),SUM(J14:M14)) -> 2861.990263 | AD14: 2856.666648 | AE14: 2572.54119 | AF14: 1575.028974 | AG14: 1173.283755 | AI14: 1924 | AJ14: ='Compile Data'!C37 -> 2873.149308 | AK14: ='Compile Data'!C38 -> 2782.175024 | AL14: ='Compile Data'!C39 -> 2645.170234 | AM14: ='Compile Data'!C40 -> 2736.776 | AN14: ='Compile Data'!C41 -> 2943.895573 | AO14: ='Compile Data'!C42 -> 2759.62896 | AP14: ='Compile Data'!C43 -> 2657.316564 | AQ14: ='Compile Data'!C44 -> 2307.218533 | AR14: ='Compile Data'!C45 -> 1842.851285 | AS14: ='Compile Data'!C46 -> 1462.385458 | AT14: ='Compile Data'!C47 -> 1219.453628 | AU14: ='Compile Data'!C48 -> 1120.567834 | AW14: 1907.296745 | AX14: 1823.851606 | AY14: 2279.2157 | BA14: =IF(BA$11="AVG",IF(BC$1="INST-VAL",AVERAGE(AJ14:AN14,AK14:AO14),AVERAGE(AK14:AO14)),SUM(AK14:AO14)) -> 2784.881193 | BB14: 1213.455089 | BC14: 2784.509155 | BD14: 2748.327177 | BE14: 2529.384372 | BF14: 1559.645889 | BG14: 1171.608971
A15: 1921-12-31 | B15: =IF(B$7="TEMP",NA(),INDIRECT(CONCATENATE("'",B$1,"'!",B$4,(YEAR($A15)-1921)*12+MONTH($A15)+3+IF(ISNUMBER(FIND("PRV",B$6)),1,0)))*IF(AND(B$3>0,TRIM(B$9)="CFS"),Conv_Flags!$C15,1)) -> 2865.853868 | C15: =IF(C$7="TEMP",NA(),INDIRECT(CONCATENATE("'",C$1,"'!",C$4,(YEAR($A15)-1921)*12+MONTH($A15)+3+IF(ISNUMBER(FIND("PRV",C$6)),1,0)))*IF(AND(C$3>0,TRIM(C$9)="CFS"),Conv_Flags!$C15,1)) -> 2896.581187 | I15: 1925 | J15: =B49 -> 1141.557719 | K15: =B50 -> 1302.508965 | L15: =B51 -> 1416.746849 | M15: =B52 -> 1732.927591 | N15: =B53 -> 2945.449331 | O15: =B54 -> 3319.849409 | P15: =B55 -> 4024.117638 | Q15: =B56 -> 4165.955471 | R15: =B57 -> 3931.665301 | S15: =B58 -> 3390.688916 | T15: =B59 -> 3070.184526 | U15: =B60 -> 2948.702318 | W15: 3166.146324 | X15: 3315.55164 | Y15: 2782.529503 | AA15: =IF(AA$11="AVG",IF(AC$1="INST-VAL",AVERAGE(J15:N15,K15:O15),AVERAGE(K15:O15)),SUM(K15:O15)) -> 1925.66726 | AB15: 3046.056411 | AC15: 1321.556988 | AD15: 1757.88453 | AE15: 3737.119959 | AF15: 3487.466909 | AG15: 2908.781675 | AI15: 1925 | AJ15: ='Compile Data'!C49 -> 1138.302151 | AK15: ='Compile Data'!C50 -> 1292.460226 | AL15: ='Compile Data'!C51 -> 1406.704729 | AM15: ='Compile Data'!C52 -> 1739.589382 | AN15: ='Compile Data'!C53 -> 2939.740519 | AO15: ='Compile Data'!C54 -> 3314.14852 | AP15: ='Compile Data'!C55 -> 4018.428488 | AQ15: ='Compile Data'!C56 -> 4160.110634 | AR15: ='Compile Data'!C57 -> 3936.169673 | AS15: ='Compile Data'!C58 -> 3384.347727 | AT15: ='Compile Data'!C59 -> 3063.393294 | AU15: ='Compile Data'!C60 -> 2941.476085 | AW15: 3159.026746 | AX15: 3303.741234 | AY15: 2777.905952 | BA15: =IF(BA$11="AVG",IF(BC$1="INST-VAL",AVERAGE(AJ15:AN15,AK15:AO15),AVERAGE(AK15:AO15)),SUM(AK15:AO15)) -> 1920.944038 | BB15: =IF(BB$11="AVG",IF(BC$1="INST-VAL",AVERAGE(AS15:AU15,AT15:AU15,AJ16),AVERAGE(AT15:AU15,AJ16)),SUM(AT15:AU15,AJ16)) -> 3038.46349 | BC15: 1316.886429 | BD15: 1754.131495 | BE15: 3732.660685 | BF15: 3483.676013 | BG15: 2899.110838
A16: 1922-01-31 | B16: =INDIRECT(CONCATENATE("'",B$1,"'!",B$4,(YEAR($A16)-1921)*12+MONTH($A16)+3+IF(ISNUMBER(FIND("PRV",B$6)),1,0)))*IF(AND(B$3>0,TRIM(B$9)="CFS"),Conv_Flags!$C16,1) -> 3007.902974 | C16: =INDIRECT(CONCATENATE("'",C$1,"'!",C$4,(YEAR($A16)-1921)*12+MONTH($A16)+3+IF(ISNUMBER(FIND("PRV",C$6)),1,0)))*IF(AND(C$3>0,TRIM(C$9)="CFS"),Conv_Flags!$C16,1) -> 3038.611558 | I16: 1926 | J16: =B61 -> 2847.875863 | K16: =B62 -> 2789.349162 | L16: =B63 -> 2826.990367 | M16: =B64 -> 2864.312111 | N16: =B65 -> 3606.928592 | O16: =B66 -> 3674.508669 | P16: =B67 -> 3994.581807 | Q16: =B68 -> 3722.811726 | R16: =B69 -> 3302.500087 | S16: =B70 -> 2822.427538 | T16: =B71 -> 2561.465964 | U16: =B72 -> 2485.555125 | W16: 3136.130259 | X16: 3191.026867 | Y16: 3124.942251 | AA16: 3069.7545 | AB16: 2551.686014 | AC16: 2842.680652 | AD16: 2963.147119 | AE16: 3711.654136 | AF16: 2947.644254 | AG16: 2529.615679 | AI16: 1926 | AJ16: ='Compile Data'!C61 -> 2836.694452 | AK16: ='Compile Data'!C62 -> 2774.930657 | AL16: ='Compile Data'!C63 -> 2799.291518 | AM16: ='Compile Data'!C64 -> 2836.630767 | AN16: ='Compile Data'!C65 -> 3579.272992 | AO16: ='Compile Data'!C66 -> 3625.28527 | AP16: ='Compile Data'!C67 -> 3945.473204 | AQ16: ='Compile Data'!C68 -> 3676.226513 | AR16: ='Compile Data'!C69 -> 3228.971109 | AS16: ='Compile Data'!C70 -> 2793.610093 | AT16: ='Compile Data'!C71 -> 2541.989215 | AU16: ='Compile Data'!C72 -> 2471.676765 | AW16: 3104.881093 | AX16: 3164.389113 | AY16: 3092.50438 | BA16: 3044.223159 | BB16: 2532.918103 | BC16: 2824.992513 | BD16: 2937.674703 | BE16: 3662.776759 | BF16: 2909.630514 | BG16: 2513.207554
A17: 1922-02-28 | B17: =INDIRECT(CONCATENATE("'",B$1,"'!",B$4,(YEAR($A17)-1921)*12+MONTH($A17)+3+IF(ISNUMBER(FIND("PRV",B$6)),1,0)))*IF(AND(B$3>0,TRIM(B$9)="CFS"),Conv_Flags!$C17,1) -> 3434.540455 | C17: =INDIRECT(CONCATENATE("'",C$1,"'!",C$4,(YEAR($A17)-1921)*12+MONTH($A17)+3+IF(ISNUMBER(FIND("PRV",C$6)),1,0)))*IF(AND(C$3>0,TRIM(C$9)="CFS"),Conv_Flags!$C17,1) -> 3465.228949 | I17: 1927 | J17: =B73 -> 2393.646371 | K17: =B74 -> 2857.825118 | L17: =B75 -> 3347 | M17: =B76 -> 3668 | N17: =B77 -> 3462 | O17: =B78 -> 4085.375156 | P17: =B79 -> 4552 | Q17: =B80 -> 4552 | R17: =B81 -> 4346.343112 | S17: =B82 -> 3826.505321 | T17: =B83 -> 3432.308029 | U17: =B84 -> 3118.202071 | W17: 3721.009268 | X17: 3773.040214 | Y17: 3636.767098 | AA17: 3314.867176 | AB17: 3320.317175 | AC17: 2918.812263 | AD17: 3391.63752 | AE17: 4273.386678 | AF17: 3860.064374 | AG17: 3151.577872 | AI17: 1927 | AJ17: ='Compile Data'!C73 -> 2376.566568 | AK17: ='Compile Data'!C74 -> 2840.769444 | AL17: ='Compile Data'!C75 -> 3342.101175 | AM17: ='Compile Data'!C76 -> 3668 | AN17: ='Compile Data'!C77 -> 3462 | AO17: ='Compile Data'!C78 -> 4085.375156 | AP17: ='Compile Data'!C79 -> 4552 | AQ17: ='Compile Data'!C80 -> 4552 | AR17: ='Compile Data'!C81 -> 4343.806168 | AS17: ='Compile Data'!C82 -> 3818.640197 | AT17: ='Compile Data'!C83 -> 3424.604831 | AU17: ='Compile Data'!C84 -> 3110.331678 | AW17: 3718.145228 | AX17: 3770.176174 | AY17: 3631.349601 | BA17: 3308.768296 | BB17: 3312.41632 | BC17: 2907.318892 | BD17: 3387.161966 | BE17: 4273.06956 | BF17: 3854.554259 | BG17: 3144.872934
A18: 1922-03-31 | B18: =INDIRECT(CONCATENATE("'",B$1,"'!",B$4,(YEAR($A18)-1921)*12+MONTH($A18)+3+IF(ISNUMBER(FIND("PRV",B$6)),1,0)))*IF(AND(B$3>0,TRIM(B$9)="CFS"),Conv_Flags!$C18,1) -> 3955.209256 | C18: =INDIRECT(CONCATENATE("'",C$1,"'!",C$4,(YEAR($A18)-1921)*12+MONTH($A18)+3+IF(ISNUMBER(FIND("PRV",C$6)),1,0)))*IF(AND(C$3>0,TRIM(C$9)="CFS"),Conv_Flags!$C18,1) -> 3910.905842 | I18: 1928 | J18: =B85 -> 2994.37753 | K18: =B86 -> 3252 | L18: =B87 -> 3363 | M18: =B88 -> 3655.371351 | N18: =B89 -> 4099 | O18: =B90 -> 3965 | P18: =B91 -> 4552 | Q18: =B92 -> 4419.466749 | R18: =B93 -> 3880.925586 | S18: =B94 -> 3176.458308 | T18: =B95 -> 2747.359088 | U18: =B96 -> 2500 | W18: 3313.561155 | X18: 3106.213021 | Y18: 3550.413218 | AA18: 3569.812023 | AB18: 2657.398754 | AC18: 3249.04106 | AD18: 3564.623784 | AE18: 4231.607386 | AF18: 3316.119089 | AG18: 2418.590585 | AI18: 1928 | AJ18: ='Compile Data'!C85 -> 2985.984707 | AK18: ='Compile Data'!C86 -> 3252 | AL18: ='Compile Data'!C87 -> 3363 | AM18: ='Compile Data'!C88 -> 3655.371351 | AN18: ='Compile Data'!C89 -> 4099 | AO18: ='Compile Data'!C90 -> 3965 | AP18: ='Compile Data'!C91 -> 4552 | AQ18: ='Compile Data'!C92 -> 4483.277784 | AR18: ='Compile Data'!C93 -> 3930.541638 | AS18: ='Compile Data'!C94 -> 3225.853838 | AT18: ='Compile Data'!C95 -> 2795.395379 | AU18: ='Compile Data'!C96 -> 2566.510435 | AW18: 3355.978782 | AX18: 3159.839764 | AY18: 3572.827928 | BA18: 3568.972741 | BB18: 2719.175733 | BC18: 3245.959055 | BD18: 3564.623784 | BE18: 4253.762151 | BF18: 3369.171241 | BG18: 2491.515468
A19: 1922-04-30 | B19: =INDIRECT(CONCATENATE("'",B$1,"'!",B$4,(YEAR($A19)-1921)*12+MONTH($A19)+3+IF(ISNUMBER(FIND("PRV",B$6)),1,0)))*IF(AND(B$3>0,TRIM(B$9)="CFS"),Conv_Flags!$C19,1) -> 4493.273586 | C19: =INDIRECT(CONCATENATE("'",C$1,"'!",C$4,(YEAR($A19)-1921)*12+MONTH($A19)+3+IF(ISNUMBER(FIND("PRV",C$6)),1,0)))*IF(AND(C$3>0,TRIM(C$9)="CFS"),Conv_Flags!$C19,1) -> 4523.980404 | I19: 1929 | J19: =B97 -> 2273.216042 | K19: =B98 -> 2217.75234 | L19: =B99 -> 2276.1844 | M19: =B100 -> 2540.517783 | N19: =B101 -> 2725.675957 | O19: =B102 -> 2896.679935 | P19: =B103 -> 3074.799695 | Q19: =B104 -> 2842.699281 | R19: =B105 -> 2608.003707 | S19: =B106 -> 2305.636012 | T19: =B107 -> 1911.306057 | U19: =B108 -> 1811.26945 | W19: 2325.351898 | X19: 2292.744686 | Y19: 2456.978388 | AA19: 2469.015694 | AB19: 1900.855916 | AC19: 2321.852918 | AD19: 2429.472111 | AE19: 2870.254686 | AF19: 2287.982535 | AG19: 1723.065749 | AI19: 1929 | AJ19: ='Compile Data'!C97 -> 2365.388936 | AK19: ='Compile Data'!C98 -> 2289.898688 | AL19: ='Compile Data'!C99 -> 2343.507338 | AM19: ='Compile Data'!C100 -> 2607.79558 | AN19: ='Compile Data'!C101 -> 2792.907551 | AO19: ='Compile Data'!C102 -> 2963.823889 | AP19: ='Compile Data'!C103 -> 3141.094158 | AQ19: ='Compile Data'!C104 -> 2907.778344 | AR19: ='Compile Data'!C105 -> 2658.198444 | AS19: ='Compile Data'!C106 -> 2414.820563 | AT19: ='Compile Data'!C107 -> 2016.366018 | AU19: ='Compile Data'!C108 -> 1907.724679 | AW19: 2400.703742 | AX19: 2367.261072 | AY19: 2534.108682 | BA19: 2539.743114 | BB19: 2000.492773 | BC19: 2396.486992 | BD19: 2497.568679 | BE19: 2934.562347 | BF19: 2374.284134 | BG19: 1811.658892
A20: 1922-05-31 | B20: =INDIRECT(CONCATENATE("'",B$1,"'!",B$4,(YEAR($A20)-1921)*12+MONTH($A20)+3+IF(ISNUMBER(FIND("PRV",B$6)),1,0)))*IF(AND(B$3>0,TRIM(B$9)="CFS"),Conv_Flags!$C20,1) -> 4552 | C20: =INDIRECT(CONCATENATE("'",C$1,"'!",C$4,(YEAR($A20)-1921)*12+MONTH($A20)+3+IF(ISNUMBER(FIND("PRV",C$6)),1,0)))*IF(AND(C$3>0,TRIM(C$9)="CFS"),Conv_Flags!$C20,1) -> 4552 | I20: 1930 | J20: =B109 -> 1654.348471 | K20: =B110 -> 1495.852598 | L20: =B111 -> 2037.433825 | M20: =B112 -> 2237.609963 | N20: =B113 -> 2637.297243 | O20: =B114 -> 3130.808184 | P20: =B115 -> 3363.797144 | Q20: =B116 -> 3337.046028 | R20: =B117 -> 3001.446122 | S20: =B118 -> 2642.148116 | T20: =B119 -> 2302.315678 | U20: =B120 -> 2270.253417 | W20: 2595.134213 | X20: 2543.128167 | Y20: 2509.196399 | AA20: 2160.154391 | AB20: 2322.980978 | AC20: 1803.01865 | AD20: 2113.872903 | AE20: 3162.75576 | AF20: 2687.38991 | AG20: 2201.098674 | AI20: 1930 | AJ20: ='Compile Data'!C109 -> 1739.954684 | AK20: ='Compile Data'!C110 -> 1558.228611 | AL20: ='Compile Data'!C111 -> 2099.752385 | AM20: ='Compile Data'!C112 -> 2299.884638 | AN20: ='Compile Data'!C113 -> 2699.506448 | AO20: ='Compile Data'!C114 -> 3192.930444 | AP20: ='Compile Data'!C115 -> 3425.792869 | AQ20: ='Compile Data'!C116 -> 3400.826688 | AR20: ='Compile Data'!C117 -> 3064.542378 | AS20: ='Compile Data'!C118 -> 2703.96358 | AT20: ='Compile Data'!C119 -> 2420.236405 | AU20: ='Compile Data'!C120 -> 2392.243426 | AW20: 2690.088234 | AX20: 2653.264166 | AY20: 2583.155213 | BA20: 2224.762929 | BB20: 2438.961746 | BC20: 1875.435085 | BD20: 2176.168184 | BE20: 3225.393603 | BF20: 2771.319355 | BG20: 2338.574083
A21: 1922-06-30 | B21: =INDIRECT(CONCATENATE("'",B$1,"'!",B$4,(YEAR($A21)-1921)*12+MONTH($A21)+3+IF(ISNUMBER(FIND("PRV",B$6)),1,0)))*IF(AND(B$3>0,TRIM(B$9)="CFS"),Conv_Flags!$C21,1) -> 4291.806919 | C21: =INDIRECT(CONCATENATE("'",C$1,"'!",C$4,(YEAR($A21)-1921)*12+MONTH($A21)+3+IF(ISNUMBER(FIND("PRV",C$6)),1,0)))*IF(AND(C$3>0,TRIM(C$9)="CFS"),Conv_Flags!$C21,1) -> 4281.3116 | I21: 1931 | J21: =B121 -> 2150.599558 | K21: =B122 -> 2062.570417 | L21: =B123 -> 2005.718689 | M21: =B124 -> 2083.36916 | N21: =B125 -> 2167.46549 | O21: =B126 -> 2330.627022 | P21: =B127 -> 2254.455136 | Q21: =B128 -> 1951.19967 | R21: =B129 -> 1623.864787 | S21: =B130 -> 1279.853952 | T21: =B131 -> 983.2549847 | U21: =B132 -> 803.2013275 | W21: 1466.28917 | X21: 1301.439004 | Y21: 1808.015016 | AA21: 2111.947409 | AB21: 917.1277626 | AC21: 2098.924988 | AD21: 2068.035268 | AE21: 2107.986741 | AF21: 1316.043556 | AG21: 754.8896139 | AI21: 1931 | AJ21: ='Compile Data'!C121 -> 2304.847233 | AK21: ='Compile Data'!C122 -> 2217.026775 | AL21: ='Compile Data'!C123 -> 2159.25792 | AM21: ='Compile Data'!C124 -> 2236.795084 | AN21: ='Compile Data'!C125 -> 2320.707191 | AO21: ='Compile Data'!C126 -> 2483.616793 | AP21: ='Compile Data'!C127 -> 2422.333217 | AQ21: ='Compile Data'!C128 -> 2119.20408 | AR21: ='Compile Data'!C129 -> 1790.642734 | AS21: ='Compile Data'!C130 -> 1458.509401 | AT21: ='Compile Data'!C131 -> 1166.872487 | AU21: ='Compile Data'!C132 -> 985.5209879 | AW21: 1638.352223 | AX21: 1475.421459 | AY21: 1972.111158 | BA21: 2265.603796 | BB21: 1103.123972 | BC21: 2248.912796 | BD21: 2221.639995 | BE21: 2270.207263 | BF21: 1492.096789 | BG21: 944.1298815
A22: 1922-07-31 | B22: =INDIRECT(CONCATENATE("'",B$1,"'!",B$4,(YEAR($A22)-1921)*12+MONTH($A22)+3+IF(ISNUMBER(FIND("PRV",B$6)),1,0)))*IF(AND(B$3>0,TRIM(B$9)="CFS"),Conv_Flags!$C22,1) -> 3879.682073 | C22: =INDIRECT(CONCATENATE("'",C$1,"'!",C$4,(YEAR($A22)-1921)*12+MONTH($A22)+3+IF(ISNUMBER(FIND("PRV",C$6)),1,0)))*IF(AND(C$3>0,TRIM(C$9)="CFS"),Conv_Flags!$C22,1) -> 3910.599699 | I22: 1932 | J22: =B133 -> 650 | K22: =B134 -> 639.6800438 | L22: =B135 -> 828.4984693 | M22: =B136 -> 1078.196311 | N22: =B137 -> 1194.436351 | O22: =B138 -> 1646.35871 | P22: =B139 -> 1888.135346 | Q22: =B140 -> 2040.402333 | R22: =B141 -> 1838.478932 | S22: =B142 -> 1554.192463 | T22: =B143 -> 1316.502327 | U22: =B144 -> 1201.928351 | W22: 1415.327977 | X22: 1406.441586 | Y22: 1323.06747 | AA22: 977.798106 | AB22: 1283.44044 | AC22: 764.7193331 | AD22: 941.2509926 | AE22: 1772.838507 | AF22: 1582.584766 | AG22: 1167.833383 | AI22: 1932 | AJ22: ='Compile Data'!C133 -> 855.4474812 | AK22: ='Compile Data'!C134 -> 815.9698633 | AL22: ='Compile Data'!C135 -> 1004.607359 | AM22: ='Compile Data'!C136 -> 1236.430648 | AN22: ='Compile Data'!C137 -> 1365.902461 | AO22: ='Compile Data'!C138 -> 1837.601421 | AP22: ='Compile Data'!C139 -> 2078.991318 | AQ22: ='Compile Data'!C140 -> 2234.979946 | AR22: ='Compile Data'!C141 -> 2028.503415 | AS22: ='Compile Data'!C142 -> 1710.476629 | AT22: ='Compile Data'!C143 -> 1423.539656 | AU22: ='Compile Data'!C144 -> 1321.805509 | AW22: 1570.647313 | AX22: 1556.283021 | AY22: 1492.854642 | BA22: 1153.886957 | BB22: 1406.08154 | BC22: 946.7501304 | BD22: 1110.658056 | BE22: 1962.193906 | BF22: 1735.228107 | BG22: 1288.599236
A23: 1922-08-31 | B23: =INDIRECT(CONCATENATE("'",B$1,"'!",B$4,(YEAR($A23)-1921)*12+MONTH($A23)+3+IF(ISNUMBER(FIND("PRV",B$6)),1,0)))*IF(AND(B$3>0,TRIM(B$9)="CFS"),Conv_Flags!$C23,1) -> 3523.383302 | C23: =INDIRECT(CONCATENATE("'",C$1,"'!",C$4,(YEAR($A23)-1921)*12+MONTH($A23)+3+IF(ISNUMBER(FIND("PRV",C$6)),1,0)))*IF(AND(C$3>0,TRIM(C$9)="CFS"),Conv_Flags!$C23,1) -> 3554.029737 | I23: 1933 | J23: =B145 -> 1109.588821 | K23: =B146 -> 1067.463626 | L23: =B147 -> 1048.252157 | M23: =B148 -> 1064.604575 | N23: =B149 -> 1101.391392 | O23: =B150 -> 1698.827523 | P23: =B151 -> 1908.009742 | Q23: =B152 -> 1872.882745 | R23: =B153 -> 1720.209374 | S23: =B154 -> 1432.531973 | T23: =B155 -> 1079.390723 | U23: =B156 -> 953.6696601 | W23: 1259.707768 | X23: 1287.287545 | Y23: 1338.068526 | AA23: 1137.183984 | AB23: 1049.449931 | AC23: 1089.642767 | AD23: 1065.761414 | AE23: 1722.630098 | AF23: 1411.352068 | AG23: 877.3810129 | AI23: 1933 | AJ23: ='Compile Data'!C145 -> 1235.322282 | AK23: ='Compile Data'!C146 -> 1193.800179 | AL23: ='Compile Data'!C147 -> 1180.414294 | AM23: ='Compile Data'!C148 -> 1196.64724 | AN23: ='Compile Data'!C149 -> 1233.314365 | AO23: ='Compile Data'!C150 -> 1856.573214 | AP23: ='Compile Data'!C151 -> 2067.613014 | AQ23: ='Compile Data'!C152 -> 2025.17961 | AR23: ='Compile Data'!C153 -> 1866.704085 | AS23: ='Compile Data'!C154 -> 1573.452099 | AT23: ='Compile Data'!C155 -> 1215.571666 | AU23: ='Compile Data'!C156 -> 1087.252641 | AW23: 1406.060133 | AX23: 1436.487804 | AY23: 1477.653724 | BA23: 1270.024765 | BB23: 1184.446397 | BC23: 1217.190782 | BD23: 1196.872935 | BE23: 1874.843766 | BF23: 1552.985994 | BG23: 1016.798489
A24: 1922-09-30 | B24: =INDIRECT(CONCATENATE("'",B$1,"'!",B$4,(YEAR($A24)-1921)*12+MONTH($A24)+3+IF(ISNUMBER(FIND("PRV",B$6)),1,0)))*IF(AND(B$3>0,TRIM(B$9)="CFS"),Conv_Flags!$C24,1) -> 3400 | C24: =INDIRECT(CONCATENATE("'",C$1,"'!",C$4,(YEAR($A24)-1921)*12+MONTH($A24)+3+IF(ISNUMBER(FIND("PRV",C$6)),1,0)))*IF(AND(C$3>0,TRIM(C$9)="CFS"),Conv_Flags!$C24,1) -> 3400 | I24: 1934 | J24: =B157 -> 798.046849 | K24: =B158 -> 681.462336 | L24: =B159 -> 805.4663246 | M24: =B160 -> 1090.82824 | N24: =B161 -> 1406.125053 | O24: =B162 -> 1660.084993 | P24: =B163 -> 1785.95663 | Q24: =B164 -> 1594.320291 | R24: =B165 -> 1177.329007 | S24: =B166 -> 833.6031868 | T24: =B167 -> 609.6978733 | U24: =B168 -> 584.8687248 | W24: 1048.80941 | X24: 1023.215866 | Y24: 1085.649126 | AA24: 1042.589575 | AB24: 628.7893972 | AC24: 826.8061149 | AD24: 980.0294196 | AE24: 1583.022236 | AF24: 927.5561437 | AG24: 584.7332813 | AI24: 1934 | AJ24: ='Compile Data'!C157 -> 927.5776681 | AK24: ='Compile Data'!C158 -> 855.5586508 | AL24: ='Compile Data'!C159 -> 967.2773439 | AM24: ='Compile Data'!C160 -> 1239.969642 | AN24: ='Compile Data'!C161 -> 1555.12402 | AO24: ='Compile Data'!C162 -> 1808.785877 | AP24: ='Compile Data'!C163 -> 1934.237009 | AQ24: ='Compile Data'!C164 -> 1719.984684 | AR24: ='Compile Data'!C165 -> 1287.06061 | AS24: ='Compile Data'!C166 -> 949.9164053 | AT24: ='Compile Data'!C167 -> 753.2879508 | AU24: ='Compile Data'!C168 -> 661.4665229 | AW24: 1151.492882 | AX24: 1107.306968 | AY24: 1221.687199 | BA24: 1197.222286 | BB24: 721.5708921 | BC24: 978.506201 | BD24: 1137.52944 | BE24: 1721.024971 | BF24: 1045.247642 | BG24: 637.795379
A25: 1922-10-31 | B25: =INDIRECT(CONCATENATE("'",B$1,"'!",B$4,(YEAR($A25)-1921)*12+MONTH($A25)+3+IF(ISNUMBER(FIND("PRV",B$6)),1,0)))*IF(AND(B$3>0,TRIM(B$9)="CFS"),Conv_Flags!$C25,1) -> 3250 | C25: =INDIRECT(CONCATENATE("'",C$1,"'!",C$4,(YEAR($A25)-1921)*12+MONTH($A25)+3+IF(ISNUMBER(FIND("PRV",C$6)),1,0)))*IF(AND(C$3>0,TRIM(C$9)="CFS"),Conv_Flags!$C25,1) -> 3250 | I25: 1935 | J25: =B169 -> 550 | K25: =B170 -> 628.9643647 | L25: =B171 -> 663.9345611 | M25: =B172 -> 935.8175935 | N25: =B173 -> 1254.013164 | O25: =B174 -> 1642.866484 | P25: =B175 -> 2680.016914 | Q25: =B176 -> 3026.284369 | R25: =B177 -> 2807.724357 | S25: =B178 -> 2466.75226 | T25: =B179 -> 2180.359274 | U25: =B180 -> 2083.282347 | W25: 2091.88983 | X25: 2427.272869 | Y25: 1743.334641 | AA25: 915.832585 | AB25: 2172.364551 | AC25: 650.8105212 | AD25: 847.0803063 | AE25: 2345.009132 | AF25: 2502.404812 | AG25: 2069.344403 | AI25: 1935 | AJ25: ='Compile Data'!C169 -> 550 | AK25: ='Compile Data'!C170 -> 650.5512777 | AL25: ='Compile Data'!C171 -> 707.5305886 | AM25: ='Compile Data'!C172 -> 971.8817823 | AN25: ='Compile Data'!C173 -> 1292.980913 | AO25: ='Compile Data'!C174 -> 1684.201866 | AP25: ='Compile Data'!C175 -> 2721.380359 | AQ25: ='Compile Data'!C176 -> 3068.801664 | AR25: ='Compile Data'!C177 -> 2870.166001 | AS25: ='Compile Data'!C178 -> 2525.762225 | AT25: ='Compile Data'!C179 -> 2237.98035 | AU25: ='Compile Data'!C180 -> 2145.715716 | AW25: 2145.322536 | AX25: 2481.531064 | AY25: 1785.579395 | BA25: 948.0090989 | BB25: 2233.195653 | BC25: 681.1890047 | BD25: 883.7261553 | BE25: 2388.989336 | BF25: 2560.291817 | BG25: 2133.274807
A26: 1922-11-30 | B26: =INDIRECT(CONCATENATE("'",B$1,"'!",B$4,(YEAR($A26)-1921)*12+MONTH($A26)+3+IF(ISNUMBER(FIND("PRV",B$6)),1,0)))*IF(AND(B$3>0,TRIM(B$9)="CFS"),Conv_Flags!$C26,1) -> 3252 | C26: =INDIRECT(CONCATENATE("'",C$1,"'!",C$4,(YEAR($A26)-1921)*12+MONTH($A26)+3+IF(ISNUMBER(FIND("PRV",C$6)),1,0)))*IF(AND(C$3>0,TRIM(C$9)="CFS"),Conv_Flags!$C26,1) -> 3252 | I26: 1936 | J26: =B181 -> 2040.151802 | K26: =B182 -> 1988.838844 | L26: =B183 -> 1996.570555 | M26: =B184 -> 2647.202145 | N26: =B185 -> 3567.225076 | O26: =B186 -> 3936.122057 | P26: =B187 -> 4229.633193 | Q26: =B188 -> 4157.569785 | R26: =B189 -> 3969.673491 | S26: =B190 -> 3492.467404 | T26: =B191 -> 3070.59848 | U26: =B192 -> 2925.195832 | W26: 3323.834729 | X26: 3227.29932 | Y26: 3168.437389 | AA26: 2637.59471 | AB26: 3042.595962 | AC26: 2097.700862 | AD26: 2473.934887 | AE26: 4022.94358 | AF26: 3518.530546 | AG26: 2844.921405 | AI26: 1936 | AJ26: ='Compile Data'!C181 -> 2106.019562 | AK26: ='Compile Data'!C182 -> 2058.197937 | AL26: ='Compile Data'!C183 -> 2060.782061 | AM26: ='Compile Data'!C184 -> 2711.365027 | AN26: ='Compile Data'!C185 -> 3588 | AO26: ='Compile Data'!C186 -> 3956.869281 | AP26: ='Compile Data'!C187 -> 4250.343437 | AQ26: ='Compile Data'!C188 -> 4176.782956 | AR26: ='Compile Data'!C189 -> 3987.645706 | AS26: ='Compile Data'!C190 -> 3526.097458 | AT26: ='Compile Data'!C191 -> 3099.665666 | AU26: ='Compile Data'!C192 -> 2954.795416 | AW26: 3354.556048 | AX26: 3257.458916 | AY26: 3206.380376 | BA26: 2689.95789 | BB26: 3073.851828 | BC26: 2163.384983 | BD26: 2531.748686 | BE26: 4042.954632 | BF26: 3544.799504 | BG26: 2878.001349
A27: 1922-12-31 | B27: =INDIRECT(CONCATENATE("'",B$1,"'!",B$4,(YEAR($A27)-1921)*12+MONTH($A27)+3+IF(ISNUMBER(FIND("PRV",B$6)),1,0)))*IF(AND(B$3>0,TRIM(B$9)="CFS"),Conv_Flags!$C27,1) -> 3369 | C27: =INDIRECT(CONCATENATE("'",C$1,"'!",C$4,(YEAR($A27)-1921)*12+MONTH($A27)+3+IF(ISNUMBER(FIND("PRV",C$6)),1,0)))*IF(AND(C$3>0,TRIM(C$9)="CFS"),Conv_Flags!$C27,1) -> 3369 | I27: 1937 | J27: =B193 -> 2771.519747 | K27: =B194 -> 2605.49879 | L27: =B195 -> 2513.310751 | M27: =B196 -> 2488.440252 | N27: =B197 -> 2567.562056 | O27: =B198 -> 3213.932847 | P27: =B199 -> 3933.67757 | Q27: =B200 -> 4158.151696 | R27: =B201 -> 4023.61895 | S27: =B202 -> 3608.35521 | T27: =B203 -> 3184.943874 | U27: =B204 -> 3034.230041 | W27: 3309.787816 | X27: 3490.787624 | Y27: 3175.270149 | AA27: 2633.507629 | AB27: 3164.874056 | AC27: 2649.286832 | AD27: 2529.427142 | AE27: 3650.338154 | AF27: 3603.277226 | AG27: 3065.081092 | AI27: 1937 | AJ27: ='Compile Data'!C193 -> 2808.091346 | AK27: ='Compile Data'!C194 -> 2642.568905 | AL27: ='Compile Data'!C195 -> 2552.447377 | AM27: ='Compile Data'!C196 -> 2527.553534 | AN27: ='Compile Data'!C197 -> 2606.64591 | AO27: ='Compile Data'!C198 -> 3252.967038 | AP27: ='Compile Data'!C199 -> 3972.748028 | AQ27: ='Compile Data'!C200 -> 4195.356207 | AR27: ='Compile Data'!C201 -> 4074.933886 | AS27: ='Compile Data'!C202 -> 3602.621118 | AT27: ='Compile Data'!C203 -> 3174.032578 | AU27: ='Compile Data'!C204 -> 3024.793438 | AW27: 3327.352183 | AX27: 3501.835562 | AY27: 3202.896614 | BA27: 2671.948984 | BB27: 3155.807934 | BC27: 2686.070526 | BD27: 2568.202773 | BE27: 3690.465293 | BF27: 3615.415601 | BG27: 3057.461394
A28: 1923-01-31 | B28: =INDIRECT(CONCATENATE("'",B$1,"'!",B$4,(YEAR($A28)-1921)*12+MONTH($A28)+3+IF(ISNUMBER(FIND("PRV",B$6)),1,0)))*IF(AND(B$3>0,TRIM(B$9)="CFS"),Conv_Flags!$C28,1) -> 3589.959766 | C28: =INDIRECT(CONCATENATE("'",C$1,"'!",C$4,(YEAR($A28)-1921)*12+MONTH($A28)+3+IF(ISNUMBER(FIND("PRV",C$6)),1,0)))*IF(AND(C$3>0,TRIM(C$9)="CFS"),Conv_Flags!$C28,1) -> 3589.959766 | I28: 1938 | J28: =B205 -> 2942.541297 | K28: =B206 -> 3252 | L28: =B207 -> 3310 | M28: =B208 -> 3668 | N28: =B209 -> 3560 | O28: =B210 -> 3416 | P28: =B211 -> 4058 | Q28: =B212 -> 4552 | R28: =B213 -> 4500 | S28: =B214 -> 4121.008162 | T28: =B215 -> 3700 | U28: =B216 -> 3400 | W28: 3718.738477 | X28: 3686.40169 | Y28: 3706.629122 | AA28: 3393.85413 | AB28: 3595.168027 | AC28: 3213.914079 | AD28: 3461.333333 | AE28: 4014 | AF28: 4074.25204 | AG28: 3364.217288 | AI28: 1938 | AJ28: ='Compile Data'!C205 -> 2934.574454 | AK28: ='Compile Data'!C206 -> 3252 | AL28: ='Compile Data'!C207 -> 3310 | AM28: ='Compile Data'!C208 -> 3668 | AN28: ='Compile Data'!C209 -> 3560 | AO28: ='Compile Data'!C210 -> 3416 | AP28: ='Compile Data'!C211 -> 4058 | AQ28: ='Compile Data'!C212 -> 4552 | AR28: ='Compile Data'!C213 -> 4500 | AS28: ='Compile Data'!C214 -> 4122.097412 | AT28: ='Compile Data'!C215 -> 3700 | AU28: ='Compile Data'!C216 -> 3400 | AW28: 3723.022841 | AX28: 3695.114934 | AY28: 3706.055989 | BA28: 3393.057445 | BB28: 3595.349569 | BC28: 3210.742793 | BD28: 3461.333333 | BE28: 4014 | BF28: 4074.524353 | BG28: 3366.575777
A29: 1923-02-28 | B29: =INDIRECT(CONCATENATE("'",B$1,"'!",B$4,(YEAR($A29)-1921)*12+MONTH($A29)+3+IF(ISNUMBER(FIND("PRV",B$6)),1,0)))*IF(AND(B$3>0,TRIM(B$9)="CFS"),Conv_Flags!$C29,1) -> 3667.069871 | C29: =INDIRECT(CONCATENATE("'",C$1,"'!",C$4,(YEAR($A29)-1921)*12+MONTH($A29)+3+IF(ISNUMBER(FIND("PRV",C$6)),1,0)))*IF(AND(C$3>0,TRIM(C$9)="CFS"),Conv_Flags!$C29,1) -> 3674.643296 | I29: 1939 | J29: =B217 -> 3250 | K29: =B218 -> 3185.303726 | L29: =B219 -> 3214.549841 | M29: =B220 -> 3357.648535 | N29: =B221 -> 3482.310019 | O29: =B222 -> 3898.860442 | P29: =B223 -> 3851.155833 | Q29: =B224 -> 3634.174923 | R29: =B225 -> 3198.506594 | S29: =B226 -> 2671.498682 | T29: =B227 -> 2353.405512 | U29: =B228 -> 2304.320596 | W29: 2932.47213 | X29: 2888.88322 | Y29: 3200.144558 | AA29: 3362.848468 | AB29: 2364.263569 | AC29: 3257.169459 | AD29: 3302.00175 | AE29: 3681.149876 | AF29: 2798.164637 | AG29: 2237.852624 | AI29: 1939 | AJ29: ='Compile Data'!C217 -> 3250 | AK29: ='Compile Data'!C218 -> 3199.454662 | AL29: ='Compile Data'!C219 -> 3250.722012 | AM29: ='Compile Data'!C220 -> 3384.231161 | AN29: ='Compile Data'!C221 -> 3508.873954 | AO29: ='Compile Data'!C222 -> 3925.389749 | AP29: ='Compile Data'!C223 -> 3890.917255 | AQ29: ='Compile Data'!C224 -> 3659.385589 | AR29: ='Compile Data'!C225 -> 3200.964857 | AS29: ='Compile Data'!C226 -> 2665.659862 | AT29: ='Compile Data'!C227 -> 2337.071428 | AU29: ='Compile Data'!C228 -> 2308.164144 | AW29: 2943.816588 | AX29: 2895.606102 | AY29: 3215.069556 | BA29: 3386.195333 | BB29: 2359.682455 | BC29: 3273.073064 | BD29: 3329.705827 | BE29: 3707.653 | BF29: 2796.867753 | BG29: 2238.578785
A30: 1923-03-31 | B30: =INDIRECT(CONCATENATE("'",B$1,"'!",B$4,(YEAR($A30)-1921)*12+MONTH($A30)+3+IF(ISNUMBER(FIND("PRV",B$6)),1,0)))*IF(AND(B$3>0,TRIM(B$9)="CFS"),Conv_Flags!$C30,1) -> 3803.038186 | C30: =INDIRECT(CONCATENATE("'",C$1,"'!",C$4,(YEAR($A30)-1921)*12+MONTH($A30)+3+IF(ISNUMBER(FIND("PRV",C$6)),1,0)))*IF(AND(C$3>0,TRIM(C$9)="CFS"),Conv_Flags!$C30,1) -> 3810.600741 | I30: 1940 | J30: =B229 -> 2198.63052 | K30: =B230 -> 2067.807999 | L30: =B231 -> 2171.345901 | M30: =B232 -> 3064.891639 | N30: =B233 -> 3252 | O30: =B234 -> 3435 | P30: =B235 -> 4205.471894 | Q30: =B236 -> 4255.823582 | R30: =B237 -> 3957.64493 | S30: =B238 -> 3266.475937 | T30: =B239 -> 2913.570627 | U30: =B240 -> 2725.102362 | W30: 3284.832277 | X30: 3320.091307 | Y30: 3126.147116 | AA30: 2674.57216 | AB30: 2856.730337 | AC30: 2280.597634 | AD30: 2632.04718 | AE30: 3875.279485 | AF30: 3407.038617 | AG30: 2668.223635 | AI30: 1940 | AJ30: ='Compile Data'!C229 -> 2201.963725 | AK30: ='Compile Data'!C230 -> 2074.145541 | AL30: ='Compile Data'!C231 -> 2169.031793 | AM30: ='Compile Data'!C232 -> 3062.579282 | AN30: ='Compile Data'!C233 -> 3252 | AO30: ='Compile Data'!C234 -> 3435 | AP30: ='Compile Data'!C235 -> 4205.471894 | AQ30: ='Compile Data'!C236 -> 4257.907151 | AR30: ='Compile Data'!C237 -> 3987.066776 | AS30: ='Compile Data'!C238 -> 3254.097063 | AT30: ='Compile Data'!C239 -> 2905.039238 | AU30: ='Compile Data'!C240 -> 2723.98258 | AW30: 3288.344995 | AX30: 3323.796722 | AY30: 3127.357087 | BA30: 2675.247696 | BB30: 2853.949016 | BC30: 2282.628193 | BD30: 2631.561282 | BE30: 3879.478108 | BF30: 3409.286986 | BG30: 2674.758959
A31: 1923-04-30 | B31: =INDIRECT(CONCATENATE("'",B$1,"'!",B$4,(YEAR($A31)-1921)*12+MONTH($A31)+3+IF(ISNUMBER(FIND("PRV",B$6)),1,0)))*IF(AND(B$3>0,TRIM(B$9)="CFS"),Conv_Flags!$C31,1) -> 4254.489081 | C31: =INDIRECT(CONCATENATE("'",C$1,"'!",C$4,(YEAR($A31)-1921)*12+MONTH($A31)+3+IF(ISNUMBER(FIND("PRV",C$6)),1,0)))*IF(AND(C$3>0,TRIM(C$9)="CFS"),Conv_Flags!$C31,1) -> 4262.041295 | I31: 1941 | J31: =B241 -> 2596.560109 | K31: =B242 -> 2452.446239 | L31: =B243 -> 3293 | M31: =B244 -> 3317 | N31: =B245 -> 3423 | O31: =B246 -> 3940 | P31: =B247 -> 4456 | Q31: =B248 -> 4552 | R31: =B249 -> 4500 | S31: =B250 -> 4150 | T31: =B251 -> 3700 | U31: =B252 -> 3400 | W31: 3771.333333 | X31: 3785.083333 | Y31: 3648.333862 | AA31: 3150.745259 | AB31: 3600 | AC31: 2840.764382 | AD31: 3182.574373 | AE31: 4227.375 | AF31: 4081.5 | AG31: 3375.333333 | AI31: 1941 | AJ31: ='Compile Data'!C241 -> 2611.553398 | AK31: ='Compile Data'!C242 -> 2472.442559 | AL31: ='Compile Data'!C243 -> 3293 | AM31: ='Compile Data'!C244 -> 3317 | AN31: ='Compile Data'!C245 -> 3423 | AO31: ='Compile Data'!C246 -> 3940 | AP31: ='Compile Data'!C247 -> 4456 | AQ31: ='Compile Data'!C248 -> 4552 | AR31: ='Compile Data'!C249 -> 4500 | AS31: ='Compile Data'!C250 -> 4150 | AT31: ='Compile Data'!C251 -> 3700 | AU31: ='Compile Data'!C252 -> 3400 | AW31: 3771.333333 | AX31: 3785.083333 | AY31: 3651.249663 | BA31: 3156.243852 | BB31: 3600 | BC31: 2849.371812 | BD31: 3185.907093 | BE31: 4227.375 | BF31: 4081.5 | BG31: 3375.333333
A32: 1923-05-31 | B32: =INDIRECT(CONCATENATE("'",B$1,"'!",B$4,(YEAR($A32)-1921)*12+MONTH($A32)+3+IF(ISNUMBER(FIND("PRV",B$6)),1,0)))*IF(AND(B$3>0,TRIM(B$9)="CFS"),Conv_Flags!$C32,1) -> 4000.336829 | C32: =INDIRECT(CONCATENATE("'",C$1,"'!",C$4,(YEAR($A32)-1921)*12+MONTH($A32)+3+IF(ISNUMBER(FIND("PRV",C$6)),1,0)))*IF(AND(C$3>0,TRIM(C$9)="CFS"),Conv_Flags!$C32,1) -> 4008.745809 | I32: 1942 | J32: =B253 -> 3250 | K32: =B254 -> 3252 | L32: =B255 -> 3316 | M32: =B256 -> 3389 | N32: =B257 -> 3516 | O32: =B258 -> 3796.880095 | P32: =B259 -> 4447.898207 | Q32: =B260 -> 4552 | R32: =B261 -> 4500 | S32: =B262 -> 4150 | T32: =B263 -> 3700 | U32: =B264 -> 3400 | W32: 3775.814858 | X32: 3816.148192 | Y32: 3772.481525 | AA32: 3399.288009 | AB32: 3600 | AC32: 3303.125 | AD32: 3363 | AE32: 4201.194575 | AF32: 4081.5 | AG32: 3375.333333 | AI32: 1942 | AJ32: ='Compile Data'!C253 -> 3250 | AK32: ='Compile Data'!C254 -> 3252 | AL32: ='Compile Data'!C255 -> 3316 | AM32: ='Compile Data'!C256 -> 3389 | AN32: ='Compile Data'!C257 -> 3516 | AO32: ='Compile Data'!C258 -> 3796.880095 | AP32: ='Compile Data'!C259 -> 4447.898207 | AQ32: ='Compile Data'!C260 -> 4552 | AR32: ='Compile Data'!C261 -> 4500 | AS32: ='Compile Data'!C262 -> 4150 | AT32: ='Compile Data'!C263 -> 3700 | AU32: ='Compile Data'!C264 -> 3400 | AW32: 3775.814858 | AX32: 3816.148192 | AY32: 3772.481525 | BA32: 3399.288009 | BB32: 3600 | BC32: 3303.125 | BD32: 3363 | BE32: 4201.194575 | BF32: 4081.5 | BG32: 3375.333333
A33: 1923-06-30 | B33: =INDIRECT(CONCATENATE("'",B$1,"'!",B$4,(YEAR($A33)-1921)*12+MONTH($A33)+3+IF(ISNUMBER(FIND("PRV",B$6)),1,0)))*IF(AND(B$3>0,TRIM(B$9)="CFS"),Conv_Flags!$C33,1) -> 3677.717686 | C33: =INDIRECT(CONCATENATE("'",C$1,"'!",C$4,(YEAR($A33)-1921)*12+MONTH($A33)+3+IF(ISNUMBER(FIND("PRV",C$6)),1,0)))*IF(AND(C$3>0,TRIM(C$9)="CFS"),Conv_Flags!$C33,1) -> 3631.554191 | I33: 1943 | J33: =B265 -> 3250 | K33: =B266 -> 3252 | L33: =B267 -> 3356 | M33: =B268 -> 3541 | N33: =B269 -> 3848 | O33: =B270 -> 4118 | P33: =B271 -> 4552 | Q33: =B272 -> 4552 | R33: =B273 -> 4386.881054 | S33: =B274 -> 3723.833757 | T33: =B275 -> 3359.370847 | U33: =B276 -> 3145.261971 | W33: 3666.907364 | X33: 3563.29247 | Y33: 3757.028969 | AA33: 3536.2 | AB33: 3300.719014 | AC33: 3332.125 | AD33: 3482.333333 | AE33: 4334.860132 | AF33: 3829.679161 | AG33: 3111.623006 | AI33: 1943 | AJ33: ='Compile Data'!C265 -> 3250 | AK33: ='Compile Data'!C266 -> 3252 | AL33: ='Compile Data'!C267 -> 3356 | AM33: ='Compile Data'!C268 -> 3541 | AN33: ='Compile Data'!C269 -> 3848 | AO33: ='Compile Data'!C270 -> 4118 | AP33: ='Compile Data'!C271 -> 4552 | AQ33: ='Compile Data'!C272 -> 4552 | AR33: ='Compile Data'!C273 -> 4361.317776 | AS33: ='Compile Data'!C274 -> 3698.394516 | AT33: ='Compile Data'!C275 -> 3333.681668 | AU33: ='Compile Data'!C276 -> 3130.954043 | AW33: 3658.583954 | AX33: 3554.764 | AY33: 3749.445667 | BA33: 3536.2 | BB33: 3281.026017 | BC33: 3332.125 | BD33: 3482.333333 | BE33: 4331.664722 | BF33: 3808.717745 | BG33: 3099.176471
A34: 1923-07-31 | B34: =INDIRECT(CONCATENATE("'",B$1,"'!",B$4,(YEAR($A34)-1921)*12+MONTH($A34)+3+IF(ISNUMBER(FIND("PRV",B$6)),1,0)))*IF(AND(B$3>0,TRIM(B$9)="CFS"),Conv_Flags!$C34,1) -> 3315.216989 | C34: =INDIRECT(CONCATENATE("'",C$1,"'!",C$4,(YEAR($A34)-1921)*12+MONTH($A34)+3+IF(ISNUMBER(FIND("PRV",C$6)),1,0)))*IF(AND(C$3>0,TRIM(C$9)="CFS"),Conv_Flags!$C34,1) -> 3265.734675 | I34: 1944 | J34: =B277 -> 3071.214693 | K34: =B278 -> 2877.413861 | L34: =B279 -> 2827.912189 | M34: =B280 -> 2917.385568 | N34: =B281 -> 3228.235696 | O34: =B282 -> 3544.079139 | P34: =B283 -> 3747.029019 | Q34: =B284 -> 3713.655966 | R34: =B285 -> 3446.773158 | S34: =B286 -> 3015.763565 | T34: =B287 -> 2754.507677 | U34: =B288 -> 2702.092358 | W34: 3134.929378 | X34: 3229.042253 | Y34: 3153.838574 | AA34: 3031.718846 | AB34: 2758.591517 | AC34: 2951.966128 | AD34: 2932.707512 | AE34: 3585.567138 | AF34: 3106.229641 | AG34: 2702.393023 | AI34: 1944 | AJ34: ='Compile Data'!C277 -> 3058.490164 | AK34: ='Compile Data'!C278 -> 2882.488744 | AL34: ='Compile Data'!C279 -> 2826.680535 | AM34: ='Compile Data'!C280 -> 2916.154736 | AN34: ='Compile Data'!C281 -> 3227.005811 | AO34: ='Compile Data'!C282 -> 3542.850907 | AP34: ='Compile Data'!C283 -> 3745.802777 | AQ34: ='Compile Data'!C284 -> 3715.838448 | AR34: ='Compile Data'!C285 -> 3507.837423 | AS34: ='Compile Data'!C286 -> 3092.933823 | AT34: ='Compile Data'!C287 -> 2824.809063 | AU34: ='Compile Data'!C288 -> 2786.999789 | AW34: 3171.092844 | AX34: 3268.622215 | AY34: 3177.324352 | BA34: 3030.600073 | BB34: 2834.020951 | BC34: 2947.803459 | BD34: 2932.527517 | BE34: 3592.978437 | BF34: 3169.249857 | BG34: 2770.691932
A35: 1923-08-31 | B35: =INDIRECT(CONCATENATE("'",B$1,"'!",B$4,(YEAR($A35)-1921)*12+MONTH($A35)+3+IF(ISNUMBER(FIND("PRV",B$6)),1,0)))*IF(AND(B$3>0,TRIM(B$9)="CFS"),Conv_Flags!$C35,1) -> 3002.761681 | C35: =INDIRECT(CONCATENATE("'",C$1,"'!",C$4,(YEAR($A35)-1921)*12+MONTH($A35)+3+IF(ISNUMBER(FIND("PRV",C$6)),1,0)))*IF(AND(C$3>0,TRIM(C$9)="CFS"),Conv_Flags!$C35,1) -> 2950.0237 | I35: 1945 | J35: =B289 -> 2622.585469 | K35: =B290 -> 2810.494806 | L35: =B291 -> 3116.550114 | M35: =B292 -> 3326.975763 | N35: =B293 -> 3948 | O35: =B294 -> 4266.697983 | P35: =B295 -> 4530.802107 | Q35: =B296 -> 4552 | R35: =B297 -> 4286.566252 | S35: =B298 -> 3755.774881 | T35: =B299 -> 3358.31579 | U35: =B300 -> 3242.511632 | W35: 3748.720367 | X35: 3764.655199 | Y35: 3651.439567 | AA35: 3329.332482 | AB35: 3359.571621 | AC35: 2891.041112 | AD35: 3274.25776 | AE35: 4366.695804 | AF35: 3824.478185 | AG35: 3249.223176 | AI35: 1945 | AJ35: ='Compile Data'!C289 -> 2687.574178 | AK35: ='Compile Data'!C290 -> 2850.194596 | AL35: ='Compile Data'!C291 -> 3155.112575 | AM35: ='Compile Data'!C292 -> 3365.512996 | AN35: ='Compile Data'!C293 -> 3948 | AO35: ='Compile Data'!C294 -> 4266.697983 | AP35: ='Compile Data'!C295 -> 4530.802107 | AQ35: ='Compile Data'!C296 -> 4552 | AR35: ='Compile Data'!C297 -> 4299.843563 | AS35: ='Compile Data'!C298 -> 3758.768339 | AT35: ='Compile Data'!C299 -> 3358.326831 | AU35: ='Compile Data'!C300 -> 3245.75761 | AW35: 3754.128894 | AX35: 3767.585782 | AY35: 3668.215898 | BA35: 3359.19125 | BB35: 3362.295753 | BC35: 2942.284435 | BD35: 3306.57429 | BE35: 4368.355468 | BF35: 3828.954384 | BG35: 3252.586108
A36: 1923-09-30 | B36: =INDIRECT(CONCATENATE("'",B$1,"'!",B$4,(YEAR($A36)-1921)*12+MONTH($A36)+3+IF(ISNUMBER(FIND("PRV",B$6)),1,0)))*IF(AND(B$3>0,TRIM(B$9)="CFS"),Conv_Flags!$C36,1) -> 2974.948406 | C36: =INDIRECT(CONCATENATE("'",C$1,"'!",C$4,(YEAR($A36)-1921)*12+MONTH($A36)+3+IF(ISNUMBER(FIND("PRV",C$6)),1,0)))*IF(AND(C$3>0,TRIM(C$9)="CFS"),Conv_Flags!$C36,1) -> 2938.308112 | I36: 1946 | J36: =B301 -> 3200 | K36: =B302 -> 3252 | L36: =B303 -> 3265 | M36: =B304 -> 3622 | N36: =B305 -> 3844.193742 | O36: =B306 -> 4239.54289 | P36: =B307 -> 4552 | Q36: =B308 -> 4503.166124 | R36: =B309 -> 4114.155364 | S36: =B310 -> 3562.548915 | T36: =B311 -> 3247.251039 | U36: =B312 -> 3200 | W36: 3673.567034 | X36: 3602.252271 | Y36: 3716.821506 | AA36: 3540.593037 | AB36: 3246.340512 | AC36: 3287.313954 | AD36: 3478.365624 | AE36: 4318.470892 | AF36: 3693.884595 | AG36: 3120.704239 | AI36: 1946 | AJ36: ='Compile Data'!C301 -> 3206.837298 | AK36: ='Compile Data'!C302 -> 3252 | AL36: ='Compile Data'!C303 -> 3265 | AM36: ='Compile Data'!C304 -> 3622 | AN36: ='Compile Data'!C305 -> 3852.995656 | AO36: ='Compile Data'!C306 -> 4248.336846 | AP36: ='Compile Data'!C307 -> 4552 | AQ36: ='Compile Data'!C308 -> 4509.249245 | AR36: ='Compile Data'!C309 -> 4113.182041 | AS36: ='Compile Data'!C310 -> 3555.734321 | AT36: ='Compile Data'!C311 -> 3241.321095 | AU36: ='Compile Data'!C312 -> 3206.785737 | AW36: 3672.144631 | AX36: 3596.578585 | AY36: 3718.786853 | BA36: 3543.916546 | BB36: 3245.378608 | BC36: 3289.429026 | BD36: 3479.832609 | BE36: 4323.168735 | BF36: 3692.063737 | BG36: 3119.751971
A37: 1923-10-31 | B37: =INDIRECT(CONCATENATE("'",B$1,"'!",B$4,(YEAR($A37)-1921)*12+MONTH($A37)+3+IF(ISNUMBER(FIND("PRV",B$6)),1,0)))*IF(AND(B$3>0,TRIM(B$9)="CFS"),Conv_Flags!$C37,1) -> 2930.858194 | C37: =INDIRECT(CONCATENATE("'",C$1,"'!",C$4,(YEAR($A37)-1921)*12+MONTH($A37)+3+IF(ISNUMBER(FIND("PRV",C$6)),1,0)))*IF(AND(C$3>0,TRIM(C$9)="CFS"),Conv_Flags!$C37,1) -> 2873.149308 | I37: 1947 | J37: =B313 -> 3020.992081 | K37: =B314 -> 3034.990231 | L37: =B315 -> 3141.96402 | M37: =B316 -> 3172.437084 | N37: =B317 -> 3437.979511 | O37: =B318 -> 3962.502358 | P37: =B319 -> 4202.524402 | Q37: =B320 -> 3864.698273 | R37: =B321 -> 3510.102701 | S37: =B322 -> 2981.559279 | T37: =B323 -> 2685.521518 | U37: =B324 -> 2618.799069 | W37: 3201.176406 | X37: 3185.876196 | Y37: 3302.839211 | AA37: 3255.823613 | AB37: 2709.014877 | AC37: 3096.041218 | AD37: 3183.628658 | AE37: 3875.941535 | AF37: 3104.733042 | AG37: 2653.052021 | AI37: 1947 | AJ37: ='Compile Data'!C313 -> 3020.323664 | AK37: ='Compile Data'!C314 -> 3022.971926 | AL37: ='Compile Data'!C315 -> 3120.835039 | AM37: ='Compile Data'!C316 -> 3151.321362 | AN37: ='Compile Data'!C317 -> 3416.881737 | AO37: ='Compile Data'!C318 -> 3941.435837 | AP37: ='Compile Data'!C319 -> 4181.500544 | AQ37: ='Compile Data'!C320 -> 3843.331825 | AR37: ='Compile Data'!C321 -> 3505.404189 | AS37: ='Compile Data'!C322 -> 2978.323991 | AT37: ='Compile Data'!C323 -> 2639.779207 | AU37: ='Compile Data'!C324 -> 2583.477382 | AW37: 3177.486777 | AX37: 3161.098925 | AY37: 3283.798892 | BA37: 3238.577963 | BB37: 2676.345177 | BC37: 3085.796045 | BD37: 3164.027744 | BE37: 3856.852792 | BF37: 3084.227998 | BG37: 2618.311248
A38: 1923-11-30 | B38: =INDIRECT(CONCATENATE("'",B$1,"'!",B$4,(YEAR($A38)-1921)*12+MONTH($A38)+3+IF(ISNUMBER(FIND("PRV",B$6)),1,0)))*IF(AND(B$3>0,TRIM(B$9)="CFS"),Conv_Flags!$C38,1) -> 2837.329044 | C38: =INDIRECT(CONCATENATE("'",C$1,"'!",C$4,(YEAR($A38)-1921)*12+MONTH($A38)+3+IF(ISNUMBER(FIND("PRV",C$6)),1,0)))*IF(AND(C$3>0,TRIM(C$9)="CFS"),Conv_Flags!$C38,1) -> 2782.175024 | I38: 1948 | J38: =B325 -> 2663.888811 | K38: =B326 -> 2667.414847 | L38: =B327 -> 2646.689024 | M38: =B328 -> 3211.941293 | N38: =B329 -> 3214.872776 | O38: =B330 -> 3541.590307 | P38: =B331 -> 4422 | Q38: =B332 -> 4552 | R38: =B333 -> 4500 | S38: =B334 -> 4020.16129 | T38: =B335 -> 3681.362834 | U38: =B336 -> 3400 | W38: 3683.514035 | X38: 3708.534107 | Y38: 3543.493432 | AA38: 2968.7315 | AB38: 3568.151502 | AC38: 2723.340716 | AD38: 2933.258043 | AE38: 4093.256674 | AF38: 4044.381031 | AG38: 3352.968101 | AI38: 1948 | AJ38: ='Compile Data'!C325 -> 2633.233895 | AK38: ='Compile Data'!C326 -> 2636.665724 | AL38: ='Compile Data'!C327 -> 2618.485629 | AM38: ='Compile Data'!C328 -> 3183.755794 | AN38: ='Compile Data'!C329 -> 3187.793082 | AO38: ='Compile Data'!C330 -> 3514.540374 | AP38: ='Compile Data'!C331 -> 4422 | AQ38: ='Compile Data'!C332 -> 4552 | AR38: ='Compile Data'!C333 -> 4500 | AS38: ='Compile Data'!C334 -> 4042.248492 | AT38: ='Compile Data'!C335 -> 3697.159452 | AU38: ='Compile Data'!C336 -> 3400 | AW38: 3678.047865 | AX38: 3705.819771 | AY38: 3532.323537 | BA38: 2940.117473 | BB38: 3576.603523 | BC38: 2693.000459 | BD38: 2904.823609 | BE38: 4083.109229 | BF38: 4053.851986 | BG38: 3353.434353
A39: 1923-12-31 | B39: =INDIRECT(CONCATENATE("'",B$1,"'!",B$4,(YEAR($A39)-1921)*12+MONTH($A39)+3+IF(ISNUMBER(FIND("PRV",B$6)),1,0)))*IF(AND(B$3>0,TRIM(B$9)="CFS"),Conv_Flags!$C39,1) -> 2764.531349 | C39: =INDIRECT(CONCATENATE("'",C$1,"'!",C$4,(YEAR($A39)-1921)*12+MONTH($A39)+3+IF(ISNUMBER(FIND("PRV",C$6)),1,0)))*IF(AND(C$3>0,TRIM(C$9)="CFS"),Conv_Flags!$C39,1) -> 2645.170234 | I39: 1949 | J39: =B337 -> 3226.022052 | K39: =B338 -> 3184.401667 | L39: =B339 -> 3247.816204 | M39: =B340 -> 3264.058489 | N39: =B341 -> 3462.996444 | O39: =B342 -> 4071 | P39: =B343 -> 4503.410393 | Q39: =B344 -> 4422.410575 | R39: =B345 -> 4028.019322 | S39: =B346 -> 3423.873073 | T39: =B347 -> 3110.089798 | U39: =B348 -> 3030.059518 | W39: 3475.55887 | X39: 3442.362298 | Y39: 3581.179795 | AA39: 3361.556766 | AB39: 3102.385323 | AC39: 3247.567292 | AD39: 3278.524583 | AE39: 4185.582213 | AF39: 3572.05431 | AG39: 2967.117394 | AI39: 1949 | AJ39: ='Compile Data'!C337 -> 3223.053743 | AK39: ='Compile Data'!C338 -> 3177.33918 | AL39: ='Compile Data'!C339 -> 3236.684258 | AM39: ='Compile Data'!C340 -> 3252.933182 | AN39: ='Compile Data'!C341 -> 3451.878564 | AO39: ='Compile Data'!C342 -> 4071 | AP39: ='Compile Data'!C343 -> 4503.410393 | AQ39: ='Compile Data'!C344 -> 4428.270776 | AR39: ='Compile Data'!C345 -> 4007.467414 | AS39: ='Compile Data'!C346 -> 3417.138883 | AT39: ='Compile Data'!C347 -> 3101.103674 | AU39: ='Compile Data'!C348 -> 3020.161531 | AW39: 3475.40842 | AX39: 3454.127521 | AY39: 3574.203467 | BA39: 3353.172411 | BB39: 3093.281342 | BC39: 3240.885943 | BD39: 3268.075438 | BE39: 4183.08854 | BF39: 3562.481531 | BG39: 2960.222187
A40: 1924-01-31 | B40: =INDIRECT(CONCATENATE("'",B$1,"'!",B$4,(YEAR($A40)-1921)*12+MONTH($A40)+3+IF(ISNUMBER(FIND("PRV",B$6)),1,0)))*IF(AND(B$3>0,TRIM(B$9)="CFS"),Conv_Flags!$C40,1) -> 2855.536528 | C40: =INDIRECT(CONCATENATE("'",C$1,"'!",C$4,(YEAR($A40)-1921)*12+MONTH($A40)+3+IF(ISNUMBER(FIND("PRV",C$6)),1,0)))*IF(AND(C$3>0,TRIM(C$9)="CFS"),Conv_Flags!$C40,1) -> 2736.776 | I40: 1950 | J40: =B349 -> 2910.140235 | K40: =B350 -> 2812.215063 | L40: =B351 -> 2668.433532 | M40: =B352 -> 2960.209216 | N40: =B353 -> 3368.486853 | O40: =B354 -> 3820.697934 | P40: =B355 -> 4232.906139 | Q40: =B356 -> 4224.160591 | R40: =B357 -> 3991.039109 | S40: =B358 -> 3642.14474 | T40: =B359 -> 3271.597665 | U40: =B360 -> 3199.28921 | W40: 3544.544288 | X40: 3635.319616 | Y40: 3425.110024 | AA40: 3034.95275 | AB40: 3305.653082 | AC40: 2846.480799 | AD40: 2906.331235 | AE40: 3989.381911 | AF40: 3654.126604 | AG40: 3237.029348 | AI40: 1950 | AJ40: ='Compile Data'!C349 -> 2900.018759 | AK40: ='Compile Data'!C350 -> 2819.868868 | AL40: ='Compile Data'!C351 -> 2731.648991 | AM40: ='Compile Data'!C352 -> 3023.384725 | AN40: ='Compile Data'!C353 -> 3426.056233 | AO40: ='Compile Data'!C354 -> 3878.199949 | AP40: ='Compile Data'!C355 -> 4285.4963 | AQ40: ='Compile Data'!C356 -> 4294.76182 | AR40: ='Compile Data'!C357 -> 4060.165197 | AS40: ='Compile Data'!C358 -> 3604.307181 | AT40: ='Compile Data'!C359 -> 3228.098906 | AU40: ='Compile Data'!C360 -> 3167.588671 | AW40: 3566.004915 | AX40: 3646.718169 | AY40: 3451.632967 | BA40: 3078.013634 | BB40: 3274.280389 | BC40: 2868.327436 | BD40: 2959.332089 | BE40: 4050.392196 | BF40: 3655.936632 | BG40: 3219.212708
A41: 1924-02-29 | B41: =INDIRECT(CONCATENATE("'",B$1,"'!",B$4,(YEAR($A41)-1921)*12+MONTH($A41)+3+IF(ISNUMBER(FIND("PRV",B$6)),1,0)))*IF(AND(B$3>0,TRIM(B$9)="CFS"),Conv_Flags!$C41,1) -> 3062.535089 | C41: =INDIRECT(CONCATENATE("'",C$1,"'!",C$4,(YEAR($A41)-1921)*12+MONTH($A41)+3+IF(ISNUMBER(FIND("PRV",C$6)),1,0)))*IF(AND(C$3>0,TRIM(C$9)="CFS"),Conv_Flags!$C41,1) -> 2943.895573 | I41: 1951 | J41: =B361 -> 3250 | K41: =B362 -> 3252 | L41: =B363 -> 3322 | M41: =B364 -> 3624 | N41: =B365 -> 3794 | O41: =B366 -> 4196.056362 | P41: =B367 -> 4423.606449 | Q41: =B368 -> 4552 | R41: =B369 -> 4187.956689 | S41: =B370 -> 3473.365805 | T41: =B371 -> 3053.841915 | U41: =B372 -> 2845.809399 | W41: 3598.964167 | X41: 3592.714167 | Y41: 3664.553052 | AA41: 3543.005636 | AB41: 3014.387824 | AC41: 3308.911151 | AD41: 3489.666667 | AE41: 4290.660289 | AF41: 3603.517277 | AG41: 2881.675435 | AI41: 1951 | AJ41: ='Compile Data'!C361 -> 3250 | AK41: ='Compile Data'!C362 -> 3252 | AL41: ='Compile Data'!C363 -> 3322 | AM41: ='Compile Data'!C364 -> 3624 | AN41: ='Compile Data'!C365 -> 3794 | AO41: ='Compile Data'!C366 -> 4196.056362 | AP41: ='Compile Data'!C367 -> 4423.606449 | AQ41: ='Compile Data'!C368 -> 4552 | AR41: ='Compile Data'!C369 -> 4233.397151 | AS41: ='Compile Data'!C370 -> 3518.627748 | AT41: ='Compile Data'!C371 -> 3094.907607 | AU41: ='Compile Data'!C372 -> 2914.929637 | AW41: 3629.918765 | AX41: 3623.668765 | AY41: 3681.293746 | BA41: 3543.005636 | BB41: 3072.852305 | BC41: 3304.948584 | BD41: 3489.666667 | BE41: 4296.340347 | BF41: 3645.099331 | BG41: 2954.179784
A42: 1924-03-31 | B42: =INDIRECT(CONCATENATE("'",B$1,"'!",B$4,(YEAR($A42)-1921)*12+MONTH($A42)+3+IF(ISNUMBER(FIND("PRV",B$6)),1,0)))*IF(AND(B$3>0,TRIM(B$9)="CFS"),Conv_Flags!$C42,1) -> 2795.948702 | C42: =INDIRECT(CONCATENATE("'",C$1,"'!",C$4,(YEAR($A42)-1921)*12+MONTH($A42)+3+IF(ISNUMBER(FIND("PRV",C$6)),1,0)))*IF(AND(C$3>0,TRIM(C$9)="CFS"),Conv_Flags!$C42,1) -> 2759.62896 | I42: 1952 | J42: =B373 -> 2813.658511 | K42: =B374 -> 2917.274874 | L42: =B375 -> 3306 | M42: =B376 -> 3604 | N42: =B377 -> 3739 | O42: =B378 -> 4022 | P42: =B379 -> 4290 | Q42: =B380 -> 4552 | R42: =B381 -> 4500 | S42: =B382 -> 4150 | T42: =B383 -> 3700 | U42: =B384 -> 3400 | W42: 3810.511857 | X42: 3788.541745 | Y42: 3749.494449 | AA42: 3396.820826 | AB42: 3600 | AC42: 3065.459521 | AD42: 3412.712479 | AE42: 4245.875 | AF42: 4081.5 | AG42: 3362.357047 | AI42: 1952 | AJ42: ='Compile Data'!C373 -> 2898.811594 | AK42: ='Compile Data'!C374 -> 3002.688635 | AL42: ='Compile Data'!C375 -> 3306 | AM42: ='Compile Data'!C376 -> 3604 | AN42: ='Compile Data'!C377 -> 3739 | AO42: ='Compile Data'!C378 -> 4022 | AP42: ='Compile Data'!C379 -> 4290 | AQ42: ='Compile Data'!C380 -> 4552 | AR42: ='Compile Data'!C381 -> 4500 | AS42: ='Compile Data'!C382 -> 4150 | AT42: ='Compile Data'!C383 -> 3700 | AU42: ='Compile Data'!C384 -> 3400 | AW42: 3811.704952 | AX42: 3789.73484 | AY42: 3763.708352 | BA42: 3422.418886 | BB42: 3600 | BC42: 3116.741262 | BD42: 3426.948106 | BE42: 4245.875 | BF42: 4081.5 | BG42: 3364.743237
A43: 1924-04-30 | B43: =INDIRECT(CONCATENATE("'",B$1,"'!",B$4,(YEAR($A43)-1921)*12+MONTH($A43)+3+IF(ISNUMBER(FIND("PRV",B$6)),1,0)))*IF(AND(B$3>0,TRIM(B$9)="CFS"),Conv_Flags!$C43,1) -> 2689.662917 | C43: =INDIRECT(CONCATENATE("'",C$1,"'!",C$4,(YEAR($A43)-1921)*12+MONTH($A43)+3+IF(ISNUMBER(FIND("PRV",C$6)),1,0)))*IF(AND(C$3>0,TRIM(C$9)="CFS"),Conv_Flags!$C43,1) -> 2657.316564 | I43: 1953 | J43: =B385 -> 3250 | K43: =B386 -> 3174.14228 | L43: =B387 -> 3345 | M43: =B388 -> 3366 | N43: =B389 -> 3713.358657 | O43: =B390 -> 4147.313395 | P43: =B391 -> 4512.312481 | Q43: =B392 -> 4552 | R43: =B393 -> 4500 | S43: =B394 -> 4058.978641 | T43: =B395 -> 3700 | U43: =B396 -> 3400 | W43: 3813.66448 | X43: 3824.801259 | Y43: 3809.925454 | AA43: 3459.431527 | AB43: 3584.829773 | AC43: 3288.03557 | AD43: 3384.916823 | AE43: 4329.576301 | AF43: 4058.74466 | AG43: 3375.333333 | AI43: 1953 | AJ43: ='Compile Data'!C385 -> 3250 | AK43: ='Compile Data'!C386 -> 3188.459422 | AL43: ='Compile Data'!C387 -> 3345 | AM43: ='Compile Data'!C388 -> 3366 | AN43: ='Compile Data'!C389 -> 3713.358657 | AO43: ='Compile Data'!C390 -> 4147.313395 | AP43: ='Compile Data'!C391 -> 4512.312481 | AQ43: ='Compile Data'!C392 -> 4552 | AR43: ='Compile Data'!C393 -> 4500 | AS43: ='Compile Data'!C394 -> 4053.982346 | AT43: ='Compile Data'!C395 -> 3700 | AU43: ='Compile Data'!C396 -> 3400 | AW43: 3813.546526 | AX43: 3824.683305 | AY43: 3810.702192 | BA43: 3462.294955 | BB43: 3583.997058 | BC43: 3291.614855 | BD43: 3387.303013 | BE43: 4329.576301 | BF43: 4057.495586 | BG43: 3375.333333
A44: 1924-05-31 | B44: =INDIRECT(CONCATENATE("'",B$1,"'!",B$4,(YEAR($A44)-1921)*12+MONTH($A44)+3+IF(ISNUMBER(FIND("PRV",B$6)),1,0)))*IF(AND(B$3>0,TRIM(B$9)="CFS"),Conv_Flags!$C44,1) -> 2339.76599 | C44: =INDIRECT(CONCATENATE("'",C$1,"'!",C$4,(YEAR($A44)-1921)*12+MONTH($A44)+3+IF(ISNUMBER(FIND("PRV",C$6)),1,0)))*IF(AND(C$3>0,TRIM(C$9)="CFS"),Conv_Flags!$C44,1) -> 2307.218533 | I44: 1954 | J44: =B397 -> 3250 | K44: =B398 -> 3252 | L44: =B399 -> 3312.010589 | M44: =B400 -> 3552 | N44: =B401 -> 3661 | O44: =B402 -> 4106 | P44: =B403 -> 4546 | Q44: =B404 -> 4506.48775 | R44: =B405 -> 4162.416699 | S44: =B406 -> 3494.09605 | T44: =B407 -> 3181.666383 | U44: =B408 -> 3050.71551 | W44: 3641.250893 | X44: 3637.308901 | Y44: 3672.866082 | AA44: 3491.002118 | AB44: 3155.849857 | AC44: =IF(AC$11="AVG",IF(AC$1="INST-VAL",AVERAGE(U43,J44:L44,J44:M44),AVERAGE(J44:M44)),SUM(J44:M44)) -> 3322.502647 | AD44: 3440.170196 | AE44: 4267.549025 | AF44: 3654.19519 | AG44: 3055.660839 | AI44: 1954 | AJ44: ='Compile Data'!C397 -> 3250 | AK44: ='Compile Data'!C398 -> 3252 | AL44: ='Compile Data'!C399 -> 3315.591434 | AM44: ='Compile Data'!C400 -> 3552 | AN44: ='Compile Data'!C401 -> 3661 | AO44: ='Compile Data'!C402 -> 4106 | AP44: ='Compile Data'!C403 -> 4546 | AQ44: ='Compile Data'!C404 -> 4552 | AR44: ='Compile Data'!C405 -> 4255.844147 | AS44: ='Compile Data'!C406 -> 3587.12585 | AT44: ='Compile Data'!C407 -> 3277.838736 | AU44: ='Compile Data'!C408 -> 3158.006256 | AW44: 3698.011403 | AX44: 3694.069411 | AY44: 3709.450535 | BA44: 3491.718287 | BB44: 3259.666772 | BC44: 3323.397859 | BD44: 3441.363811 | BE44: 4290.605518 | BF44: 3743.952965 | BG44: 3168.892982
A45: 1924-06-30 | B45: =INDIRECT(CONCATENATE("'",B$1,"'!",B$4,(YEAR($A45)-1921)*12+MONTH($A45)+3+IF(ISNUMBER(FIND("PRV",B$6)),1,0)))*IF(AND(B$3>0,TRIM(B$9)="CFS"),Conv_Flags!$C45,1) -> 1867.039217 | C45: =INDIRECT(CONCATENATE("'",C$1,"'!",C$4,(YEAR($A45)-1921)*12+MONTH($A45)+3+IF(ISNUMBER(FIND("PRV",C$6)),1,0)))*IF(AND(C$3>0,TRIM(C$9)="CFS"),Conv_Flags!$C45,1) -> 1842.851285 | I45: 1955 | J45: =B409 -> 2976.239309 | K45: =B410 -> 3098.389015 | L45: =B411 -> 3360 | M45: =B412 -> 3506.573261 | N45: =B413 -> 3659.122838 | O45: =B414 -> 3827.564943 | P45: =B415 -> 4199.721611 | Q45: =B416 -> 4308.146814 | R45: =B417 -> 3823.10269 | S45: =B418 -> 3319.647829 | T45: =B419 -> 3069.713321 | U45: =B420 -> 3051.864774 | W45: 3495.07696 | X45: 3442.935618 | Y45: 3516.673867 | AA45: 3405.197448 | AB45: 3085.238226 | AC45: 3178.318177 | AD45: 3415.109729 | AE45: 4019.136533 | AF45: 3473.117409 | AG45: 3007.58894 | AI45: 1955 | AJ45: ='Compile Data'!C409 -> 3099.1848 | AK45: ='Compile Data'!C410 -> 3221.137046 | AL45: ='Compile Data'!C411 -> 3360 | AM45: ='Compile Data'!C412 -> 3506.573261 | AN45: ='Compile Data'!C413 -> 3659.122838 | AO45: ='Compile Data'!C414 -> 3827.564943 | AP45: ='Compile Data'!C415 -> 4199.721611 | AQ45: ='Compile Data'!C416 -> 4324.697026 | AR45: ='Compile Data'!C417 -> 3859.48975 | AS45: ='Compile Data'!C418 -> 3345.360182 | AT45: ='Compile Data'!C419 -> 3075.349288 | AU45: ='Compile Data'!C420 -> 3054.573323 | AW45: 3500.811003 | AX45: 3448.669661 | AY45: 3544.397839 | BA45: 3442.041603 | BB45: 3090.954603 | BC45: 3253.152901 | BD45: 3435.567734 | BE45: 4027.822469 | BF45: 3492.458599 | BG45: 3005.04966
A46: 1924-07-31 | B46: =INDIRECT(CONCATENATE("'",B$1,"'!",B$4,(YEAR($A46)-1921)*12+MONTH($A46)+3+IF(ISNUMBER(FIND("PRV",B$6)),1,0)))*IF(AND(B$3>0,TRIM(B$9)="CFS"),Conv_Flags!$C46,1) -> 1485.967431 | C46: =INDIRECT(CONCATENATE("'",C$1,"'!",C$4,(YEAR($A46)-1921)*12+MONTH($A46)+3+IF(ISNUMBER(FIND("PRV",C$6)),1,0)))*IF(AND(C$3>0,TRIM(C$9)="CFS"),Conv_Flags!$C46,1) -> 1462.385458 | I46: 1956 | J46: =B421 -> 2948.625336 | K46: =B422 -> 2974.840098 | L46: =B423 -> 3252 | M46: =B424 -> 3252 | N46: =B425 -> 3288 | O46: =B426 -> 3971.402227 | P46: =B427 -> 4487.018905 | Q46: =B428 -> 4552 | R46: =B429 -> 4461.999572 | S46: =B430 -> 4115.122098 | T46: =B431 -> 3700 | U46: =B432 -> 3400 | W46: 3729.699163 | X46: 3761.770589 | Y46: 3700.250686 | AA46: 3245.370776 | AB46: 3594.187016 | AC46: 3081.849455 | AD46: 3211.806683 | AE46: 4221.355229 | AF46: 4063.280418 | AG46: 3357.431546 | AI46: 1956 | AJ46: ='Compile Data'!C421 -> 2940.522212 | AK46: ='Compile Data'!C422 -> 2964.757599 | AL46: ='Compile Data'!C423 -> 3252 | AM46: ='Compile Data'!C424 -> 3252 | AN46: ='Compile Data'!C425 -> 3288 | AO46: ='Compile Data'!C426 -> 3971.402227 | AP46: ='Compile Data'!C427 -> 4487.018902 | AQ46: ='Compile Data'!C428 -> 4552 | AR46: ='Compile Data'!C429 -> 4464.448085 | AS46: ='Compile Data'!C430 -> 4115.665073 | AT46: ='Compile Data'!C431 -> 3700 | AU46: ='Compile Data'!C432 -> 3400 | AW46: 3732.345148 | AX46: 3765.653484 | AY46: 3698.984508 | BA46: 3242.543964 | BB46: 3594.277512 | BC46: 3077.641618 | BD46: 3210.126266 | BE46: 4221.661293 | BF46: 4064.028289 | BG46: 3359.749508
A47: 1924-08-31 | B47: =INDIRECT(CONCATENATE("'",B$1,"'!",B$4,(YEAR($A47)-1921)*12+MONTH($A47)+3+IF(ISNUMBER(FIND("PRV",B$6)),1,0)))*IF(AND(B$3>0,TRIM(B$9)="CFS"),Conv_Flags!$C47,1) -> 1218.275627 | C47: =INDIRECT(CONCATENATE("'",C$1,"'!",C$4,(YEAR($A47)-1921)*12+MONTH($A47)+3+IF(ISNUMBER(FIND("PRV",C$6)),1,0)))*IF(AND(C$3>0,TRIM(C$9)="CFS"),Conv_Flags!$C47,1) -> 1219.453628 | I47: 1957 | J47: =B433 -> 3250 | K47: =B434 -> 3144.589273 | L47: =B435 -> 3134.257882 | M47: =B436 -> 3249.857114 | N47: =B437 -> 3675 | O47: =B438 -> 4129 | P47: =B439 -> 4538.920429 | Q47: =B440 -> 4552 | R47: =B441 -> 4318.393029 | S47: =B442 -> 3650.446017 | T47: =B443 -> 3274.773321 | U47: =B444 -> 3189.685618 | W47: 3701.506294 | X47: 3689.684868 | Y47: 3675.57689 | AA47: 3378.640854 | AB47: 3304.893982 | AC47: 3213.443928 | AD47: 3264.636544 | AE47: 4304.154236 | AF47: 3778.613794 | AG47: 3234.357426 | AI47: 1957 | AJ47: ='Compile Data'!C433 -> 3250 | AK47: ='Compile Data'!C434 -> 3158.497051 | AL47: ='Compile Data'!C435 -> 3149.110444 | AM47: ='Compile Data'!C436 -> 3264.700026 | AN47: ='Compile Data'!C437 -> 3675 | AO47: ='Compile Data'!C438 -> 4129 | AP47: ='Compile Data'!C439 -> 4538.920429 | AQ47: ='Compile Data'!C440 -> 4552 | AR47: ='Compile Data'!C441 -> 4379.307295 | AS47: ='Compile Data'!C442 -> 3711.075773 | AT47: ='Compile Data'!C443 -> 3343.217439 | AU47: ='Compile Data'!C444 -> 3279.904354 | AW47: 3726.093776 | AX47: 3713.035441 | AY47: 3702.561068 | BA47: 3387.361504 | BB47: 3367.88656 | BC47: 3222.489377 | BD47: 3276.852999 | BE47: 4311.768519 | BF47: 3837.388171 | BG47: 3275.837691
A48: 1924-09-30 | B48: =INDIRECT(CONCATENATE("'",B$1,"'!",B$4,(YEAR($A48)-1921)*12+MONTH($A48)+3+IF(ISNUMBER(FIND("PRV",B$6)),1,0)))*IF(AND(B$3>0,TRIM(B$9)="CFS"),Conv_Flags!$C48,1) -> 1117.901249 | C48: =INDIRECT(CONCATENATE("'",C$1,"'!",C$4,(YEAR($A48)-1921)*12+MONTH($A48)+3+IF(ISNUMBER(FIND("PRV",C$6)),1,0)))*IF(AND(C$3>0,TRIM(C$9)="CFS"),Conv_Flags!$C48,1) -> 1120.567834 | I48: 1958 | J48: =B445 -> 3250 | K48: =B446 -> 3252 | L48: =B447 -> 3338 | M48: =B448 -> 3531 | N48: =B449 -> 3252 | O48: =B450 -> 3416 | P48: =B451 -> 4173 | Q48: =B452 -> 4552 | R48: =B453 -> 4500 | S48: =B454 -> 4150 | T48: =B455 -> 3700 | U48: =B456 -> 3400 | W48: 3693.311922 | X48: 3746.811922 | Y48: 3709.5 | AA48: 3341.2 | AB48: 3600 | AC48: 3300.085702 | AD48: 3373.666667 | AE48: 4004.25 | AF48: 4081.5 | AG48: 3359.375758 | AI48: 1958 | AJ48: ='Compile Data'!C445 -> 3250 | AK48: ='Compile Data'!C446 -> 3252 | AL48: ='Compile Data'!C447 -> 3338 | AM48: ='Compile Data'!C448 -> 3531 | AN48: ='Compile Data'!C449 -> 3252 | AO48: ='Compile Data'!C450 -> 3416 | AP48: ='Compile Data'!C451 -> 4173 | AQ48: ='Compile Data'!C452 -> 4552 | AR48: ='Compile Data'!C453 -> 4500 | AS48: ='Compile Data'!C454 -> 4150 | AT48: ='Compile Data'!C455 -> 3700 | AU48: ='Compile Data'!C456 -> 3400 | AW48: 3695.680426 | AX48: 3749.180426 | AY48: 3709.5 | BA48: 3341.2 | BB48: 3600 | BC48: 3311.363044 | BD48: 3373.666667 | BE48: 4004.25 | BF48: 4081.5 | BG48: 3361.774006
A49: 1924-10-31 | B49: =INDIRECT(CONCATENATE("'",B$1,"'!",B$4,(YEAR($A49)-1921)*12+MONTH($A49)+3+IF(ISNUMBER(FIND("PRV",B$6)),1,0)))*IF(AND(B$3>0,TRIM(B$9)="CFS"),Conv_Flags!$C49,1) -> 1141.557719 | C49: =INDIRECT(CONCATENATE("'",C$1,"'!",C$4,(YEAR($A49)-1921)*12+MONTH($A49)+3+IF(ISNUMBER(FIND("PRV",C$6)),1,0)))*IF(AND(C$3>0,TRIM(C$9)="CFS"),Conv_Flags!$C49,1) -> 1138.302151 | I49: 1959 | J49: =B457 -> 3250 | K49: =B458 -> 3156.254547 | L49: =B459 -> 3239.488517 | M49: =B460 -> 3648 | N49: =B461 -> 3777 | O49: =B462 -> 4221.081231 | P49: =B463 -> 4513.106121 | Q49: =B464 -> 4322.111734 | R49: =B465 -> 3759.761576 | S49: =B466 -> 3145.054642 | T49: =B467 -> 2727.883433 | U49: =B468 -> 2864.747509 | W49: 3393.744383 | X49: 3285.707241 | Y49: 3552.040776 | AA49: 3511.256736 | AB49: 2843.238383 | AC49: 3292.435766 | AD49: 3451.37193 | AE49: 4206.169969 | AF49: 3306.532318 | AG49: 2742.40948 | AI49: 1959 | AJ49: ='Compile Data'!C457 -> 3250 | AK49: ='Compile Data'!C458 -> 3170.644036 | AL49: ='Compile Data'!C459 -> 3253.52108 | AM49: ='Compile Data'!C460 -> 3648 | AN49: ='Compile Data'!C461 -> 3777 | AO49: ='Compile Data'!C462 -> 4221.081232 | AP49: ='Compile Data'!C463 -> 4523.551974 | AQ49: ='Compile Data'!C464 -> 4413.290909 | AR49: ='Compile Data'!C465 -> 3847.021366 | AS49: ='Compile Data'!C466 -> 3230.201294 | AT49: ='Compile Data'!C467 -> 2888.344025 | AU49: ='Compile Data'!C468 -> 2896.573643 | AW49: 3428.441575 | AX49: 3314.349119 | AY49: 3593.26913 | BA49: 3516.941146 | BB49: 2920.50431 | BC49: 3299.541279 | BD49: 3458.447699 | BE49: 4242.483699 | BF49: 3405.12474 | BG49: 2776.477911
A50: 1924-11-30 | B50: =INDIRECT(CONCATENATE("'",B$1,"'!",B$4,(YEAR($A50)-1921)*12+MONTH($A50)+3+IF(ISNUMBER(FIND("PRV",B$6)),1,0)))*IF(AND(B$3>0,TRIM(B$9)="CFS"),Conv_Flags!$C50,1) -> 1302.508965 | C50: =INDIRECT(CONCATENATE("'",C$1,"'!",C$4,(YEAR($A50)-1921)*12+MONTH($A50)+3+IF(ISNUMBER(FIND("PRV",C$6)),1,0)))*IF(AND(C$3>0,TRIM(C$9)="CFS"),Conv_Flags!$C50,1) -> 1292.460226 | I50: 1960 | J50: =B469 -> 2729.113772 | K50: =B470 -> 2538.850884 | L50: =B471 -> 2478.221698 | M50: =B472 -> 2702.714336 | N50: =B473 -> 3425.83996 | O50: =B474 -> 4119.224926 | P50: =B475 -> 4199.529888 | Q50: =B476 -> 4313.710151 | R50: =B477 -> 3804.998704 | S50: =B478 -> 3293.238368 | T50: =B479 -> 3030.418558 | U50: =B480 -> 2965.408577 | W50: 3420.198813 | X50: 3531.449 | Y50: 3300.105819 | AA50: 2913.959245 | AB50: 3019.8837 | AC50: 2632.479319 | AD50: 2721.093819 | AE50: 4061.971074 | AF50: 3442.053748 | AG50: 2938.824594 | AI50: 1960 | AJ50: ='Compile Data'!C469 -> 2722.98923 | AK50: ='Compile Data'!C470 -> 2531.397695 | AL50: ='Compile Data'!C471 -> 2441.847535 | AM50: ='Compile Data'!C472 -> 2666.365709 | AN50: ='Compile Data'!C473 -> 3389.524814 | AO50: ='Compile Data'!C474 -> 4082.966159 | AP50: ='Compile Data'!C475 -> 4168.1577 | AQ50: ='Compile Data'!C476 -> 4282.55798 | AR50: ='Compile Data'!C477 -> 3788.107669 | AS50: ='Compile Data'!C478 -> 3269.3424 | AT50: ='Compile Data'!C479 -> 2990.171439 | AU50: ='Compile Data'!C480 -> 2915.149937 | AW50: 3373.609373 | AX50: 3486.824953 | AY50: 3270.714856 | BA50: 2886.42269 | BB50: 2973.896592 | BC50: 2619.426034 | BD50: 2689.558166 | BE50: 4030.62452 | BF50: 3411.618867 | BG50: 2868.990781
A51: 1924-12-31 | B51: =INDIRECT(CONCATENATE("'",B$1,"'!",B$4,(YEAR($A51)-1921)*12+MONTH($A51)+3+IF(ISNUMBER(FIND("PRV",B$6)),1,0)))*IF(AND(B$3>0,TRIM(B$9)="CFS"),Conv_Flags!$C51,1) -> 1416.746849 | C51: =INDIRECT(CONCATENATE("'",C$1,"'!",C$4,(YEAR($A51)-1921)*12+MONTH($A51)+3+IF(ISNUMBER(FIND("PRV",C$6)),1,0)))*IF(AND(C$3>0,TRIM(C$9)="CFS"),Conv_Flags!$C51,1) -> 1406.704729 | I51: 1961 | J51: =B481 -> 2834.409561 | K51: =B482 -> 3002.89273 | L51: =B483 -> 3350 | M51: =B484 -> 3549.556535 | N51: =B485 -> 3914 | O51: =B486 -> 4280 | P51: =B487 -> 4552 | Q51: =B488 -> 4502.134132 | R51: =B489 -> 4044.508463 | S51: =B490 -> 3432.251248 | T51: =B491 -> 3142.937612 | U51: =B492 -> 3084.113827 | W51: 3619.925043 | X51: 3577.796777 | Y51: 3640.733676 | AA51: 3474.730809 | AB51: 3124.337041 | AC51: 3111.196212 | AD51: 3452.667633 | AE51: 4328.347091 | AF51: 3603.205326 | AG51: 2983.265178 | AI51: 1961 | AJ51: ='Compile Data'!C481 -> 2763.394401 | AK51: ='Compile Data'!C482 -> 2866.68457 | AL51: ='Compile Data'!C483 -> 3300.889697 | AM51: ='Compile Data'!C484 -> 3500.477487 | AN51: ='Compile Data'!C485 -> 3914 | AO51: ='Compile Data'!C486 -> 4280 | AP51: ='Compile Data'!C487 -> 4552 | AQ51: ='Compile Data'!C488 -> 4505.833188 | AR51: ='Compile Data'!C489 -> 4041.412076 | AS51: ='Compile Data'!C490 -> 3431.336356 | AT51: ='Compile Data'!C491 -> 3117.970378 | AU51: ='Compile Data'!C492 -> 3086.418113 | AW51: 3609.001045 | AX51: 3567.798433 | AY51: 3613.368022 | BA51: 3420.749791 | BB51: 3117.457004 | BC51: 3034.695595 | BD51: 3397.23649 | BE51: 4328.884807 | BF51: 3596.711115 | BG51: 2977.823143
A52: 1925-01-31 | B52: =INDIRECT(CONCATENATE("'",B$1,"'!",B$4,(YEAR($A52)-1921)*12+MONTH($A52)+3+IF(ISNUMBER(FIND("PRV",B$6)),1,0)))*IF(AND(B$3>0,TRIM(B$9)="CFS"),Conv_Flags!$C52,1) -> 1732.927591 | C52: =INDIRECT(CONCATENATE("'",C$1,"'!",C$4,(YEAR($A52)-1921)*12+MONTH($A52)+3+IF(ISNUMBER(FIND("PRV",C$6)),1,0)))*IF(AND(C$3>0,TRIM(C$9)="CFS"),Conv_Flags!$C52,1) -> 1739.589382 | I52: 1962 | J52: =B493 -> 2859.668122 | K52: =B494 -> 2869.089557 | L52: =B495 -> 3208.841025 | M52: =B496 -> 3283.017338 | N52: =B497 -> 3675 | O52: =B498 -> 4209.334355 | P52: =B499 -> 4552 | Q52: =B500 -> 4448.133841 | R52: =B501 -> 4125.609752 | S52: =B502 -> 3509.81794 | T52: =B503 -> 3149.467924 | U52: =B504 -> 3102.603475 | W52: 3658.832052 | X52: 3702.516463 | Y52: 3582.715277 | AA52: 3314.089832 | AB52: 3210.660123 | AC52: 3030.291072 | AD52: 3254.634381 | AE52: 4277.443268 | AF52: 3640.066069 | AG52: 3184.445812 | AI52: 1962 | AJ52: ='Compile Data'!C493 -> 2864.628683 | AK52: ='Compile Data'!C494 -> 2846.874889 | AL52: ='Compile Data'!C495 -> 3167.061373 | AM52: ='Compile Data'!C496 -> 3245.046145 | AN52: ='Compile Data'!C497 -> 3675 | AO52: ='Compile Data'!C498 -> 4209.334355 | AP52: ='Compile Data'!C499 -> 4552 | AQ52: ='Compile Data'!C500 -> 4464.889909 | AR52: ='Compile Data'!C501 -> 4111.226304 | AS52: ='Compile Data'!C502 -> 3508.254931 | AT52: ='Compile Data'!C503 -> 3133.222591 | AU52: ='Compile Data'!C504 -> 3082.20842 | AW52: 3652.681888 | AX52: 3699.530565 | AY52: 3571.645633 | BA52: 3294.192785 | BB52: 3198.186159 | BC52: 3011.074268 | BD52: 3224.348321 | BE52: 4279.834354 | BF52: 3631.563248 | BG52: 3174.939905
A53: 1925-02-28 | B53: =INDIRECT(CONCATENATE("'",B$1,"'!",B$4,(YEAR($A53)-1921)*12+MONTH($A53)+3+IF(ISNUMBER(FIND("PRV",B$6)),1,0)))*IF(AND(B$3>0,TRIM(B$9)="CFS"),Conv_Flags!$C53,1) -> 2945.449331 | C53: =INDIRECT(CONCATENATE("'",C$1,"'!",C$4,(YEAR($A53)-1921)*12+MONTH($A53)+3+IF(ISNUMBER(FIND("PRV",C$6)),1,0)))*IF(AND(C$3>0,TRIM(C$9)="CFS"),Conv_Flags!$C53,1) -> 2939.740519 | I53: 1963 | J53: =B505 -> 3250 | K53: =B506 -> 3252 | L53: =B507 -> 3349 | M53: =B508 -> 3538.230273 | N53: =B509 -> 3944 | O53: =B510 -> 4226 | P53: =B511 -> 4137 | Q53: =B512 -> 4552 | R53: =B513 -> 4386.204687 | S53: =B514 -> 3782.12186 | T53: =B515 -> 3463.772878 | U53: =B516 -> 3244.412982 | W53: 3750.750415 | X53: 3761.167525 | Y53: 3760.395223 | AA53: 3564.246055 | AB53: 3406.723135 | AC53: 3292.854218 | AD53: 3495.076758 | AE53: 4270.025586 | AF53: 3882.576479 | AG53: 3281.38155 | AI53: 1963 | AJ53: ='Compile Data'!C505 -> 3250 | AK53: ='Compile Data'!C506 -> 3252 | AL53: ='Compile Data'!C507 -> 3349 | AM53: ='Compile Data'!C508 -> 3538.230273 | AN53: ='Compile Data'!C509 -> 3944 | AO53: ='Compile Data'!C510 -> 4226 | AP53: ='Compile Data'!C511 -> 4137 | AQ53: ='Compile Data'!C512 -> 4552 | AR53: ='Compile Data'!C513 -> 4383.590775 | AS53: ='Compile Data'!C514 -> 3770.099174 | AT53: ='Compile Data'!C515 -> 3453.50823 | AU53: ='Compile Data'!C516 -> 3236.598566 | AW53: 3748.766718 | AX53: 3760.663238 | AY53: 3757.668918 | BA53: 3564.246055 | BB53: 3397.393093 | BC53: 3290.304837 | BD53: 3495.076758 | BE53: 4269.698847 | BF53: 3875.374366 | BG53: 3274.466158
A54: 1925-03-31 | B54: =INDIRECT(CONCATENATE("'",B$1,"'!",B$4,(YEAR($A54)-1921)*12+MONTH($A54)+3+IF(ISNUMBER(FIND("PRV",B$6)),1,0)))*IF(AND(B$3>0,TRIM(B$9)="CFS"),Conv_Flags!$C54,1) -> 3319.849409 | C54: =INDIRECT(CONCATENATE("'",C$1,"'!",C$4,(YEAR($A54)-1921)*12+MONTH($A54)+3+IF(ISNUMBER(FIND("PRV",C$6)),1,0)))*IF(AND(C$3>0,TRIM(C$9)="CFS"),Conv_Flags!$C54,1) -> 3314.14852 | I54: 1964 | J54: =B517 -> 3241.845229 | K54: =B518 -> 3252 | L54: =B519 -> 3241.417072 | M54: =B520 -> 3688.282516 | N54: =B521 -> 3918.953082 | O54: =B522 -> 4067.104679 | P54: =B523 -> 4023.892304 | Q54: =B524 -> 3878.172498 | R54: =B525 -> 3578.635214 | S54: =B526 -> 3196.639628 | T54: =B527 -> 2902.262992 | U54: =B528 -> 2858.819425 | W54: 3424.297519 | X54: 3385.397347 | Y54: 3487.335387 | AA54: 3551.025525 | AB54: 2917.523021 | AC54: 3300.402512 | AD54: 3505.05871 | AE54: 3929.490908 | AF54: 3261.508449 | AG54: 2855.507231 | AI54: 1964 | AJ54: ='Compile Data'!C517 -> 3234.045793 | AK54: ='Compile Data'!C518 -> 3252 | AL54: ='Compile Data'!C519 -> 3258.127801 | AM54: ='Compile Data'!C520 -> 3696.660344 | AN54: ='Compile Data'!C521 -> 3928.328175 | AO54: ='Compile Data'!C522 -> 4076.470491 | AP54: ='Compile Data'!C523 -> 4045.842737 | AQ54: ='Compile Data'!C524 -> 3896.550416 | AR54: ='Compile Data'!C525 -> 3600.868469 | AS54: ='Compile Data'!C526 -> 3200.238625 | AT54: ='Compile Data'!C527 -> 2879.872222 | AU54: ='Compile Data'!C528 -> 2852.521645 | AW54: 3428.872206 | AX54: 3388.492624 | AY54: 3493.46056 | BA54: 3558.074892 | BB54: 2908.390102 | BC54: 3302.700762 | BD54: 3514.984077 | BE54: 3945.865491 | BF54: 3263.878837 | BG54: 2847.890518
A55: 1925-04-30 | B55: =INDIRECT(CONCATENATE("'",B$1,"'!",B$4,(YEAR($A55)-1921)*12+MONTH($A55)+3+IF(ISNUMBER(FIND("PRV",B$6)),1,0)))*IF(AND(B$3>0,TRIM(B$9)="CFS"),Conv_Flags!$C55,1) -> 4024.117638 | C55: =INDIRECT(CONCATENATE("'",C$1,"'!",C$4,(YEAR($A55)-1921)*12+MONTH($A55)+3+IF(ISNUMBER(FIND("PRV",C$6)),1,0)))*IF(AND(C$3>0,TRIM(C$9)="CFS"),Conv_Flags!$C55,1) -> 4018.428488 | I55: 1965 | J55: =B529 -> 2786.333662 | K55: =B530 -> 2940.474222 | L55: =B531 -> 3252 | M55: =B532 -> 3368 | N55: =B533 -> 3772.433534 | O55: =B534 -> 4010.575401 | P55: =B535 -> 4500 | Q55: =B536 -> 4539.583857 | R55: =B537 -> 4308.8549 | S55: =B538 -> 3856.660436 | T55: =B539 -> 3590.406224 | U55: =B540 -> 3400 | W55: 3767.292863 | X55: 3819.090068 | Y55: 3693.776853 | AA55: 3346.272458 | AB55: 3514.578814 | AC55: 3023.054399 | AD55: 3325.484626 | AE55: 4272.700869 | AF55: 3931.428372 | AG55: 3357.067704 | AI55: 1965 | AJ55: ='Compile Data'!C529 -> 2785.314252 | AK55: ='Compile Data'!C530 -> 2931.799092 | AL55: ='Compile Data'!C531 -> 3252 | AM55: ='Compile Data'!C532 -> 3368 | AN55: ='Compile Data'!C533 -> 3772.433534 | AO55: ='Compile Data'!C534 -> 4010.575401 | AP55: ='Compile Data'!C535 -> 4500 | AQ55: ='Compile Data'!C536 -> 4540.838336 | AR55: ='Compile Data'!C537 -> 4307.876817 | AS55: ='Compile Data'!C538 -> 3850.405061 | AT55: ='Compile Data'!C539 -> 3583.77864 | AU55: ='Compile Data'!C540 -> 3400 | AW55: 3766.242316 | AX55: 3818.039521 | AY55: 3691.918428 | BA55: 3344.435491 | BB55: 3511.327057 | BC55: 3019.843542 | BD55: 3324.038771 | BE55: 4272.892228 | BF55: 3928.119922 | BG55: 3355.963107
A56: 1925-05-31 | B56: =INDIRECT(CONCATENATE("'",B$1,"'!",B$4,(YEAR($A56)-1921)*12+MONTH($A56)+3+IF(ISNUMBER(FIND("PRV",B$6)),1,0)))*IF(AND(B$3>0,TRIM(B$9)="CFS"),Conv_Flags!$C56,1) -> 4165.955471 | C56: =INDIRECT(CONCATENATE("'",C$1,"'!",C$4,(YEAR($A56)-1921)*12+MONTH($A56)+3+IF(ISNUMBER(FIND("PRV",C$6)),1,0)))*IF(AND(C$3>0,TRIM(C$9)="CFS"),Conv_Flags!$C56,1) -> 4160.110634 | I56: 1966 | J56: =B541 -> 3250 | K56: =B542 -> 3252 | L56: =B543 -> 3359 | M56: =B544 -> 3725 | N56: =B545 -> 4037 | O56: =B546 -> 4229 | P56: =B547 -> 4552 | Q56: =B548 -> 4410.215738 | R56: =B549 -> 3786.703204 | S56: =B550 -> 3243.979639 | T56: =B551 -> 3016.009713 | U56: =B552 -> 2946.029438 | W56: 3608.465527 | X56: 3584.215527 | Y56: 3650.578144 | AA56: 3622.5 | AB56: 2996.829436 | AC56: 3355.875 | AD56: 3576.166667 | AE56: 4275.766835 | AF56: 3431.203786 | AG56: 2956.93931 | AI56: 1966 | AJ56: ='Compile Data'!C541 -> 3250 | AK56: ='Compile Data'!C542 -> 3252 | AL56: ='Compile Data'!C543 -> 3359 | AM56: ='Compile Data'!C544 -> 3725 | AN56: ='Compile Data'!C545 -> 4037 | AO56: ='Compile Data'!C546 -> 4229 | AP56: ='Compile Data'!C547 -> 4552 | AQ56: ='Compile Data'!C548 -> 4450.601918 | AR56: ='Compile Data'!C549 -> 3813.939098 | AS56: ='Compile Data'!C550 -> 3197.890946 | AT56: ='Compile Data'!C551 -> 2948.815616 | AU56: ='Compile Data'!C552 -> 2849.808205 | AW56: 3584.262244 | AX56: 3560.012244 | AY56: 3638.754649 | BA56: 3622.5 | BB56: 2922.289837 | BC56: 3355.875 | BD56: 3576.166667 | BE56: 4289.267867 | BF56: 3402.71268 | BG56: 2876.520601
A57: 1925-06-30 | B57: =INDIRECT(CONCATENATE("'",B$1,"'!",B$4,(YEAR($A57)-1921)*12+MONTH($A57)+3+IF(ISNUMBER(FIND("PRV",B$6)),1,0)))*IF(AND(B$3>0,TRIM(B$9)="CFS"),Conv_Flags!$C57,1) -> 3931.665301 | C57: =INDIRECT(CONCATENATE("'",C$1,"'!",C$4,(YEAR($A57)-1921)*12+MONTH($A57)+3+IF(ISNUMBER(FIND("PRV",C$6)),1,0)))*IF(AND(C$3>0,TRIM(C$9)="CFS"),Conv_Flags!$C57,1) -> 3936.169673 | I57: 1967 | J57: =B553 -> 2812.918675 | K57: =B554 -> 3207.729924 | L57: =B555 -> 3335 | M57: =B556 -> 3551 | N57: =B557 -> 3920 | O57: =B558 -> 4033 | P57: =B559 -> 4479 | Q57: =B560 -> 4552 | R57: =B561 -> 4500 | S57: =B562 -> 4150 | T57: =B563 -> 3700 | U57: =B564 -> 3400 | W57: 3832.068716 | X57: 3805.121965 | Y57: 3803.387383 | AA57: 3487.337852 | AB57: 3600 | AC57: 3151.040829 | AD57: 3483.288321 | AE57: 4318.5 | AF57: 4081.5 | AG57: 3368.297533 | AI57: 1967 | AJ57: ='Compile Data'!C553 -> 2738.600433 | AK57: ='Compile Data'!C554 -> 3133.490714 | AL57: ='Compile Data'!C555 -> 3335 | AM57: ='Compile Data'!C556 -> 3551 | AN57: ='Compile Data'!C557 -> 3920 | AO57: ='Compile Data'!C558 -> 4033 | AP57: ='Compile Data'!C559 -> 4479 | AQ57: ='Compile Data'!C560 -> 4552 | AR57: ='Compile Data'!C561 -> 4500 | AS57: ='Compile Data'!C562 -> 4150 | AT57: ='Compile Data'!C563 -> 3700 | AU57: ='Compile Data'!C564 -> 3400 | AW57: 3831.06325 | AX57: 3803.722532 | AY57: 3791.007596 | BA57: 3465.058186 | BB57: 3600 | BC57: 3101.873812 | BD57: 3470.915119 | BE57: 4318.5 | BF57: 4081.5 | BG57: 3367.075039
A58: 1925-07-31 | B58: =INDIRECT(CONCATENATE("'",B$1,"'!",B$4,(YEAR($A58)-1921)*12+MONTH($A58)+3+IF(ISNUMBER(FIND("PRV",B$6)),1,0)))*IF(AND(B$3>0,TRIM(B$9)="CFS"),Conv_Flags!$C58,1) -> 3390.688916 | C58: =INDIRECT(CONCATENATE("'",C$1,"'!",C$4,(YEAR($A58)-1921)*12+MONTH($A58)+3+IF(ISNUMBER(FIND("PRV",C$6)),1,0)))*IF(AND(C$3>0,TRIM(C$9)="CFS"),Conv_Flags!$C58,1) -> 3384.347727 | I58: 1968 | J58: =B565 -> 3250 | K58: =B566 -> 3209.7852 | L58: =B567 -> 3240.039394 | M58: =B568 -> 3493.638987 | N58: =B569 -> 3654 | O58: =B570 -> 4242.441029 | P58: =B571 -> 4481.153227 | Q58: =B572 -> 4384.369081 | R58: =B573 -> 3829.218778 | S58: =B574 -> 3139.90775 | T58: =B575 -> 2987.88513 | U58: =B576 -> 2882.688002 | W58: 3528.2525 | X58: 3502.449251 | Y58: 3566.260548 | AA58: 3468.736819 | AB58: 2966.431735 | AC58: 3286.661022 | AD58: 3388.52366 | AE58: 4212.393182 | AF58: 3397.63505 | AG58: 2928.811421 | AI58: 1968 | AJ58: ='Compile Data'!C565 -> 3250 | AK58: ='Compile Data'!C566 -> 3202.450232 | AL58: ='Compile Data'!C567 -> 3235.308764 | AM58: ='Compile Data'!C568 -> 3488.911387 | AN58: ='Compile Data'!C569 -> 3654 | AO58: ='Compile Data'!C570 -> 4242.441029 | AP58: ='Compile Data'!C571 -> 4481.153227 | AQ58: ='Compile Data'!C572 -> 4384.218433 | AR58: ='Compile Data'!C573 -> 3920.966613 | AS58: ='Compile Data'!C574 -> 3231.217946 | AT58: ='Compile Data'!C575 -> 3080.87555 | AU58: ='Compile Data'!C576 -> 2978.818828 | AW58: 3567.650254 | AX58: 3542.240972 | AY58: 3595.863501 | BA58: 3465.37818 | BB58: 3056.926342 | BC58: 3283.053672 | BD58: 3384.148422 | BE58: 4223.823999 | BF58: 3478.644685 | BG58: 3004.110764
A59: 1925-08-31 | B59: =INDIRECT(CONCATENATE("'",B$1,"'!",B$4,(YEAR($A59)-1921)*12+MONTH($A59)+3+IF(ISNUMBER(FIND("PRV",B$6)),1,0)))*IF(AND(B$3>0,TRIM(B$9)="CFS"),Conv_Flags!$C59,1) -> 3070.184526 | C59: =INDIRECT(CONCATENATE("'",C$1,"'!",C$4,(YEAR($A59)-1921)*12+MONTH($A59)+3+IF(ISNUMBER(FIND("PRV",C$6)),1,0)))*IF(AND(C$3>0,TRIM(C$9)="CFS"),Conv_Flags!$C59,1) -> 3063.393294 | I59: 1969 | J59: =B577 -> 2917.536394 | K59: =B578 -> 2984.534604 | L59: =B579 -> 3341.657016 | M59: =B580 -> 3358 | N59: =B581 -> 3480 | O59: =B582 -> 4030 | P59: =B583 -> 4434 | Q59: =B584 -> 4552 | R59: =B585 -> 4454.561272 | S59: =B586 -> 4061.953491 | T59: =B587 -> 3700 | U59: =B588 -> 3400 | W59: 3768.314185 | X59: 3755.397518 | Y59: 3726.186898 | AA59: 3327.591964 | AB59: 3585.325582 | AC59: 3091.018004 | AD59: 3310.64144 | AE59: 4245.820159 | AF59: 4048.128691 | AG59: 3363.709242 | AI59: 1969 | AJ59: ='Compile Data'!C577 -> 2990.951347 | AK59: ='Compile Data'!C578 -> 3004.248684 | AL59: ='Compile Data'!C579 -> 3354 | AM59: ='Compile Data'!C580 -> 3358 | AN59: ='Compile Data'!C581 -> 3480 | AO59: ='Compile Data'!C582 -> 4030 | AP59: ='Compile Data'!C583 -> 4434 | AQ59: ='Compile Data'!C584 -> 4552 | AR59: ='Compile Data'!C585 -> 4454.317347 | AS59: ='Compile Data'!C586 -> 4061.333066 | AT59: ='Compile Data'!C587 -> 3700 | AU59: ='Compile Data'!C588 -> 3400 | AW59: 3768.269485 | AX59: 3755.352818 | AY59: 3734.904204 | BA59: 3341.344872 | BB59: 3585.222178 | BC59: 3129.402361 | BD59: 3318.041447 | BE59: 4245.789668 | BF59: 4047.912603 | BG59: 3363.7639
A60: 1925-09-30 | B60: =INDIRECT(CONCATENATE("'",B$1,"'!",B$4,(YEAR($A60)-1921)*12+MONTH($A60)+3+IF(ISNUMBER(FIND("PRV",B$6)),1,0)))*IF(AND(B$3>0,TRIM(B$9)="CFS"),Conv_Flags!$C60,1) -> 2948.702318 | C60: =INDIRECT(CONCATENATE("'",C$1,"'!",C$4,(YEAR($A60)-1921)*12+MONTH($A60)+3+IF(ISNUMBER(FIND("PRV",C$6)),1,0)))*IF(AND(C$3>0,TRIM(C$9)="CFS"),Conv_Flags!$C60,1) -> 2941.476085 | I60: 1970 | J60: =B589 -> 3250 | K60: =B590 -> 3182.255454 | L60: =B591 -> 3317 | M60: =B592 -> 3252 | N60: =B593 -> 3431 | O60: =B594 -> 4098.263027 | P60: =B595 -> 4185.339959 | Q60: =B596 -> 4112.171883 | R60: =B597 -> 3759.895994 | S60: =B598 -> 3119.071959 | T60: =B599 -> 2761.352844 | U60: =B600 -> 2623.223965 | W60: 3362.977002 | X60: 3424.589925 | Y60: 3424.297924 | AA60: 3371.277394 | AB60: 2746.680786 | AC60: 3268.813864 | AD60: 3291.875909 | AE60: 3997.805717 | AF60: 3252.00468 | AG60: 2715.677383 | AI60: 1970 | AJ60: ='Compile Data'!C589 -> 3250 | AK60: ='Compile Data'!C590 -> 3182.583402 | AL60: ='Compile Data'!C591 -> 3317 | AM60: ='Compile Data'!C592 -> 3252 | AN60: ='Compile Data'!C593 -> 3431 | AO60: ='Compile Data'!C594 -> 4098.263026 | AP60: ='Compile Data'!C595 -> 4185.339958 | AQ60: ='Compile Data'!C596 -> 4112.07079 | AR60: ='Compile Data'!C597 -> 3754.130568 | AS60: ='Compile Data'!C598 -> 3113.335246 | AT60: ='Compile Data'!C599 -> 2754.025624 | AU60: ='Compile Data'!C600 -> 2599.951949 | AW60: 3356.005808 | AX60: 3417.618731 | AY60: 3420.80838 | BA60: 3371.342983 | BB60: 2732.068806 | BC60: 3268.895851 | BD60: 3291.930567 | BE60: 3997.059764 | BF60: 3244.375702 | BG60: 2696.334084
A61: 1925-10-31 | B61: =INDIRECT(CONCATENATE("'",B$1,"'!",B$4,(YEAR($A61)-1921)*12+MONTH($A61)+3+IF(ISNUMBER(FIND("PRV",B$6)),1,0)))*IF(AND(B$3>0,TRIM(B$9)="CFS"),Conv_Flags!$C61,1) -> 2847.875863 | C61: =INDIRECT(CONCATENATE("'",C$1,"'!",C$4,(YEAR($A61)-1921)*12+MONTH($A61)+3+IF(ISNUMBER(FIND("PRV",C$6)),1,0)))*IF(AND(C$3>0,TRIM(C$9)="CFS"),Conv_Flags!$C61,1) -> 2836.694452 | I61: 1971 | J61: =B601 -> 2591.859137 | K61: =B602 -> 3102.545251 | L61: =B603 -> 3319 | M61: =B604 -> 3515 | N61: =B605 -> 3907.355076 | O61: =B606 -> 3873 | P61: =B607 -> 4518.140388 | Q61: =B608 -> 4552 | R61: =B609 -> 4500 | S61: =B610 -> 3994.646761 | T61: =B611 -> 3700 | U61: =B612 -> 3400 | W61: 3812.717752 | X61: 3835.271496 | Y61: 3747.795551 | AA61: 3415.265979 | AB61: 3574.107793 | AC61: 3020.629093 | AD61: 3446.316721 | AE61: 4286.704482 | AF61: 4042.66169 | AG61: 3362.911801 | AI61: 1971 | AJ61: ='Compile Data'!C601 -> 2571.122441 | AK61: ='Compile Data'!C602 -> 3081.830097 | AL61: ='Compile Data'!C603 -> 3319 | AM61: ='Compile Data'!C604 -> 3515 | AN61: ='Compile Data'!C605 -> 3907.355076 | AO61: ='Compile Data'!C606 -> 3873 | AP61: ='Compile Data'!C607 -> 4518.140388 | AQ61: ='Compile Data'!C608 -> 4552 | AR61: ='Compile Data'!C609 -> 4500 | AS61: ='Compile Data'!C610 -> 3989.60628 | AT61: ='Compile Data'!C611 -> 3694.056816 | AU61: ='Compile Data'!C612 -> 3400 | AW61: 3809.277771 | AX61: 3831.831514 | AY61: 3743.425925 | BA61: 3409.049279 | BB61: 3571.286652 | BC61: 3007.357128 | BD61: 3442.864196 | BE61: 4286.704482 | BF61: 4039.915774 | BG61: 3359.228932
A62: 1925-11-30 | B62: =INDIRECT(CONCATENATE("'",B$1,"'!",B$4,(YEAR($A62)-1921)*12+MONTH($A62)+3+IF(ISNUMBER(FIND("PRV",B$6)),1,0)))*IF(AND(B$3>0,TRIM(B$9)="CFS"),Conv_Flags!$C62,1) -> 2789.349162 | C62: =INDIRECT(CONCATENATE("'",C$1,"'!",C$4,(YEAR($A62)-1921)*12+MONTH($A62)+3+IF(ISNUMBER(FIND("PRV",C$6)),1,0)))*IF(AND(C$3>0,TRIM(C$9)="CFS"),Conv_Flags!$C62,1) -> 2774.930657 | I62: 1972 | J62: =B613 -> 3250 | K62: =B614 -> 3177.470804 | L62: =B615 -> 3365 | M62: =B616 -> 3714 | N62: =B617 -> 3979 | O62: =B618 -> 4249 | P62: =B619 -> 4552 | Q62: =B620 -> 4461.576954 | R62: =B621 -> 3915.194092 | S62: =B622 -> 3235.965145 | T62: =B623 -> 2915.261334 | U62: =B624 -> 2896.071909 | W62: 3627.438573 | X62: 3585.35524 | Y62: 3642.54502 | AA62: 3596.994161 | AB62: 2978.637513 | AC62: 3337.367701 | AD62: 3552.411801 | AE62: 4302.4185 | AF62: 3436.311251 | AG62: 2997.632007 | AI62: 1972 | AJ62: ='Compile Data'!C613 -> 3250 | AK62: ='Compile Data'!C614 -> 3161.316774 | AL62: ='Compile Data'!C615 -> 3350.857915 | AM62: ='Compile Data'!C616 -> 3714 | AN62: ='Compile Data'!C617 -> 3979 | AO62: ='Compile Data'!C618 -> 4249 | AP62: ='Compile Data'!C619 -> 4551.511387 | AQ62: ='Compile Data'!C620 -> 4455.084209 | AR62: ='Compile Data'!C621 -> 3990.438678 | AS62: ='Compile Data'!C622 -> 3310.90662 | AT62: ='Compile Data'!C623 -> 2971.509852 | AU62: ='Compile Data'!C624 -> 2980.430578 | AW62: 3655.34017 | AX62: 3613.256837 | AY62: 3663.671335 | BA62: 3590.934938 | BB62: 3046.498032 | BC62: 3329.793672 | BD62: 3545.005434 | BE62: 4310.078734 | BF62: 3497.653136 | BG62: 3052.128739
A63: 1925-12-31 | B63: =INDIRECT(CONCATENATE("'",B$1,"'!",B$4,(YEAR($A63)-1921)*12+MONTH($A63)+3+IF(ISNUMBER(FIND("PRV",B$6)),1,0)))*IF(AND(B$3>0,TRIM(B$9)="CFS"),Conv_Flags!$C63,1) -> 2826.990367 | C63: =INDIRECT(CONCATENATE("'",C$1,"'!",C$4,(YEAR($A63)-1921)*12+MONTH($A63)+3+IF(ISNUMBER(FIND("PRV",C$6)),1,0)))*IF(AND(C$3>0,TRIM(C$9)="CFS"),Conv_Flags!$C63,1) -> 2799.291518 | I63: 1973 | J63: =B625 -> 3013.193445 | K63: =B626 -> 3252 | L63: =B627 -> 3346 | M63: =B628 -> 3552 | N63: =B629 -> 3636 | O63: =B630 -> 4162 | P63: =B631 -> 4516.005107 | Q63: =B632 -> 4552 | R63: =B633 -> 4058.213304 | S63: =B634 -> 3405.374435 | T63: =B635 -> 3193.369276 | U63: =B636 -> 3073.654823 | W63: 3650.065343 | X63: 3629.898676 | Y63: 3646.650866 | AA63: 3474.719344 | AB63: 3178.764967 | AC63: 3208.80735 | AD63: 3447.333333 | AE63: 4269.27794 | AF63: 3617.446107 | AG63: 3143.168876 | AI63: 1973 | AJ63: ='Compile Data'!C625 -> 3064.200714 | AK63: ='Compile Data'!C626 -> 3252 | AL63: ='Compile Data'!C627 -> 3346 | AM63: ='Compile Data'!C628 -> 3552 | AN63: ='Compile Data'!C629 -> 3636 | AO63: ='Compile Data'!C630 -> 4162 | AP63: ='Compile Data'!C631 -> 4516.005107 | AQ63: ='Compile Data'!C632 -> 4552 | AR63: ='Compile Data'!C633 -> 4121.011056 | AS63: ='Compile Data'!C634 -> 3472.820364 | AT63: ='Compile Data'!C635 -> 3264.572303 | AU63: ='Compile Data'!C636 -> 3169.417039 | AW63: 3682.598342 | AX63: 3662.431676 | AY63: 3675.668882 | BA63: 3479.820071 | BB63: 3261.192214 | BC63: 3232.104001 | BD63: 3447.333333 | BE63: 4277.127659 | BF63: 3679.778061 | BG63: 3218.019143
A64: 1926-01-31 | B64: =INDIRECT(CONCATENATE("'",B$1,"'!",B$4,(YEAR($A64)-1921)*12+MONTH($A64)+3+IF(ISNUMBER(FIND("PRV",B$6)),1,0)))*IF(AND(B$3>0,TRIM(B$9)="CFS"),Conv_Flags!$C64,1) -> 2864.312111 | C64: =INDIRECT(CONCATENATE("'",C$1,"'!",C$4,(YEAR($A64)-1921)*12+MONTH($A64)+3+IF(ISNUMBER(FIND("PRV",C$6)),1,0)))*IF(AND(C$3>0,TRIM(C$9)="CFS"),Conv_Flags!$C64,1) -> 2836.630767 | I64: 1974 | J64: =B637 -> 3133.167166 | K64: =B638 -> 3252 | L64: =B639 -> 3267 | M64: =B640 -> 3252 | N64: =B641 -> 3694 | O64: =B642 -> 3416 | P64: =B643 -> 4289 | Q64: =B644 -> 4552 | R64: =B645 -> 4473.881639 | S64: =B646 -> 4150 | T64: =B647 -> 3700 | U64: =B648 -> 3400 | W64: 3724.997245 | X64: 3760.658946 | Y64: 3714.920734 | AA64: 3347.916717 | AB64: 3600 | AC64: 3203.748644 | AD64: 3330.666667 | AE64: 4085.235205 | AF64: 4074.97041 | AG64: 3362.616972 | AI64: 1974 | AJ64: ='Compile Data'!C637 -> 3226.354238 | AK64: ='Compile Data'!C638 -> 3252 | AL64: ='Compile Data'!C639 -> 3267 | AM64: ='Compile Data'!C640 -> 3252 | AN64: ='Compile Data'!C641 -> 3694 | AO64: ='Compile Data'!C642 -> 3416 | AP64: ='Compile Data'!C643 -> 4289 | AQ64: ='Compile Data'!C644 -> 4552 | AR64: ='Compile Data'!C645 -> 4473.88915 | AS64: ='Compile Data'!C646 -> 4150 | AT64: ='Compile Data'!C647 -> 3700 | AU64: ='Compile Data'!C648 -> 3400 | AW64: 3725.062634 | AX64: 3761.339441 | AY64: 3722.686949 | BA64: 3357.235424 | BB64: 3600 | BC64: 3239.015689 | BD64: 3330.666667 | BE64: 4085.236144 | BF64: 4074.972288 | BG64: 3362.681758
A65: 1926-02-28 | B65: =INDIRECT(CONCATENATE("'",B$1,"'!",B$4,(YEAR($A65)-1921)*12+MONTH($A65)+3+IF(ISNUMBER(FIND("PRV",B$6)),1,0)))*IF(AND(B$3>0,TRIM(B$9)="CFS"),Conv_Flags!$C65,1) -> 3606.928592 | C65: =INDIRECT(CONCATENATE("'",C$1,"'!",C$4,(YEAR($A65)-1921)*12+MONTH($A65)+3+IF(ISNUMBER(FIND("PRV",C$6)),1,0)))*IF(AND(C$3>0,TRIM(C$9)="CFS"),Conv_Flags!$C65,1) -> 3579.272992 | I65: 1975 | J65: =B649 -> 3250 | K65: =B650 -> 3175.701831 | L65: =B651 -> 3347.383473 | M65: =B652 -> 3437.940403 | N65: =B653 -> 3936 | O65: =B654 -> 3756 | P65: =B655 -> 4415.829314 | Q65: =B656 -> 4552 | R65: =B657 -> 4469.77497 | S65: =B658 -> 4150 | T65: =B659 -> 3700 | U65: =B660 -> 3400 | W65: 3798.61073 | X65: 3783.092398 | Y65: 3799.219166 | AA65: 3480.005141 | AB65: 3600 | AC65: 3298.013876 | AD65: 3447.058264 | AE65: 4231.6792 | AF65: 4073.943742 | AG65: 3375.333333 | AI65: 1975 | AJ65: ='Compile Data'!C649 -> 3250 | AK65: ='Compile Data'!C650 -> 3176.090546 | AL65: ='Compile Data'!C651 -> 3347.771918 | AM65: ='Compile Data'!C652 -> 3445.321674 | AN65: ='Compile Data'!C653 -> 3936 | AO65: ='Compile Data'!C654 -> 3756 | AP65: ='Compile Data'!C655 -> 4415.829314 | AQ65: ='Compile Data'!C656 -> 4552 | AR65: ='Compile Data'!C657 -> 4469.905806 | AS65: ='Compile Data'!C658 -> 4150 | AT65: ='Compile Data'!C659 -> 3700 | AU65: ='Compile Data'!C660 -> 3400 | AW65: 3799.682383 | AX65: 3780.633019 | AY65: 3799.909938 | BA65: 3481.636827 | BB65: 3600 | BC65: 3299.130825 | BD65: 3449.712955 | BE65: 4231.695554 | BF65: 4073.976451 | BG65: 3375.333333
A66: 1926-03-31 | B66: =INDIRECT(CONCATENATE("'",B$1,"'!",B$4,(YEAR($A66)-1921)*12+MONTH($A66)+3+IF(ISNUMBER(FIND("PRV",B$6)),1,0)))*IF(AND(B$3>0,TRIM(B$9)="CFS"),Conv_Flags!$C66,1) -> 3674.508669 | C66: =INDIRECT(CONCATENATE("'",C$1,"'!",C$4,(YEAR($A66)-1921)*12+MONTH($A66)+3+IF(ISNUMBER(FIND("PRV",C$6)),1,0)))*IF(AND(C$3>0,TRIM(C$9)="CFS"),Conv_Flags!$C66,1) -> 3625.28527 | I66: 1976 | J66: =B661 -> 3250 | K66: =B662 -> 3252 | L66: =B663 -> 3263.784075 | M66: =B664 -> 3517.236672 | N66: =B665 -> 3670.483739 | O66: =B666 -> 3902.716753 | P66: =B667 -> 4093.276074 | Q66: =B668 -> 3858.33648 | R66: =B669 -> 3363.575024 | S66: =B670 -> 3038.482511 | T66: =B671 -> 2943.964347 | U66: =B672 -> 2911.589934 | W66: 3250.033816 | X66: 2993.222547 | Y66: 3422.120467 | AA66: 3455.972573 | AB66: 2909.855092 | AC66: 3306.100603 | AD66: 3414.087539 | AE66: 3842.839672 | AF66: 3182.746272 | AG66: 2795.867984 | AI66: 1976 | AJ66: ='Compile Data'!C661 -> 3250 | AK66: ='Compile Data'!C662 -> 3252 | AL66: ='Compile Data'!C663 -> 3269.131803 | AM66: ='Compile Data'!C664 -> 3499.888142 | AN66: ='Compile Data'!C665 -> 3652.841168 | AO66: ='Compile Data'!C666 -> 3885.095945 | AP66: ='Compile Data'!C667 -> 4075.679659 | AQ66: ='Compile Data'!C668 -> 3857.635797 | AR66: ='Compile Data'!C669 -> 3419.49059 | AS66: ='Compile Data'!C670 -> 3080.694721 | AT66: ='Compile Data'!C671 -> 2968.143609 | AU66: ='Compile Data'!C672 -> 2930.86822 | AW66: 3261.242693 | AX66: 3055.322003 | AY66: 3428.455805 | BA66: 3448.281817 | BB66: 2939.51758 | BC66: 3305.268969 | BD66: 3407.146843 | BE66: 3838.64432 | BF66: 3215.645232 | BG66: 2820.65755
A67: 1926-04-30 | B67: =INDIRECT(CONCATENATE("'",B$1,"'!",B$4,(YEAR($A67)-1921)*12+MONTH($A67)+3+IF(ISNUMBER(FIND("PRV",B$6)),1,0)))*IF(AND(B$3>0,TRIM(B$9)="CFS"),Conv_Flags!$C67,1) -> 3994.581807 | C67: =INDIRECT(CONCATENATE("'",C$1,"'!",C$4,(YEAR($A67)-1921)*12+MONTH($A67)+3+IF(ISNUMBER(FIND("PRV",C$6)),1,0)))*IF(AND(C$3>0,TRIM(C$9)="CFS"),Conv_Flags!$C67,1) -> 3945.473204 | I67: 1977 | J67: =B673 -> 2709.539481 | K67: =B674 -> 2588.984728 | L67: =B675 -> 2402.22005 | M67: =B676 -> 2083.688815 | N67: =B677 -> 2022.296366 | O67: =B678 -> 1902.11966 | P67: =B679 -> 1692.158487 | Q67: =B680 -> 1546.886223 | R67: =B681 -> 1059.040832 | S67: =B682 -> 622.3189837 | T67: =B683 -> 550 | U67: =B684 -> 550 | W67: 1174.418953 | X67: 1369.038265 | Y67: 1644.104469 | AA67: 2280.603906 | AB67: 562.053164 | AC67: 2549.595909 | AD67: 2263.849804 | AE67: 1670.458242 | AF67: 819.9507317 | AG67: 550 | AI67: 1977 | AJ67: ='Compile Data'!C673 -> 2758.3871 | AK67: ='Compile Data'!C674 -> 2577.291054 | AL67: ='Compile Data'!C675 -> 2428.896312 | AM67: ='Compile Data'!C676 -> 2408.454677 | AN67: ='Compile Data'!C677 -> 2273.226353 | AO67: ='Compile Data'!C678 -> 2081.312796 | AP67: ='Compile Data'!C679 -> 1822.278134 | AQ67: ='Compile Data'!C680 -> 1674.808421 | AR67: ='Compile Data'!C681 -> 1151.315691 | AS67: ='Compile Data'!C682 -> 650.0625283 | AT67: ='Compile Data'!C683 -> 550 | AU67: ='Compile Data'!C684 -> 550 | AW67: 1269.607236 | AX67: 1416.340615 | AY67: 1743.836089 | BA67: 2421.543669 | BB67: 566.6770881 | BC67: 2608.558979 | BD67: 2420.869897 | BE67: 1822.667593 | BF67: 865.9456075 | BG67: 550
A68: 1926-05-31 | B68: =INDIRECT(CONCATENATE("'",B$1,"'!",B$4,(YEAR($A68)-1921)*12+MONTH($A68)+3+IF(ISNUMBER(FIND("PRV",B$6)),1,0)))*IF(AND(B$3>0,TRIM(B$9)="CFS"),Conv_Flags!$C68,1) -> 3722.811726 | C68: =INDIRECT(CONCATENATE("'",C$1,"'!",C$4,(YEAR($A68)-1921)*12+MONTH($A68)+3+IF(ISNUMBER(FIND("PRV",C$6)),1,0)))*IF(AND(C$3>0,TRIM(C$9)="CFS"),Conv_Flags!$C68,1) -> 3676.226513 | I68: 1978 | J68: =B685 -> 550 | K68: =B686 -> 550 | L68: =B687 -> 964.5180688 | M68: =B688 -> 2874.416927 | N68: =B689 -> 3567 | O68: =B690 -> 4000 | P68: =B691 -> 4552 | Q68: =B692 -> 4552 | R68: =B693 -> 4288.79814 | S68: =B694 -> 3884.577778 | T68: =B695 -> 3570.339534 | U68: =B696 -> 3400 | W68: 3688.219719 | X68: 3727.410613 | Y68: 3062.804204 | AA68: 2046.186999 | AB68: 3510.778084 | AC68: 944.1816331 | AD68: 1965.811665 | AE68: 4257.974767 | AF68: 3929.928863 | AG68: 3341.756751 | AI68: 1978 | AJ68: ='Compile Data'!C685 -> 550 | AK68: ='Compile Data'!C686 -> 550 | AL68: ='Compile Data'!C687 -> 973.8282264 | AM68: ='Compile Data'!C688 -> 2875.481578 | AN68: ='Compile Data'!C689 -> 3567 | AO68: ='Compile Data'!C690 -> 4000 | AP68: ='Compile Data'!C691 -> 4552 | AQ68: ='Compile Data'!C692 -> 4552 | AR68: ='Compile Data'!C693 -> 4287.67567 | AS68: ='Compile Data'!C694 -> 3933.52474 | AT68: ='Compile Data'!C695 -> 3617.898891 | AU68: ='Compile Data'!C696 -> 3400 | AW68: 3699.749651 | AX68: 3748.691999 | AY68: 3071.617425 | BA68: 2048.261961 | BB68: 3534.484334 | BC68: 946.6422538 | BD68: 1969.269935 | BE68: 4257.834459 | BF68: 3953.774825 | BG68: 3346.51334
A69: 1926-06-30 | B69: =INDIRECT(CONCATENATE("'",B$1,"'!",B$4,(YEAR($A69)-1921)*12+MONTH($A69)+3+IF(ISNUMBER(FIND("PRV",B$6)),1,0)))*IF(AND(B$3>0,TRIM(B$9)="CFS"),Conv_Flags!$C69,1) -> 3302.500087 | C69: =INDIRECT(CONCATENATE("'",C$1,"'!",C$4,(YEAR($A69)-1921)*12+MONTH($A69)+3+IF(ISNUMBER(FIND("PRV",C$6)),1,0)))*IF(AND(C$3>0,TRIM(C$9)="CFS"),Conv_Flags!$C69,1) -> 3228.971109 | I69: 1979 | J69: =B697 -> 3239.411658 | K69: =B698 -> 3201.377652 | L69: =B699 -> 3128.714936 | M69: =B700 -> 3285.235346 | N69: =B701 -> 3626.472307 | O69: =B702 -> 4132.787754 | P69: =B703 -> 4394.946371 | Q69: =B704 -> 4508.745132 | R69: =B705 -> 3897.050699 | S69: =B706 -> 3304.044688 | T69: =B707 -> 3083.995707 | U69: =B708 -> 3050.150695 | W69: 3586.649725 | X69: 3579.007421 | Y69: 3571.077745 | AA69: 3385.57999 | AB69: 3118.284249 | AC69: 3228.03048 | AD69: 3275.958421 | AE69: 4199.56019 | AF69: 3516.134752 | AG69: 3118.505518 | AI69: 1979 | AJ69: ='Compile Data'!C697 -> 3237.58348 | AK69: ='Compile Data'!C698 -> 3186.01419 | AL69: ='Compile Data'!C699 -> 3187.817259 | AM69: ='Compile Data'!C700 -> 3344.299004 | AN69: ='Compile Data'!C701 -> 3685.490756 | AO69: ='Compile Data'!C702 -> 4191.73766 | AP69: ='Compile Data'!C703 -> 4453.804246 | AQ69: ='Compile Data'!C704 -> 4552 | AR69: ='Compile Data'!C705 -> 3943.10478 | AS69: ='Compile Data'!C706 -> 3335.473878 | AT69: ='Compile Data'!C707 -> 3118.014762 | AU69: ='Compile Data'!C708 -> 3083.802148 | AW69: 3625.378015 | AX69: 3607.895535 | AY69: 3609.928514 | BA69: 3423.656356 | BB69: 3152.81944 | BC69: 3245.891108 | BD69: 3322.622912 | BE69: 4252.959919 | BF69: 3553.623624 | BG69: 3148.872824
A70: 1926-07-31 | B70: =INDIRECT(CONCATENATE("'",B$1,"'!",B$4,(YEAR($A70)-1921)*12+MONTH($A70)+3+IF(ISNUMBER(FIND("PRV",B$6)),1,0)))*IF(AND(B$3>0,TRIM(B$9)="CFS"),Conv_Flags!$C70,1) -> 2822.427538 | C70: =INDIRECT(CONCATENATE("'",C$1,"'!",C$4,(YEAR($A70)-1921)*12+MONTH($A70)+3+IF(ISNUMBER(FIND("PRV",C$6)),1,0)))*IF(AND(C$3>0,TRIM(C$9)="CFS"),Conv_Flags!$C70,1) -> 2793.610093 | I70: 1980 | J70: =B709 -> 3137.368006 | K70: =B710 -> 3252 | L70: =B711 -> 3367 | M70: =B712 -> 3528 | N70: =B713 -> 3292 | O70: =B714 -> 4016.863027 | P70: =B715 -> 4231.696574 | Q70: =B716 -> 4249.416654 | R70: =B717 -> 4032.329642 | S70: =B718 -> 3645.091724 | T70: =B719 -> 3348.024605 | U70: =B720 -> 3380.445567 | W70: 3596.354687 | X70: 3643.949892 | Y70: 3623.352983 | AA70: 3403.223103 | AB70: 3389.763428 | AC70: 3261.360838 | AD70: 3389 | AE70: 4040.035269 | AF70: 3710.094271 | AG70: 3267.445539 | AI70: 1980 | AJ70: ='Compile Data'!C709 -> 3177.808941 | AK70: ='Compile Data'!C710 -> 3252 | AL70: ='Compile Data'!C711 -> 3367 | AM70: ='Compile Data'!C712 -> 3528 | AN70: ='Compile Data'!C713 -> 3292 | AO70: ='Compile Data'!C714 -> 4016.863027 | AP70: ='Compile Data'!C715 -> 4231.696574 | AQ70: ='Compile Data'!C716 -> 4247.451906 | AR70: ='Compile Data'!C717 -> 4029.290733 | AS70: ='Compile Data'!C718 -> 3741.11106 | AT70: ='Compile Data'!C719 -> 3443.858339 | AU70: ='Compile Data'!C720 -> 3400 | AW70: 3619.617077 | AX70: 3672.254948 | AY70: 3643.923382 | BA70: 3407.267197 | BB70: 3446.47129 | BC70: 3275.677504 | BD70: 3389 | BE70: 4039.164218 | BF70: 3759.496521 | BG70: 3299.253658
A71: 1926-08-31 | B71: =INDIRECT(CONCATENATE("'",B$1,"'!",B$4,(YEAR($A71)-1921)*12+MONTH($A71)+3+IF(ISNUMBER(FIND("PRV",B$6)),1,0)))*IF(AND(B$3>0,TRIM(B$9)="CFS"),Conv_Flags!$C71,1) -> 2561.465964 | C71: =INDIRECT(CONCATENATE("'",C$1,"'!",C$4,(YEAR($A71)-1921)*12+MONTH($A71)+3+IF(ISNUMBER(FIND("PRV",C$6)),1,0)))*IF(AND(C$3>0,TRIM(C$9)="CFS"),Conv_Flags!$C71,1) -> 2541.989215 | I71: 1981 | J71: =B721 -> 3236.548501 | K71: =B722 -> 3022.660494 | L71: =B723 -> 3173.179451 | M71: =B724 -> 3491.968632 | N71: =B725 -> 3899.173832 | O71: =B726 -> 4256 | P71: =B727 -> 4492.345784 | Q71: =B728 -> 4286.139571 | R71: =B729 -> 3625.952971 | S71: =B730 -> 3155.881882 | T71: =B731 -> 2873.447394 | U71: =B732 -> 2856.777449 | W71: 3531.55972 | X71: 3511.131182 | Y71: 3530.839663 | AA71: 3466.651332 | AB71: 2921.560116 | AC71: 3217.148886 | AD71: 3375.355082 | AE71: 4199.262189 | AF71: 3306.685189 | AG71: 2944.176758 | AI71: 1981 | AJ71: ='Compile Data'!C721 -> 3250 | AK71: ='Compile Data'!C722 -> 3051.663606 | AL71: ='Compile Data'!C723 -> 3203.469678 | AM71: ='Compile Data'!C724 -> 3522.238234 | AN71: ='Compile Data'!C725 -> 3929.416225 | AO71: ='Compile Data'!C726 -> 4256 | AP71: ='Compile Data'!C727 -> 4492.345785 | AQ71: ='Compile Data'!C728 -> 4285.244972 | AR71: ='Compile Data'!C729 -> 3715.550933 | AS71: ='Compile Data'!C730 -> 3235.589886 | AT71: ='Compile Data'!C731 -> 2944.345677 | AU71: ='Compile Data'!C732 -> 2916.372016 | AW71: 3563.888629 | AX71: 3538.417424 | AY71: 3566.853084 | BA71: 3491.957549 | BB71: 2983.097516 | BC71: 3241.5631 | BD71: 3405.415942 | BE71: 4214.018584 | BF71: 3374.073747 | BG71: 2985.368226
A72: 1926-09-30 | B72: =INDIRECT(CONCATENATE("'",B$1,"'!",B$4,(YEAR($A72)-1921)*12+MONTH($A72)+3+IF(ISNUMBER(FIND("PRV",B$6)),1,0)))*IF(AND(B$3>0,TRIM(B$9)="CFS"),Conv_Flags!$C72,1) -> 2485.555125 | C72: =INDIRECT(CONCATENATE("'",C$1,"'!",C$4,(YEAR($A72)-1921)*12+MONTH($A72)+3+IF(ISNUMBER(FIND("PRV",C$6)),1,0)))*IF(AND(C$3>0,TRIM(C$9)="CFS"),Conv_Flags!$C72,1) -> 2471.676765 | I72: 1982 | J72: =B733 -> 2913.029127 | K72: =B734 -> 3252 | L72: =B735 -> 3276 | M72: =B736 -> 3616 | N72: =B737 -> 3530 | O72: =B738 -> 3953 | P72: =B739 -> 4094 | Q72: =B740 -> 4541.695488 | R72: =B741 -> 4500 | S72: =B742 -> 4150 | T72: =B743 -> 3700 | U72: =B744 -> 3400 | W72: 3776.224624 | X72: 3732.641291 | Y72: 3743.810385 | AA72: 3421.402913 | AB72: 3600 | AC72: 3169.354463 | AD72: 3427.666667 | AE72: 4150.923872 | AF72: 4080.211936 | AG72: 3375.333333 | AI72: 1982 | AJ72: ='Compile Data'!C733 -> 2941.559823 | AK72: ='Compile Data'!C734 -> 3252 | AL72: ='Compile Data'!C735 -> 3276 | AM72: ='Compile Data'!C736 -> 3616 | AN72: ='Compile Data'!C737 -> 3530 | AO72: ='Compile Data'!C738 -> 3953 | AP72: ='Compile Data'!C739 -> 4094 | AQ72: ='Compile Data'!C740 -> 4540.169334 | AR72: ='Compile Data'!C741 -> 4500 | AS72: ='Compile Data'!C742 -> 4150 | AT72: ='Compile Data'!C743 -> 3700 | AU72: ='Compile Data'!C744 -> 3400 | AW72: 3776.097444 | AX72: 3732.514111 | AY72: 3746.060763 | BA72: 3424.255982 | BB72: 3600 | BC72: 3183.936458 | BD72: 3427.666667 | BE72: 4150.542333 | BF72: 4080.021167 | BG72: 3375.333333
A73: 1926-10-31 | B73: =INDIRECT(CONCATENATE("'",B$1,"'!",B$4,(YEAR($A73)-1921)*12+MONTH($A73)+3+IF(ISNUMBER(FIND("PRV",B$6)),1,0)))*IF(AND(B$3>0,TRIM(B$9)="CFS"),Conv_Flags!$C73,1) -> 2393.646371 | C73: =INDIRECT(CONCATENATE("'",C$1,"'!",C$4,(YEAR($A73)-1921)*12+MONTH($A73)+3+IF(ISNUMBER(FIND("PRV",C$6)),1,0)))*IF(AND(C$3>0,TRIM(C$9)="CFS"),Conv_Flags!$C73,1) -> 2376.566568 | I73: 1983 | J73: =B745 -> 3250 | K73: =B746 -> 3252 | L73: =B747 -> 3328 | M73: =B748 -> 3371 | N73: =B749 -> 3252 | O73: =B750 -> 3417 | P73: =B751 -> 4074 | Q73: =B752 -> 4552 | R73: =B753 -> 4500 | S73: =B754 -> 4150 | T73: =B755 -> 3700 | U73: =B756 -> 3400 | W73: 3683.583333 | X73: 3769.583333 | Y73: 3687.166667 | AA73: 3307.3 | AB73: 3600 | AC73: 3303.875 | AD73: 3317 | AE73: 3979.75 | AF73: 4081.5 | AG73: 3375.333333 | AI73: 1983 | AJ73: ='Compile Data'!C745 -> 3250 | AK73: ='Compile Data'!C746 -> 3252 | AL73: ='Compile Data'!C747 -> 3328 | AM73: ='Compile Data'!C748 -> 3371 | AN73: ='Compile Data'!C749 -> 3252 | AO73: ='Compile Data'!C750 -> 3417 | AP73: ='Compile Data'!C751 -> 4074 | AQ73: ='Compile Data'!C752 -> 4552 | AR73: ='Compile Data'!C753 -> 4500 | AS73: ='Compile Data'!C754 -> 4150 | AT73: ='Compile Data'!C755 -> 3700 | AU73: ='Compile Data'!C756 -> 3400 | AW73: 3683.583333 | AX73: 3769.583333 | AY73: 3687.166667 | BA73: 3307.3 | BB73: 3600 | BC73: 3303.875 | BD73: 3317 | BE73: 3979.75 | BF73: 4081.5 | BG73: 3375.333333
A74: 1926-11-30 | B74: =INDIRECT(CONCATENATE("'",B$1,"'!",B$4,(YEAR($A74)-1921)*12+MONTH($A74)+3+IF(ISNUMBER(FIND("PRV",B$6)),1,0)))*IF(AND(B$3>0,TRIM(B$9)="CFS"),Conv_Flags!$C74,1) -> 2857.825118 | C74: =INDIRECT(CONCATENATE("'",C$1,"'!",C$4,(YEAR($A74)-1921)*12+MONTH($A74)+3+IF(ISNUMBER(FIND("PRV",C$6)),1,0)))*IF(AND(C$3>0,TRIM(C$9)="CFS"),Conv_Flags!$C74,1) -> 2840.769444 | I74: 1984 | J74: =B757 -> 3250 | K74: =B758 -> 3252 | L74: =B759 -> 3285 | M74: =B760 -> 3650 | N74: =B761 -> 4005 | O74: =B762 -> 4246 | P74: =B763 -> 4552 | Q74: =B764 -> 4552 | R74: =B765 -> 4280.434218 | S74: =B766 -> 3612.167283 | T74: =B767 -> 3381.03204 | U74: =B768 -> 3234.924705 | W74: 3781.05405 | X74: 3747.740863 | Y74: 3775.04652 | AA74: 3588 | AB74: 3348.528521 | AC74: 3328 | AD74: 3521.166667 | AE74: 4373.179277 | AF74: 3791.773973 | AG74: 3266.177026 | AI74: 1984 | AJ74: ='Compile Data'!C757 -> 3250 | AK74: ='Compile Data'!C758 -> 3252 | AL74: ='Compile Data'!C759 -> 3285 | AM74: ='Compile Data'!C760 -> 3650 | AN74: ='Compile Data'!C761 -> 4005 | AO74: ='Compile Data'!C762 -> 4246 | AP74: ='Compile Data'!C763 -> 4552 | AQ74: ='Compile Data'!C764 -> 4552 | AR74: ='Compile Data'!C765 -> 4272.247689 | AS74: ='Compile Data'!C766 -> 3604.0158 | AT74: ='Compile Data'!C767 -> 3371.987248 | AU74: ='Compile Data'!C768 -> 3234.318584 | AW74: 3778.83788 | AX74: 3745.524692 | AY74: 3772.880777 | BA74: 3588 | BB74: 3343.852117 | BC74: 3328 | BD74: 3521.166667 | BE74: 4372.155961 | BF74: 3785.352507 | BG74: 3264.265815
A75: 1926-12-31 | B75: =INDIRECT(CONCATENATE("'",B$1,"'!",B$4,(YEAR($A75)-1921)*12+MONTH($A75)+3+IF(ISNUMBER(FIND("PRV",B$6)),1,0)))*IF(AND(B$3>0,TRIM(B$9)="CFS"),Conv_Flags!$C75,1) -> 3347 | C75: =INDIRECT(CONCATENATE("'",C$1,"'!",C$4,(YEAR($A75)-1921)*12+MONTH($A75)+3+IF(ISNUMBER(FIND("PRV",C$6)),1,0)))*IF(AND(C$3>0,TRIM(C$9)="CFS"),Conv_Flags!$C75,1) -> 3342.101175 | I75: 1985 | J75: =B769 -> 3247.090352 | K75: =B770 -> 3252 | L75: =B771 -> 3360 | M75: =B772 -> 3541.570877 | N75: =B773 -> 3713.670878 | O75: =B774 -> 3925.371042 | P75: =B775 -> 4151.76364 | Q75: =B776 -> 3833.706295 | R75: =B777 -> 3316.717906 | S75: =B778 -> 2983.15516 | T75: =B779 -> 2694.487121 | U75: =B780 -> 2706.550106 | W75: 3262.602007 | X75: 3216.508524 | Y75: 3393.840282 | AA75: 3490.694491 | AB75: 2751.272396 | AC75: 3311.834536 | AD75: 3461.468772 | AE75: 3856.508842 | AF75: 3066.122097 | AG75: 2706.51657 | AI75: 1985 | AJ75: ='Compile Data'!C769 -> 3246.485237 | AK75: ='Compile Data'!C770 -> 3252 | AL75: ='Compile Data'!C771 -> 3360 | AM75: ='Compile Data'!C772 -> 3541.570874 | AN75: ='Compile Data'!C773 -> 3713.670875 | AO75: ='Compile Data'!C774 -> 3925.371039 | AP75: ='Compile Data'!C775 -> 4151.763637 | AQ75: ='Compile Data'!C776 -> 3898.94302 | AR75: ='Compile Data'!C777 -> 3374.483493 | AS75: ='Compile Data'!C778 -> 3054.287595 | AT75: ='Compile Data'!C779 -> 2756.642289 | AU75: ='Compile Data'!C780 -> 2773.870623 | AW75: 3306.327252 | AX75: 3265.928447 | AY75: 3420.75739 | BA75: 3490.633978 | BB75: 2817.000499 | BC75: 3311.607492 | BD75: 3461.468771 | BE75: 3880.03872 | BF75: 3130.45505 | BG75: 2772.148073
A76: 1927-01-31 | B76: =INDIRECT(CONCATENATE("'",B$1,"'!",B$4,(YEAR($A76)-1921)*12+MONTH($A76)+3+IF(ISNUMBER(FIND("PRV",B$6)),1,0)))*IF(AND(B$3>0,TRIM(B$9)="CFS"),Conv_Flags!$C76,1) -> 3668 | C76: =INDIRECT(CONCATENATE("'",C$1,"'!",C$4,(YEAR($A76)-1921)*12+MONTH($A76)+3+IF(ISNUMBER(FIND("PRV",C$6)),1,0)))*IF(AND(C$3>0,TRIM(C$9)="CFS"),Conv_Flags!$C76,1) -> 3668 | I76: 1986 | J76: =B781 -> 2722.404762 | K76: =B782 -> 2686.702559 | L76: =B783 -> 2875.123739 | M76: =B784 -> 3450.119958 | N76: =B785 -> 3252 | O76: =B786 -> 3534 | P76: =B787 -> 4030.376596 | Q76: =B788 -> 4025.584797 | R76: =B789 -> 3728.831774 | S76: =B790 -> 3407.909233 | T76: =B791 -> 3090.43351 | U76: =B792 -> 3194.291821 | W76: =IF(W$11="AVG",AVERAGE(M76:U76,J77:L77),SUM(M76:U76,J77:L77)) -> 3409.403964 | X76: =IF(X$11="AVG",AVERAGE(O76:U76,J77:N77),SUM(O76:U76,J77:N77)) -> 3395.938573 | Y76: =IF(Y$11="AVG",AVERAGE(J76:U76),SUM(J76:U76)) -> 3333.148229 | AA76: 3078.429727 | AB76: 3194.040039 | AC76: 2840.641523 | AD76: =IF(AD$11="AVG",IF(AC$1="INST-VAL",AVERAGE(K76:M76,L76:N76),AVERAGE(L76:N76)),SUM(L76:N76)) -> 3098.198325 | AE76: =IF(AE$11="AVG",IF(AC$1="INST-VAL",AVERAGE(N76:Q76,O76:R76),AVERAGE(O76:R76)),SUM(O76:R76)) -> 3770.09432 | AF76: =IF(AF$11="AVG",IF(AC$1="INST-VAL",AVERAGE(Q76:T76,R76:U76),AVERAGE(R76:U76)),SUM(R76:U76)) -> 3459.278207 | AG76: =IF(AG$11="AVG",IF(AC$1="INST-VAL",AVERAGE(T76:U76,J77,U76,J77:K77),AVERAGE(U76,J77:K77)),SUM(U76,J77:K77)) -> 3149.198294 | AI76: 1986 | AJ76: ='Compile Data'!C781 -> 2786.689575 | AK76: ='Compile Data'!C782 -> 2755.12575 | AL76: ='Compile Data'!C783 -> 2943.508255 | AM76: ='Compile Data'!C784 -> 3518.456087 | AN76: ='Compile Data'!C785 -> 3252 | AO76: ='Compile Data'!C786 -> 3534 | AP76: ='Compile Data'!C787 -> 4030.376593 | AQ76: ='Compile Data'!C788 -> 4023.927715 | AR76: ='Compile Data'!C789 -> 3726.827092 | AS76: ='Compile Data'!C790 -> 3339.116891 | AT76: ='Compile Data'!C791 -> 3046.042207 | AU76: ='Compile Data'!C792 -> 3151.875357 | AW76: =IF(AW$11="AVG",AVERAGE(AM76:AU76,AJ77:AL77),SUM(AM76:AU76,AJ77:AL77)) -> 3391.782477 | AX76: =IF(AX$11="AVG",AVERAGE(AO76:AU76,AJ77:AN77),SUM(AO76:AU76,AJ77:AN77)) -> 3364.814262 | AY76: =IF(AY$11="AVG",AVERAGE(AJ76:AU76),SUM(AJ76:AU76)) -> 3342.328794 | BA76: 3125.886976 | BB76: 3145.440567 | BC76: =IF(BC$11="AVG",IF(BC$1="INST-VAL",AVERAGE(AU75,AJ76:AL76,AJ76:AM76),AVERAGE(AJ76:AM76)),SUM(AJ76:AM76)) -> 2907.871734 | BD76: =IF(BD$11="AVG",IF(BC$1="INST-VAL",AVERAGE(AK76:AM76,AL76:AN76),AVERAGE(AL76:AN76)),SUM(AL76:AN76)) -> 3155.175739 | BE76: =IF(BE$11="AVG",IF(BC$1="INST-VAL",AVERAGE(AN76:AQ76,AO76:AR76),AVERAGE(AO76:AR76)),SUM(AO76:AR76)) -> 3769.429464 | BF76: =IF(BF$11="AVG",IF(BC$1="INST-VAL",AVERAGE(AQ76:AT76,AR76:AU76),AVERAGE(AR76:AU76)),SUM(AR76:AU76)) -> 3424.971931 | BG76: =IF(BG$11="AVG",IF(BC$1="INST-VAL",AVERAGE(AT76:AU76,AJ77,AU76,AJ77:AK77),AVERAGE(AU76,AJ77:AK77)),SUM(AU76,AJ77:AK77)) -> 3106.165569
A77: 1927-02-28 | B77: =INDIRECT(CONCATENATE("'",B$1,"'!",B$4,(YEAR($A77)-1921)*12+MONTH($A77)+3+IF(ISNUMBER(FIND("PRV",B$6)),1,0)))*IF(AND(B$3>0,TRIM(B$9)="CFS"),Conv_Flags!$C77,1) -> 3462 | C77: =INDIRECT(CONCATENATE("'",C$1,"'!",C$4,(YEAR($A77)-1921)*12+MONTH($A77)+3+IF(ISNUMBER(FIND("PRV",C$6)),1,0)))*IF(AND(C$3>0,TRIM(C$9)="CFS"),Conv_Flags!$C77,1) -> 3462 | I77: 1987 | J77: =B793 -> 3186.880337 | K77: =B794 -> 3042.411939 | L77: =B795 -> 2970.007602 | M77: =B796 -> 3104.437481 | N77: =B797 -> 3436.09778 | O77: =B798 -> 4161.666041 | P77: =B799 -> 4121.320589 | Q77: =B800 -> 3764.460688 | R77: =B801 -> 3155.953861 | S77: =B802 -> 2701.545975 | T77: =B803 -> 2412.563918 | U77: =B804 -> 2294.639765 | W77: 3002.14181 | X77: 2979.76438 | Y77: 3195.998831 | AA77: 3245.445598 | AB77: =IF(AB$11="AVG",IF(AC$1="INST-VAL",AVERAGE(S77:U77,T77:U77,J78),AVERAGE(T77:U77,J78)),SUM(T77:U77,J78)) -> 2377.749321 | AC77: 3087.166132 | AD77: 3104.566647 | AE77: 3835.868285 | AF77: 2824.903495 | AG77: 2234.814564 | AI77: 1987 | AJ77: ='Compile Data'!C793 -> 3137.691383 | AK77: ='Compile Data'!C794 -> 3011.817726 | AL77: ='Compile Data'!C795 -> 2929.258675 | AM77: ='Compile Data'!C796 -> 3057.568268 | AN77: ='Compile Data'!C797 -> 3389.269238 | AO77: ='Compile Data'!C798 -> 4114.898333 | AP77: ='Compile Data'!C799 -> 4080.897022 | AQ77: ='Compile Data'!C800 -> 3780.960991 | AR77: ='Compile Data'!C801 -> 3155.997814 | AS77: ='Compile Data'!C802 -> 2695.574731 | AT77: ='Compile Data'!C803 -> 2402.497277 | AU77: ='Compile Data'!C804 -> 2287.08767 | AW77: 2984.678602 | AX77: 2969.037847 | AY77: 3170.293261 | BA77: 3202.841753 | BB77: =IF(BB$11="AVG",IF(BC$1="INST-VAL",AVERAGE(AS77:AU77,AT77:AU77,AJ78),AVERAGE(AT77:AU77,AJ78)),SUM(AT77:AU77,AJ78)) -> 2369.423281 | BC77: 3045.872399 | BD77: 3062.456808 | BE77: 3812.347468 | BF77: 2822.023538 | BG77: 2226.630176
A78: 1927-03-31 | B78: =INDIRECT(CONCATENATE("'",B$1,"'!",B$4,(YEAR($A78)-1921)*12+MONTH($A78)+3+IF(ISNUMBER(FIND("PRV",B$6)),1,0)))*IF(AND(B$3>0,TRIM(B$9)="CFS"),Conv_Flags!$C78,1) -> 4085.375156 | C78: =INDIRECT(CONCATENATE("'",C$1,"'!",C$4,(YEAR($A78)-1921)*12+MONTH($A78)+3+IF(ISNUMBER(FIND("PRV",C$6)),1,0)))*IF(AND(C$3>0,TRIM(C$9)="CFS"),Conv_Flags!$C78,1) -> 4085.375156 | I78: 1988 | J78: =B805 -> 2150.542589 | K78: =B806 -> 2105.958759 | L78: =B807 -> 2616.514281 | M78: =B808 -> 3046.326996 | N78: =B809 -> 3225.679104 | O78: =B810 -> 3375.457968 | P78: =B811 -> 3491.526879 | Q78: =B812 -> 3379.160731 | R78: =B813 -> 3005.858203 | S78: =B814 -> 2633.491255 | T78: =B815 -> 2323.095953 | U78: =B816 -> 2241.526142 | W78: 2784.506173 | X78: 2678.098233 | Y78: 2799.594905 | AA78: =IF(AA$11="AVG",IF(AC$1="INST-VAL",AVERAGE(J78:N78,K78:O78),AVERAGE(K78:O78)),SUM(K78:O78)) -> 2751.495884 | AB78: 2304.790463 | AC78: 2385.874752 | AD78: 2776.220069 | AE78: 3340.478558 | AF78: 2693.197212 | AG78: 2199.734458 | AI78: 1988 | AJ78: ='Compile Data'!C805 -> 2141.795062 | AK78: ='Compile Data'!C806 -> 2099.518315 | AL78: ='Compile Data'!C807 -> 2610.078497 | AM78: ='Compile Data'!C808 -> 3039.895197 | AN78: ='Compile Data'!C809 -> 3219.253258 | AO78: ='Compile Data'!C810 -> 3369.041669 | AP78: ='Compile Data'!C811 -> 3485.125758 | AQ78: ='Compile Data'!C812 -> 3377.330916 | AR78: ='Compile Data'!C813 -> 3005.346802 | AS78: ='Compile Data'!C814 -> 2632.129757 | AT78: ='Compile Data'!C815 -> 2341.258177 | AU78: ='Compile Data'!C816 -> 2265.049691 | AW78: 2787.412125 | AX78: 2679.803164 | AY78: 2798.818592 | BA78: =IF(BA$11="AVG",IF(BC$1="INST-VAL",AVERAGE(AJ78:AN78,AK78:AO78),AVERAGE(AK78:AO78)),SUM(AK78:AO78)) -> 2744.832726 | BB78: 2325.334992 | BC78: 2378.720827 | BD78: 2769.786493 | BE78: 3335.949593 | BF78: 2699.98126 | BG78: 2223.514316
A79: 1927-04-30 | B79: =INDIRECT(CONCATENATE("'",B$1,"'!",B$4,(YEAR($A79)-1921)*12+MONTH($A79)+3+IF(ISNUMBER(FIND("PRV",B$6)),1,0)))*IF(AND(B$3>0,TRIM(B$9)="CFS"),Conv_Flags!$C79,1) -> 4552 | C79: =INDIRECT(CONCATENATE("'",C$1,"'!",C$4,(YEAR($A79)-1921)*12+MONTH($A79)+3+IF(ISNUMBER(FIND("PRV",C$6)),1,0)))*IF(AND(C$3>0,TRIM(C$9)="CFS"),Conv_Flags!$C79,1) -> 4552 | I79: 1989 | J79: =B817 -> 2066.007335 | K79: =B818 -> 2260.243838 | L79: =B819 -> 2365.699673 | M79: =B820 -> 2466.786592 | N79: =B821 -> 2528.324224 | O79: =B822 -> 3841 | P79: =B823 -> 4293.398405 | Q79: =B824 -> 3907.916715 | R79: =B825 -> 3550.108754 | S79: =B826 -> 3082.522669 | T79: =B827 -> 2780.748762 | U79: =B828 -> 2815.786385 | W79: 3155.869029 | X79: 3252.78636 | Y79: 2996.545279 | AA79: 2514.911599 | AB79: 2869.268988 | AC79: 2261.526804 | AD79: 2408.923432 | AE79: 3770.382902 | AF79: 3193.807934 | AG79: 2860.469514 | AI79: 1989 | AJ79: ='Compile Data'!C817 -> 2107.264456 | AK79: ='Compile Data'!C818 -> 2255.199426 | AL79: ='Compile Data'!C819 -> 2352.050393 | AM79: ='Compile Data'!C820 -> 2453.146924 | AN79: ='Compile Data'!C821 -> 2514.694 | AO79: ='Compile Data'!C822 -> 3841 | AP79: ='Compile Data'!C823 -> 4293.398405 | AQ79: ='Compile Data'!C824 -> 3874.715436 | AR79: ='Compile Data'!C825 -> 3553.048019 | AS79: ='Compile Data'!C826 -> 3076.28623 | AT79: ='Compile Data'!C827 -> 2759.048873 | AU79: ='Compile Data'!C828 -> 2795.001944 | AW79: 3142.934081 | AX79: 3234.531865 | AY79: 2989.571175 | BA79: 2509.844594 | BB79: 2852.02381 | BC79: 2268.403146 | BD79: 2396.714676 | BE79: 3760.746213 | BF79: 3180.810453 | BG79: 2847.318872
A80: 1927-05-31 | B80: =INDIRECT(CONCATENATE("'",B$1,"'!",B$4,(YEAR($A80)-1921)*12+MONTH($A80)+3+IF(ISNUMBER(FIND("PRV",B$6)),1,0)))*IF(AND(B$3>0,TRIM(B$9)="CFS"),Conv_Flags!$C80,1) -> 4552 | C80: =INDIRECT(CONCATENATE("'",C$1,"'!",C$4,(YEAR($A80)-1921)*12+MONTH($A80)+3+IF(ISNUMBER(FIND("PRV",C$6)),1,0)))*IF(AND(C$3>0,TRIM(C$9)="CFS"),Conv_Flags!$C80,1) -> 4552 | I80: 1990 | J80: =B829 -> 2940.020967 | K80: =B830 -> 2870.453618 | L80: =B831 -> 2793.361252 | M80: =B832 -> 3032.630319 | N80: =B833 -> 3125.488468 | O80: =B834 -> 3390.157316 | P80: =B835 -> 3376.510651 | Q80: =B836 -> 3526.058998 | R80: =B837 -> 3261.607231 | S80: =B838 -> 2863.122716 | T80: =B839 -> 2502.994461 | U80: =B840 -> 2455.330152 | W80: 2841.078648 | X80: 2656.404601 | Y80: 3011.478012 | AA80: 2997.40456 | AB80: 2516.124076 | AC80: 2882.011047 | AD80: 2941.320871 | AE80: 3371.568704 | AF80: 2904.604746 | AG80: 2370.651104 | AI80: 1990 | AJ80: ='Compile Data'!C829 -> 2927.754999 | AK80: ='Compile Data'!C830 -> 2879.350471 | AL80: ='Compile Data'!C831 -> 2747.763676 | AM80: ='Compile Data'!C832 -> 2987.062979 | AN80: ='Compile Data'!C833 -> 3079.951344 | AO80: ='Compile Data'!C834 -> 3344.684816 | AP80: ='Compile Data'!C835 -> 3346.467943 | AQ80: ='Compile Data'!C836 -> 3496.790148 | AR80: ='Compile Data'!C837 -> 3246.294946 | AS80: ='Compile Data'!C838 -> 2856.393479 | AT80: ='Compile Data'!C839 -> 2492.312268 | AU80: ='Compile Data'!C840 -> 2443.65591 | AW80: 2819.144678 | AX80: 2632.676449 | AY80: 2987.373582 | BA80: 2966.069676 | BB80: 2505.450369 | BC80: 2861.475402 | BD80: 2904.825854 | BE80: 3337.766513 | BF80: 2891.305931 | BG80: 2358.249351
A81: 1927-06-30 | B81: =INDIRECT(CONCATENATE("'",B$1,"'!",B$4,(YEAR($A81)-1921)*12+MONTH($A81)+3+IF(ISNUMBER(FIND("PRV",B$6)),1,0)))*IF(AND(B$3>0,TRIM(B$9)="CFS"),Conv_Flags!$C81,1) -> 4346.343112 | C81: =INDIRECT(CONCATENATE("'",C$1,"'!",C$4,(YEAR($A81)-1921)*12+MONTH($A81)+3+IF(ISNUMBER(FIND("PRV",C$6)),1,0)))*IF(AND(C$3>0,TRIM(C$9)="CFS"),Conv_Flags!$C81,1) -> 4343.806168 | I81: 1991 | J81: =B841 -> 2316.972514 | K81: =B842 -> 2176.306833 | L81: =B843 -> 2065.764116 | M81: =B844 -> 1956.269573 | N81: =B845 -> 1985.760648 | O81: =B846 -> 2410.26077 | P81: =B847 -> 2579.225928 | Q81: =B848 -> 2497.605494 | R81: =B849 -> 2239.194574 | S81: =B850 -> 1935.642271 | T81: =B851 -> 1720.459681 | U81: =B852 -> 1655.45554 | W81: 1955.489494 | X81: 1925.599641 | Y81: 2128.243162 | AA81: 2109.543563 | AB81: 1716.587009 | AC81: 2191.210831 | AD81: 2034.35581 | AE81: 2399.892451 | AF81: 1992.956761 | AG81: 1615.686239 | AI81: 1991 | AJ81: ='Compile Data'!C841 -> 2304.372377 | AK81: ='Compile Data'!C842 -> 2161.127264 | AL81: ='Compile Data'!C843 -> 2070.622667 | AM81: ='Compile Data'!C844 -> 1920.05901 | AN81: ='Compile Data'!C845 -> 1909.336562 | AO81: ='Compile Data'!C846 -> 2333.926975 | AP81: ='Compile Data'!C847 -> 2503.062251 | AQ81: ='Compile Data'!C848 -> 2424.674472 | AR81: ='Compile Data'!C849 -> 2172.7665 | AS81: ='Compile Data'!C850 -> 1863.660578 | AT81: ='Compile Data'!C851 -> 1658.308214 | AU81: ='Compile Data'!C852 -> 1593.807539 | AW81: 1889.707437 | AX81: 1859.09156 | AY81: 2076.310367 | BA81: 2076.059036 | BB81: 1651.886202 | BC81: 2179.494942 | BD81: 2008.637863 | BE81: 2325.678807 | BF81: 1925.994074 | BG81: 1551.948184
A82: 1927-07-31 | B82: =INDIRECT(CONCATENATE("'",B$1,"'!",B$4,(YEAR($A82)-1921)*12+MONTH($A82)+3+IF(ISNUMBER(FIND("PRV",B$6)),1,0)))*IF(AND(B$3>0,TRIM(B$9)="CFS"),Conv_Flags!$C82,1) -> 3826.505321 | C82: =INDIRECT(CONCATENATE("'",C$1,"'!",C$4,(YEAR($A82)-1921)*12+MONTH($A82)+3+IF(ISNUMBER(FIND("PRV",C$6)),1,0)))*IF(AND(C$3>0,TRIM(C$9)="CFS"),Conv_Flags!$C82,1) -> 3818.640197 | I82: 1992 | J82: =B853 -> 1612.049339 | K82: =B854 -> 1438.647995 | L82: =B855 -> 1435.302115 | M82: =B856 -> 1470.064786 | N82: =B857 -> 2113.287192 | O82: =B858 -> 2556.434765 | P82: =B859 -> 2806.161489 | Q82: =B860 -> 2485.820606 | R82: =B861 -> 2023.964193 | S82: =B862 -> 1595.295764 | T82: =B863 -> 1086.982688 | U82: =B864 -> 1075.549655 | W82: 1684.344899 | X82: 1738.016923 | Y82: 1808.296716 | AA82: 1708.308828 | AB82: 1155.612579 | AC82: 1512.189903 | AD82: 1560.444832 | AE82: 2479.260638 | AF82: 1621.731944 | AG82: 1023.851552 | AI82: 1992 | AJ82: ='Compile Data'!C853 -> 1543.42513 | AK82: ='Compile Data'!C854 -> 1378.91555 | AL82: ='Compile Data'!C855 -> 1374.546459 | AM82: ='Compile Data'!C856 -> 1409.354465 | AN82: ='Compile Data'!C857 -> 2052.650585 | AO82: ='Compile Data'!C858 -> 2495.899889 | AP82: ='Compile Data'!C859 -> 2745.784368 | AQ82: ='Compile Data'!C860 -> 2447.16194 | AR82: ='Compile Data'!C861 -> 1997.937064 | AS82: ='Compile Data'!C862 -> 1579.230975 | AT82: ='Compile Data'!C863 -> 1083.406453 | AU82: ='Compile Data'!C864 -> 1083.067398 | AW82: 1657.64771 | AX82: 1720.987405 | AY82: 1765.948356 | BA82: 1647.025914 | BB82: 1154.575804 | BC82: 1449.617035 | BD82: 1499.894664 | BE82: 2428.535005 | BF82: 1606.42229 | BG82: 1026.317077
A83: 1927-08-31 | B83: =INDIRECT(CONCATENATE("'",B$1,"'!",B$4,(YEAR($A83)-1921)*12+MONTH($A83)+3+IF(ISNUMBER(FIND("PRV",B$6)),1,0)))*IF(AND(B$3>0,TRIM(B$9)="CFS"),Conv_Flags!$C83,1) -> 3432.308029 | C83: =INDIRECT(CONCATENATE("'",C$1,"'!",C$4,(YEAR($A83)-1921)*12+MONTH($A83)+3+IF(ISNUMBER(FIND("PRV",C$6)),1,0)))*IF(AND(C$3>0,TRIM(C$9)="CFS"),Conv_Flags!$C83,1) -> 3424.604831 | I83: 1993 | J83: =B865 -> 1013.315024 | K83: =B866 -> 878.3972636 | L83: =B867 -> 1106.86536 | M83: =B868 -> 1756.096145 | N83: =B869 -> 2471.320118 | O83: =B870 -> 3928.507108 | P83: =B871 -> 4477.009963 | Q83: =B872 -> 4552 | R83: =B873 -> 4500 | S83: =B874 -> 3897.074391 | T83: =B875 -> 3610.257053 | U83: =B876 -> 3364.769226 | W83: 3491.393991 | X83: 3702.11936 | Y83: 2962.967638 | AA83: 1736.71799 | AB83: 3516.187825 | AC83: 1103.600137 | AD83: 1512.606732 | AE83: 4110.794282 | AF83: 3991.429014 | AG83: 3309.072709 | AI83: 1993 | AJ83: ='Compile Data'!C865 -> 1015.276148 | AK83: ='Compile Data'!C866 -> 877.8089163 | AL83: ='Compile Data'!C867 -> 1104.19432 | AM83: ='Compile Data'!C868 -> 1753.427739 | AN83: ='Compile Data'!C869 -> 2468.653647 | AO83: ='Compile Data'!C870 -> 3925.844239 | AP83: ='Compile Data'!C871 -> 4480.296957 | AQ83: ='Compile Data'!C872 -> 4552 | AR83: ='Compile Data'!C873 -> 4500 | AS83: ='Compile Data'!C874 -> 3935.953327 | AT83: ='Compile Data'!C875 -> 3652.461874 | AU83: ='Compile Data'!C876 -> 3400 | AW83: 3502.327057 | AX83: 3704.47363 | AY83: 2972.159764 | BA83: 1734.928963 | BB83: 3548.479512 | BC83: 1103.881738 | BD83: 1510.284447 | BE83: 4110.617005 | BF83: 4016.1038 | BG83: 3331.508202
A84: 1927-09-30 | B84: =INDIRECT(CONCATENATE("'",B$1,"'!",B$4,(YEAR($A84)-1921)*12+MONTH($A84)+3+IF(ISNUMBER(FIND("PRV",B$6)),1,0)))*IF(AND(B$3>0,TRIM(B$9)="CFS"),Conv_Flags!$C84,1) -> 3118.202071 | C84: =INDIRECT(CONCATENATE("'",C$1,"'!",C$4,(YEAR($A84)-1921)*12+MONTH($A84)+3+IF(ISNUMBER(FIND("PRV",C$6)),1,0)))*IF(AND(C$3>0,TRIM(C$9)="CFS"),Conv_Flags!$C84,1) -> 3110.331678 | I84: 1994 | J84: =B877 -> 3250 | K84: =B878 -> 3014.640747 | L84: =B879 -> 3075.053137 | M84: =B880 -> 3265.893912 | N84: =B881 -> 3490.226782 | O84: =B882 -> 3663.300928 | P84: =B883 -> 3726.01867 | Q84: =B884 -> 3635.703181 | R84: =B885 -> 3188.900354 | S84: =B886 -> 2742.699584 | T84: =B887 -> 2415.491948 | U84: =B888 -> 2421.589233 | W84: 2941.429494 | X84: 2961.302778 | Y84: 3157.459873 | AA84: 3260.493008 | AB84: 2444.398183 | AC84: 3163.756363 | AD84: 3197.793605 | AE84: 3591.146587 | AF84: 2843.934523 | AG84: 2330.736712 | AI84: 1994 | AJ84: ='Compile Data'!C877 -> 3250 | AK84: ='Compile Data'!C878 -> 3036.587341 | AL84: ='Compile Data'!C879 -> 3072.699558 | AM84: ='Compile Data'!C880 -> 3211.733207 | AN84: ='Compile Data'!C881 -> 3436.107051 | AO84: ='Compile Data'!C882 -> 3609.261609 | AP84: ='Compile Data'!C883 -> 3673.082269 | AQ84: ='Compile Data'!C884 -> 3585.335637 | AR84: ='Compile Data'!C885 -> 3166.494896 | AS84: ='Compile Data'!C886 -> 2700.974274 | AT84: ='Compile Data'!C887 -> 2373.589005 | AU84: ='Compile Data'!C888 -> 2395.812525 | AW84: 2894.993218 | AX84: 2923.889871 | AY84: 3125.973114 | BA84: 3237.351593 | BB84: 2408.061438 | BC84: 3166.288376 | BD84: 3173.593321 | BE84: 3542.245122 | BF84: 2807.908064 | BG84: 2292.890486
A85: 1927-10-31 | B85: =INDIRECT(CONCATENATE("'",B$1,"'!",B$4,(YEAR($A85)-1921)*12+MONTH($A85)+3+IF(ISNUMBER(FIND("PRV",B$6)),1,0)))*IF(AND(B$3>0,TRIM(B$9)="CFS"),Conv_Flags!$C85,1) -> 2994.37753 | C85: =INDIRECT(CONCATENATE("'",C$1,"'!",C$4,(YEAR($A85)-1921)*12+MONTH($A85)+3+IF(ISNUMBER(FIND("PRV",C$6)),1,0)))*IF(AND(C$3>0,TRIM(C$9)="CFS"),Conv_Flags!$C85,1) -> 2985.984707 | I85: 1995 | J85: =B889 -> 2249.527149 | K85: =B890 -> 2226.695559 | L85: =B891 -> 2271.106629 | M85: =B892 -> 3252.100098 | N85: =B893 -> 3742.5 | O85: =B894 -> 3416.5 | P85: =B895 -> 4216.799805 | Q85: =B896 -> 4552 | R85: =B897 -> 4500 | S85: =B898 -> 4150 | T85: =B899 -> 3700 | U85: =B900 -> 3400 | W85: 3718.757433 | X85: 3738.007433 | Y85: 3473.102437 | AA85: 2865.083172 | AB85: 3600 | AC85: 2396.043501 | AD85: 2835.934835 | AE85: 4076.637451 | AF85: 4081.5 | AG85: 3346.264865 | AI85: 1995 | AJ85: ='Compile Data'!C889 -> 2208.591294 | AK85: ='Compile Data'!C890 -> 2174.946274 | AL85: ='Compile Data'!C891 -> 2203.990569 | AM85: ='Compile Data'!C892 -> 3252.100098 | AN85: ='Compile Data'!C893 -> 3742.5 | AO85: ='Compile Data'!C894 -> 3416.5 | AP85: ='Compile Data'!C895 -> 4216.799805 | AQ85: ='Compile Data'!C896 -> 4552 | AR85: ='Compile Data'!C897 -> 4500 | AS85: ='Compile Data'!C898 -> 4150 | AT85: ='Compile Data'!C899 -> 3700 | AU85: ='Compile Data'!C900 -> 3400 | AW85: 3719.828863 | AX85: 3739.078863 | AY85: 3459.78567 | BA85: 2837.216517 | BB85: 3600 | BC85: 2352.871112 | BD85: 2804.937935 | BE85: 4076.637451 | BF85: 4081.5 | BG85: 3348.407726
A86: 1927-11-30 | B86: =INDIRECT(CONCATENATE("'",B$1,"'!",B$4,(YEAR($A86)-1921)*12+MONTH($A86)+3+IF(ISNUMBER(FIND("PRV",B$6)),1,0)))*IF(AND(B$3>0,TRIM(B$9)="CFS"),Conv_Flags!$C86,1) -> 3252 | C86: =INDIRECT(CONCATENATE("'",C$1,"'!",C$4,(YEAR($A86)-1921)*12+MONTH($A86)+3+IF(ISNUMBER(FIND("PRV",C$6)),1,0)))*IF(AND(C$3>0,TRIM(C$9)="CFS"),Conv_Flags!$C86,1) -> 3252 | I86: 1996 | J86: =B901 -> 3250 | K86: =B902 -> 3077.589191 | L86: =B903 -> 3367.600098 | M86: =B904 -> 3722.5 | N86: =B905 -> 3503.100098 | O86: =B906 -> 4009.899902 | P86: =B907 -> 4487.238398 | Q86: =B908 -> 4481.076566 | R86: =B909 -> 4396.238907 | S86: =B910 -> 3955.926649 | T86: =B911 -> 3700 | U86: =B912 -> 3400 | W86: 3784.173385 | X86: 3768.781722 | Y86: 3779.264151 | AA86: 3460.147868 | AB86: 3567.654441 | AC86: 3314.109822 | AD86: 3460.148247 | AE86: 4231.971092 | AF86: 3998.17596 | AG86: 3375.333333 | AI86: 1996 | AJ86: ='Compile Data'!C901 -> 3250 | AK86: ='Compile Data'!C902 -> 3090.446357 | AL86: ='Compile Data'!C903 -> 3367.600098 | AM86: ='Compile Data'!C904 -> 3722.5 | AN86: ='Compile Data'!C905 -> 3503.100098 | AO86: ='Compile Data'!C906 -> 4009.899902 | AP86: ='Compile Data'!C907 -> 4487.238398 | AQ86: ='Compile Data'!C908 -> 4478.045266 | AR86: ='Compile Data'!C909 -> 4393.03542 | AS86: ='Compile Data'!C910 -> 3948.246713 | AT86: ='Compile Data'!C911 -> 3684.772988 | AU86: ='Compile Data'!C912 -> 3400 | AW86: 3781.744907 | AX86: 3766.353244 | AY86: 3777.907103 | BA86: 3462.719301 | BB86: 3561.298782 | BC86: 3317.324114 | BD86: 3462.291108 | BE86: 4230.812831 | BF86: 3991.269438 | BG86: 3372.795498
A87: 1927-12-31 | B87: =INDIRECT(CONCATENATE("'",B$1,"'!",B$4,(YEAR($A87)-1921)*12+MONTH($A87)+3+IF(ISNUMBER(FIND("PRV",B$6)),1,0)))*IF(AND(B$3>0,TRIM(B$9)="CFS"),Conv_Flags!$C87,1) -> 3363 | C87: =INDIRECT(CONCATENATE("'",C$1,"'!",C$4,(YEAR($A87)-1921)*12+MONTH($A87)+3+IF(ISNUMBER(FIND("PRV",C$6)),1,0)))*IF(AND(C$3>0,TRIM(C$9)="CFS"),Conv_Flags!$C87,1) -> 3363 | I87: 1997 | J87: =B913 -> 3250 | K87: =B914 -> 3252 | L87: =B915 -> 3252.100098 | M87: =B916 -> 3252.100098 | N87: =B917 -> 3788.800049 | O87: =B918 -> 4009.574918 | P87: =B919 -> 4183.526185 | Q87: =B920 -> 3978.007633 | R87: =B921 -> 3726.339898 | S87: =B922 -> 3114.218616 | T87: =B923 -> 2936.311583 | U87: =B924 -> 2779.601712 | W87: 3365.163468 | X87: 3327.638463 | Y87: 3460.215066 | AA87: 3434.957541 | AB87: 2871.761798 | AC87: 3270.037537 | AD87: 3341.533407 | AE87: 3982.169677 | AF87: 3288.918692 | AG87: 2783.923515 | AI87: 1997 | AJ87: ='Compile Data'!C913 -> 3250 | AK87: ='Compile Data'!C914 -> 3252 | AL87: ='Compile Data'!C915 -> 3252.100098 | AM87: ='Compile Data'!C916 -> 3252.100098 | AN87: ='Compile Data'!C917 -> 3788.800049 | AO87: ='Compile Data'!C918 -> 4009.574918 | AP87: ='Compile Data'!C919 -> 4183.526186 | AQ87: ='Compile Data'!C920 -> 3977.770024 | AR87: ='Compile Data'!C921 -> 3666.214804 | AS87: ='Compile Data'!C922 -> 3102.069631 | AT87: ='Compile Data'!C923 -> 2925.076951 | AU87: ='Compile Data'!C924 -> 2750.269482 | AW87: 3348.320073 | AX87: 3310.795069 | AY87: 3450.791853 | BA87: 3434.957541 | BB87: 2851.209542 | BC87: 3270.037537 | BD87: 3341.533407 | BE87: 3974.594638 | BF87: 3264.345284 | BG87: 2757.344049
A88: 1928-01-31 | B88: =INDIRECT(CONCATENATE("'",B$1,"'!",B$4,(YEAR($A88)-1921)*12+MONTH($A88)+3+IF(ISNUMBER(FIND("PRV",B$6)),1,0)))*IF(AND(B$3>0,TRIM(B$9)="CFS"),Conv_Flags!$C88,1) -> 3655.371351 | C88: =INDIRECT(CONCATENATE("'",C$1,"'!",C$4,(YEAR($A88)-1921)*12+MONTH($A88)+3+IF(ISNUMBER(FIND("PRV",C$6)),1,0)))*IF(AND(C$3>0,TRIM(C$9)="CFS"),Conv_Flags!$C88,1) -> 3655.371351 | I88: 1998 | J88: =B925 -> 2684.525582 | K88: =B926 -> 2838.97492 | L88: =B927 -> 3089.980418 | M88: =B928 -> 3338.5 | N88: =B929 -> 3252.100098 | O88: =B930 -> 3503.899902 | P88: =B931 -> 4383.013987 | Q88: =B932 -> 4552 | R88: =B933 -> 4500 | S88: =B934 -> 4150 | T88: =B935 -> 3700 | U88: =B936 -> 3400 | W88: 3719.209499 | X88: 3770.801174 | Y88: 3616.082909 | AA88: 3122.753635 | AB88: 3600 | AC88: 2918.132944 | AD88: 3158.005976 | AE88: 4078.740984 | AF88: 4081.5 | AG88: 3375.333333 | AI88: 1998 | AJ88: ='Compile Data'!C925 -> 2654.494758 | AK88: ='Compile Data'!C926 -> 2809.458862 | AL88: ='Compile Data'!C927 -> 3060.485115 | AM88: ='Compile Data'!C928 -> 3338.5 | AN88: ='Compile Data'!C929 -> 3252.100098 | AO88: ='Compile Data'!C930 -> 3503.899902 | AP88: ='Compile Data'!C931 -> 4383.013987 | AQ88: ='Compile Data'!C932 -> 4552 | AR88: ='Compile Data'!C933 -> 4500 | AS88: ='Compile Data'!C934 -> 4150 | AT88: ='Compile Data'!C935 -> 3700 | AU88: ='Compile Data'!C936 -> 3400 | AW88: 3719.209499 | AX88: 3770.801174 | AY88: 3608.662727 | BA88: 3107.948281 | BB88: 3600 | BC88: 2892.205869 | BD88: 3143.254865 | BE88: 4078.740984 | BF88: 4081.5 | BG88: 3375.333333
A89: 1928-02-29 | B89: =INDIRECT(CONCATENATE("'",B$1,"'!",B$4,(YEAR($A89)-1921)*12+MONTH($A89)+3+IF(ISNUMBER(FIND("PRV",B$6)),1,0)))*IF(AND(B$3>0,TRIM(B$9)="CFS"),Conv_Flags!$C89,1) -> 4099 | C89: =INDIRECT(CONCATENATE("'",C$1,"'!",C$4,(YEAR($A89)-1921)*12+MONTH($A89)+3+IF(ISNUMBER(FIND("PRV",C$6)),1,0)))*IF(AND(C$3>0,TRIM(C$9)="CFS"),Conv_Flags!$C89,1) -> 4099 | I89: 1999 | J89: =B937 -> 3250 | K89: =B938 -> 3252 | L89: =B939 -> 3349 | M89: =B940 -> 3640.100098 | N89: =B941 -> 3569.600098 | O89: =B942 -> 3980 | P89: =B943 -> 4552.100098 | Q89: =B944 -> 4552 | R89: =B945 -> 4444.226474 | S89: =B946 -> 3871.57782 | T89: =B947 -> 3613.728087 | U89: =B948 -> 3400 | W89: 3768.190308 | X89: 3742.048625 | Y89: 3789.527723 | AA89: 3485.140039 | AB89: 3524.838999 | AC89: 3342.762512 | AD89: 3466.633382 | AE89: 4272.753346 | AF89: 3976.383095 | AG89: 3350.174983 | AI89: 1999 | AJ89: ='Compile Data'!C937 -> 3250 | AK89: ='Compile Data'!C938 -> 3252 | AL89: ='Compile Data'!C939 -> 3349 | AM89: ='Compile Data'!C940 -> 3640.100098 | AN89: ='Compile Data'!C941 -> 3569.600098 | AO89: ='Compile Data'!C942 -> 3980 | AP89: ='Compile Data'!C943 -> 4552.100098 | AQ89: ='Compile Data'!C944 -> 4552 | AR89: ='Compile Data'!C945 -> 4430.584109 | AS89: ='Compile Data'!C946 -> 3858.778768 | AT89: ='Compile Data'!C947 -> 3601.623027 | AU89: ='Compile Data'!C948 -> 3400 | AW89: 3767.46204 | AX89: 3741.320357 | AY89: 3786.315516 | BA89: 3485.140039 | BB89: 3518.670804 | BC89: 3342.762512 | BD89: 3466.633382 | BE89: 4271.04805 | BF89: 3966.746476 | BG89: 3350.587415
A90: 1928-03-31 | B90: =INDIRECT(CONCATENATE("'",B$1,"'!",B$4,(YEAR($A90)-1921)*12+MONTH($A90)+3+IF(ISNUMBER(FIND("PRV",B$6)),1,0)))*IF(AND(B$3>0,TRIM(B$9)="CFS"),Conv_Flags!$C90,1) -> 3965 | C90: =INDIRECT(CONCATENATE("'",C$1,"'!",C$4,(YEAR($A90)-1921)*12+MONTH($A90)+3+IF(ISNUMBER(FIND("PRV",C$6)),1,0)))*IF(AND(C$3>0,TRIM(C$9)="CFS"),Conv_Flags!$C90,1) -> 3965 | I90: 2000 | J90: =B949 -> 3250 | K90: =B950 -> 3187.321811 | L90: =B951 -> 3157.629209 | M90: =B952 -> 3614.5 | N90: =B953 -> 3281.5 | O90: =B954 -> 3975.600098 | P90: =B955 -> 4552.100098 | Q90: =B956 -> 4552 | R90: =B957 -> 4144.404439 | S90: =B958 -> 3506.175602 | T90: =B959 -> 3206.471621 | U90: =B960 -> 3120.092598 | W90: 3541.190951 | X90: 3475.107846 | Y90: 3628.982956 | AA90: 3370.750214 | AB90: 3199.016378 | AC90: 3275.550255 | AD90: 3335.513371 | AE90: 4198.163104 | AF90: 3673.27449 | AG90: 3057.382087 | AI90: 2000 | AJ90: ='Compile Data'!C949 -> 3250 | AK90: ='Compile Data'!C950 -> 3201.901464 | AL90: ='Compile Data'!C951 -> 3172.856816 | AM90: ='Compile Data'!C952 -> 3614.5 | AN90: ='Compile Data'!C953 -> 3281.5 | AO90: ='Compile Data'!C954 -> 3975.600098 | AP90: ='Compile Data'!C955 -> 4552.100098 | AQ90: ='Compile Data'!C956 -> 4552 | AR90: ='Compile Data'!C957 -> 4218.149669 | AS90: ='Compile Data'!C958 -> 3579.634529 | AT90: ='Compile Data'!C959 -> 3288.176044 | AU90: ='Compile Data'!C960 -> 3245.897454 | AW90: 3606.645145 | AX90: 3565.506878 | AY90: 3661.026348 | BA90: 3376.711666 | BB90: 3303.208357 | BC90: 3283.00207 | BD90: 3343.019183 | BE90: 4207.381257 | BF90: 3746.227242 | BG90: 3182.530932
A91: 1928-04-30 | B91: =INDIRECT(CONCATENATE("'",B$1,"'!",B$4,(YEAR($A91)-1921)*12+MONTH($A91)+3+IF(ISNUMBER(FIND("PRV",B$6)),1,0)))*IF(AND(B$3>0,TRIM(B$9)="CFS"),Conv_Flags!$C91,1) -> 4552 | C91: =INDIRECT(CONCATENATE("'",C$1,"'!",C$4,(YEAR($A91)-1921)*12+MONTH($A91)+3+IF(ISNUMBER(FIND("PRV",C$6)),1,0)))*IF(AND(C$3>0,TRIM(C$9)="CFS"),Conv_Flags!$C91,1) -> 4552 | I91: 2001 | J91: =B961 -> 3034.794227 | K91: =B962 -> 2828.047249 | L91: =B963 -> 2678.605481 | M91: =B964 -> 2834.503702 | N91: =B965 -> 3268.499034 | O91: =B966 -> 3763.411396 | P91: =B967 -> 3985.545201 | Q91: =B968 -> 3729.109665 | R91: =B969 -> 3200 | S91: =B970 -> 2903.754445 | T91: =B971 -> 2763.039778 | U91: =B972 -> 2713.126829 | W91: 3132.248657 | X91: 3265.365087 | Y91: 3141.869751 | AA91: 3001.751656 | AB91: 2714.300497 | AC91: 2879.686277 | AD91: 2853.794108 | AE91: 3678.078945 | AF91: 3021.978118 | AG91: 2618.533757 | AI91: 2001 | AJ91: ='Compile Data'!C961 -> 3171.468617 | AK91: ='Compile Data'!C962 -> 2972.277405 | AL91: ='Compile Data'!C963 -> 2828.437829 | AM91: ='Compile Data'!C964 -> 2984.235361 | AN91: ='Compile Data'!C965 -> 3418.105428 | AO91: ='Compile Data'!C966 -> 3912.767574 | AP91: ='Compile Data'!C967 -> 4134.674815 | AQ91: ='Compile Data'!C968 -> 3910.321529 | AR91: ='Compile Data'!C969 -> 3331.86344 | AS91: ='Compile Data'!C970 -> 3021.942102 | AT91: ='Compile Data'!C971 -> 2882.183043 | AU91: ='Compile Data'!C972 -> 2804.241425 | AW91: 3243.233494 | AX91: 3351.405087 | AY91: 3281.043214 | BA91: 3149.034824 | BB91: 2816.064448 | BC91: 3021.812565 | BD91: 3002.621536 | BE91: 3833.187088 | BF91: 3148.317515 | BG91: 2696.154784
A92: 1928-05-31 | B92: =INDIRECT(CONCATENATE("'",B$1,"'!",B$4,(YEAR($A92)-1921)*12+MONTH($A92)+3+IF(ISNUMBER(FIND("PRV",B$6)),1,0)))*IF(AND(B$3>0,TRIM(B$9)="CFS"),Conv_Flags!$C92,1) -> 4419.466749 | C92: =INDIRECT(CONCATENATE("'",C$1,"'!",C$4,(YEAR($A92)-1921)*12+MONTH($A92)+3+IF(ISNUMBER(FIND("PRV",C$6)),1,0)))*IF(AND(C$3>0,TRIM(C$9)="CFS"),Conv_Flags!$C92,1) -> 4483.277784 | I92: 2002 | J92: =B973 -> 2429.71532 | K92: =B974 -> 2662.478462 | L92: =B975 -> 3333.800049 | M92: =B976 -> 3678.399902 | N92: =B977 -> 4022 | O92: =B978 -> 4410.851591 | P92: =B979 -> 4552.100098 | Q92: =B980 -> 4365.634615 | R92: =B981 -> 3939.707883 | S92: =B982 -> 3420.749744 | T92: =B983 -> 3199.658289 | U92: =B984 -> 3137.341696 | W92: 3655.120794 | X92: 3625.603056 | Y92: 3596.036471 | AA92: 3423.392374 | AB92: 3174.741615 | AC92: 2905.439299 | AD92: 3451.479727 | AE92: 4327.360061 | AF92: 3577.901018 | AG92: 3045.291219 | AI92: 2002 | AJ92: ='Compile Data'!C973 -> 2501.595649 | AK92: ='Compile Data'!C974 -> 2683.071512 | AL92: ='Compile Data'!C975 -> 3333.800049 | AM92: ='Compile Data'!C976 -> 3678.399902 | AN92: ='Compile Data'!C977 -> 4022 | AO92: ='Compile Data'!C978 -> 4410.851591 | AP92: ='Compile Data'!C979 -> 4552.100098 | AQ92: ='Compile Data'!C980 -> 4365.423831 | AR92: ='Compile Data'!C981 -> 3962.52017 | AS92: ='Compile Data'!C982 -> 3435.722195 | AT92: ='Compile Data'!C983 -> 3213.985851 | AU92: ='Compile Data'!C984 -> 3146.765759 | AW92: 3659.845092 | AX92: 3630.327354 | AY92: 3608.853051 | BA92: 3434.699017 | BB92: 3185.21867 | BC92: 2939.946968 | BD92: 3454.911902 | BE92: 4330.158901 | BF92: 3592.080753 | BG92: 3050.112606
A93: 1928-06-30 | B93: =INDIRECT(CONCATENATE("'",B$1,"'!",B$4,(YEAR($A93)-1921)*12+MONTH($A93)+3+IF(ISNUMBER(FIND("PRV",B$6)),1,0)))*IF(AND(B$3>0,TRIM(B$9)="CFS"),Conv_Flags!$C93,1) -> 3880.925586 | C93: =INDIRECT(CONCATENATE("'",C$1,"'!",C$4,(YEAR($A93)-1921)*12+MONTH($A93)+3+IF(ISNUMBER(FIND("PRV",C$6)),1,0)))*IF(AND(C$3>0,TRIM(C$9)="CFS"),Conv_Flags!$C93,1) -> 3930.541638 | I93: 2003 | J93: =B985 -> 2953.699979 | K93: =B986 -> 2890.005679 | L93: =B987 -> 3291.300049 | M93: =B988 -> 3515.199951 | N93: =B989 -> 3830.987098 | O93: =B990 -> 4248.370019 | P93: =B991 -> 4552.100098 | Q93: =B992 -> 4552 | R93: =B993 -> 4364.924323 | S93: =B994 -> 3670.673403 | T93: =B995 -> 3334.704984 | U93: =B996 -> 3107.461404 | Y93: 3692.618915 | AA93: 3425.705555 | AB93: 3311.001236 | AC93: 3115.319132 | AD93: 3388.998796 | AE93: 4362.606457 | AF93: 3800.008353 | AI93: 2003 | AJ93: ='Compile Data'!C985 -> 2954.086606 | AK93: ='Compile Data'!C986 -> 2884.985054 | AL93: ='Compile Data'!C987 -> 3291.300049 | AM93: ='Compile Data'!C988 -> 3515.199951 | AN93: ='Compile Data'!C989 -> 3830.987098 | AO93: ='Compile Data'!C990 -> 4248.370019 | AP93: ='Compile Data'!C991 -> 4552.100098 | AQ93: ='Compile Data'!C992 -> 4552 | AR93: ='Compile Data'!C993 -> 4465.727004 | AS93: ='Compile Data'!C994 -> 3777.541608 | AT93: ='Compile Data'!C995 -> 3445.830669 | AU93: ='Compile Data'!C996 -> 3225.835576 | AY93: 3728.663644 | BA93: 3424.740093 | BB93: 3424.174819 | BC93: 3115.338641 | BD93: 3388.162025 | BE93: 4375.206792 | BF93: 3894.504267
A94: 1928-07-31 | B94: =INDIRECT(CONCATENATE("'",B$1,"'!",B$4,(YEAR($A94)-1921)*12+MONTH($A94)+3+IF(ISNUMBER(FIND("PRV",B$6)),1,0)))*IF(AND(B$3>0,TRIM(B$9)="CFS"),Conv_Flags!$C94,1) -> 3176.458308 | C94: =INDIRECT(CONCATENATE("'",C$1,"'!",C$4,(YEAR($A94)-1921)*12+MONTH($A94)+3+IF(ISNUMBER(FIND("PRV",C$6)),1,0)))*IF(AND(C$3>0,TRIM(C$9)="CFS"),Conv_Flags!$C94,1) -> 3225.853838
A95: 1928-08-31 | B95: =INDIRECT(CONCATENATE("'",B$1,"'!",B$4,(YEAR($A95)-1921)*12+MONTH($A95)+3+IF(ISNUMBER(FIND("PRV",B$6)),1,0)))*IF(AND(B$3>0,TRIM(B$9)="CFS"),Conv_Flags!$C95,1) -> 2747.359088 | C95: =INDIRECT(CONCATENATE("'",C$1,"'!",C$4,(YEAR($A95)-1921)*12+MONTH($A95)+3+IF(ISNUMBER(FIND("PRV",C$6)),1,0)))*IF(AND(C$3>0,TRIM(C$9)="CFS"),Conv_Flags!$C95,1) -> 2795.395379 | I95: AVG: | J95: =IF($B$7="TEMP",AVERAGE(J13:J93),AVERAGE(J12:J93)) -> 2726.202664 | K95: =IF($B$7="TEMP",AVERAGE(K13:K93),AVERAGE(K12:K93)) -> 2730.626797 | L95: 2854.540238 | M95: =AVERAGE(M12:M93) -> 3097.836605 | N95: 3339.429527 | O95: 3692.368303 | P95: 4051.276105 | Q95: 4043.839792 | R95: 3755.269276 | S95: 3285.653284 | T95: 2960.150692 | U95: 2823.506035 | W95: =AVERAGE(W12:W93) -> 3275.824825 | X95: =AVERAGE(X12:X93) -> 3276.754602 | Y95: =IF($B$7="TEMP",AVERAGE(Y13:Y93),AVERAGE(Y12:Y93)) -> 3280.058277 | AA95: =IF($B$7="TEMP",AVERAGE(AA13:AA93),AVERAGE(AA12:AA93)) -> 3046.34373 | AB95: =AVERAGE(AB12:AB93) -> 2931.025704 | AC95: =IF($B$7="TEMP",AVERAGE(AC13:AC93),AVERAGE(AC12:AC93)) -> 2817.542933 | AD95: =IF($B$7="TEMP",AVERAGE(AD13:AD93),AVERAGE(AD12:AD93)) -> 2995.801668 | AE95: 3833.7084 | AF95: 3358.686541 | AG95: 2796.45014 | AI95: AVG: | AJ95: =IF($B$7="TEMP",AVERAGE(AJ13:AJ93),AVERAGE(AJ12:AJ93)) -> 2742.050611 | AK95: =IF($B$7="TEMP",AVERAGE(AK13:AK93),AVERAGE(AK12:AK93)) -> 2741.951322 | AL95: 2865.014033 | AM95: =AVERAGE(AM12:AM93) -> 3110.87431 | AN95: 3350.301613 | AO95: 3702.701423 | AP95: 4063.169484 | AQ95: 4060.177595 | AR95: 3778.341557 | AS95: 3306.991906 | AT95: 2980.443088 | AU95: 2843.133787 | AW95: =AVERAGE(AW12:AW93) -> 3290.859685 | AX95: =AVERAGE(AX12:AX93) -> 3291.726296 | AY95: =IF($B$7="TEMP",AVERAGE(AY13:AY93),AVERAGE(AY12:AY93)) -> 3295.429227 | BA95: =IF($B$7="TEMP",AVERAGE(BA13:BA93),AVERAGE(BA12:BA93)) -> 3058.103459 | BB95: =AVERAGE(BB12:BB93) -> 2950.734836 | BC95: =IF($B$7="TEMP",AVERAGE(BC13:BC93),AVERAGE(BC12:BC93)) -> 2830.896134 | BD95: =IF($B$7="TEMP",AVERAGE(BD13:BD93),AVERAGE(BD12:BD93)) -> 3007.33827 | BE95: =AVERAGE(BE12:BE93) -> 3847.592522 | BF95: 3379.358061 | BG95: 2812.92547
A96: 1928-09-30 | B96: =INDIRECT(CONCATENATE("'",B$1,"'!",B$4,(YEAR($A96)-1921)*12+MONTH($A96)+3+IF(ISNUMBER(FIND("PRV",B$6)),1,0)))*IF(AND(B$3>0,TRIM(B$9)="CFS"),Conv_Flags!$C96,1) -> 2500 | C96: =INDIRECT(CONCATENATE("'",C$1,"'!",C$4,(YEAR($A96)-1921)*12+MONTH($A96)+3+IF(ISNUMBER(FIND("PRV",C$6)),1,0)))*IF(AND(C$3>0,TRIM(C$9)="CFS"),Conv_Flags!$C96,1) -> 2566.510435 | I96: MIN: | J96: =IF($B$7="TEMP",MIN(J13:J93),MIN(J12:J93)) -> 550 | K96: =IF($B$7="TEMP",MIN(K13:K93),MIN(K12:K93)) -> 550 | L96: 663.9345611 | M96: =MIN(M12:M93) -> 935.8175935 | N96: 1101.391392 | O96: 1642.866484 | P96: 1692.158487 | Q96: 1546.886223 | R96: 1059.040832 | S96: 622.3189837 | T96: 550 | U96: 550 | W96: =MIN(W12:W93) -> 1048.80941 | X96: =MIN(X12:X93) -> 1023.215866 | Y96: =IF($B$7="TEMP",MIN(Y13:Y93),MIN(Y12:Y93)) -> 1085.649126 | AA96: =IF($B$7="TEMP",MIN(AA13:AA93),MIN(AA12:AA93)) -> 915.832585 | AB96: =MIN(AB12:AB93) -> 562.053164 | AC96: =IF($B$7="TEMP",MIN(AC13:AC93),MIN(AC12:AC93)) -> 650.8105212 | AD96: 847.0803063 | AE96: 1583.022236 | AF96: 819.9507317 | AG96: 550 | AI96: MIN: | AJ96: =IF($B$7="TEMP",MIN(AJ13:AJ93),MIN(AJ12:AJ93)) -> 550 | AK96: =IF($B$7="TEMP",MIN(AK13:AK93),MIN(AK12:AK93)) -> 550 | AL96: 707.5305886 | AM96: =MIN(AM12:AM93) -> 971.8817823 | AN96: 1233.314365 | AO96: 1684.201866 | AP96: 1822.278134 | AQ96: 1674.808421 | AR96: 1151.315691 | AS96: 650.0625283 | AT96: 550 | AU96: 550 | AW96: =MIN(AW12:AW93) -> 1151.492882 | AX96: =MIN(AX12:AX93) -> 1107.306968 | AY96: =IF($B$7="TEMP",MIN(AY13:AY93),MIN(AY12:AY93)) -> 1221.687199 | BA96: =IF($B$7="TEMP",MIN(BA13:BA93),MIN(BA12:BA93)) -> 948.0090989 | BB96: =MIN(BB12:BB93) -> 566.6770881 | BC96: =IF($B$7="TEMP",MIN(BC13:BC93),MIN(BC12:BC93)) -> 681.1890047 | BD96: 883.7261553 | BE96: =MIN(BE12:BE93) -> 1721.024971 | BF96: 865.9456075 | BG96: 550
A97: 1928-10-31 | B97: =INDIRECT(CONCATENATE("'",B$1,"'!",B$4,(YEAR($A97)-1921)*12+MONTH($A97)+3+IF(ISNUMBER(FIND("PRV",B$6)),1,0)))*IF(AND(B$3>0,TRIM(B$9)="CFS"),Conv_Flags!$C97,1) -> 2273.216042 | C97: =INDIRECT(CONCATENATE("'",C$1,"'!",C$4,(YEAR($A97)-1921)*12+MONTH($A97)+3+IF(ISNUMBER(FIND("PRV",C$6)),1,0)))*IF(AND(C$3>0,TRIM(C$9)="CFS"),Conv_Flags!$C97,1) -> 2365.388936 | I97: MAX: | J97: =IF($B$7="TEMP",MAX(J13:J93),MAX(J12:J93)) -> 3250 | K97: =IF($B$7="TEMP",MAX(K13:K93),MAX(K12:K93)) -> 3252 | L97: 3369 | M97: =MAX(M12:M93) -> 3725 | N97: 4099 | O97: 4410.851591 | P97: 4552.100098 | Q97: 4552 | R97: 4500 | S97: 4150 | T97: 3700 | U97: 3400 | W97: =MAX(W12:W93) -> 3832.068716 | X97: =MAX(X12:X93) -> 3835.271496 | Y97: =IF($B$7="TEMP",MAX(Y13:Y93),MAX(Y12:Y93)) -> 3809.925454 | AA97: =IF($B$7="TEMP",MAX(AA13:AA93),MAX(AA12:AA93)) -> 3622.5 | AB97: =MAX(AB12:AB93) -> 3600 | AC97: =IF($B$7="TEMP",MAX(AC13:AC93),MAX(AC12:AC93)) -> 3355.875 | AD97: 3576.166667 | AE97: 4373.179277 | AF97: 4081.5 | AG97: 3375.333333 | AI97: MAX: | AJ97: =IF($B$7="TEMP",MAX(AJ13:AJ93),MAX(AJ12:AJ93)) -> 3250 | AK97: =IF($B$7="TEMP",MAX(AK13:AK93),MAX(AK12:AK93)) -> 3252 | AL97: 3369 | AM97: =MAX(AM12:AM93) -> 3725 | AN97: 4099 | AO97: 4410.851591 | AP97: 4552.100098 | AQ97: 4552 | AR97: 4500 | AS97: 4150 | AT97: 3700 | AU97: 3400 | AW97: =MAX(AW12:AW93) -> 3831.06325 | AX97: =MAX(AX12:AX93) -> 3831.831514 | AY97: =IF($B$7="TEMP",MAX(AY13:AY93),MAX(AY12:AY93)) -> 3810.702192 | BA97: =IF($B$7="TEMP",MAX(BA13:BA93),MAX(BA12:BA93)) -> 3622.5 | BB97: =MAX(BB12:BB93) -> 3600 | BC97: =IF($B$7="TEMP",MAX(BC13:BC93),MAX(BC12:BC93)) -> 3355.875 | BD97: 3576.166667 | BE97: =MAX(BE12:BE93) -> 4375.206792 | BF97: 4081.5 | BG97: 3375.333333
A98: 1928-11-30 | B98: =INDIRECT(CONCATENATE("'",B$1,"'!",B$4,(YEAR($A98)-1921)*12+MONTH($A98)+3+IF(ISNUMBER(FIND("PRV",B$6)),1,0)))*IF(AND(B$3>0,TRIM(B$9)="CFS"),Conv_Flags!$C98,1) -> 2217.75234 | C98: =INDIRECT(CONCATENATE("'",C$1,"'!",C$4,(YEAR($A98)-1921)*12+MONTH($A98)+3+IF(ISNUMBER(FIND("PRV",C$6)),1,0)))*IF(AND(C$3>0,TRIM(C$9)="CFS"),Conv_Flags!$C98,1) -> 2289.898688
A99: 1928-12-31 | B99: =INDIRECT(CONCATENATE("'",B$1,"'!",B$4,(YEAR($A99)-1921)*12+MONTH($A99)+3+IF(ISNUMBER(FIND("PRV",B$6)),1,0)))*IF(AND(B$3>0,TRIM(B$9)="CFS"),Conv_Flags!$C99,1) -> 2276.1844 | C99: =INDIRECT(CONCATENATE("'",C$1,"'!",C$4,(YEAR($A99)-1921)*12+MONTH($A99)+3+IF(ISNUMBER(FIND("PRV",C$6)),1,0)))*IF(AND(C$3>0,TRIM(C$9)="CFS"),Conv_Flags!$C99,1) -> 2343.507338 | I99: PrEx75: | J99: =J182 -> 2596.560109 | K99: =K182 -> 2605.49879 | L99: 2646.689024 | M99: 2917.385568 | N99: 3252 | O99: 3435 | P99: 4024.117638 | Q99: 3858.33648 | R99: 3446.773158 | S99: 3015.763565 | T99: 2747.359088 | U99: 2702.092358 | W99: =W182 -> 3155.869029 | X99: 3191.026867 | Y99: =Y182 -> 3153.838574 | AA99: =AA182 -> 2913.959245 | AB99: =AB182 -> 2746.680786 | AC99: 2723.340716 | AD99: 2853.794108 | AE99: =AE182 -> 3770.09432 | AF99: 3106.229641 | AG99: 2653.052021 | AI99: PrEx75: | AJ99: =AJ182 -> 2611.553398 | AK99: =AK182 -> 2636.665724 | AL99: 2618.485629 | AM99: 2984.235361 | AN99: 3252 | AO99: 3435 | AP99: 4045.842737 | AQ99: 3874.715436 | AR99: 3505.404189 | AS99: 3076.28623 | AT99: 2759.048873 | AU99: 2723.98258 | AW99: =AW182 -> 3171.092844 | AX99: 3164.389113 | AY99: =AY182 -> 3170.293261 | BA99: =BA182 -> 2886.42269 | BB99: =BB182 -> 2816.064448 | BC99: 2693.000459 | BD99: 2804.937935 | BE99: 3769.429464 | BF99: 3169.249857 | BG99: 2674.758959
A100: 1929-01-31 | B100: =INDIRECT(CONCATENATE("'",B$1,"'!",B$4,(YEAR($A100)-1921)*12+MONTH($A100)+3+IF(ISNUMBER(FIND("PRV",B$6)),1,0)))*IF(AND(B$3>0,TRIM(B$9)="CFS"),Conv_Flags!$C100,1) -> 2540.517783 | C100: =INDIRECT(CONCATENATE("'",C$1,"'!",C$4,(YEAR($A100)-1921)*12+MONTH($A100)+3+IF(ISNUMBER(FIND("PRV",C$6)),1,0)))*IF(AND(C$3>0,TRIM(C$9)="CFS"),Conv_Flags!$C100,1) -> 2607.79558 | I100: PrEx50: | J100: =J162 -> 2942.541297 | K100: =K162 -> 3002.89273 | L100: 3239.488517 | M100: 3326.975763 | N100: 3503.100098 | O100: 3940 | P100: 4254.489081 | Q100: 4410.215738 | R100: 3969.673491 | S100: 3420.749744 | T100: 3090.43351 | U100: 3050.150695 | W100: =W162 -> 3531.55972 | X100: 3531.449 | Y100: =Y162 -> 3550.413218 | AA100: =AA162 -> 3341.2 | AB100: =AB162 -> 3118.284249 | AC100: 3091.018004 | AD100: 3291.875909 | AE100: =AE162 -> 4078.740984 | AF100: 3572.05431 | AG100: 2997.632007 | AI100: PrEx50: | AJ100: =AJ162 -> 2941.559823 | AK100: =AK162 -> 3004.248684 | AL100: 3236.684258 | AM100: 3344.299004 | AN100: 3508.873954 | AO100: 3940 | AP100: 4285.4963 | AQ100: 4428.270776 | AR100: 3990.438678 | AS100: 3431.336356 | AT100: 3101.103674 | AU100: 3054.573323 | AW100: =AW162 -> 3566.004915 | AX100: 3554.764 | AY100: =AY162 -> 3571.645633 | BA100: =BA162 -> 3344.435491 | BB100: =BB162 -> 3117.457004 | BC100: 3085.796045 | BD100: 3317 | BE100: 4078.740984 | BF100: 3562.481531 | BG100: 3005.04966
A101: 1929-02-28 | B101: =INDIRECT(CONCATENATE("'",B$1,"'!",B$4,(YEAR($A101)-1921)*12+MONTH($A101)+3+IF(ISNUMBER(FIND("PRV",B$6)),1,0)))*IF(AND(B$3>0,TRIM(B$9)="CFS"),Conv_Flags!$C101,1) -> 2725.675957 | C101: =INDIRECT(CONCATENATE("'",C$1,"'!",C$4,(YEAR($A101)-1921)*12+MONTH($A101)+3+IF(ISNUMBER(FIND("PRV",C$6)),1,0)))*IF(AND(C$3>0,TRIM(C$9)="CFS"),Conv_Flags!$C101,1) -> 2792.907551 | I101: PrEx25: | J101: =J141 -> 3250 | K101: =K141 -> 3252 | L101: 3328 | M101: 3549.556535 | N101: 3742.5 | O101: 4118 | P101: 4512.312481 | Q101: 4552 | R101: 4386.881054 | S101: 3879.682073 | T101: 3590.406224 | U101: 3400 | W101: =W141 -> 3718.738477 | X101: 3742.048625 | Y101: =Y141 -> 3687.166667 | AA101: =AA141 -> 3460.147868 | AB101: =AB141 -> 3514.578814 | AC101: 3286.661022 | AD101: 3446.316721 | AE101: =AE141 -> 4267.549025 | AF101: 3931.428372 | AG101: 3345.897217 | AI101: PrEx25: | AJ101: =AJ141 -> 3250 | AK101: =AK141 -> 3252 | AL101: 3322 | AM101: 3541.570874 | AN101: 3742.5 | AO101: 4106 | AP101: 4516.005107 | AQ101: 4552 | AR101: 4393.03542 | AS101: 3910.599699 | AT101: 3601.623027 | AU101: 3400 | AW101: =AW141 -> 3719.209499 | AX101: 3745.524692 | AY101: =AY141 -> 3698.984508 | BA101: =BA141 -> 3462.294955 | BB101: =BB141 -> 3518.670804 | BC101: 3283.053672 | BD101: 3441.363811 | BE101: 4269.698847 | BF101: 3953.774825 | BG101: 3348.407726
A102: 1929-03-31 | B102: =INDIRECT(CONCATENATE("'",B$1,"'!",B$4,(YEAR($A102)-1921)*12+MONTH($A102)+3+IF(ISNUMBER(FIND("PRV",B$6)),1,0)))*IF(AND(B$3>0,TRIM(B$9)="CFS"),Conv_Flags!$C102,1) -> 2896.679935 | C102: =INDIRECT(CONCATENATE("'",C$1,"'!",C$4,(YEAR($A102)-1921)*12+MONTH($A102)+3+IF(ISNUMBER(FIND("PRV",C$6)),1,0)))*IF(AND(C$3>0,TRIM(C$9)="CFS"),Conv_Flags!$C102,1) -> 2963.823889
A103: 1929-04-30 | B103: =INDIRECT(CONCATENATE("'",B$1,"'!",B$4,(YEAR($A103)-1921)*12+MONTH($A103)+3+IF(ISNUMBER(FIND("PRV",B$6)),1,0)))*IF(AND(B$3>0,TRIM(B$9)="CFS"),Conv_Flags!$C103,1) -> 3074.799695 | C103: =INDIRECT(CONCATENATE("'",C$1,"'!",C$4,(YEAR($A103)-1921)*12+MONTH($A103)+3+IF(ISNUMBER(FIND("PRV",C$6)),1,0)))*IF(AND(C$3>0,TRIM(C$9)="CFS"),Conv_Flags!$C103,1) -> 3141.094158 | I103: DP: | J103: =IF($B$7="TEMP",SUMPRODUCT(J$13:J$93,Conv_Flags!$K$13:$K$93)/SUM(Conv_Flags!$K$13:$K$93),SUMPRODUCT(J$12:J$93,Conv_Flags!$K$12:$K$93)/SUM(Conv_Flags!$K$12:$K$93)) -> 2061.986593 | K103: =IF($B$7="TEMP",SUMPRODUCT(K$13:K$93,Conv_Flags!$K$13:$K$93)/SUM(Conv_Flags!$K$13:$K$93),SUMPRODUCT(K$12:K$93,Conv_Flags!$K$12:$K$93)/SUM(Conv_Flags!$K$12:$K$93)) -> 1992.842077 | L103: =IF($B$7="TEMP",SUMPRODUCT(L$13:L$93,Conv_Flags!$K$13:$K$93)/SUM(Conv_Flags!$K$13:$K$93),SUMPRODUCT(L$12:L$93,Conv_Flags!$K$12:$K$93)/SUM(Conv_Flags!$K$12:$K$93)) -> 2065.300502 | M103: =SUMPRODUCT(M$12:M$93,Conv_Flags!$K$12:$K$93)/SUM(Conv_Flags!$K$12:$K$93) -> 2198.040519 | N103: =SUMPRODUCT(N$12:N$93,Conv_Flags!$K$12:$K$93)/SUM(Conv_Flags!$K$12:$K$93) -> 2381.414929 | O103: =SUMPRODUCT(O$12:O$93,Conv_Flags!$K$12:$K$93)/SUM(Conv_Flags!$K$12:$K$93) -> 2778.799974 | P103: =SUMPRODUCT(P$12:P$93,Conv_Flags!$K$12:$K$93)/SUM(Conv_Flags!$K$12:$K$93) -> 2909.195157 | Q103: =SUMPRODUCT(Q$12:Q$93,Conv_Flags!$K$12:$K$93)/SUM(Conv_Flags!$K$12:$K$93) -> 2757.485449 | R103: =SUMPRODUCT(R$12:R$93,Conv_Flags!$K$12:$K$93)/SUM(Conv_Flags!$K$12:$K$93) -> 2402.045329 | S103: =SUMPRODUCT(S$12:S$93,Conv_Flags!$K$12:$K$93)/SUM(Conv_Flags!$K$12:$K$93) -> 2037.170561 | T103: =SUMPRODUCT(T$12:T$93,Conv_Flags!$K$12:$K$93)/SUM(Conv_Flags!$K$12:$K$93) -> 1751.662675 | U103: =SUMPRODUCT(U$12:U$93,Conv_Flags!$K$12:$K$93)/SUM(Conv_Flags!$K$12:$K$93) -> 1687.504893 | W103: =SUMPRODUCT(W$12:W$93,Conv_Flags!$K$12:$K$93)/SUM(Conv_Flags!$K$12:$K$93) -> 2139.89309 | X103: =SUMPRODUCT(X$12:X$93,Conv_Flags!$K$12:$K$93)/SUM(Conv_Flags!$K$12:$K$93) -> 2103.370557 | Y103: =IF($B$7="TEMP",SUMPRODUCT(Y$13:Y$93,Conv_Flags!$K$13:$K$93)/SUM(Conv_Flags!$K$13:$K$93),SUMPRODUCT(Y$12:Y$93,Conv_Flags!$K$12:$K$93)/SUM(Conv_Flags!$K$12:$K$93)) -> 2251.954055 | AA103: =IF($B$7="TEMP",SUMPRODUCT(AA$13:AA$93,Conv_Flags!$K$13:$K$93)/SUM(Conv_Flags!$K$13:$K$93),SUMPRODUCT(AA$12:AA$93,Conv_Flags!$K$12:$K$93)/SUM(Conv_Flags!$K$12:$K$93)) -> 2211.598262 | AB103: =SUMPRODUCT(AB$12:AB$93,Conv_Flags!$K$12:$K$93)/SUM(Conv_Flags!$K$12:$K$93) -> 1751.048937 | AC103: =IF($B$7="TEMP",SUMPRODUCT(AC$13:AC$93,Conv_Flags!$K$13:$K$93)/SUM(Conv_Flags!$K$13:$K$93),SUMPRODUCT(AC$12:AC$93,Conv_Flags!$K$12:$K$93)/SUM(Conv_Flags!$K$12:$K$93)) -> 2077.188625 | AD103: =IF($B$7="TEMP",SUMPRODUCT(AD$13:AD$93,Conv_Flags!$K$13:$K$93)/SUM(Conv_Flags!$K$13:$K$93),SUMPRODUCT(AD$12:AD$93,Conv_Flags!$K$12:$K$93)/SUM(Conv_Flags!$K$12:$K$93)) -> 2150.156508 | AE103: =SUMPRODUCT(AE$12:AE$93,Conv_Flags!$K$12:$K$93)/SUM(Conv_Flags!$K$12:$K$93) -> 2709.302677 | AF103: =SUMPRODUCT(AF$12:AF$93,Conv_Flags!$K$12:$K$93)/SUM(Conv_Flags!$K$12:$K$93) -> 2103.343434 | AG103: =SUMPRODUCT(AG$12:AG$93,Conv_Flags!$K$12:$K$93)/SUM(Conv_Flags!$K$12:$K$93) -> 1640.005509 | AI103: DP: | AJ103: =IF($B$7="TEMP",SUMPRODUCT(AJ$13:AJ$93,Conv_Flags!$K$13:$K$93)/SUM(Conv_Flags!$K$13:$K$93),SUMPRODUCT(AJ$12:AJ$93,Conv_Flags!$K$12:$K$93)/SUM(Conv_Flags!$K$12:$K$93)) -> 2114.230628 | AK103: =IF($B$7="TEMP",SUMPRODUCT(AK$13:AK$93,Conv_Flags!$K$13:$K$93)/SUM(Conv_Flags!$K$13:$K$93),SUMPRODUCT(AK$12:AK$93,Conv_Flags!$K$12:$K$93)/SUM(Conv_Flags!$K$12:$K$93)) -> 2038.978755 | AL103: =IF($B$7="TEMP",SUMPRODUCT(AL$13:AL$93,Conv_Flags!$K$13:$K$93)/SUM(Conv_Flags!$K$13:$K$93),SUMPRODUCT(AL$12:AL$93,Conv_Flags!$K$12:$K$93)/SUM(Conv_Flags!$K$12:$K$93)) -> 2109.797509 | AM103: =SUMPRODUCT(AM$12:AM$93,Conv_Flags!$K$12:$K$93)/SUM(Conv_Flags!$K$12:$K$93) -> 2256.639464 | AN103: =SUMPRODUCT(AN$12:AN$93,Conv_Flags!$K$12:$K$93)/SUM(Conv_Flags!$K$12:$K$93) -> 2432.763182 | AO103: =SUMPRODUCT(AO$12:AO$93,Conv_Flags!$K$12:$K$93)/SUM(Conv_Flags!$K$12:$K$93) -> 2829.228004 | AP103: =SUMPRODUCT(AP$12:AP$93,Conv_Flags!$K$12:$K$93)/SUM(Conv_Flags!$K$12:$K$93) -> 2958.768223 | AQ103: =SUMPRODUCT(AQ$12:AQ$93,Conv_Flags!$K$12:$K$93)/SUM(Conv_Flags!$K$12:$K$93) -> 2810.145105 | AR103: =SUMPRODUCT(AR$12:AR$93,Conv_Flags!$K$12:$K$93)/SUM(Conv_Flags!$K$12:$K$93) -> 2456.989221 | AS103: =SUMPRODUCT(AS$12:AS$93,Conv_Flags!$K$12:$K$93)/SUM(Conv_Flags!$K$12:$K$93) -> 2088.940834 | AT103: =SUMPRODUCT(AT$12:AT$93,Conv_Flags!$K$12:$K$93)/SUM(Conv_Flags!$K$12:$K$93) -> 1803.632075 | AU103: =SUMPRODUCT(AU$12:AU$93,Conv_Flags!$K$12:$K$93)/SUM(Conv_Flags!$K$12:$K$93) -> 1736.039438 | AW103: =SUMPRODUCT(AW$12:AW$93,Conv_Flags!$K$12:$K$93)/SUM(Conv_Flags!$K$12:$K$93) -> 2190.694221 | AX103: =SUMPRODUCT(AX$12:AX$93,Conv_Flags!$K$12:$K$93)/SUM(Conv_Flags!$K$12:$K$93) -> 2154.558243 | AY103: =IF($B$7="TEMP",SUMPRODUCT(AY$13:AY$93,Conv_Flags!$K$13:$K$93)/SUM(Conv_Flags!$K$13:$K$93),SUMPRODUCT(AY$12:AY$93,Conv_Flags!$K$12:$K$93)/SUM(Conv_Flags!$K$12:$K$93)) -> 2303.012703 | BA103: =IF($B$7="TEMP",SUMPRODUCT(BA$13:BA$93,Conv_Flags!$K$13:$K$93)/SUM(Conv_Flags!$K$13:$K$93),SUMPRODUCT(BA$12:BA$93,Conv_Flags!$K$12:$K$93)/SUM(Conv_Flags!$K$12:$K$93)) -> 2261.981645 | BB103: =SUMPRODUCT(BB$12:BB$93,Conv_Flags!$K$12:$K$93)/SUM(Conv_Flags!$K$12:$K$93) -> 1801.397603 | BC103: =IF($B$7="TEMP",SUMPRODUCT(BC$13:BC$93,Conv_Flags!$K$13:$K$93)/SUM(Conv_Flags!$K$13:$K$93),SUMPRODUCT(BC$12:BC$93,Conv_Flags!$K$12:$K$93)/SUM(Conv_Flags!$K$12:$K$93)) -> 2125.763835 | BD103: =IF($B$7="TEMP",SUMPRODUCT(BD$13:BD$93,Conv_Flags!$K$13:$K$93)/SUM(Conv_Flags!$K$13:$K$93),SUMPRODUCT(BD$12:BD$93,Conv_Flags!$K$12:$K$93)/SUM(Conv_Flags!$K$12:$K$93)) -> 2200.769314 | BE103: =SUMPRODUCT(BE$12:BE$93,Conv_Flags!$K$12:$K$93)/SUM(Conv_Flags!$K$12:$K$93) -> 2760.754384 | BF103: =SUMPRODUCT(BF$12:BF$93,Conv_Flags!$K$12:$K$93)/SUM(Conv_Flags!$K$12:$K$93) -> 2155.663601 | BG103: =SUMPRODUCT(BG$12:BG$93,Conv_Flags!$K$12:$K$93)/SUM(Conv_Flags!$K$12:$K$93) -> 1688.727963
A104: 1929-05-31 | B104: =INDIRECT(CONCATENATE("'",B$1,"'!",B$4,(YEAR($A104)-1921)*12+MONTH($A104)+3+IF(ISNUMBER(FIND("PRV",B$6)),1,0)))*IF(AND(B$3>0,TRIM(B$9)="CFS"),Conv_Flags!$C104,1) -> 2842.699281 | C104: =INDIRECT(CONCATENATE("'",C$1,"'!",C$4,(YEAR($A104)-1921)*12+MONTH($A104)+3+IF(ISNUMBER(FIND("PRV",C$6)),1,0)))*IF(AND(C$3>0,TRIM(C$9)="CFS"),Conv_Flags!$C104,1) -> 2907.778344 | I104: VIC: | J104: =AVERAGE(J60:J93) -> 2790.637118 | K104: =AVERAGE(K60:K93) -> 2785.466842 | L104: 2900.135687 | M104: 3178.781979 | N104: 3383.78597 | O104: 3749.559235 | P104: 4093.252201 | Q104: 4069.141599 | R104: 3762.091774 | S104: 3300.092895 | T104: 2997.418133 | U104: 2872.351509 | W104: =AVERAGE(W60:W93) -> 3310.824827 | X104: 3312.499541 | Y104: 3323.559579 | AA104: =AVERAGE(AA60:AA93) -> 3103.653731 | AB104: 2972.010575 | AC104: =AVERAGE(AC60:AC93) -> 2876.527107 | AD104: 3054.514691 | AE104: 3871.222977 | AF104: 3382.587339 | AG104: 2840.75471 | AI104: VIC: | AJ104: =AVERAGE(AJ60:AJ93) -> 2800.823766 | AK104: =AVERAGE(AK60:AK93) -> 2787.03904 | AL104: 2902.678419 | AM104: 3189.282164 | AN104: 3388.664971 | AO104: 3751.843089 | AP104: 4094.927628 | AQ104: 4074.760775 | AR104: 3779.274782 | AS104: 3318.373074 | AT104: 3014.871421 | AU104: 2889.041144 | AW104: =AVERAGE(AW60:AW93) -> 3319.067055 | AX104: 3320.74177 | AY104: 3332.631689 | BA104: =AVERAGE(BA60:BA93) -> 3108.799604 | BB104: 2988.690793 | BC104: 2883.06603 | BD104: 3059.937529 | BE104: 3876.375342 | BF104: 3398.605059 | BG104: 2851.493355
A105: 1929-06-30 | B105: =INDIRECT(CONCATENATE("'",B$1,"'!",B$4,(YEAR($A105)-1921)*12+MONTH($A105)+3+IF(ISNUMBER(FIND("PRV",B$6)),1,0)))*IF(AND(B$3>0,TRIM(B$9)="CFS"),Conv_Flags!$C105,1) -> 2608.003707 | C105: =INDIRECT(CONCATENATE("'",C$1,"'!",C$4,(YEAR($A105)-1921)*12+MONTH($A105)+3+IF(ISNUMBER(FIND("PRV",C$6)),1,0)))*IF(AND(C$3>0,TRIM(C$9)="CFS"),Conv_Flags!$C105,1) -> 2658.198444 | I105: 40-30-30 | AI105: 40-30-30
A106: 1929-07-31 | B106: =INDIRECT(CONCATENATE("'",B$1,"'!",B$4,(YEAR($A106)-1921)*12+MONTH($A106)+3+IF(ISNUMBER(FIND("PRV",B$6)),1,0)))*IF(AND(B$3>0,TRIM(B$9)="CFS"),Conv_Flags!$C106,1) -> 2305.636012 | C106: =INDIRECT(CONCATENATE("'",C$1,"'!",C$4,(YEAR($A106)-1921)*12+MONTH($A106)+3+IF(ISNUMBER(FIND("PRV",C$6)),1,0)))*IF(AND(C$3>0,TRIM(C$9)="CFS"),Conv_Flags!$C106,1) -> 2414.820563 | I106: W: | J106: =IF($B$7="TEMP",SUMPRODUCT(J$13:J$93,Conv_Flags!$N$12:$N$92)/SUM(Conv_Flags!$N$12:$N$92),SUMPRODUCT(J$12:J$93,Conv_Flags!$N$11:$N$92)/SUM(Conv_Flags!$N$11:$N$92)) -> 3183.376648 | K106: =IF($B$7="TEMP",SUMPRODUCT(K$13:K$93,Conv_Flags!$N$12:$N$92)/SUM(Conv_Flags!$N$12:$N$92),SUMPRODUCT(K$12:K$93,Conv_Flags!$N$11:$N$92)/SUM(Conv_Flags!$N$11:$N$92)) -> 3175.221542 | L106: =IF($B$7="TEMP",SUMPRODUCT(L$13:L$93,Conv_Flags!$N$12:$N$92)/SUM(Conv_Flags!$N$12:$N$92),SUMPRODUCT(L$12:L$93,Conv_Flags!$N$11:$N$92)/SUM(Conv_Flags!$N$11:$N$92)) -> 3258.46771 | M106: =SUMPRODUCT(M$12:M$93,Conv_Flags!$N$12:$N$93)/SUM(Conv_Flags!$N$12:$N$93) -> 3457.715036 | N106: =SUMPRODUCT(N$12:N$93,Conv_Flags!$N$12:$N$93)/SUM(Conv_Flags!$N$12:$N$93) -> 3606.971062 | O106: =SUMPRODUCT(O$12:O$93,Conv_Flags!$N$12:$N$93)/SUM(Conv_Flags!$N$12:$N$93) -> 3862.526309 | P106: =SUMPRODUCT(P$12:P$93,Conv_Flags!$N$12:$N$93)/SUM(Conv_Flags!$N$12:$N$93) -> 4348.445935 | Q106: =SUMPRODUCT(Q$12:Q$93,Conv_Flags!$N$12:$N$93)/SUM(Conv_Flags!$N$12:$N$93) -> 4489.15847 | R106: =SUMPRODUCT(R$12:R$93,Conv_Flags!$N$12:$N$93)/SUM(Conv_Flags!$N$12:$N$93) -> 4370.171864 | S106: =SUMPRODUCT(S$12:S$93,Conv_Flags!$N$12:$N$93)/SUM(Conv_Flags!$N$12:$N$93) -> 3933.527003 | T106: =SUMPRODUCT(T$12:T$93,Conv_Flags!$N$12:$N$93)/SUM(Conv_Flags!$N$12:$N$93) -> 3558.796771 | U106: =SUMPRODUCT(U$12:U$93,Conv_Flags!$N$12:$N$93)/SUM(Conv_Flags!$N$12:$N$93) -> 3305.381509 | W106: =SUMPRODUCT(W$12:W$93,Conv_Flags!$N$12:$N$93)/SUM(Conv_Flags!$N$12:$N$93) -> 3712.479988 | X106: =SUMPRODUCT(X$12:X$93,Conv_Flags!$N$12:$N$93)/SUM(Conv_Flags!$N$12:$N$93) -> 3718.59472 | Y106: =IF($B$7="TEMP",SUMPRODUCT(Y$13:Y$93,Conv_Flags!$N$12:$N$92)/SUM(Conv_Flags!$N$12:$N$92),SUMPRODUCT(Y$12:Y$93,Conv_Flags!$N$11:$N$92)/SUM(Conv_Flags!$N$11:$N$92)) -> 3585.022821 | AA106: =IF($B$7="TEMP",SUMPRODUCT(AA$13:AA$93,Conv_Flags!$N$12:$N$92)/SUM(Conv_Flags!$N$12:$N$92),SUMPRODUCT(AA$12:AA$93,Conv_Flags!$N$11:$N$92)/SUM(Conv_Flags!$N$11:$N$92)) -> 3431.044829 | AB106: =SUMPRODUCT(AB$12:AB$93,Conv_Flags!$N$12:$N$93)/SUM(Conv_Flags!$N$12:$N$93) -> 3474.210035 | AC106: =IF($B$7="TEMP",SUMPRODUCT(AC$13:AC$93,Conv_Flags!$N$12:$N$92)/SUM(Conv_Flags!$N$12:$N$92),SUMPRODUCT(AC$12:AC$93,Conv_Flags!$N$11:$N$92)/SUM(Conv_Flags!$N$11:$N$92)) -> 3251.35296 | AD106: =IF($B$7="TEMP",SUMPRODUCT(AD$13:AD$93,Conv_Flags!$N$12:$N$92)/SUM(Conv_Flags!$N$12:$N$92),SUMPRODUCT(AD$12:AD$93,Conv_Flags!$N$11:$N$92)/SUM(Conv_Flags!$N$11:$N$92)) -> 3383.58837 | AE106: =SUMPRODUCT(AE$12:AE$93,Conv_Flags!$N$12:$N$93)/SUM(Conv_Flags!$N$12:$N$93) -> 4172.175544 | AF106: =SUMPRODUCT(AF$12:AF$93,Conv_Flags!$N$12:$N$93)/SUM(Conv_Flags!$N$12:$N$93) -> 3939.941407 | AG106: =SUMPRODUCT(AG$12:AG$93,Conv_Flags!$N$11:$N$92)/SUM(Conv_Flags!$N$11:$N$92) -> 2991.047033 | AI106: W: | AJ106: =IF($B$7="TEMP",SUMPRODUCT(AJ$13:AJ$93,Conv_Flags!$N$12:$N$92)/SUM(Conv_Flags!$N$12:$N$92),SUMPRODUCT(AJ$12:AJ$93,Conv_Flags!$N$11:$N$92)/SUM(Conv_Flags!$N$11:$N$92)) -> 3178.396711 | AK106: =IF($B$7="TEMP",SUMPRODUCT(AK$13:AK$93,Conv_Flags!$N$12:$N$92)/SUM(Conv_Flags!$N$12:$N$92),SUMPRODUCT(AK$12:AK$93,Conv_Flags!$N$11:$N$92)/SUM(Conv_Flags!$N$11:$N$92)) -> 3174.670745 | AL106: =IF($B$7="TEMP",SUMPRODUCT(AL$13:AL$93,Conv_Flags!$N$12:$N$92)/SUM(Conv_Flags!$N$12:$N$92),SUMPRODUCT(AL$12:AL$93,Conv_Flags!$N$11:$N$92)/SUM(Conv_Flags!$N$11:$N$92)) -> 3259.081712 | AM106: =SUMPRODUCT(AM$12:AM$93,Conv_Flags!$N$12:$N$93)/SUM(Conv_Flags!$N$12:$N$93) -> 3460.627243 | AN106: =SUMPRODUCT(AN$12:AN$93,Conv_Flags!$N$12:$N$93)/SUM(Conv_Flags!$N$12:$N$93) -> 3606.971062 | AO106: =SUMPRODUCT(AO$12:AO$93,Conv_Flags!$N$12:$N$93)/SUM(Conv_Flags!$N$12:$N$93) -> 3862.526309 | AP106: =SUMPRODUCT(AP$12:AP$93,Conv_Flags!$N$12:$N$93)/SUM(Conv_Flags!$N$12:$N$93) -> 4348.445935 | AQ106: =SUMPRODUCT(AQ$12:AQ$93,Conv_Flags!$N$12:$N$93)/SUM(Conv_Flags!$N$12:$N$93) -> 4488.954672 | AR106: =SUMPRODUCT(AR$12:AR$93,Conv_Flags!$N$12:$N$93)/SUM(Conv_Flags!$N$12:$N$93) -> 4365.468908 | AS106: =SUMPRODUCT(AS$12:AS$93,Conv_Flags!$N$12:$N$93)/SUM(Conv_Flags!$N$12:$N$93) -> 3926.761007 | AT106: =SUMPRODUCT(AT$12:AT$93,Conv_Flags!$N$12:$N$93)/SUM(Conv_Flags!$N$12:$N$93) -> 3552.813778 | AU106: =SUMPRODUCT(AU$12:AU$93,Conv_Flags!$N$12:$N$93)/SUM(Conv_Flags!$N$12:$N$93) -> 3300.549987 | AW106: =SUMPRODUCT(AW$12:AW$93,Conv_Flags!$N$12:$N$93)/SUM(Conv_Flags!$N$12:$N$93) -> 3710.439006 | AX106: =SUMPRODUCT(AX$12:AX$93,Conv_Flags!$N$12:$N$93)/SUM(Conv_Flags!$N$12:$N$93) -> 3716.174023 | AY106: =IF($B$7="TEMP",SUMPRODUCT(AY$13:AY$93,Conv_Flags!$N$12:$N$92)/SUM(Conv_Flags!$N$12:$N$92),SUMPRODUCT(AY$12:AY$93,Conv_Flags!$N$11:$N$92)/SUM(Conv_Flags!$N$11:$N$92)) -> 3593.203219 | BA106: =IF($B$7="TEMP",SUMPRODUCT(BA$13:BA$93,Conv_Flags!$N$12:$N$92)/SUM(Conv_Flags!$N$12:$N$92),SUMPRODUCT(BA$12:BA$93,Conv_Flags!$N$11:$N$92)/SUM(Conv_Flags!$N$11:$N$92)) -> 3430.116289 | BB106: =SUMPRODUCT(BB$12:BB$93,Conv_Flags!$N$12:$N$93)/SUM(Conv_Flags!$N$12:$N$93) -> 3468.647541 | BC106: =IF($B$7="TEMP",SUMPRODUCT(BC$13:BC$93,Conv_Flags!$N$12:$N$92)/SUM(Conv_Flags!$N$12:$N$92),SUMPRODUCT(BC$12:BC$93,Conv_Flags!$N$11:$N$92)/SUM(Conv_Flags!$N$11:$N$92)) -> 3249.457378 | BD106: =IF($B$7="TEMP",SUMPRODUCT(BD$13:BD$93,Conv_Flags!$N$12:$N$92)/SUM(Conv_Flags!$N$12:$N$92),SUMPRODUCT(BD$12:BD$93,Conv_Flags!$N$11:$N$92)/SUM(Conv_Flags!$N$11:$N$92)) -> 3383.343897 | BE106: =SUMPRODUCT(BE$12:BE$93,Conv_Flags!$N$12:$N$93)/SUM(Conv_Flags!$N$12:$N$93) -> 4171.536725 | BF106: =SUMPRODUCT(BF$12:BF$93,Conv_Flags!$N$12:$N$93)/SUM(Conv_Flags!$N$12:$N$93) -> 3934.949006 | BG106: =SUMPRODUCT(BG$12:BG$93,Conv_Flags!$N$11:$N$92)/SUM(Conv_Flags!$N$11:$N$92) -> 3010.808117
A107: 1929-08-31 | B107: =INDIRECT(CONCATENATE("'",B$1,"'!",B$4,(YEAR($A107)-1921)*12+MONTH($A107)+3+IF(ISNUMBER(FIND("PRV",B$6)),1,0)))*IF(AND(B$3>0,TRIM(B$9)="CFS"),Conv_Flags!$C107,1) -> 1911.306057 | C107: =INDIRECT(CONCATENATE("'",C$1,"'!",C$4,(YEAR($A107)-1921)*12+MONTH($A107)+3+IF(ISNUMBER(FIND("PRV",C$6)),1,0)))*IF(AND(C$3>0,TRIM(C$9)="CFS"),Conv_Flags!$C107,1) -> 2016.366018 | I107: AN: | J107: =IF($B$7="TEMP",SUMPRODUCT(J$13:J$93,Conv_Flags!$O$12:$O$92)/SUM(Conv_Flags!$O$12:$O$92),SUMPRODUCT(J$12:J$93,Conv_Flags!$O$11:$O$92)/SUM(Conv_Flags!$O$11:$O$92)) -> 2982.653433 | K107: =IF($B$7="TEMP",SUMPRODUCT(K$13:K$93,Conv_Flags!$O$12:$O$92)/SUM(Conv_Flags!$O$12:$O$92),SUMPRODUCT(K$12:K$93,Conv_Flags!$O$11:$O$92)/SUM(Conv_Flags!$O$11:$O$92)) -> 2933.640171 | L107: =IF($B$7="TEMP",SUMPRODUCT(L$13:L$93,Conv_Flags!$O$12:$O$92)/SUM(Conv_Flags!$O$12:$O$92),SUMPRODUCT(L$12:L$93,Conv_Flags!$O$11:$O$92)/SUM(Conv_Flags!$O$11:$O$92)) -> 3094.215939 | M107: =SUMPRODUCT(M$12:M$93,Conv_Flags!$O$12:$O$93)/SUM(Conv_Flags!$O$12:$O$93) -> 3249.519675 | N107: =SUMPRODUCT(N$12:N$93,Conv_Flags!$O$12:$O$93)/SUM(Conv_Flags!$O$12:$O$93) -> 3499.528973 | O107: =SUMPRODUCT(O$12:O$93,Conv_Flags!$O$12:$O$93)/SUM(Conv_Flags!$O$12:$O$93) -> 4009.800489 | P107: =SUMPRODUCT(P$12:P$93,Conv_Flags!$O$12:$O$93)/SUM(Conv_Flags!$O$12:$O$93) -> 4470.01535 | Q107: =SUMPRODUCT(Q$12:Q$93,Conv_Flags!$O$12:$O$93)/SUM(Conv_Flags!$O$12:$O$93) -> 4487.266228 | R107: =SUMPRODUCT(R$12:R$93,Conv_Flags!$O$12:$O$93)/SUM(Conv_Flags!$O$12:$O$93) -> 4182.317808 | S107: =SUMPRODUCT(S$12:S$93,Conv_Flags!$O$12:$O$93)/SUM(Conv_Flags!$O$12:$O$93) -> 3579.124294 | T107: =SUMPRODUCT(T$12:T$93,Conv_Flags!$O$12:$O$93)/SUM(Conv_Flags!$O$12:$O$93) -> 3246.480142 | U107: =SUMPRODUCT(U$12:U$93,Conv_Flags!$O$12:$O$93)/SUM(Conv_Flags!$O$12:$O$93) -> 3096.478042 | W107: =SUMPRODUCT(W$12:W$93,Conv_Flags!$O$12:$O$93)/SUM(Conv_Flags!$O$12:$O$93) -> 3267.339391 | X107: =SUMPRODUCT(X$12:X$93,Conv_Flags!$O$12:$O$93)/SUM(Conv_Flags!$O$12:$O$93) -> 3274.426171 | Y107: =IF($B$7="TEMP",SUMPRODUCT(Y$13:Y$93,Conv_Flags!$O$12:$O$92)/SUM(Conv_Flags!$O$12:$O$92),SUMPRODUCT(Y$12:Y$93,Conv_Flags!$O$11:$O$92)/SUM(Conv_Flags!$O$11:$O$92)) -> 3439.995209 | AA107: =IF($B$7="TEMP",SUMPRODUCT(AA$13:AA$93,Conv_Flags!$O$12:$O$92)/SUM(Conv_Flags!$O$12:$O$92),SUMPRODUCT(AA$12:AA$93,Conv_Flags!$O$11:$O$92)/SUM(Conv_Flags!$O$11:$O$92)) -> 3231.358776 | AB107: =SUMPRODUCT(AB$12:AB$93,Conv_Flags!$O$12:$O$93)/SUM(Conv_Flags!$O$12:$O$93) -> 3215.903954 | AC107: =IF($B$7="TEMP",SUMPRODUCT(AC$13:AC$93,Conv_Flags!$O$12:$O$92)/SUM(Conv_Flags!$O$12:$O$92),SUMPRODUCT(AC$12:AC$93,Conv_Flags!$O$11:$O$92)/SUM(Conv_Flags!$O$11:$O$92)) -> 3045.103729 | AD107: =IF($B$7="TEMP",SUMPRODUCT(AD$13:AD$93,Conv_Flags!$O$12:$O$92)/SUM(Conv_Flags!$O$12:$O$92),SUMPRODUCT(AD$12:AD$93,Conv_Flags!$O$11:$O$92)/SUM(Conv_Flags!$O$11:$O$92)) -> 3191.621617 | AE107: =SUMPRODUCT(AE$12:AE$93,Conv_Flags!$O$12:$O$93)/SUM(Conv_Flags!$O$12:$O$93) -> 4202.001364 | AF107: =SUMPRODUCT(AF$12:AF$93,Conv_Flags!$O$12:$O$93)/SUM(Conv_Flags!$O$12:$O$93) -> 3699.948595 | AG107: =SUMPRODUCT(AG$12:AG$93,Conv_Flags!$O$11:$O$92)/SUM(Conv_Flags!$O$11:$O$92) -> 2957.511535 | AI107: AN: | AJ107: =IF($B$7="TEMP",SUMPRODUCT(AJ$13:AJ$93,Conv_Flags!$O$12:$O$92)/SUM(Conv_Flags!$O$12:$O$92),SUMPRODUCT(AJ$12:AJ$93,Conv_Flags!$O$11:$O$92)/SUM(Conv_Flags!$O$11:$O$92)) -> 3030.089563 | AK107: =IF($B$7="TEMP",SUMPRODUCT(AK$13:AK$93,Conv_Flags!$O$12:$O$92)/SUM(Conv_Flags!$O$12:$O$92),SUMPRODUCT(AK$12:AK$93,Conv_Flags!$O$11:$O$92)/SUM(Conv_Flags!$O$11:$O$92)) -> 2976.212734 | AL107: =IF($B$7="TEMP",SUMPRODUCT(AL$13:AL$93,Conv_Flags!$O$12:$O$92)/SUM(Conv_Flags!$O$12:$O$92),SUMPRODUCT(AL$12:AL$93,Conv_Flags!$O$11:$O$92)/SUM(Conv_Flags!$O$11:$O$92)) -> 3122.126071 | AM107: =SUMPRODUCT(AM$12:AM$93,Conv_Flags!$O$12:$O$93)/SUM(Conv_Flags!$O$12:$O$93) -> 3252.98929 | AN107: =SUMPRODUCT(AN$12:AN$93,Conv_Flags!$O$12:$O$93)/SUM(Conv_Flags!$O$12:$O$93) -> 3501.864141 | AO107: =SUMPRODUCT(AO$12:AO$93,Conv_Flags!$O$12:$O$93)/SUM(Conv_Flags!$O$12:$O$93) -> 4005.886632 | AP107: =SUMPRODUCT(AP$12:AP$93,Conv_Flags!$O$12:$O$93)/SUM(Conv_Flags!$O$12:$O$93) -> 4472.848168 | AQ107: =SUMPRODUCT(AQ$12:AQ$93,Conv_Flags!$O$12:$O$93)/SUM(Conv_Flags!$O$12:$O$93) -> 4496.386403 | AR107: =SUMPRODUCT(AR$12:AR$93,Conv_Flags!$O$12:$O$93)/SUM(Conv_Flags!$O$12:$O$93) -> 4224.110228 | AS107: =SUMPRODUCT(AS$12:AS$93,Conv_Flags!$O$12:$O$93)/SUM(Conv_Flags!$O$12:$O$93) -> 3637.330467 | AT107: =SUMPRODUCT(AT$12:AT$93,Conv_Flags!$O$12:$O$93)/SUM(Conv_Flags!$O$12:$O$93) -> 3306.935521 | AU107: =SUMPRODUCT(AU$12:AU$93,Conv_Flags!$O$12:$O$93)/SUM(Conv_Flags!$O$12:$O$93) -> 3157.040278 | AW107: =SUMPRODUCT(AW$12:AW$93,Conv_Flags!$O$12:$O$93)/SUM(Conv_Flags!$O$12:$O$93) -> 3293.188109 | AX107: =SUMPRODUCT(AX$12:AX$93,Conv_Flags!$O$12:$O$93)/SUM(Conv_Flags!$O$12:$O$93) -> 3303.344869 | AY107: =IF($B$7="TEMP",SUMPRODUCT(AY$13:AY$93,Conv_Flags!$O$12:$O$92)/SUM(Conv_Flags!$O$12:$O$92),SUMPRODUCT(AY$12:AY$93,Conv_Flags!$O$11:$O$92)/SUM(Conv_Flags!$O$11:$O$92)) -> 3466.151573 | BA107: =IF($B$7="TEMP",SUMPRODUCT(BA$13:BA$93,Conv_Flags!$O$12:$O$92)/SUM(Conv_Flags!$O$12:$O$92),SUMPRODUCT(BA$12:BA$93,Conv_Flags!$O$11:$O$92)/SUM(Conv_Flags!$O$11:$O$92)) -> 3261.290037 | BB107: =SUMPRODUCT(BB$12:BB$93,Conv_Flags!$O$12:$O$93)/SUM(Conv_Flags!$O$12:$O$93) -> 3275.248676 | BC107: =IF($B$7="TEMP",SUMPRODUCT(BC$13:BC$93,Conv_Flags!$O$12:$O$92)/SUM(Conv_Flags!$O$12:$O$92),SUMPRODUCT(BC$12:BC$93,Conv_Flags!$O$11:$O$92)/SUM(Conv_Flags!$O$11:$O$92)) -> 3084.133247 | BD107: =IF($B$7="TEMP",SUMPRODUCT(BD$13:BD$93,Conv_Flags!$O$12:$O$92)/SUM(Conv_Flags!$O$12:$O$92),SUMPRODUCT(BD$12:BD$93,Conv_Flags!$O$11:$O$92)/SUM(Conv_Flags!$O$11:$O$92)) -> 3219.909619 | BE107: =SUMPRODUCT(BE$12:BE$93,Conv_Flags!$O$12:$O$93)/SUM(Conv_Flags!$O$12:$O$93) -> 4209.527097 | BF107: =SUMPRODUCT(BF$12:BF$93,Conv_Flags!$O$12:$O$93)/SUM(Conv_Flags!$O$12:$O$93) -> 3748.772389 | BG107: =SUMPRODUCT(BG$12:BG$93,Conv_Flags!$O$11:$O$92)/SUM(Conv_Flags!$O$11:$O$92) -> 2970.670924
A108: 1929-09-30 | B108: =INDIRECT(CONCATENATE("'",B$1,"'!",B$4,(YEAR($A108)-1921)*12+MONTH($A108)+3+IF(ISNUMBER(FIND("PRV",B$6)),1,0)))*IF(AND(B$3>0,TRIM(B$9)="CFS"),Conv_Flags!$C108,1) -> 1811.26945 | C108: =INDIRECT(CONCATENATE("'",C$1,"'!",C$4,(YEAR($A108)-1921)*12+MONTH($A108)+3+IF(ISNUMBER(FIND("PRV",C$6)),1,0)))*IF(AND(C$3>0,TRIM(C$9)="CFS"),Conv_Flags!$C108,1) -> 1907.724679 | I108: BN: | J108: =IF($B$7="TEMP",SUMPRODUCT(J$13:J$93,Conv_Flags!$P$12:$P$92)/SUM(Conv_Flags!$P$12:$P$92),SUMPRODUCT(J$12:J$93,Conv_Flags!$P$11:$P$92)/SUM(Conv_Flags!$P$11:$P$92)) -> 2945.872533 | K108: =IF($B$7="TEMP",SUMPRODUCT(K$13:K$93,Conv_Flags!$P$12:$P$92)/SUM(Conv_Flags!$P$12:$P$92),SUMPRODUCT(K$12:K$93,Conv_Flags!$P$11:$P$92)/SUM(Conv_Flags!$P$11:$P$92)) -> 2992.440999 | L108: =IF($B$7="TEMP",SUMPRODUCT(L$13:L$93,Conv_Flags!$P$12:$P$92)/SUM(Conv_Flags!$P$12:$P$92),SUMPRODUCT(L$12:L$93,Conv_Flags!$P$11:$P$92)/SUM(Conv_Flags!$P$11:$P$92)) -> 3055.576542 | M108: =SUMPRODUCT(M$12:M$93,Conv_Flags!$P$12:$P$93)/SUM(Conv_Flags!$P$12:$P$93) -> 3137.959836 | N108: =SUMPRODUCT(N$12:N$93,Conv_Flags!$P$12:$P$93)/SUM(Conv_Flags!$P$12:$P$93) -> 3441.421132 | O108: =SUMPRODUCT(O$12:O$93,Conv_Flags!$P$12:$P$93)/SUM(Conv_Flags!$P$12:$P$93) -> 3839.152361 | P108: =SUMPRODUCT(P$12:P$93,Conv_Flags!$P$12:$P$93)/SUM(Conv_Flags!$P$12:$P$93) -> 4277.195052 | Q108: =SUMPRODUCT(Q$12:Q$93,Conv_Flags!$P$12:$P$93)/SUM(Conv_Flags!$P$12:$P$93) -> 4264.915848 | R108: =SUMPRODUCT(R$12:R$93,Conv_Flags!$P$12:$P$93)/SUM(Conv_Flags!$P$12:$P$93) -> 3906.002379 | S108: =SUMPRODUCT(S$12:S$93,Conv_Flags!$P$12:$P$93)/SUM(Conv_Flags!$P$12:$P$93) -> 3388.727964 | T108: =SUMPRODUCT(T$12:T$93,Conv_Flags!$P$12:$P$93)/SUM(Conv_Flags!$P$12:$P$93) -> 3062.69242 | U108: =SUMPRODUCT(U$12:U$93,Conv_Flags!$P$12:$P$93)/SUM(Conv_Flags!$P$12:$P$93) -> 2985.839178 | W108: =SUMPRODUCT(W$12:W$93,Conv_Flags!$P$12:$P$93)/SUM(Conv_Flags!$P$12:$P$93) -> 3441.48302 | X108: =SUMPRODUCT(X$12:X$93,Conv_Flags!$P$12:$P$93)/SUM(Conv_Flags!$P$12:$P$93) -> 3456.093838 | Y108: =IF($B$7="TEMP",SUMPRODUCT(Y$13:Y$93,Conv_Flags!$P$12:$P$92)/SUM(Conv_Flags!$P$12:$P$92),SUMPRODUCT(Y$12:Y$93,Conv_Flags!$P$11:$P$92)/SUM(Conv_Flags!$P$11:$P$92)) -> 3464.732524 | AA108: =IF($B$7="TEMP",SUMPRODUCT(AA$13:AA$93,Conv_Flags!$P$12:$P$92)/SUM(Conv_Flags!$P$12:$P$92),SUMPRODUCT(AA$12:AA$93,Conv_Flags!$P$11:$P$92)/SUM(Conv_Flags!$P$11:$P$92)) -> 3243.834298 | AB108: =SUMPRODUCT(AB$12:AB$93,Conv_Flags!$P$12:$P$93)/SUM(Conv_Flags!$P$12:$P$93) -> 3071.943949 | AC108: =IF($B$7="TEMP",SUMPRODUCT(AC$13:AC$93,Conv_Flags!$P$12:$P$92)/SUM(Conv_Flags!$P$12:$P$92),SUMPRODUCT(AC$12:AC$93,Conv_Flags!$P$11:$P$92)/SUM(Conv_Flags!$P$11:$P$92)) -> 3028.591872 | AD108: =IF($B$7="TEMP",SUMPRODUCT(AD$13:AD$93,Conv_Flags!$P$12:$P$92)/SUM(Conv_Flags!$P$12:$P$92),SUMPRODUCT(AD$12:AD$93,Conv_Flags!$P$11:$P$92)/SUM(Conv_Flags!$P$11:$P$92)) -> 3185.570086 | AE108: =SUMPRODUCT(AE$12:AE$93,Conv_Flags!$P$12:$P$93)/SUM(Conv_Flags!$P$12:$P$93) -> 4013.743754 | AF108: =SUMPRODUCT(AF$12:AF$93,Conv_Flags!$P$12:$P$93)/SUM(Conv_Flags!$P$12:$P$93) -> 3495.700069 | AG108: =SUMPRODUCT(AG$12:AG$93,Conv_Flags!$P$11:$P$92)/SUM(Conv_Flags!$P$11:$P$92) -> 2959.491426 | AI108: BN: | AJ108: =IF($B$7="TEMP",SUMPRODUCT(AJ$13:AJ$93,Conv_Flags!$P$12:$P$92)/SUM(Conv_Flags!$P$12:$P$92),SUMPRODUCT(AJ$12:AJ$93,Conv_Flags!$P$11:$P$92)/SUM(Conv_Flags!$P$11:$P$92)) -> 2954.757146 | AK108: =IF($B$7="TEMP",SUMPRODUCT(AK$13:AK$93,Conv_Flags!$P$12:$P$92)/SUM(Conv_Flags!$P$12:$P$92),SUMPRODUCT(AK$12:AK$93,Conv_Flags!$P$11:$P$92)/SUM(Conv_Flags!$P$11:$P$92)) -> 2990.313576 | AL108: =IF($B$7="TEMP",SUMPRODUCT(AL$13:AL$93,Conv_Flags!$P$12:$P$92)/SUM(Conv_Flags!$P$12:$P$92),SUMPRODUCT(AL$12:AL$93,Conv_Flags!$P$11:$P$92)/SUM(Conv_Flags!$P$11:$P$92)) -> 3050.411893 | AM108: =SUMPRODUCT(AM$12:AM$93,Conv_Flags!$P$12:$P$93)/SUM(Conv_Flags!$P$12:$P$93) -> 3154.333583 | AN108: =SUMPRODUCT(AN$12:AN$93,Conv_Flags!$P$12:$P$93)/SUM(Conv_Flags!$P$12:$P$93) -> 3456.043275 | AO108: =SUMPRODUCT(AO$12:AO$93,Conv_Flags!$P$12:$P$93)/SUM(Conv_Flags!$P$12:$P$93) -> 3853.929168 | AP108: =SUMPRODUCT(AP$12:AP$93,Conv_Flags!$P$12:$P$93)/SUM(Conv_Flags!$P$12:$P$93) -> 4293.630883 | AQ108: =SUMPRODUCT(AQ$12:AQ$93,Conv_Flags!$P$12:$P$93)/SUM(Conv_Flags!$P$12:$P$93) -> 4291.27022 | AR108: =SUMPRODUCT(AR$12:AR$93,Conv_Flags!$P$12:$P$93)/SUM(Conv_Flags!$P$12:$P$93) -> 3940.299102 | AS108: =SUMPRODUCT(AS$12:AS$93,Conv_Flags!$P$12:$P$93)/SUM(Conv_Flags!$P$12:$P$93) -> 3406.801388 | AT108: =SUMPRODUCT(AT$12:AT$93,Conv_Flags!$P$12:$P$93)/SUM(Conv_Flags!$P$12:$P$93) -> 3080.527927 | AU108: =SUMPRODUCT(AU$12:AU$93,Conv_Flags!$P$12:$P$93)/SUM(Conv_Flags!$P$12:$P$93) -> 2996.813323 | AW108: =SUMPRODUCT(AW$12:AW$93,Conv_Flags!$P$12:$P$93)/SUM(Conv_Flags!$P$12:$P$93) -> 3455.760957 | AX108: =SUMPRODUCT(AX$12:AX$93,Conv_Flags!$P$12:$P$93)/SUM(Conv_Flags!$P$12:$P$93) -> 3466.582929 | AY108: =IF($B$7="TEMP",SUMPRODUCT(AY$13:AY$93,Conv_Flags!$P$12:$P$92)/SUM(Conv_Flags!$P$12:$P$92),SUMPRODUCT(AY$12:AY$93,Conv_Flags!$P$11:$P$92)/SUM(Conv_Flags!$P$11:$P$92)) -> 3466.179962 | BA108: =IF($B$7="TEMP",SUMPRODUCT(BA$13:BA$93,Conv_Flags!$P$12:$P$92)/SUM(Conv_Flags!$P$12:$P$92),SUMPRODUCT(BA$12:BA$93,Conv_Flags!$P$11:$P$92)/SUM(Conv_Flags!$P$11:$P$92)) -> 3240.191224 | BB108: =SUMPRODUCT(BB$12:BB$93,Conv_Flags!$P$12:$P$93)/SUM(Conv_Flags!$P$12:$P$93) -> 3086.040172 | BC108: =IF($B$7="TEMP",SUMPRODUCT(BC$13:BC$93,Conv_Flags!$P$12:$P$92)/SUM(Conv_Flags!$P$12:$P$92),SUMPRODUCT(BC$12:BC$93,Conv_Flags!$P$11:$P$92)/SUM(Conv_Flags!$P$11:$P$92)) -> 3029.611115 | BD108: =IF($B$7="TEMP",SUMPRODUCT(BD$13:BD$93,Conv_Flags!$P$12:$P$92)/SUM(Conv_Flags!$P$12:$P$92),SUMPRODUCT(BD$12:BD$93,Conv_Flags!$P$11:$P$92)/SUM(Conv_Flags!$P$11:$P$92)) -> 3180.081375 | BE108: =SUMPRODUCT(BE$12:BE$93,Conv_Flags!$P$12:$P$93)/SUM(Conv_Flags!$P$12:$P$93) -> 4034.250365 | BF108: =SUMPRODUCT(BF$12:BF$93,Conv_Flags!$P$12:$P$93)/SUM(Conv_Flags!$P$12:$P$93) -> 3517.917547 | BG108: =SUMPRODUCT(BG$12:BG$93,Conv_Flags!$P$11:$P$92)/SUM(Conv_Flags!$P$11:$P$92) -> 2965.548668
A109: 1929-10-31 | B109: =INDIRECT(CONCATENATE("'",B$1,"'!",B$4,(YEAR($A109)-1921)*12+MONTH($A109)+3+IF(ISNUMBER(FIND("PRV",B$6)),1,0)))*IF(AND(B$3>0,TRIM(B$9)="CFS"),Conv_Flags!$C109,1) -> 1654.348471 | C109: =INDIRECT(CONCATENATE("'",C$1,"'!",C$4,(YEAR($A109)-1921)*12+MONTH($A109)+3+IF(ISNUMBER(FIND("PRV",C$6)),1,0)))*IF(AND(C$3>0,TRIM(C$9)="CFS"),Conv_Flags!$C109,1) -> 1739.954684 | I109: D: | J109: =IF($B$7="TEMP",SUMPRODUCT(J$13:J$93,Conv_Flags!$Q$12:$Q$92)/SUM(Conv_Flags!$Q$12:$Q$92),SUMPRODUCT(J$12:J$93,Conv_Flags!$Q$11:$Q$92)/SUM(Conv_Flags!$Q$11:$Q$92)) -> 2579.744726 | K109: =IF($B$7="TEMP",SUMPRODUCT(K$13:K$93,Conv_Flags!$Q$12:$Q$92)/SUM(Conv_Flags!$Q$12:$Q$92),SUMPRODUCT(K$12:K$93,Conv_Flags!$Q$11:$Q$92)/SUM(Conv_Flags!$Q$11:$Q$92)) -> 2632.779818 | L109: =IF($B$7="TEMP",SUMPRODUCT(L$13:L$93,Conv_Flags!$Q$12:$Q$92)/SUM(Conv_Flags!$Q$12:$Q$92),SUMPRODUCT(L$12:L$93,Conv_Flags!$Q$11:$Q$92)/SUM(Conv_Flags!$Q$11:$Q$92)) -> 2837.773343 | M109: =SUMPRODUCT(M$12:M$93,Conv_Flags!$Q$12:$Q$93)/SUM(Conv_Flags!$Q$12:$Q$93) -> 2954.964972 | N109: =SUMPRODUCT(N$12:N$93,Conv_Flags!$Q$12:$Q$93)/SUM(Conv_Flags!$Q$12:$Q$93) -> 3321.184157 | O109: =SUMPRODUCT(O$12:O$93,Conv_Flags!$Q$12:$Q$93)/SUM(Conv_Flags!$Q$12:$Q$93) -> 3772.231196 | P109: =SUMPRODUCT(P$12:P$93,Conv_Flags!$Q$12:$Q$93)/SUM(Conv_Flags!$Q$12:$Q$93) -> 4008.131617 | Q109: =SUMPRODUCT(Q$12:Q$93,Conv_Flags!$Q$12:$Q$93)/SUM(Conv_Flags!$Q$12:$Q$93) -> 3877.238136 | R109: =SUMPRODUCT(R$12:R$93,Conv_Flags!$Q$12:$Q$93)/SUM(Conv_Flags!$Q$12:$Q$93) -> 3460.95437 | S109: =SUMPRODUCT(S$12:S$93,Conv_Flags!$Q$12:$Q$93)/SUM(Conv_Flags!$Q$12:$Q$93) -> 2999.529921 | T109: =SUMPRODUCT(T$12:T$93,Conv_Flags!$Q$12:$Q$93)/SUM(Conv_Flags!$Q$12:$Q$93) -> 2723.515041 | U109: =SUMPRODUCT(U$12:U$93,Conv_Flags!$Q$12:$Q$93)/SUM(Conv_Flags!$Q$12:$Q$93) -> 2669.229977 | W109: =SUMPRODUCT(W$12:W$93,Conv_Flags!$Q$12:$Q$93)/SUM(Conv_Flags!$Q$12:$Q$93) -> 3153.106439 | X109: =SUMPRODUCT(X$12:X$93,Conv_Flags!$Q$12:$Q$93)/SUM(Conv_Flags!$Q$12:$Q$93) -> 3166.16942 | Y109: =IF($B$7="TEMP",SUMPRODUCT(Y$13:Y$93,Conv_Flags!$Q$12:$Q$92)/SUM(Conv_Flags!$Q$12:$Q$92),SUMPRODUCT(Y$12:Y$93,Conv_Flags!$Q$11:$Q$92)/SUM(Conv_Flags!$Q$11:$Q$92)) -> 3247.119247 | AA109: =IF($B$7="TEMP",SUMPRODUCT(AA$13:AA$93,Conv_Flags!$Q$12:$Q$92)/SUM(Conv_Flags!$Q$12:$Q$92),SUMPRODUCT(AA$12:AA$93,Conv_Flags!$Q$11:$Q$92)/SUM(Conv_Flags!$Q$11:$Q$92)) -> 3006.646492 | AB109: =SUMPRODUCT(AB$12:AB$93,Conv_Flags!$Q$12:$Q$93)/SUM(Conv_Flags!$Q$12:$Q$93) -> 2727.460781 | AC109: =IF($B$7="TEMP",SUMPRODUCT(AC$13:AC$93,Conv_Flags!$Q$12:$Q$92)/SUM(Conv_Flags!$Q$12:$Q$92),SUMPRODUCT(AC$12:AC$93,Conv_Flags!$Q$11:$Q$92)/SUM(Conv_Flags!$Q$11:$Q$92)) -> 2735.364016 | AD109: =IF($B$7="TEMP",SUMPRODUCT(AD$13:AD$93,Conv_Flags!$Q$12:$Q$92)/SUM(Conv_Flags!$Q$12:$Q$92),SUMPRODUCT(AD$12:AD$93,Conv_Flags!$Q$11:$Q$92)/SUM(Conv_Flags!$Q$11:$Q$92)) -> 2975.719629 | AE109: =SUMPRODUCT(AE$12:AE$93,Conv_Flags!$Q$12:$Q$93)/SUM(Conv_Flags!$Q$12:$Q$93) -> 3762.167553 | AF109: =SUMPRODUCT(AF$12:AF$93,Conv_Flags!$Q$12:$Q$93)/SUM(Conv_Flags!$Q$12:$Q$93) -> 3114.308347 | AG109: =SUMPRODUCT(AG$12:AG$93,Conv_Flags!$Q$11:$Q$92)/SUM(Conv_Flags!$Q$11:$Q$92) -> 2602.40706 | AI109: D: | AJ109: =IF($B$7="TEMP",SUMPRODUCT(AJ$13:AJ$93,Conv_Flags!$Q$12:$Q$92)/SUM(Conv_Flags!$Q$12:$Q$92),SUMPRODUCT(AJ$12:AJ$93,Conv_Flags!$Q$11:$Q$92)/SUM(Conv_Flags!$Q$11:$Q$92)) -> 2599.086798 | AK109: =IF($B$7="TEMP",SUMPRODUCT(AK$13:AK$93,Conv_Flags!$Q$12:$Q$92)/SUM(Conv_Flags!$Q$12:$Q$92),SUMPRODUCT(AK$12:AK$93,Conv_Flags!$Q$11:$Q$92)/SUM(Conv_Flags!$Q$11:$Q$92)) -> 2642.864946 | AL109: =IF($B$7="TEMP",SUMPRODUCT(AL$13:AL$93,Conv_Flags!$Q$12:$Q$92)/SUM(Conv_Flags!$Q$12:$Q$92),SUMPRODUCT(AL$12:AL$93,Conv_Flags!$Q$11:$Q$92)/SUM(Conv_Flags!$Q$11:$Q$92)) -> 2851.652527 | AM109: =SUMPRODUCT(AM$12:AM$93,Conv_Flags!$Q$12:$Q$93)/SUM(Conv_Flags!$Q$12:$Q$93) -> 2968.022902 | AN109: =SUMPRODUCT(AN$12:AN$93,Conv_Flags!$Q$12:$Q$93)/SUM(Conv_Flags!$Q$12:$Q$93) -> 3337.066338 | AO109: =SUMPRODUCT(AO$12:AO$93,Conv_Flags!$Q$12:$Q$93)/SUM(Conv_Flags!$Q$12:$Q$93) -> 3787.696238 | AP109: =SUMPRODUCT(AP$12:AP$93,Conv_Flags!$Q$12:$Q$93)/SUM(Conv_Flags!$Q$12:$Q$93) -> 4025.623259 | AQ109: =SUMPRODUCT(AQ$12:AQ$93,Conv_Flags!$Q$12:$Q$93)/SUM(Conv_Flags!$Q$12:$Q$93) -> 3902.456601 | AR109: =SUMPRODUCT(AR$12:AR$93,Conv_Flags!$Q$12:$Q$93)/SUM(Conv_Flags!$Q$12:$Q$93) -> 3492.400127 | AS109: =SUMPRODUCT(AS$12:AS$93,Conv_Flags!$Q$12:$Q$93)/SUM(Conv_Flags!$Q$12:$Q$93) -> 3028.451938 | AT109: =SUMPRODUCT(AT$12:AT$93,Conv_Flags!$Q$12:$Q$93)/SUM(Conv_Flags!$Q$12:$Q$93) -> 2742.999349 | AU109: =SUMPRODUCT(AU$12:AU$93,Conv_Flags!$Q$12:$Q$93)/SUM(Conv_Flags!$Q$12:$Q$93) -> 2692.111505 | AW109: =SUMPRODUCT(AW$12:AW$93,Conv_Flags!$Q$12:$Q$93)/SUM(Conv_Flags!$Q$12:$Q$93) -> 3172.536044 | AX109: =SUMPRODUCT(AX$12:AX$93,Conv_Flags!$Q$12:$Q$93)/SUM(Conv_Flags!$Q$12:$Q$93) -> 3185.475888 | AY109: =IF($B$7="TEMP",SUMPRODUCT(AY$13:AY$93,Conv_Flags!$Q$12:$Q$92)/SUM(Conv_Flags!$Q$12:$Q$92),SUMPRODUCT(AY$12:AY$93,Conv_Flags!$Q$11:$Q$92)/SUM(Conv_Flags!$Q$11:$Q$92)) -> 3263.397965 | BA109: =IF($B$7="TEMP",SUMPRODUCT(BA$13:BA$93,Conv_Flags!$Q$12:$Q$92)/SUM(Conv_Flags!$Q$12:$Q$92),SUMPRODUCT(BA$12:BA$93,Conv_Flags!$Q$11:$Q$92)/SUM(Conv_Flags!$Q$11:$Q$92)) -> 3020.199809 | BB109: =SUMPRODUCT(BB$12:BB$93,Conv_Flags!$Q$12:$Q$93)/SUM(Conv_Flags!$Q$12:$Q$93) -> 2749.626741 | BC109: =IF($B$7="TEMP",SUMPRODUCT(BC$13:BC$93,Conv_Flags!$Q$12:$Q$92)/SUM(Conv_Flags!$Q$12:$Q$92),SUMPRODUCT(BC$12:BC$93,Conv_Flags!$Q$11:$Q$92)/SUM(Conv_Flags!$Q$11:$Q$92)) -> 2750.844476 | BD109: =IF($B$7="TEMP",SUMPRODUCT(BD$13:BD$93,Conv_Flags!$Q$12:$Q$92)/SUM(Conv_Flags!$Q$12:$Q$92),SUMPRODUCT(BD$12:BD$93,Conv_Flags!$Q$11:$Q$92)/SUM(Conv_Flags!$Q$11:$Q$92)) -> 2988.995522 | BE109: =SUMPRODUCT(BE$12:BE$93,Conv_Flags!$Q$12:$Q$93)/SUM(Conv_Flags!$Q$12:$Q$93) -> 3782.627332 | BF109: =SUMPRODUCT(BF$12:BF$93,Conv_Flags!$Q$12:$Q$93)/SUM(Conv_Flags!$Q$12:$Q$93) -> 3140.283867 | BG109: =SUMPRODUCT(BG$12:BG$93,Conv_Flags!$Q$11:$Q$92)/SUM(Conv_Flags!$Q$11:$Q$92) -> 2616.71399
A110: 1929-11-30 | B110: =INDIRECT(CONCATENATE("'",B$1,"'!",B$4,(YEAR($A110)-1921)*12+MONTH($A110)+3+IF(ISNUMBER(FIND("PRV",B$6)),1,0)))*IF(AND(B$3>0,TRIM(B$9)="CFS"),Conv_Flags!$C110,1) -> 1495.852598 | C110: =INDIRECT(CONCATENATE("'",C$1,"'!",C$4,(YEAR($A110)-1921)*12+MONTH($A110)+3+IF(ISNUMBER(FIND("PRV",C$6)),1,0)))*IF(AND(C$3>0,TRIM(C$9)="CFS"),Conv_Flags!$C110,1) -> 1558.228611 | I110: C: | J110: =IF($B$7="TEMP",SUMPRODUCT(J$13:J$93,Conv_Flags!$R$12:$R$92)/SUM(Conv_Flags!$R$12:$R$92),SUMPRODUCT(J$12:J$93,Conv_Flags!$R$11:$R$92)/SUM(Conv_Flags!$R$11:$R$92)) -> 1442.613657 | K110: =IF($B$7="TEMP",SUMPRODUCT(K$13:K$93,Conv_Flags!$R$12:$R$92)/SUM(Conv_Flags!$R$12:$R$92),SUMPRODUCT(K$12:K$93,Conv_Flags!$R$11:$R$92)/SUM(Conv_Flags!$R$11:$R$92)) -> 1405.645377 | L110: =IF($B$7="TEMP",SUMPRODUCT(L$13:L$93,Conv_Flags!$R$12:$R$92)/SUM(Conv_Flags!$R$12:$R$92),SUMPRODUCT(L$12:L$93,Conv_Flags!$R$11:$R$92)/SUM(Conv_Flags!$R$11:$R$92)) -> 1530.296337 | M110: =SUMPRODUCT(M$12:M$93,Conv_Flags!$R$12:$R$93)/SUM(Conv_Flags!$R$12:$R$93) -> 2333.913947 | N110: =SUMPRODUCT(N$12:N$93,Conv_Flags!$R$12:$R$93)/SUM(Conv_Flags!$R$12:$R$93) -> 2508.034607 | O110: =SUMPRODUCT(O$12:O$93,Conv_Flags!$R$12:$R$93)/SUM(Conv_Flags!$R$12:$R$93) -> 2715.218028 | P110: =SUMPRODUCT(P$12:P$93,Conv_Flags!$R$12:$R$93)/SUM(Conv_Flags!$R$12:$R$93) -> 2789.813525 | Q110: =SUMPRODUCT(Q$12:Q$93,Conv_Flags!$R$12:$R$93)/SUM(Conv_Flags!$R$12:$R$93) -> 2627.536641 | R110: =SUMPRODUCT(R$12:R$93,Conv_Flags!$R$12:$R$93)/SUM(Conv_Flags!$R$12:$R$93) -> 2261.548875 | S110: =SUMPRODUCT(S$12:S$93,Conv_Flags!$R$12:$R$93)/SUM(Conv_Flags!$R$12:$R$93) -> 1897.387137 | T110: =SUMPRODUCT(T$12:T$93,Conv_Flags!$R$12:$R$93)/SUM(Conv_Flags!$R$12:$R$93) -> 1612.076195 | U110: =SUMPRODUCT(U$12:U$93,Conv_Flags!$R$12:$R$93)/SUM(Conv_Flags!$R$12:$R$93) -> 1548.495922 | W110: =SUMPRODUCT(W$12:W$93,Conv_Flags!$R$12:$R$93)/SUM(Conv_Flags!$R$12:$R$93) -> 2056.048354 | X110: =SUMPRODUCT(X$12:X$93,Conv_Flags!$R$12:$R$93)/SUM(Conv_Flags!$R$12:$R$93) -> 2005.34856 | Y110: =IF($B$7="TEMP",SUMPRODUCT(Y$13:Y$93,Conv_Flags!$R$12:$R$92)/SUM(Conv_Flags!$R$12:$R$92),SUMPRODUCT(Y$12:Y$93,Conv_Flags!$R$11:$R$92)/SUM(Conv_Flags!$R$11:$R$92)) -> 2293.320087 | AA110: =IF($B$7="TEMP",SUMPRODUCT(AA$13:AA$93,Conv_Flags!$R$12:$R$92)/SUM(Conv_Flags!$R$12:$R$92),SUMPRODUCT(AA$12:AA$93,Conv_Flags!$R$11:$R$92)/SUM(Conv_Flags!$R$11:$R$92)) -> 1856.949831 | AB110: =SUMPRODUCT(AB$12:AB$93,Conv_Flags!$R$12:$R$93)/SUM(Conv_Flags!$R$12:$R$93) -> 1610.190838 | AC110: =IF($B$7="TEMP",SUMPRODUCT(AC$13:AC$93,Conv_Flags!$R$12:$R$92)/SUM(Conv_Flags!$R$12:$R$92),SUMPRODUCT(AC$12:AC$93,Conv_Flags!$R$11:$R$92)/SUM(Conv_Flags!$R$11:$R$92)) -> 1527.105027 | AD110: =IF($B$7="TEMP",SUMPRODUCT(AD$13:AD$93,Conv_Flags!$R$12:$R$92)/SUM(Conv_Flags!$R$12:$R$92),SUMPRODUCT(AD$12:AD$93,Conv_Flags!$R$11:$R$92)/SUM(Conv_Flags!$R$11:$R$92)) -> 1768.503772 | AE110: =SUMPRODUCT(AE$12:AE$93,Conv_Flags!$R$12:$R$93)/SUM(Conv_Flags!$R$12:$R$93) -> 2629.339984 | AF110: =SUMPRODUCT(AF$12:AF$93,Conv_Flags!$R$12:$R$93)/SUM(Conv_Flags!$R$12:$R$93) -> 1964.757122 | AG110: =SUMPRODUCT(AG$12:AG$93,Conv_Flags!$R$11:$R$92)/SUM(Conv_Flags!$R$11:$R$92) -> 2081.57442 | AI110: C: | AJ110: =IF($B$7="TEMP",SUMPRODUCT(AJ$13:AJ$93,Conv_Flags!$R$12:$R$92)/SUM(Conv_Flags!$R$12:$R$92),SUMPRODUCT(AJ$12:AJ$93,Conv_Flags!$R$11:$R$92)/SUM(Conv_Flags!$R$11:$R$92)) -> 1474.883207 | AK110: =IF($B$7="TEMP",SUMPRODUCT(AK$13:AK$93,Conv_Flags!$R$12:$R$92)/SUM(Conv_Flags!$R$12:$R$92),SUMPRODUCT(AK$12:AK$93,Conv_Flags!$R$11:$R$92)/SUM(Conv_Flags!$R$11:$R$92)) -> 1429.004759 | AL110: =IF($B$7="TEMP",SUMPRODUCT(AL$13:AL$93,Conv_Flags!$R$12:$R$92)/SUM(Conv_Flags!$R$12:$R$92),SUMPRODUCT(AL$12:AL$93,Conv_Flags!$R$11:$R$92)/SUM(Conv_Flags!$R$11:$R$92)) -> 1557.833446 | AM110: =SUMPRODUCT(AM$12:AM$93,Conv_Flags!$R$12:$R$93)/SUM(Conv_Flags!$R$12:$R$93) -> 2374.535935 | AN110: =SUMPRODUCT(AN$12:AN$93,Conv_Flags!$R$12:$R$93)/SUM(Conv_Flags!$R$12:$R$93) -> 2539.109585 | AO110: =SUMPRODUCT(AO$12:AO$93,Conv_Flags!$R$12:$R$93)/SUM(Conv_Flags!$R$12:$R$93) -> 2749.304369 | AP110: =SUMPRODUCT(AP$12:AP$93,Conv_Flags!$R$12:$R$93)/SUM(Conv_Flags!$R$12:$R$93) -> 2822.839529 | AQ110: =SUMPRODUCT(AQ$12:AQ$93,Conv_Flags!$R$12:$R$93)/SUM(Conv_Flags!$R$12:$R$93) -> 2661.925215 | AR110: =SUMPRODUCT(AR$12:AR$93,Conv_Flags!$R$12:$R$93)/SUM(Conv_Flags!$R$12:$R$93) -> 2300.425304 | AS110: =SUMPRODUCT(AS$12:AS$93,Conv_Flags!$R$12:$R$93)/SUM(Conv_Flags!$R$12:$R$93) -> 1935.185853 | AT110: =SUMPRODUCT(AT$12:AT$93,Conv_Flags!$R$12:$R$93)/SUM(Conv_Flags!$R$12:$R$93) -> 1653.214123 | AU110: =SUMPRODUCT(AU$12:AU$93,Conv_Flags!$R$12:$R$93)/SUM(Conv_Flags!$R$12:$R$93) -> 1585.399496 | AW110: =SUMPRODUCT(AW$12:AW$93,Conv_Flags!$R$12:$R$93)/SUM(Conv_Flags!$R$12:$R$93) -> 2090.305069 | AX110: =SUMPRODUCT(AX$12:AX$93,Conv_Flags!$R$12:$R$93)/SUM(Conv_Flags!$R$12:$R$93) -> 2041.536665 | AY110: =IF($B$7="TEMP",SUMPRODUCT(AY$13:AY$93,Conv_Flags!$R$12:$R$92)/SUM(Conv_Flags!$R$12:$R$92),SUMPRODUCT(AY$12:AY$93,Conv_Flags!$R$11:$R$92)/SUM(Conv_Flags!$R$11:$R$92)) -> 2328.367604 | BA110: =IF($B$7="TEMP",SUMPRODUCT(BA$13:BA$93,Conv_Flags!$R$12:$R$92)/SUM(Conv_Flags!$R$12:$R$92),SUMPRODUCT(BA$12:BA$93,Conv_Flags!$R$11:$R$92)/SUM(Conv_Flags!$R$11:$R$92)) -> 1893.30883 | BB110: =SUMPRODUCT(BB$12:BB$93,Conv_Flags!$R$12:$R$93)/SUM(Conv_Flags!$R$12:$R$93) -> 1647.882716 | BC110: =IF($B$7="TEMP",SUMPRODUCT(BC$13:BC$93,Conv_Flags!$R$12:$R$92)/SUM(Conv_Flags!$R$12:$R$92),SUMPRODUCT(BC$12:BC$93,Conv_Flags!$R$11:$R$92)/SUM(Conv_Flags!$R$11:$R$92)) -> 1559.019671 | BD110: =IF($B$7="TEMP",SUMPRODUCT(BD$13:BD$93,Conv_Flags!$R$12:$R$92)/SUM(Conv_Flags!$R$12:$R$92),SUMPRODUCT(BD$12:BD$93,Conv_Flags!$R$11:$R$92)/SUM(Conv_Flags!$R$11:$R$92)) -> 1806.068562 | BE110: =SUMPRODUCT(BE$12:BE$93,Conv_Flags!$R$12:$R$93)/SUM(Conv_Flags!$R$12:$R$93) -> 2663.459139 | BF110: =SUMPRODUCT(BF$12:BF$93,Conv_Flags!$R$12:$R$93)/SUM(Conv_Flags!$R$12:$R$93) -> 2003.121909 | BG110: =SUMPRODUCT(BG$12:BG$93,Conv_Flags!$R$11:$R$92)/SUM(Conv_Flags!$R$11:$R$92) -> 2108.280645
A111: 1929-12-31 | B111: =INDIRECT(CONCATENATE("'",B$1,"'!",B$4,(YEAR($A111)-1921)*12+MONTH($A111)+3+IF(ISNUMBER(FIND("PRV",B$6)),1,0)))*IF(AND(B$3>0,TRIM(B$9)="CFS"),Conv_Flags!$C111,1) -> 2037.433825 | C111: =INDIRECT(CONCATENATE("'",C$1,"'!",C$4,(YEAR($A111)-1921)*12+MONTH($A111)+3+IF(ISNUMBER(FIND("PRV",C$6)),1,0)))*IF(AND(C$3>0,TRIM(C$9)="CFS"),Conv_Flags!$C111,1) -> 2099.752385 | I111: D&C: | J111: =IF($B$7="TEMP",SUMPRODUCT(J$13:J$93,Conv_Flags!$S$12:$S$92)/SUM(Conv_Flags!$S$12:$S$92),SUMPRODUCT(J$12:J$93,Conv_Flags!$S$11:$S$92)/SUM(Conv_Flags!$S$11:$S$92)) -> 2124.892299 | K111: =IF($B$7="TEMP",SUMPRODUCT(K$13:K$93,Conv_Flags!$S$12:$S$92)/SUM(Conv_Flags!$S$12:$S$92),SUMPRODUCT(K$12:K$93,Conv_Flags!$S$11:$S$92)/SUM(Conv_Flags!$S$11:$S$92)) -> 2141.926042 | L111: =IF($B$7="TEMP",SUMPRODUCT(L$13:L$93,Conv_Flags!$S$12:$S$92)/SUM(Conv_Flags!$S$12:$S$92),SUMPRODUCT(L$12:L$93,Conv_Flags!$S$11:$S$92)/SUM(Conv_Flags!$S$11:$S$92)) -> 2314.782541 | M111: =SUMPRODUCT(M$12:M$93,Conv_Flags!$S$12:$S$93)/SUM(Conv_Flags!$S$12:$S$93) -> 2706.544562 | N111: =SUMPRODUCT(N$12:N$93,Conv_Flags!$S$12:$S$93)/SUM(Conv_Flags!$S$12:$S$93) -> 2995.924337 | O111: =SUMPRODUCT(O$12:O$93,Conv_Flags!$S$12:$S$93)/SUM(Conv_Flags!$S$12:$S$93) -> 3349.425929 | P111: =SUMPRODUCT(P$12:P$93,Conv_Flags!$S$12:$S$93)/SUM(Conv_Flags!$S$12:$S$93) -> 3520.80438 | Q111: =SUMPRODUCT(Q$12:Q$93,Conv_Flags!$S$12:$S$93)/SUM(Conv_Flags!$S$12:$S$93) -> 3377.357538 | R111: =SUMPRODUCT(R$12:R$93,Conv_Flags!$S$12:$S$93)/SUM(Conv_Flags!$S$12:$S$93) -> 2981.192172 | S111: =SUMPRODUCT(S$12:S$93,Conv_Flags!$S$12:$S$93)/SUM(Conv_Flags!$S$12:$S$93) -> 2558.672807 | T111: =SUMPRODUCT(T$12:T$93,Conv_Flags!$S$12:$S$93)/SUM(Conv_Flags!$S$12:$S$93) -> 2278.939503 | U111: =SUMPRODUCT(U$12:U$93,Conv_Flags!$S$12:$S$93)/SUM(Conv_Flags!$S$12:$S$93) -> 2220.936355 | W111: =SUMPRODUCT(W$12:W$93,Conv_Flags!$S$12:$S$93)/SUM(Conv_Flags!$S$12:$S$93) -> 2714.283205 | X111: =SUMPRODUCT(X$12:X$93,Conv_Flags!$S$12:$S$93)/SUM(Conv_Flags!$S$12:$S$93) -> 2701.841076 | Y111: =IF($B$7="TEMP",SUMPRODUCT(Y$13:Y$93,Conv_Flags!$S$12:$S$92)/SUM(Conv_Flags!$S$12:$S$92),SUMPRODUCT(Y$12:Y$93,Conv_Flags!$S$11:$S$92)/SUM(Conv_Flags!$S$11:$S$92)) -> 2865.599583 | AA111: =IF($B$7="TEMP",SUMPRODUCT(AA$13:AA$93,Conv_Flags!$S$12:$S$92)/SUM(Conv_Flags!$S$12:$S$92),SUMPRODUCT(AA$12:AA$93,Conv_Flags!$S$11:$S$92)/SUM(Conv_Flags!$S$11:$S$92)) -> 2546.767827 | AB111: =SUMPRODUCT(AB$12:AB$93,Conv_Flags!$S$12:$S$93)/SUM(Conv_Flags!$S$12:$S$93) -> 2280.552804 | AC111: =IF($B$7="TEMP",SUMPRODUCT(AC$13:AC$93,Conv_Flags!$S$12:$S$92)/SUM(Conv_Flags!$S$12:$S$92),SUMPRODUCT(AC$12:AC$93,Conv_Flags!$S$11:$S$92)/SUM(Conv_Flags!$S$11:$S$92)) -> 2252.06042 | AD111: =IF($B$7="TEMP",SUMPRODUCT(AD$13:AD$93,Conv_Flags!$S$12:$S$92)/SUM(Conv_Flags!$S$12:$S$92),SUMPRODUCT(AD$12:AD$93,Conv_Flags!$S$11:$S$92)/SUM(Conv_Flags!$S$11:$S$92)) -> 2492.833286 | AE111: =SUMPRODUCT(AE$12:AE$93,Conv_Flags!$S$12:$S$93)/SUM(Conv_Flags!$S$12:$S$93) -> 3309.036525 | AF111: =SUMPRODUCT(AF$12:AF$93,Conv_Flags!$S$12:$S$93)/SUM(Conv_Flags!$S$12:$S$93) -> 2654.487857 | AG111: =SUMPRODUCT(AG$12:AG$93,Conv_Flags!$S$11:$S$92)/SUM(Conv_Flags!$S$11:$S$92) -> 2394.074004 | AI111: D&C: | AJ111: =IF($B$7="TEMP",SUMPRODUCT(AJ$13:AJ$93,Conv_Flags!$S$12:$S$92)/SUM(Conv_Flags!$S$12:$S$92),SUMPRODUCT(AJ$12:AJ$93,Conv_Flags!$S$11:$S$92)/SUM(Conv_Flags!$S$11:$S$92)) -> 2149.405361 | AK111: =IF($B$7="TEMP",SUMPRODUCT(AK$13:AK$93,Conv_Flags!$S$12:$S$92)/SUM(Conv_Flags!$S$12:$S$92),SUMPRODUCT(AK$12:AK$93,Conv_Flags!$S$11:$S$92)/SUM(Conv_Flags!$S$11:$S$92)) -> 2157.320872 | AL111: =IF($B$7="TEMP",SUMPRODUCT(AL$13:AL$93,Conv_Flags!$S$12:$S$92)/SUM(Conv_Flags!$S$12:$S$92),SUMPRODUCT(AL$12:AL$93,Conv_Flags!$S$11:$S$92)/SUM(Conv_Flags!$S$11:$S$92)) -> 2334.124895 | AM111: =SUMPRODUCT(AM$12:AM$93,Conv_Flags!$S$12:$S$93)/SUM(Conv_Flags!$S$12:$S$93) -> 2730.628115 | AN111: =SUMPRODUCT(AN$12:AN$93,Conv_Flags!$S$12:$S$93)/SUM(Conv_Flags!$S$12:$S$93) -> 3017.883637 | AO111: =SUMPRODUCT(AO$12:AO$93,Conv_Flags!$S$12:$S$93)/SUM(Conv_Flags!$S$12:$S$93) -> 3372.33949 | AP111: =SUMPRODUCT(AP$12:AP$93,Conv_Flags!$S$12:$S$93)/SUM(Conv_Flags!$S$12:$S$93) -> 3544.509767 | AQ111: =SUMPRODUCT(AQ$12:AQ$93,Conv_Flags!$S$12:$S$93)/SUM(Conv_Flags!$S$12:$S$93) -> 3406.244046 | AR111: =SUMPRODUCT(AR$12:AR$93,Conv_Flags!$S$12:$S$93)/SUM(Conv_Flags!$S$12:$S$93) -> 3015.610198 | AS111: =SUMPRODUCT(AS$12:AS$93,Conv_Flags!$S$12:$S$93)/SUM(Conv_Flags!$S$12:$S$93) -> 2591.145504 | AT111: =SUMPRODUCT(AT$12:AT$93,Conv_Flags!$S$12:$S$93)/SUM(Conv_Flags!$S$12:$S$93) -> 2307.085258 | AU111: =SUMPRODUCT(AU$12:AU$93,Conv_Flags!$S$12:$S$93)/SUM(Conv_Flags!$S$12:$S$93) -> 2249.426701 | AW111: =SUMPRODUCT(AW$12:AW$93,Conv_Flags!$S$12:$S$93)/SUM(Conv_Flags!$S$12:$S$93) -> 2739.643654 | AX111: =SUMPRODUCT(AX$12:AX$93,Conv_Flags!$S$12:$S$93)/SUM(Conv_Flags!$S$12:$S$93) -> 2727.900199 | AY111: =IF($B$7="TEMP",SUMPRODUCT(AY$13:AY$93,Conv_Flags!$S$12:$S$92)/SUM(Conv_Flags!$S$12:$S$92),SUMPRODUCT(AY$12:AY$93,Conv_Flags!$S$11:$S$92)/SUM(Conv_Flags!$S$11:$S$92)) -> 2889.385821 | BA111: =IF($B$7="TEMP",SUMPRODUCT(BA$13:BA$93,Conv_Flags!$S$12:$S$92)/SUM(Conv_Flags!$S$12:$S$92),SUMPRODUCT(BA$12:BA$93,Conv_Flags!$S$11:$S$92)/SUM(Conv_Flags!$S$11:$S$92)) -> 2569.443418 | BB111: =SUMPRODUCT(BB$12:BB$93,Conv_Flags!$S$12:$S$93)/SUM(Conv_Flags!$S$12:$S$93) -> 2308.929131 | BC111: =IF($B$7="TEMP",SUMPRODUCT(BC$13:BC$93,Conv_Flags!$S$12:$S$92)/SUM(Conv_Flags!$S$12:$S$92),SUMPRODUCT(BC$12:BC$93,Conv_Flags!$S$11:$S$92)/SUM(Conv_Flags!$S$11:$S$92)) -> 2274.114554 | BD111: =IF($B$7="TEMP",SUMPRODUCT(BD$13:BD$93,Conv_Flags!$S$12:$S$92)/SUM(Conv_Flags!$S$12:$S$92),SUMPRODUCT(BD$12:BD$93,Conv_Flags!$S$11:$S$92)/SUM(Conv_Flags!$S$11:$S$92)) -> 2515.824738 | BE111: =SUMPRODUCT(BE$12:BE$93,Conv_Flags!$S$12:$S$93)/SUM(Conv_Flags!$S$12:$S$93) -> 3334.960055 | BF111: =SUMPRODUCT(BF$12:BF$93,Conv_Flags!$S$12:$S$93)/SUM(Conv_Flags!$S$12:$S$93) -> 2685.419084 | BG111: =SUMPRODUCT(BG$12:BG$93,Conv_Flags!$S$11:$S$92)/SUM(Conv_Flags!$S$11:$S$92) -> 2413.340652
A112: 1930-01-31 | B112: =INDIRECT(CONCATENATE("'",B$1,"'!",B$4,(YEAR($A112)-1921)*12+MONTH($A112)+3+IF(ISNUMBER(FIND("PRV",B$6)),1,0)))*IF(AND(B$3>0,TRIM(B$9)="CFS"),Conv_Flags!$C112,1) -> 2237.609963 | C112: =INDIRECT(CONCATENATE("'",C$1,"'!",C$4,(YEAR($A112)-1921)*12+MONTH($A112)+3+IF(ISNUMBER(FIND("PRV",C$6)),1,0)))*IF(AND(C$3>0,TRIM(C$9)="CFS"),Conv_Flags!$C112,1) -> 2299.884638 | I112: 60-20-20 | AI112: 60-20-20
A113: 1930-02-28 | B113: =INDIRECT(CONCATENATE("'",B$1,"'!",B$4,(YEAR($A113)-1921)*12+MONTH($A113)+3+IF(ISNUMBER(FIND("PRV",B$6)),1,0)))*IF(AND(B$3>0,TRIM(B$9)="CFS"),Conv_Flags!$C113,1) -> 2637.297243 | C113: =INDIRECT(CONCATENATE("'",C$1,"'!",C$4,(YEAR($A113)-1921)*12+MONTH($A113)+3+IF(ISNUMBER(FIND("PRV",C$6)),1,0)))*IF(AND(C$3>0,TRIM(C$9)="CFS"),Conv_Flags!$C113,1) -> 2699.506448 | I113: W: | J113: =IF($B$7="TEMP",SUMPRODUCT(J$13:J$93,Conv_Flags!$V$12:$V$92)/SUM(Conv_Flags!$V$12:$V$92),SUMPRODUCT(J$12:J$93,Conv_Flags!$V$11:$V$92)/SUM(Conv_Flags!$V$11:$V$92)) -> 3202.546753 | K113: =IF($B$7="TEMP",SUMPRODUCT(K$13:K$93,Conv_Flags!$V$12:$V$92)/SUM(Conv_Flags!$V$12:$V$92),SUMPRODUCT(K$12:K$93,Conv_Flags!$V$11:$V$92)/SUM(Conv_Flags!$V$11:$V$92)) -> 3159.29588 | L113: =IF($B$7="TEMP",SUMPRODUCT(L$13:L$93,Conv_Flags!$V$12:$V$92)/SUM(Conv_Flags!$V$12:$V$92),SUMPRODUCT(L$12:L$93,Conv_Flags!$V$11:$V$92)/SUM(Conv_Flags!$V$11:$V$92)) -> 3235.75213 | M113: =SUMPRODUCT(M$12:M$93,Conv_Flags!$V$12:$V$93)/SUM(Conv_Flags!$V$12:$V$93) -> 3288.588202 | N113: =SUMPRODUCT(N$12:N$93,Conv_Flags!$V$12:$V$93)/SUM(Conv_Flags!$V$12:$V$93) -> 3461.723184 | O113: =SUMPRODUCT(O$12:O$93,Conv_Flags!$V$12:$V$93)/SUM(Conv_Flags!$V$12:$V$93) -> 3786.843528 | P113: =SUMPRODUCT(P$12:P$93,Conv_Flags!$V$12:$V$93)/SUM(Conv_Flags!$V$12:$V$93) -> 4322.431629 | Q113: =SUMPRODUCT(Q$12:Q$93,Conv_Flags!$V$12:$V$93)/SUM(Conv_Flags!$V$12:$V$93) -> 4473.229862 | R113: =SUMPRODUCT(R$12:R$93,Conv_Flags!$V$12:$V$93)/SUM(Conv_Flags!$V$12:$V$93) -> 4355.996568 | S113: =SUMPRODUCT(S$12:S$93,Conv_Flags!$V$12:$V$93)/SUM(Conv_Flags!$V$12:$V$93) -> 3955.058901 | T113: =SUMPRODUCT(T$12:T$93,Conv_Flags!$V$12:$V$93)/SUM(Conv_Flags!$V$12:$V$93) -> 3571.394606 | U113: =SUMPRODUCT(U$12:U$93,Conv_Flags!$V$12:$V$93)/SUM(Conv_Flags!$V$12:$V$93) -> 3337.441681 | W113: =SUMPRODUCT(W$12:W$93,Conv_Flags!$V$12:$V$93)/SUM(Conv_Flags!$V$12:$V$93) -> 3679.19191 | X113: =SUMPRODUCT(X$12:X$93,Conv_Flags!$V$12:$V$93)/SUM(Conv_Flags!$V$12:$V$93) -> 3704.486905 | Y113: =IF($B$7="TEMP",SUMPRODUCT(Y$13:Y$93,Conv_Flags!$V$12:$V$92)/SUM(Conv_Flags!$V$12:$V$92),SUMPRODUCT(Y$12:Y$93,Conv_Flags!$V$11:$V$92)/SUM(Conv_Flags!$V$11:$V$92)) -> 3565.244423 | AA113: =IF($B$7="TEMP",SUMPRODUCT(AA$13:AA$93,Conv_Flags!$V$12:$V$92)/SUM(Conv_Flags!$V$12:$V$92),SUMPRODUCT(AA$12:AA$93,Conv_Flags!$V$11:$V$92)/SUM(Conv_Flags!$V$11:$V$92)) -> 3404.546219 | AB113: =SUMPRODUCT(AB$12:AB$93,Conv_Flags!$V$12:$V$93)/SUM(Conv_Flags!$V$12:$V$93) -> 3495.879704 | AC113: =IF($B$7="TEMP",SUMPRODUCT(AC$13:AC$93,Conv_Flags!$V$12:$V$92)/SUM(Conv_Flags!$V$12:$V$92),SUMPRODUCT(AC$12:AC$93,Conv_Flags!$V$11:$V$92)/SUM(Conv_Flags!$V$11:$V$92)) -> 3245.091414 | AD113: =IF($B$7="TEMP",SUMPRODUCT(AD$13:AD$93,Conv_Flags!$V$12:$V$92)/SUM(Conv_Flags!$V$12:$V$92),SUMPRODUCT(AD$12:AD$93,Conv_Flags!$V$11:$V$92)/SUM(Conv_Flags!$V$11:$V$92)) -> 3352.125261 | AE113: =SUMPRODUCT(AE$12:AE$93,Conv_Flags!$V$12:$V$93)/SUM(Conv_Flags!$V$12:$V$93) -> 4122.841224 | AF113: =SUMPRODUCT(AF$12:AF$93,Conv_Flags!$V$12:$V$93)/SUM(Conv_Flags!$V$12:$V$93) -> 3946.946461 | AG113: =SUMPRODUCT(AG$12:AG$93,Conv_Flags!$V$11:$V$92)/SUM(Conv_Flags!$V$11:$V$92) -> 3000.525361 | AI113: W: | AJ113: =IF($B$7="TEMP",SUMPRODUCT(AJ$13:AJ$93,Conv_Flags!$V$12:$V$92)/SUM(Conv_Flags!$V$12:$V$92),SUMPRODUCT(AJ$12:AJ$93,Conv_Flags!$V$11:$V$92)/SUM(Conv_Flags!$V$11:$V$92)) -> 3198.868093 | AK113: =IF($B$7="TEMP",SUMPRODUCT(AK$13:AK$93,Conv_Flags!$V$12:$V$92)/SUM(Conv_Flags!$V$12:$V$92),SUMPRODUCT(AK$12:AK$93,Conv_Flags!$V$11:$V$92)/SUM(Conv_Flags!$V$11:$V$92)) -> 3161.110674 | AL113: =IF($B$7="TEMP",SUMPRODUCT(AL$13:AL$93,Conv_Flags!$V$12:$V$92)/SUM(Conv_Flags!$V$12:$V$92),SUMPRODUCT(AL$12:AL$93,Conv_Flags!$V$11:$V$92)/SUM(Conv_Flags!$V$11:$V$92)) -> 3239.15321 | AM113: =SUMPRODUCT(AM$12:AM$93,Conv_Flags!$V$12:$V$93)/SUM(Conv_Flags!$V$12:$V$93) -> 3294.585515 | AN113: =SUMPRODUCT(AN$12:AN$93,Conv_Flags!$V$12:$V$93)/SUM(Conv_Flags!$V$12:$V$93) -> 3464.519262 | AO113: =SUMPRODUCT(AO$12:AO$93,Conv_Flags!$V$12:$V$93)/SUM(Conv_Flags!$V$12:$V$93) -> 3786.513025 | AP113: =SUMPRODUCT(AP$12:AP$93,Conv_Flags!$V$12:$V$93)/SUM(Conv_Flags!$V$12:$V$93) -> 4325.475973 | AQ113: =SUMPRODUCT(AQ$12:AQ$93,Conv_Flags!$V$12:$V$93)/SUM(Conv_Flags!$V$12:$V$93) -> 4474.481616 | AR113: =SUMPRODUCT(AR$12:AR$93,Conv_Flags!$V$12:$V$93)/SUM(Conv_Flags!$V$12:$V$93) -> 4353.793508 | AS113: =SUMPRODUCT(AS$12:AS$93,Conv_Flags!$V$12:$V$93)/SUM(Conv_Flags!$V$12:$V$93) -> 3958.79743 | AT113: =SUMPRODUCT(AT$12:AT$93,Conv_Flags!$V$12:$V$93)/SUM(Conv_Flags!$V$12:$V$93) -> 3575.651411 | AU113: =SUMPRODUCT(AU$12:AU$93,Conv_Flags!$V$12:$V$93)/SUM(Conv_Flags!$V$12:$V$93) -> 3335.745513 | AW113: =SUMPRODUCT(AW$12:AW$93,Conv_Flags!$V$12:$V$93)/SUM(Conv_Flags!$V$12:$V$93) -> 3680.724603 | AX113: =SUMPRODUCT(AX$12:AX$93,Conv_Flags!$V$12:$V$93)/SUM(Conv_Flags!$V$12:$V$93) -> 3705.347164 | AY113: =IF($B$7="TEMP",SUMPRODUCT(AY$13:AY$93,Conv_Flags!$V$12:$V$92)/SUM(Conv_Flags!$V$12:$V$92),SUMPRODUCT(AY$12:AY$93,Conv_Flags!$V$11:$V$92)/SUM(Conv_Flags!$V$11:$V$92)) -> 3569.487167 | BA113: =IF($B$7="TEMP",SUMPRODUCT(BA$13:BA$93,Conv_Flags!$V$12:$V$92)/SUM(Conv_Flags!$V$12:$V$92),SUMPRODUCT(BA$12:BA$93,Conv_Flags!$V$11:$V$92)/SUM(Conv_Flags!$V$11:$V$92)) -> 3405.255474 | BB113: =SUMPRODUCT(BB$12:BB$93,Conv_Flags!$V$12:$V$93)/SUM(Conv_Flags!$V$12:$V$93) -> 3496.743229 | BC113: =IF($B$7="TEMP",SUMPRODUCT(BC$13:BC$93,Conv_Flags!$V$12:$V$92)/SUM(Conv_Flags!$V$12:$V$92),SUMPRODUCT(BC$12:BC$93,Conv_Flags!$V$11:$V$92)/SUM(Conv_Flags!$V$11:$V$92)) -> 3245.335589 | BD113: =IF($B$7="TEMP",SUMPRODUCT(BD$13:BD$93,Conv_Flags!$V$12:$V$92)/SUM(Conv_Flags!$V$12:$V$92),SUMPRODUCT(BD$12:BD$93,Conv_Flags!$V$11:$V$92)/SUM(Conv_Flags!$V$11:$V$92)) -> 3353.777975 | BE113: =SUMPRODUCT(BE$12:BE$93,Conv_Flags!$V$12:$V$93)/SUM(Conv_Flags!$V$12:$V$93) -> 4123.90675 | BF113: =SUMPRODUCT(BF$12:BF$93,Conv_Flags!$V$12:$V$93)/SUM(Conv_Flags!$V$12:$V$93) -> 3948.338978 | BG113: =SUMPRODUCT(BG$12:BG$93,Conv_Flags!$V$11:$V$92)/SUM(Conv_Flags!$V$11:$V$92) -> 3003.870902
A114: 1930-03-31 | B114: =INDIRECT(CONCATENATE("'",B$1,"'!",B$4,(YEAR($A114)-1921)*12+MONTH($A114)+3+IF(ISNUMBER(FIND("PRV",B$6)),1,0)))*IF(AND(B$3>0,TRIM(B$9)="CFS"),Conv_Flags!$C114,1) -> 3130.808184 | C114: =INDIRECT(CONCATENATE("'",C$1,"'!",C$4,(YEAR($A114)-1921)*12+MONTH($A114)+3+IF(ISNUMBER(FIND("PRV",C$6)),1,0)))*IF(AND(C$3>0,TRIM(C$9)="CFS"),Conv_Flags!$C114,1) -> 3192.930444 | I114: AN: | J114: =IF($B$7="TEMP",SUMPRODUCT(J$13:J$93,Conv_Flags!$W$12:$W$92)/SUM(Conv_Flags!$W$12:$W$92),SUMPRODUCT(J$12:J$93,Conv_Flags!$W$11:$W$92)/SUM(Conv_Flags!$W$11:$W$92)) -> 2814.828035 | K114: =IF($B$7="TEMP",SUMPRODUCT(K$13:K$93,Conv_Flags!$W$12:$W$92)/SUM(Conv_Flags!$W$12:$W$92),SUMPRODUCT(K$12:K$93,Conv_Flags!$W$11:$W$92)/SUM(Conv_Flags!$W$11:$W$92)) -> 2836.991141 | L114: =IF($B$7="TEMP",SUMPRODUCT(L$13:L$93,Conv_Flags!$W$12:$W$92)/SUM(Conv_Flags!$W$12:$W$92),SUMPRODUCT(L$12:L$93,Conv_Flags!$W$11:$W$92)/SUM(Conv_Flags!$W$11:$W$92)) -> 2938.125557 | M114: =SUMPRODUCT(M$12:M$93,Conv_Flags!$W$12:$W$93)/SUM(Conv_Flags!$W$12:$W$93) -> 3130.569308 | N114: =SUMPRODUCT(N$12:N$93,Conv_Flags!$W$12:$W$93)/SUM(Conv_Flags!$W$12:$W$93) -> 3342.281913 | O114: =SUMPRODUCT(O$12:O$93,Conv_Flags!$W$12:$W$93)/SUM(Conv_Flags!$W$12:$W$93) -> 3754.481794 | P114: =SUMPRODUCT(P$12:P$93,Conv_Flags!$W$12:$W$93)/SUM(Conv_Flags!$W$12:$W$93) -> 4137.852914 | Q114: =SUMPRODUCT(Q$12:Q$93,Conv_Flags!$W$12:$W$93)/SUM(Conv_Flags!$W$12:$W$93) -> 4188.781252 | R114: =SUMPRODUCT(R$12:R$93,Conv_Flags!$W$12:$W$93)/SUM(Conv_Flags!$W$12:$W$93) -> 3884.793164 | S114: =SUMPRODUCT(S$12:S$93,Conv_Flags!$W$12:$W$93)/SUM(Conv_Flags!$W$12:$W$93) -> 3332.114601 | T114: =SUMPRODUCT(T$12:T$93,Conv_Flags!$W$12:$W$93)/SUM(Conv_Flags!$W$12:$W$93) -> 3017.451976 | U114: =SUMPRODUCT(U$12:U$93,Conv_Flags!$W$12:$W$93)/SUM(Conv_Flags!$W$12:$W$93) -> 2878.965011 | W114: =SUMPRODUCT(W$12:W$93,Conv_Flags!$W$12:$W$93)/SUM(Conv_Flags!$W$12:$W$93) -> 3356.284054 | X114: =SUMPRODUCT(X$12:X$93,Conv_Flags!$W$12:$W$93)/SUM(Conv_Flags!$W$12:$W$93) -> 3360.204338 | Y114: =IF($B$7="TEMP",SUMPRODUCT(Y$13:Y$93,Conv_Flags!$W$12:$W$92)/SUM(Conv_Flags!$W$12:$W$92),SUMPRODUCT(Y$12:Y$93,Conv_Flags!$W$11:$W$92)/SUM(Conv_Flags!$W$11:$W$92)) -> 3311.057129 | AA114: =IF($B$7="TEMP",SUMPRODUCT(AA$13:AA$93,Conv_Flags!$W$12:$W$92)/SUM(Conv_Flags!$W$12:$W$92),SUMPRODUCT(AA$12:AA$93,Conv_Flags!$W$11:$W$92)/SUM(Conv_Flags!$W$11:$W$92)) -> 3108.788206 | AB114: =SUMPRODUCT(AB$12:AB$93,Conv_Flags!$W$12:$W$93)/SUM(Conv_Flags!$W$12:$W$93) -> 2990.760501 | AC114: =IF($B$7="TEMP",SUMPRODUCT(AC$13:AC$93,Conv_Flags!$W$12:$W$92)/SUM(Conv_Flags!$W$12:$W$92),SUMPRODUCT(AC$12:AC$93,Conv_Flags!$W$11:$W$92)/SUM(Conv_Flags!$W$11:$W$92)) -> 2899.491261 | AD114: =IF($B$7="TEMP",SUMPRODUCT(AD$13:AD$93,Conv_Flags!$W$12:$W$92)/SUM(Conv_Flags!$W$12:$W$92),SUMPRODUCT(AD$12:AD$93,Conv_Flags!$W$11:$W$92)/SUM(Conv_Flags!$W$11:$W$92)) -> 3061.708115 | AE114: =SUMPRODUCT(AE$12:AE$93,Conv_Flags!$W$12:$W$93)/SUM(Conv_Flags!$W$12:$W$93) -> 3923.663375 | AF114: =SUMPRODUCT(AF$12:AF$93,Conv_Flags!$W$12:$W$93)/SUM(Conv_Flags!$W$12:$W$93) -> 3442.058218 | AG114: =SUMPRODUCT(AG$12:AG$93,Conv_Flags!$W$11:$W$92)/SUM(Conv_Flags!$W$11:$W$92) -> 2792.206804 | AI114: AN: | AJ114: =IF($B$7="TEMP",SUMPRODUCT(AJ$13:AJ$93,Conv_Flags!$W$12:$W$92)/SUM(Conv_Flags!$W$12:$W$92),SUMPRODUCT(AJ$12:AJ$93,Conv_Flags!$W$11:$W$92)/SUM(Conv_Flags!$W$11:$W$92)) -> 2845.535772 | AK114: =IF($B$7="TEMP",SUMPRODUCT(AK$13:AK$93,Conv_Flags!$W$12:$W$92)/SUM(Conv_Flags!$W$12:$W$92),SUMPRODUCT(AK$12:AK$93,Conv_Flags!$W$11:$W$92)/SUM(Conv_Flags!$W$11:$W$92)) -> 2862.864557 | AL114: =IF($B$7="TEMP",SUMPRODUCT(AL$13:AL$93,Conv_Flags!$W$12:$W$92)/SUM(Conv_Flags!$W$12:$W$92),SUMPRODUCT(AL$12:AL$93,Conv_Flags!$W$11:$W$92)/SUM(Conv_Flags!$W$11:$W$92)) -> 2956.214861 | AM114: =SUMPRODUCT(AM$12:AM$93,Conv_Flags!$W$12:$W$93)/SUM(Conv_Flags!$W$12:$W$93) -> 3152.67868 | AN114: =SUMPRODUCT(AN$12:AN$93,Conv_Flags!$W$12:$W$93)/SUM(Conv_Flags!$W$12:$W$93) -> 3361.444574 | AO114: =SUMPRODUCT(AO$12:AO$93,Conv_Flags!$W$12:$W$93)/SUM(Conv_Flags!$W$12:$W$93) -> 3775.021278 | AP114: =SUMPRODUCT(AP$12:AP$93,Conv_Flags!$W$12:$W$93)/SUM(Conv_Flags!$W$12:$W$93) -> 4157.811648 | AQ114: =SUMPRODUCT(AQ$12:AQ$93,Conv_Flags!$W$12:$W$93)/SUM(Conv_Flags!$W$12:$W$93) -> 4208.533598 | AR114: =SUMPRODUCT(AR$12:AR$93,Conv_Flags!$W$12:$W$93)/SUM(Conv_Flags!$W$12:$W$93) -> 3913.623979 | AS114: =SUMPRODUCT(AS$12:AS$93,Conv_Flags!$W$12:$W$93)/SUM(Conv_Flags!$W$12:$W$93) -> 3354.256026 | AT114: =SUMPRODUCT(AT$12:AT$93,Conv_Flags!$W$12:$W$93)/SUM(Conv_Flags!$W$12:$W$93) -> 3036.707263 | AU114: =SUMPRODUCT(AU$12:AU$93,Conv_Flags!$W$12:$W$93)/SUM(Conv_Flags!$W$12:$W$93) -> 2908.274858 | AW114: =SUMPRODUCT(AW$12:AW$93,Conv_Flags!$W$12:$W$93)/SUM(Conv_Flags!$W$12:$W$93) -> 3379.265284 | AX114: =SUMPRODUCT(AX$12:AX$93,Conv_Flags!$W$12:$W$93)/SUM(Conv_Flags!$W$12:$W$93) -> 3382.211751 | AY114: =IF($B$7="TEMP",SUMPRODUCT(AY$13:AY$93,Conv_Flags!$W$12:$W$92)/SUM(Conv_Flags!$W$12:$W$92),SUMPRODUCT(AY$12:AY$93,Conv_Flags!$W$11:$W$92)/SUM(Conv_Flags!$W$11:$W$92)) -> 3335.705512 | BA114: =IF($B$7="TEMP",SUMPRODUCT(BA$13:BA$93,Conv_Flags!$W$12:$W$92)/SUM(Conv_Flags!$W$12:$W$92),SUMPRODUCT(BA$12:BA$93,Conv_Flags!$W$11:$W$92)/SUM(Conv_Flags!$W$11:$W$92)) -> 3128.609802 | BB114: =SUMPRODUCT(BB$12:BB$93,Conv_Flags!$W$12:$W$93)/SUM(Conv_Flags!$W$12:$W$93) -> 3015.946903 | BC114: =IF($B$7="TEMP",SUMPRODUCT(BC$13:BC$93,Conv_Flags!$W$12:$W$92)/SUM(Conv_Flags!$W$12:$W$92),SUMPRODUCT(BC$12:BC$93,Conv_Flags!$W$11:$W$92)/SUM(Conv_Flags!$W$11:$W$92)) -> 2923.884882 | BD114: =IF($B$7="TEMP",SUMPRODUCT(BD$13:BD$93,Conv_Flags!$W$12:$W$92)/SUM(Conv_Flags!$W$12:$W$92),SUMPRODUCT(BD$12:BD$93,Conv_Flags!$W$11:$W$92)/SUM(Conv_Flags!$W$11:$W$92)) -> 3080.0799 | BE114: =SUMPRODUCT(BE$12:BE$93,Conv_Flags!$W$12:$W$93)/SUM(Conv_Flags!$W$12:$W$93) -> 3944.7252 | BF114: =SUMPRODUCT(BF$12:BF$93,Conv_Flags!$W$12:$W$93)/SUM(Conv_Flags!$W$12:$W$93) -> 3465.747874 | BG114: =SUMPRODUCT(BG$12:BG$93,Conv_Flags!$W$11:$W$92)/SUM(Conv_Flags!$W$11:$W$92) -> 2821.436416
A115: 1930-04-30 | B115: =INDIRECT(CONCATENATE("'",B$1,"'!",B$4,(YEAR($A115)-1921)*12+MONTH($A115)+3+IF(ISNUMBER(FIND("PRV",B$6)),1,0)))*IF(AND(B$3>0,TRIM(B$9)="CFS"),Conv_Flags!$C115,1) -> 3363.797144 | C115: =INDIRECT(CONCATENATE("'",C$1,"'!",C$4,(YEAR($A115)-1921)*12+MONTH($A115)+3+IF(ISNUMBER(FIND("PRV",C$6)),1,0)))*IF(AND(C$3>0,TRIM(C$9)="CFS"),Conv_Flags!$C115,1) -> 3425.792869 | I115: BN: | J115: =IF($B$7="TEMP",SUMPRODUCT(J$13:J$93,Conv_Flags!$X$12:$X$92)/SUM(Conv_Flags!$X$12:$X$92),SUMPRODUCT(J$12:J$93,Conv_Flags!$X$11:$X$92)/SUM(Conv_Flags!$X$11:$X$92)) -> 2993.249804 | K115: =IF($B$7="TEMP",SUMPRODUCT(K$13:K$93,Conv_Flags!$X$12:$X$92)/SUM(Conv_Flags!$X$12:$X$92),SUMPRODUCT(K$12:K$93,Conv_Flags!$X$11:$X$92)/SUM(Conv_Flags!$X$11:$X$92)) -> 3025.483565 | L115: =IF($B$7="TEMP",SUMPRODUCT(L$13:L$93,Conv_Flags!$X$12:$X$92)/SUM(Conv_Flags!$X$12:$X$92),SUMPRODUCT(L$12:L$93,Conv_Flags!$X$11:$X$92)/SUM(Conv_Flags!$X$11:$X$92)) -> 3126.415434 | M115: =SUMPRODUCT(M$12:M$93,Conv_Flags!$X$12:$X$93)/SUM(Conv_Flags!$X$12:$X$93) -> 3226.766763 | N115: =SUMPRODUCT(N$12:N$93,Conv_Flags!$X$12:$X$93)/SUM(Conv_Flags!$X$12:$X$93) -> 3601.441687 | O115: =SUMPRODUCT(O$12:O$93,Conv_Flags!$X$12:$X$93)/SUM(Conv_Flags!$X$12:$X$93) -> 3938.787274 | P115: =SUMPRODUCT(P$12:P$93,Conv_Flags!$X$12:$X$93)/SUM(Conv_Flags!$X$12:$X$93) -> 4404.072045 | Q115: =SUMPRODUCT(Q$12:Q$93,Conv_Flags!$X$12:$X$93)/SUM(Conv_Flags!$X$12:$X$93) -> 4390.037437 | R115: =SUMPRODUCT(R$12:R$93,Conv_Flags!$X$12:$X$93)/SUM(Conv_Flags!$X$12:$X$93) -> 4118.18996 | S115: =SUMPRODUCT(S$12:S$93,Conv_Flags!$X$12:$X$93)/SUM(Conv_Flags!$X$12:$X$93) -> 3560.90218 | T115: =SUMPRODUCT(T$12:T$93,Conv_Flags!$X$12:$X$93)/SUM(Conv_Flags!$X$12:$X$93) -> 3230.132609 | U115: =SUMPRODUCT(U$12:U$93,Conv_Flags!$X$12:$X$93)/SUM(Conv_Flags!$X$12:$X$93) -> 3075.126065 | W115: =SUMPRODUCT(W$12:W$93,Conv_Flags!$X$12:$X$93)/SUM(Conv_Flags!$X$12:$X$93) -> 3273.437773 | X115: =SUMPRODUCT(X$12:X$93,Conv_Flags!$X$12:$X$93)/SUM(Conv_Flags!$X$12:$X$93) -> 3285.447804 | Y115: =IF($B$7="TEMP",SUMPRODUCT(Y$13:Y$93,Conv_Flags!$X$12:$X$92)/SUM(Conv_Flags!$X$12:$X$92),SUMPRODUCT(Y$12:Y$93,Conv_Flags!$X$11:$X$92)/SUM(Conv_Flags!$X$11:$X$92)) -> 3500.797554 | AA115: =IF($B$7="TEMP",SUMPRODUCT(AA$13:AA$93,Conv_Flags!$X$12:$X$92)/SUM(Conv_Flags!$X$12:$X$92),SUMPRODUCT(AA$12:AA$93,Conv_Flags!$X$11:$X$92)/SUM(Conv_Flags!$X$11:$X$92)) -> 3307.799622 | AB115: =SUMPRODUCT(AB$12:AB$93,Conv_Flags!$X$12:$X$93)/SUM(Conv_Flags!$X$12:$X$93) -> 3198.185292 | AC115: =IF($B$7="TEMP",SUMPRODUCT(AC$13:AC$93,Conv_Flags!$X$12:$X$92)/SUM(Conv_Flags!$X$12:$X$92),SUMPRODUCT(AC$12:AC$93,Conv_Flags!$X$11:$X$92)/SUM(Conv_Flags!$X$11:$X$92)) -> 3086.725267 | AD115: =IF($B$7="TEMP",SUMPRODUCT(AD$13:AD$93,Conv_Flags!$X$12:$X$92)/SUM(Conv_Flags!$X$12:$X$92),SUMPRODUCT(AD$12:AD$93,Conv_Flags!$X$11:$X$92)/SUM(Conv_Flags!$X$11:$X$92)) -> 3258.426912 | AE115: =SUMPRODUCT(AE$12:AE$93,Conv_Flags!$X$12:$X$93)/SUM(Conv_Flags!$X$12:$X$93) -> 4148.178145 | AF115: =SUMPRODUCT(AF$12:AF$93,Conv_Flags!$X$12:$X$93)/SUM(Conv_Flags!$X$12:$X$93) -> 3660.451625 | AG115: =SUMPRODUCT(AG$12:AG$93,Conv_Flags!$X$11:$X$92)/SUM(Conv_Flags!$X$11:$X$92) -> 2971.471951 | AI115: BN: | AJ115: =IF($B$7="TEMP",SUMPRODUCT(AJ$13:AJ$93,Conv_Flags!$X$12:$X$92)/SUM(Conv_Flags!$X$12:$X$92),SUMPRODUCT(AJ$12:AJ$93,Conv_Flags!$X$11:$X$92)/SUM(Conv_Flags!$X$11:$X$92)) -> 3008.376275 | AK115: =IF($B$7="TEMP",SUMPRODUCT(AK$13:AK$93,Conv_Flags!$X$12:$X$92)/SUM(Conv_Flags!$X$12:$X$92),SUMPRODUCT(AK$12:AK$93,Conv_Flags!$X$11:$X$92)/SUM(Conv_Flags!$X$11:$X$92)) -> 3036.348044 | AL115: =IF($B$7="TEMP",SUMPRODUCT(AL$13:AL$93,Conv_Flags!$X$12:$X$92)/SUM(Conv_Flags!$X$12:$X$92),SUMPRODUCT(AL$12:AL$93,Conv_Flags!$X$11:$X$92)/SUM(Conv_Flags!$X$11:$X$92)) -> 3136.391169 | AM115: =SUMPRODUCT(AM$12:AM$93,Conv_Flags!$X$12:$X$93)/SUM(Conv_Flags!$X$12:$X$93) -> 3227.241177 | AN115: =SUMPRODUCT(AN$12:AN$93,Conv_Flags!$X$12:$X$93)/SUM(Conv_Flags!$X$12:$X$93) -> 3602.39808 | AO115: =SUMPRODUCT(AO$12:AO$93,Conv_Flags!$X$12:$X$93)/SUM(Conv_Flags!$X$12:$X$93) -> 3940.596732 | AP115: =SUMPRODUCT(AP$12:AP$93,Conv_Flags!$X$12:$X$93)/SUM(Conv_Flags!$X$12:$X$93) -> 4407.585489 | AQ115: =SUMPRODUCT(AQ$12:AQ$93,Conv_Flags!$X$12:$X$93)/SUM(Conv_Flags!$X$12:$X$93) -> 4408.442407 | AR115: =SUMPRODUCT(AR$12:AR$93,Conv_Flags!$X$12:$X$93)/SUM(Conv_Flags!$X$12:$X$93) -> 4151.401938 | AS115: =SUMPRODUCT(AS$12:AS$93,Conv_Flags!$X$12:$X$93)/SUM(Conv_Flags!$X$12:$X$93) -> 3584.023668 | AT115: =SUMPRODUCT(AT$12:AT$93,Conv_Flags!$X$12:$X$93)/SUM(Conv_Flags!$X$12:$X$93) -> 3250.22628 | AU115: =SUMPRODUCT(AU$12:AU$93,Conv_Flags!$X$12:$X$93)/SUM(Conv_Flags!$X$12:$X$93) -> 3098.346102 | AW115: =SUMPRODUCT(AW$12:AW$93,Conv_Flags!$X$12:$X$93)/SUM(Conv_Flags!$X$12:$X$93) -> 3283.802552 | AX115: =SUMPRODUCT(AX$12:AX$93,Conv_Flags!$X$12:$X$93)/SUM(Conv_Flags!$X$12:$X$93) -> 3297.079319 | AY115: =IF($B$7="TEMP",SUMPRODUCT(AY$13:AY$93,Conv_Flags!$X$12:$X$92)/SUM(Conv_Flags!$X$12:$X$92),SUMPRODUCT(AY$12:AY$93,Conv_Flags!$X$11:$X$92)/SUM(Conv_Flags!$X$11:$X$92)) -> 3514.804614 | BA115: =IF($B$7="TEMP",SUMPRODUCT(BA$13:BA$93,Conv_Flags!$X$12:$X$92)/SUM(Conv_Flags!$X$12:$X$92),SUMPRODUCT(BA$12:BA$93,Conv_Flags!$X$11:$X$92)/SUM(Conv_Flags!$X$11:$X$92)) -> 3317.712356 | BB115: =SUMPRODUCT(BB$12:BB$93,Conv_Flags!$X$12:$X$93)/SUM(Conv_Flags!$X$12:$X$93) -> 3220.254868 | BC115: =IF($B$7="TEMP",SUMPRODUCT(BC$13:BC$93,Conv_Flags!$X$12:$X$92)/SUM(Conv_Flags!$X$12:$X$92),SUMPRODUCT(BC$12:BC$93,Conv_Flags!$X$11:$X$92)/SUM(Conv_Flags!$X$11:$X$92)) -> 3098.984336 | BD115: =IF($B$7="TEMP",SUMPRODUCT(BD$13:BD$93,Conv_Flags!$X$12:$X$92)/SUM(Conv_Flags!$X$12:$X$92),SUMPRODUCT(BD$12:BD$93,Conv_Flags!$X$11:$X$92)/SUM(Conv_Flags!$X$11:$X$92)) -> 3268.373949 | BE115: =SUMPRODUCT(BE$12:BE$93,Conv_Flags!$X$12:$X$93)/SUM(Conv_Flags!$X$12:$X$93) -> 4158.381159 | BF115: =SUMPRODUCT(BF$12:BF$93,Conv_Flags!$X$12:$X$93)/SUM(Conv_Flags!$X$12:$X$93) -> 3684.761535 | BG115: =SUMPRODUCT(BG$12:BG$93,Conv_Flags!$X$11:$X$92)/SUM(Conv_Flags!$X$11:$X$92) -> 2995.037818
A116: 1930-05-31 | B116: =INDIRECT(CONCATENATE("'",B$1,"'!",B$4,(YEAR($A116)-1921)*12+MONTH($A116)+3+IF(ISNUMBER(FIND("PRV",B$6)),1,0)))*IF(AND(B$3>0,TRIM(B$9)="CFS"),Conv_Flags!$C116,1) -> 3337.046028 | C116: =INDIRECT(CONCATENATE("'",C$1,"'!",C$4,(YEAR($A116)-1921)*12+MONTH($A116)+3+IF(ISNUMBER(FIND("PRV",C$6)),1,0)))*IF(AND(C$3>0,TRIM(C$9)="CFS"),Conv_Flags!$C116,1) -> 3400.826688 | I116: D: | J116: =IF($B$7="TEMP",SUMPRODUCT(J$13:J$93,Conv_Flags!$Y$12:$Y$92)/SUM(Conv_Flags!$Y$12:$Y$92),SUMPRODUCT(J$12:J$93,Conv_Flags!$Y$11:$Y$92)/SUM(Conv_Flags!$Y$11:$Y$92)) -> 2574.451104 | K116: =IF($B$7="TEMP",SUMPRODUCT(K$13:K$93,Conv_Flags!$Y$12:$Y$92)/SUM(Conv_Flags!$Y$12:$Y$92),SUMPRODUCT(K$12:K$93,Conv_Flags!$Y$11:$Y$92)/SUM(Conv_Flags!$Y$11:$Y$92)) -> 2650.492062 | L116: =IF($B$7="TEMP",SUMPRODUCT(L$13:L$93,Conv_Flags!$Y$12:$Y$92)/SUM(Conv_Flags!$Y$12:$Y$92),SUMPRODUCT(L$12:L$93,Conv_Flags!$Y$11:$Y$92)/SUM(Conv_Flags!$Y$11:$Y$92)) -> 2878.200292 | M116: =SUMPRODUCT(M$12:M$93,Conv_Flags!$Y$12:$Y$93)/SUM(Conv_Flags!$Y$12:$Y$93) -> 3235.072322 | N116: =SUMPRODUCT(N$12:N$93,Conv_Flags!$Y$12:$Y$93)/SUM(Conv_Flags!$Y$12:$Y$93) -> 3501.540706 | O116: =SUMPRODUCT(O$12:O$93,Conv_Flags!$Y$12:$Y$93)/SUM(Conv_Flags!$Y$12:$Y$93) -> 3861.34807 | P116: =SUMPRODUCT(P$12:P$93,Conv_Flags!$Y$12:$Y$93)/SUM(Conv_Flags!$Y$12:$Y$93) -> 4069.838444 | Q116: =SUMPRODUCT(Q$12:Q$93,Conv_Flags!$Y$12:$Y$93)/SUM(Conv_Flags!$Y$12:$Y$93) -> 3897.194992 | R116: =SUMPRODUCT(R$12:R$93,Conv_Flags!$Y$12:$Y$93)/SUM(Conv_Flags!$Y$12:$Y$93) -> 3439.96999 | S116: =SUMPRODUCT(S$12:S$93,Conv_Flags!$Y$12:$Y$93)/SUM(Conv_Flags!$Y$12:$Y$93) -> 2954.521053 | T116: =SUMPRODUCT(T$12:T$93,Conv_Flags!$Y$12:$Y$93)/SUM(Conv_Flags!$Y$12:$Y$93) -> 2677.955578 | U116: =SUMPRODUCT(U$12:U$93,Conv_Flags!$Y$12:$Y$93)/SUM(Conv_Flags!$Y$12:$Y$93) -> 2640.794781 | W116: =SUMPRODUCT(W$12:W$93,Conv_Flags!$Y$12:$Y$93)/SUM(Conv_Flags!$Y$12:$Y$93) -> 3198.448283 | X116: =SUMPRODUCT(X$12:X$93,Conv_Flags!$Y$12:$Y$93)/SUM(Conv_Flags!$Y$12:$Y$93) -> 3182.578952 | Y116: =IF($B$7="TEMP",SUMPRODUCT(Y$13:Y$93,Conv_Flags!$Y$12:$Y$92)/SUM(Conv_Flags!$Y$12:$Y$92),SUMPRODUCT(Y$12:Y$93,Conv_Flags!$Y$11:$Y$92)/SUM(Conv_Flags!$Y$11:$Y$92)) -> 3371.1263 | AA116: =IF($B$7="TEMP",SUMPRODUCT(AA$13:AA$93,Conv_Flags!$Y$12:$Y$92)/SUM(Conv_Flags!$Y$12:$Y$92),SUMPRODUCT(AA$12:AA$93,Conv_Flags!$Y$11:$Y$92)/SUM(Conv_Flags!$Y$11:$Y$92)) -> 3050.584982 | AB116: =SUMPRODUCT(AB$12:AB$93,Conv_Flags!$Y$12:$Y$93)/SUM(Conv_Flags!$Y$12:$Y$93) -> 2694.412146 | AC116: =IF($B$7="TEMP",SUMPRODUCT(AC$13:AC$93,Conv_Flags!$Y$12:$Y$92)/SUM(Conv_Flags!$Y$12:$Y$92),SUMPRODUCT(AC$12:AC$93,Conv_Flags!$Y$11:$Y$92)/SUM(Conv_Flags!$Y$11:$Y$92)) -> 2755.193821 | AD116: =IF($B$7="TEMP",SUMPRODUCT(AD$13:AD$93,Conv_Flags!$Y$12:$Y$92)/SUM(Conv_Flags!$Y$12:$Y$92),SUMPRODUCT(AD$12:AD$93,Conv_Flags!$Y$11:$Y$92)/SUM(Conv_Flags!$Y$11:$Y$92)) -> 3024.590429 | AE116: =SUMPRODUCT(AE$12:AE$93,Conv_Flags!$Y$12:$Y$93)/SUM(Conv_Flags!$Y$12:$Y$93) -> 3824.784213 | AF116: =SUMPRODUCT(AF$12:AF$93,Conv_Flags!$Y$12:$Y$93)/SUM(Conv_Flags!$Y$12:$Y$93) -> 3085.360377 | AG116: =SUMPRODUCT(AG$12:AG$93,Conv_Flags!$Y$11:$Y$92)/SUM(Conv_Flags!$Y$11:$Y$92) -> 2729.809823 | AI116: D: | AJ116: =IF($B$7="TEMP",SUMPRODUCT(AJ$13:AJ$93,Conv_Flags!$Y$12:$Y$92)/SUM(Conv_Flags!$Y$12:$Y$92),SUMPRODUCT(AJ$12:AJ$93,Conv_Flags!$Y$11:$Y$92)/SUM(Conv_Flags!$Y$11:$Y$92)) -> 2602.096251 | AK116: =IF($B$7="TEMP",SUMPRODUCT(AK$13:AK$93,Conv_Flags!$Y$12:$Y$92)/SUM(Conv_Flags!$Y$12:$Y$92),SUMPRODUCT(AK$12:AK$93,Conv_Flags!$Y$11:$Y$92)/SUM(Conv_Flags!$Y$11:$Y$92)) -> 2666.65575 | AL116: =IF($B$7="TEMP",SUMPRODUCT(AL$13:AL$93,Conv_Flags!$Y$12:$Y$92)/SUM(Conv_Flags!$Y$12:$Y$92),SUMPRODUCT(AL$12:AL$93,Conv_Flags!$Y$11:$Y$92)/SUM(Conv_Flags!$Y$11:$Y$92)) -> 2891.334756 | AM116: =SUMPRODUCT(AM$12:AM$93,Conv_Flags!$Y$12:$Y$93)/SUM(Conv_Flags!$Y$12:$Y$93) -> 3257.647684 | AN116: =SUMPRODUCT(AN$12:AN$93,Conv_Flags!$Y$12:$Y$93)/SUM(Conv_Flags!$Y$12:$Y$93) -> 3524.53743 | AO116: =SUMPRODUCT(AO$12:AO$93,Conv_Flags!$Y$12:$Y$93)/SUM(Conv_Flags!$Y$12:$Y$93) -> 3882.325536 | AP116: =SUMPRODUCT(AP$12:AP$93,Conv_Flags!$Y$12:$Y$93)/SUM(Conv_Flags!$Y$12:$Y$93) -> 4093.70533 | AQ116: =SUMPRODUCT(AQ$12:AQ$93,Conv_Flags!$Y$12:$Y$93)/SUM(Conv_Flags!$Y$12:$Y$93) -> 3933.684453 | AR116: =SUMPRODUCT(AR$12:AR$93,Conv_Flags!$Y$12:$Y$93)/SUM(Conv_Flags!$Y$12:$Y$93) -> 3492.711319 | AS116: =SUMPRODUCT(AS$12:AS$93,Conv_Flags!$Y$12:$Y$93)/SUM(Conv_Flags!$Y$12:$Y$93) -> 3005.885576 | AT116: =SUMPRODUCT(AT$12:AT$93,Conv_Flags!$Y$12:$Y$93)/SUM(Conv_Flags!$Y$12:$Y$93) -> 2725.193793 | AU116: =SUMPRODUCT(AU$12:AU$93,Conv_Flags!$Y$12:$Y$93)/SUM(Conv_Flags!$Y$12:$Y$93) -> 2681.133752 | AW116: =SUMPRODUCT(AW$12:AW$93,Conv_Flags!$Y$12:$Y$93)/SUM(Conv_Flags!$Y$12:$Y$93) -> 3229.742636 | AX116: =SUMPRODUCT(AX$12:AX$93,Conv_Flags!$Y$12:$Y$93)/SUM(Conv_Flags!$Y$12:$Y$93) -> 3211.589959 | AY116: =IF($B$7="TEMP",SUMPRODUCT(AY$13:AY$93,Conv_Flags!$Y$12:$Y$92)/SUM(Conv_Flags!$Y$12:$Y$92),SUMPRODUCT(AY$12:AY$93,Conv_Flags!$Y$11:$Y$92)/SUM(Conv_Flags!$Y$11:$Y$92)) -> 3385.447273 | BA116: =IF($B$7="TEMP",SUMPRODUCT(BA$13:BA$93,Conv_Flags!$Y$12:$Y$92)/SUM(Conv_Flags!$Y$12:$Y$92),SUMPRODUCT(BA$12:BA$93,Conv_Flags!$Y$11:$Y$92)/SUM(Conv_Flags!$Y$11:$Y$92)) -> 3063.500377 | BB116: =SUMPRODUCT(BB$12:BB$93,Conv_Flags!$Y$12:$Y$93)/SUM(Conv_Flags!$Y$12:$Y$93) -> 2736.77282 | BC116: =IF($B$7="TEMP",SUMPRODUCT(BC$13:BC$93,Conv_Flags!$Y$12:$Y$92)/SUM(Conv_Flags!$Y$12:$Y$92),SUMPRODUCT(BC$12:BC$93,Conv_Flags!$Y$11:$Y$92)/SUM(Conv_Flags!$Y$11:$Y$92)) -> 2775.920393 | BD116: =IF($B$7="TEMP",SUMPRODUCT(BD$13:BD$93,Conv_Flags!$Y$12:$Y$92)/SUM(Conv_Flags!$Y$12:$Y$92),SUMPRODUCT(BD$12:BD$93,Conv_Flags!$Y$11:$Y$92)/SUM(Conv_Flags!$Y$11:$Y$92)) -> 3036.622355 | BE116: =SUMPRODUCT(BE$12:BE$93,Conv_Flags!$Y$12:$Y$93)/SUM(Conv_Flags!$Y$12:$Y$93) -> 3854.584923 | BF116: =SUMPRODUCT(BF$12:BF$93,Conv_Flags!$Y$12:$Y$93)/SUM(Conv_Flags!$Y$12:$Y$93) -> 3132.799948 | BG116: =SUMPRODUCT(BG$12:BG$93,Conv_Flags!$Y$11:$Y$92)/SUM(Conv_Flags!$Y$11:$Y$92) -> 2731.458429
A117: 1930-06-30 | B117: =INDIRECT(CONCATENATE("'",B$1,"'!",B$4,(YEAR($A117)-1921)*12+MONTH($A117)+3+IF(ISNUMBER(FIND("PRV",B$6)),1,0)))*IF(AND(B$3>0,TRIM(B$9)="CFS"),Conv_Flags!$C117,1) -> 3001.446122 | C117: =INDIRECT(CONCATENATE("'",C$1,"'!",C$4,(YEAR($A117)-1921)*12+MONTH($A117)+3+IF(ISNUMBER(FIND("PRV",C$6)),1,0)))*IF(AND(C$3>0,TRIM(C$9)="CFS"),Conv_Flags!$C117,1) -> 3064.542378 | I117: C: | J117: =IF($B$7="TEMP",SUMPRODUCT(J$13:J$93,Conv_Flags!$Z$12:$Z$92)/SUM(Conv_Flags!$Z$12:$Z$92),SUMPRODUCT(J$12:J$93,Conv_Flags!$Z$11:$Z$92)/SUM(Conv_Flags!$Z$11:$Z$92)) -> 1840.534864 | K117: =IF($B$7="TEMP",SUMPRODUCT(K$13:K$93,Conv_Flags!$Z$12:$Z$92)/SUM(Conv_Flags!$Z$12:$Z$92),SUMPRODUCT(K$12:K$93,Conv_Flags!$Z$11:$Z$92)/SUM(Conv_Flags!$Z$11:$Z$92)) -> 1818.577954 | L117: =IF($B$7="TEMP",SUMPRODUCT(L$13:L$93,Conv_Flags!$Z$12:$Z$92)/SUM(Conv_Flags!$Z$12:$Z$92),SUMPRODUCT(L$12:L$93,Conv_Flags!$Z$11:$Z$92)/SUM(Conv_Flags!$Z$11:$Z$92)) -> 1970.78281 | M117: =SUMPRODUCT(M$12:M$93,Conv_Flags!$Z$12:$Z$93)/SUM(Conv_Flags!$Z$12:$Z$93) -> 2562.716731 | N117: =SUMPRODUCT(N$12:N$93,Conv_Flags!$Z$12:$Z$93)/SUM(Conv_Flags!$Z$12:$Z$93) -> 2808.536443 | O117: =SUMPRODUCT(O$12:O$93,Conv_Flags!$Z$12:$Z$93)/SUM(Conv_Flags!$Z$12:$Z$93) -> 3151.030498 | P117: =SUMPRODUCT(P$12:P$93,Conv_Flags!$Z$12:$Z$93)/SUM(Conv_Flags!$Z$12:$Z$93) -> 3256.237411 | Q117: =SUMPRODUCT(Q$12:Q$93,Conv_Flags!$Z$12:$Z$93)/SUM(Conv_Flags!$Z$12:$Z$93) -> 3092.676541 | R117: =SUMPRODUCT(R$12:R$93,Conv_Flags!$Z$12:$Z$93)/SUM(Conv_Flags!$Z$12:$Z$93) -> 2685.962065 | S117: =SUMPRODUCT(S$12:S$93,Conv_Flags!$Z$12:$Z$93)/SUM(Conv_Flags!$Z$12:$Z$93) -> 2280.488753 | T117: =SUMPRODUCT(T$12:T$93,Conv_Flags!$Z$12:$Z$93)/SUM(Conv_Flags!$Z$12:$Z$93) -> 1995.906759 | U117: =SUMPRODUCT(U$12:U$93,Conv_Flags!$Z$12:$Z$93)/SUM(Conv_Flags!$Z$12:$Z$93) -> 1941.155211 | W117: =SUMPRODUCT(W$12:W$93,Conv_Flags!$Z$12:$Z$93)/SUM(Conv_Flags!$Z$12:$Z$93) -> 2450.383837 | X117: =SUMPRODUCT(X$12:X$93,Conv_Flags!$Z$12:$Z$93)/SUM(Conv_Flags!$Z$12:$Z$93) -> 2416.363741 | Y117: =IF($B$7="TEMP",SUMPRODUCT(Y$13:Y$93,Conv_Flags!$Z$12:$Z$92)/SUM(Conv_Flags!$Z$12:$Z$92),SUMPRODUCT(Y$12:Y$93,Conv_Flags!$Z$11:$Z$92)/SUM(Conv_Flags!$Z$11:$Z$92)) -> 2579.79555 | AA117: =IF($B$7="TEMP",SUMPRODUCT(AA$13:AA$93,Conv_Flags!$Z$12:$Z$92)/SUM(Conv_Flags!$Z$12:$Z$92),SUMPRODUCT(AA$12:AA$93,Conv_Flags!$Z$11:$Z$92)/SUM(Conv_Flags!$Z$11:$Z$92)) -> 2243.154806 | AB117: =SUMPRODUCT(AB$12:AB$93,Conv_Flags!$Z$12:$Z$93)/SUM(Conv_Flags!$Z$12:$Z$93) -> 1999.19126 | AC117: =IF($B$7="TEMP",SUMPRODUCT(AC$13:AC$93,Conv_Flags!$Z$12:$Z$92)/SUM(Conv_Flags!$Z$12:$Z$92),SUMPRODUCT(AC$12:AC$93,Conv_Flags!$Z$11:$Z$92)/SUM(Conv_Flags!$Z$11:$Z$92)) -> 1937.922018 | AD117: =IF($B$7="TEMP",SUMPRODUCT(AD$13:AD$93,Conv_Flags!$Z$12:$Z$92)/SUM(Conv_Flags!$Z$12:$Z$92),SUMPRODUCT(AD$12:AD$93,Conv_Flags!$Z$11:$Z$92)/SUM(Conv_Flags!$Z$11:$Z$92)) -> 2170.930879 | AE117: =SUMPRODUCT(AE$12:AE$93,Conv_Flags!$Z$12:$Z$93)/SUM(Conv_Flags!$Z$12:$Z$93) -> 3061.798426 | AF117: =SUMPRODUCT(AF$12:AF$93,Conv_Flags!$Z$12:$Z$93)/SUM(Conv_Flags!$Z$12:$Z$93) -> 2369.818363 | AG117: =SUMPRODUCT(AG$12:AG$93,Conv_Flags!$Z$11:$Z$92)/SUM(Conv_Flags!$Z$11:$Z$92) -> 2242.946621 | AI117: C: | AJ117: =IF($B$7="TEMP",SUMPRODUCT(AJ$13:AJ$93,Conv_Flags!$Z$12:$Z$92)/SUM(Conv_Flags!$Z$12:$Z$92),SUMPRODUCT(AJ$12:AJ$93,Conv_Flags!$Z$11:$Z$92)/SUM(Conv_Flags!$Z$11:$Z$92)) -> 1860.840075 | AK117: =IF($B$7="TEMP",SUMPRODUCT(AK$13:AK$93,Conv_Flags!$Z$12:$Z$92)/SUM(Conv_Flags!$Z$12:$Z$92),SUMPRODUCT(AK$12:AK$93,Conv_Flags!$Z$11:$Z$92)/SUM(Conv_Flags!$Z$11:$Z$92)) -> 1825.122093 | AL117: =IF($B$7="TEMP",SUMPRODUCT(AL$13:AL$93,Conv_Flags!$Z$12:$Z$92)/SUM(Conv_Flags!$Z$12:$Z$92),SUMPRODUCT(AL$12:AL$93,Conv_Flags!$Z$11:$Z$92)/SUM(Conv_Flags!$Z$11:$Z$92)) -> 1981.985948 | AM117: =SUMPRODUCT(AM$12:AM$93,Conv_Flags!$Z$12:$Z$93)/SUM(Conv_Flags!$Z$12:$Z$93) -> 2579.701688 | AN117: =SUMPRODUCT(AN$12:AN$93,Conv_Flags!$Z$12:$Z$93)/SUM(Conv_Flags!$Z$12:$Z$93) -> 2821.437197 | AO117: =SUMPRODUCT(AO$12:AO$93,Conv_Flags!$Z$12:$Z$93)/SUM(Conv_Flags!$Z$12:$Z$93) -> 3165.429635 | AP117: =SUMPRODUCT(AP$12:AP$93,Conv_Flags!$Z$12:$Z$93)/SUM(Conv_Flags!$Z$12:$Z$93) -> 3270.419208 | AQ117: =SUMPRODUCT(AQ$12:AQ$93,Conv_Flags!$Z$12:$Z$93)/SUM(Conv_Flags!$Z$12:$Z$93) -> 3110.176079 | AR117: =SUMPRODUCT(AR$12:AR$93,Conv_Flags!$Z$12:$Z$93)/SUM(Conv_Flags!$Z$12:$Z$93) -> 2708.84422 | AS117: =SUMPRODUCT(AS$12:AS$93,Conv_Flags!$Z$12:$Z$93)/SUM(Conv_Flags!$Z$12:$Z$93) -> 2301.58009 | AT117: =SUMPRODUCT(AT$12:AT$93,Conv_Flags!$Z$12:$Z$93)/SUM(Conv_Flags!$Z$12:$Z$93) -> 2019.557636 | AU117: =SUMPRODUCT(AU$12:AU$93,Conv_Flags!$Z$12:$Z$93)/SUM(Conv_Flags!$Z$12:$Z$93) -> 1963.34015 | AW117: =SUMPRODUCT(AW$12:AW$93,Conv_Flags!$Z$12:$Z$93)/SUM(Conv_Flags!$Z$12:$Z$93) -> 2467.369502 | AX117: =SUMPRODUCT(AX$12:AX$93,Conv_Flags!$Z$12:$Z$93)/SUM(Conv_Flags!$Z$12:$Z$93) -> 2435.83809 | AY117: =IF($B$7="TEMP",SUMPRODUCT(AY$13:AY$93,Conv_Flags!$Z$12:$Z$92)/SUM(Conv_Flags!$Z$12:$Z$92),SUMPRODUCT(AY$12:AY$93,Conv_Flags!$Z$11:$Z$92)/SUM(Conv_Flags!$Z$11:$Z$92)) -> 2603.877565 | BA117: =IF($B$7="TEMP",SUMPRODUCT(BA$13:BA$93,Conv_Flags!$Z$12:$Z$92)/SUM(Conv_Flags!$Z$12:$Z$92),SUMPRODUCT(BA$12:BA$93,Conv_Flags!$Z$11:$Z$92)/SUM(Conv_Flags!$Z$11:$Z$92)) -> 2263.370778 | BB117: =SUMPRODUCT(BB$12:BB$93,Conv_Flags!$Z$12:$Z$93)/SUM(Conv_Flags!$Z$12:$Z$93) -> 2021.36929 | BC117: =IF($B$7="TEMP",SUMPRODUCT(BC$13:BC$93,Conv_Flags!$Z$12:$Z$92)/SUM(Conv_Flags!$Z$12:$Z$92),SUMPRODUCT(BC$12:BC$93,Conv_Flags!$Z$11:$Z$92)/SUM(Conv_Flags!$Z$11:$Z$92)) -> 1954.038046 | BD117: =IF($B$7="TEMP",SUMPRODUCT(BD$13:BD$93,Conv_Flags!$Z$12:$Z$92)/SUM(Conv_Flags!$Z$12:$Z$92),SUMPRODUCT(BD$12:BD$93,Conv_Flags!$Z$11:$Z$92)/SUM(Conv_Flags!$Z$11:$Z$92)) -> 2190.820654 | BE117: =SUMPRODUCT(BE$12:BE$93,Conv_Flags!$Z$12:$Z$93)/SUM(Conv_Flags!$Z$12:$Z$93) -> 3077.791407 | BF117: =SUMPRODUCT(BF$12:BF$93,Conv_Flags!$Z$12:$Z$93)/SUM(Conv_Flags!$Z$12:$Z$93) -> 2391.685015 | BG117: =SUMPRODUCT(BG$12:BG$93,Conv_Flags!$Z$11:$Z$92)/SUM(Conv_Flags!$Z$11:$Z$92) -> 2271.26431
A118: 1930-07-31 | B118: =INDIRECT(CONCATENATE("'",B$1,"'!",B$4,(YEAR($A118)-1921)*12+MONTH($A118)+3+IF(ISNUMBER(FIND("PRV",B$6)),1,0)))*IF(AND(B$3>0,TRIM(B$9)="CFS"),Conv_Flags!$C118,1) -> 2642.148116 | C118: =INDIRECT(CONCATENATE("'",C$1,"'!",C$4,(YEAR($A118)-1921)*12+MONTH($A118)+3+IF(ISNUMBER(FIND("PRV",C$6)),1,0)))*IF(AND(C$3>0,TRIM(C$9)="CFS"),Conv_Flags!$C118,1) -> 2703.96358 | I118: D&C: | J118: =IF($B$7="TEMP",SUMPRODUCT(J$13:J$93,Conv_Flags!$AA$12:$AA$92)/SUM(Conv_Flags!$AA$12:$AA$92),SUMPRODUCT(J$12:J$93,Conv_Flags!$AA$11:$AA$92)/SUM(Conv_Flags!$AA$11:$AA$92)) -> 2169.531799 | K118: =IF($B$7="TEMP",SUMPRODUCT(K$13:K$93,Conv_Flags!$AA$12:$AA$92)/SUM(Conv_Flags!$AA$12:$AA$92),SUMPRODUCT(K$12:K$93,Conv_Flags!$AA$11:$AA$92)/SUM(Conv_Flags!$AA$11:$AA$92)) -> 2191.504968 | L118: =IF($B$7="TEMP",SUMPRODUCT(L$13:L$93,Conv_Flags!$AA$12:$AA$92)/SUM(Conv_Flags!$AA$12:$AA$92),SUMPRODUCT(L$12:L$93,Conv_Flags!$AA$11:$AA$92)/SUM(Conv_Flags!$AA$11:$AA$92)) -> 2377.556164 | M118: =SUMPRODUCT(M$12:M$93,Conv_Flags!$AA$12:$AA$93)/SUM(Conv_Flags!$AA$12:$AA$93) -> 2864.117513 | N118: =SUMPRODUCT(N$12:N$93,Conv_Flags!$AA$12:$AA$93)/SUM(Conv_Flags!$AA$12:$AA$93) -> 3119.193527 | O118: =SUMPRODUCT(O$12:O$93,Conv_Flags!$AA$12:$AA$93)/SUM(Conv_Flags!$AA$12:$AA$93) -> 3469.44872 | P118: =SUMPRODUCT(P$12:P$93,Conv_Flags!$AA$12:$AA$93)/SUM(Conv_Flags!$AA$12:$AA$93) -> 3620.955116 | Q118: =SUMPRODUCT(Q$12:Q$93,Conv_Flags!$AA$12:$AA$93)/SUM(Conv_Flags!$AA$12:$AA$93) -> 3453.322743 | R118: =SUMPRODUCT(R$12:R$93,Conv_Flags!$AA$12:$AA$93)/SUM(Conv_Flags!$AA$12:$AA$93) -> 3023.965617 | S118: =SUMPRODUCT(S$12:S$93,Conv_Flags!$AA$12:$AA$93)/SUM(Conv_Flags!$AA$12:$AA$93) -> 2582.641163 | T118: =SUMPRODUCT(T$12:T$93,Conv_Flags!$AA$12:$AA$93)/SUM(Conv_Flags!$AA$12:$AA$93) -> 2301.652781 | U118: =SUMPRODUCT(U$12:U$93,Conv_Flags!$AA$12:$AA$93)/SUM(Conv_Flags!$AA$12:$AA$93) -> 2254.786742 | W118: =SUMPRODUCT(W$12:W$93,Conv_Flags!$AA$12:$AA$93)/SUM(Conv_Flags!$AA$12:$AA$93) -> 2785.723071 | X118: =SUMPRODUCT(X$12:X$93,Conv_Flags!$AA$12:$AA$93)/SUM(Conv_Flags!$AA$12:$AA$93) -> 2759.839525 | Y118: =IF($B$7="TEMP",SUMPRODUCT(Y$13:Y$93,Conv_Flags!$AA$12:$AA$92)/SUM(Conv_Flags!$AA$12:$AA$92),SUMPRODUCT(Y$12:Y$93,Conv_Flags!$AA$11:$AA$92)/SUM(Conv_Flags!$AA$11:$AA$92)) -> 2934.530024 | AA118: =IF($B$7="TEMP",SUMPRODUCT(AA$13:AA$93,Conv_Flags!$AA$12:$AA$92)/SUM(Conv_Flags!$AA$12:$AA$92),SUMPRODUCT(AA$12:AA$93,Conv_Flags!$AA$11:$AA$92)/SUM(Conv_Flags!$AA$11:$AA$92)) -> 2605.106264 | AB118: =SUMPRODUCT(AB$12:AB$93,Conv_Flags!$AA$12:$AA$93)/SUM(Conv_Flags!$AA$12:$AA$93) -> 2310.842002 | AC118: =IF($B$7="TEMP",SUMPRODUCT(AC$13:AC$93,Conv_Flags!$AA$12:$AA$92)/SUM(Conv_Flags!$AA$12:$AA$92),SUMPRODUCT(AC$12:AC$93,Conv_Flags!$AA$11:$AA$92)/SUM(Conv_Flags!$AA$11:$AA$92)) -> 2304.28524 | AD118: =IF($B$7="TEMP",SUMPRODUCT(AD$13:AD$93,Conv_Flags!$AA$12:$AA$92)/SUM(Conv_Flags!$AA$12:$AA$92),SUMPRODUCT(AD$12:AD$93,Conv_Flags!$AA$11:$AA$92)/SUM(Conv_Flags!$AA$11:$AA$92)) -> 2553.60585 | AE118: =SUMPRODUCT(AE$12:AE$93,Conv_Flags!$AA$12:$AA$93)/SUM(Conv_Flags!$AA$12:$AA$93) -> 3403.826538 | AF118: =SUMPRODUCT(AF$12:AF$93,Conv_Flags!$AA$12:$AA$93)/SUM(Conv_Flags!$AA$12:$AA$93) -> 2690.578576 | AG118: =SUMPRODUCT(AG$12:AG$93,Conv_Flags!$AA$11:$AA$92)/SUM(Conv_Flags!$AA$11:$AA$92) -> 2461.195642 | AI118: D&C: | AJ118: =IF($B$7="TEMP",SUMPRODUCT(AJ$13:AJ$93,Conv_Flags!$AA$12:$AA$92)/SUM(Conv_Flags!$AA$12:$AA$92),SUMPRODUCT(AJ$12:AJ$93,Conv_Flags!$AA$11:$AA$92)/SUM(Conv_Flags!$AA$11:$AA$92)) -> 2193.127326 | AK118: =IF($B$7="TEMP",SUMPRODUCT(AK$13:AK$93,Conv_Flags!$AA$12:$AA$92)/SUM(Conv_Flags!$AA$12:$AA$92),SUMPRODUCT(AK$12:AK$93,Conv_Flags!$AA$11:$AA$92)/SUM(Conv_Flags!$AA$11:$AA$92)) -> 2202.361318 | AL118: =IF($B$7="TEMP",SUMPRODUCT(AL$13:AL$93,Conv_Flags!$AA$12:$AA$92)/SUM(Conv_Flags!$AA$12:$AA$92),SUMPRODUCT(AL$12:AL$93,Conv_Flags!$AA$11:$AA$92)/SUM(Conv_Flags!$AA$11:$AA$92)) -> 2389.625069 | AM118: =SUMPRODUCT(AM$12:AM$93,Conv_Flags!$AA$12:$AA$93)/SUM(Conv_Flags!$AA$12:$AA$93) -> 2883.608514 | AN118: =SUMPRODUCT(AN$12:AN$93,Conv_Flags!$AA$12:$AA$93)/SUM(Conv_Flags!$AA$12:$AA$93) -> 3136.62006 | AO118: =SUMPRODUCT(AO$12:AO$93,Conv_Flags!$AA$12:$AA$93)/SUM(Conv_Flags!$AA$12:$AA$93) -> 3486.796763 | AP118: =SUMPRODUCT(AP$12:AP$93,Conv_Flags!$AA$12:$AA$93)/SUM(Conv_Flags!$AA$12:$AA$93) -> 3639.478504 | AQ118: =SUMPRODUCT(AQ$12:AQ$93,Conv_Flags!$AA$12:$AA$93)/SUM(Conv_Flags!$AA$12:$AA$93) -> 3479.335005 | AR118: =SUMPRODUCT(AR$12:AR$93,Conv_Flags!$AA$12:$AA$93)/SUM(Conv_Flags!$AA$12:$AA$93) -> 3060.23292 | AS118: =SUMPRODUCT(AS$12:AS$93,Conv_Flags!$AA$12:$AA$93)/SUM(Conv_Flags!$AA$12:$AA$93) -> 2617.303239 | AT118: =SUMPRODUCT(AT$12:AT$93,Conv_Flags!$AA$12:$AA$93)/SUM(Conv_Flags!$AA$12:$AA$93) -> 2335.877293 | AU118: =SUMPRODUCT(AU$12:AU$93,Conv_Flags!$AA$12:$AA$93)/SUM(Conv_Flags!$AA$12:$AA$93) -> 2285.109696 | AW118: =SUMPRODUCT(AW$12:AW$93,Conv_Flags!$AA$12:$AA$93)/SUM(Conv_Flags!$AA$12:$AA$93) -> 2809.122976 | AX118: =SUMPRODUCT(AX$12:AX$93,Conv_Flags!$AA$12:$AA$93)/SUM(Conv_Flags!$AA$12:$AA$93) -> 2783.588928 | AY118: =IF($B$7="TEMP",SUMPRODUCT(AY$13:AY$93,Conv_Flags!$AA$12:$AA$92)/SUM(Conv_Flags!$AA$12:$AA$92),SUMPRODUCT(AY$12:AY$93,Conv_Flags!$AA$11:$AA$92)/SUM(Conv_Flags!$AA$11:$AA$92)) -> 2954.2364 | BA118: =IF($B$7="TEMP",SUMPRODUCT(BA$13:BA$93,Conv_Flags!$AA$12:$AA$92)/SUM(Conv_Flags!$AA$12:$AA$92),SUMPRODUCT(BA$12:BA$93,Conv_Flags!$AA$11:$AA$92)/SUM(Conv_Flags!$AA$11:$AA$92)) -> 2622.049564 | BB118: =SUMPRODUCT(BB$12:BB$93,Conv_Flags!$AA$12:$AA$93)/SUM(Conv_Flags!$AA$12:$AA$93) -> 2342.067424 | BC118: =IF($B$7="TEMP",SUMPRODUCT(BC$13:BC$93,Conv_Flags!$AA$12:$AA$92)/SUM(Conv_Flags!$AA$12:$AA$92),SUMPRODUCT(BC$12:BC$93,Conv_Flags!$AA$11:$AA$92)/SUM(Conv_Flags!$AA$11:$AA$92)) -> 2322.468064 | BD118: =IF($B$7="TEMP",SUMPRODUCT(BD$13:BD$93,Conv_Flags!$AA$12:$AA$92)/SUM(Conv_Flags!$AA$12:$AA$92),SUMPRODUCT(BD$12:BD$93,Conv_Flags!$AA$11:$AA$92)/SUM(Conv_Flags!$AA$11:$AA$92)) -> 2569.973141 | BE118: =SUMPRODUCT(BE$12:BE$93,Conv_Flags!$AA$12:$AA$93)/SUM(Conv_Flags!$AA$12:$AA$93) -> 3426.00919 | BF118: =SUMPRODUCT(BF$12:BF$93,Conv_Flags!$AA$12:$AA$93)/SUM(Conv_Flags!$AA$12:$AA$93) -> 2723.90895 | BG118: =SUMPRODUCT(BG$12:BG$93,Conv_Flags!$AA$11:$AA$92)/SUM(Conv_Flags!$AA$11:$AA$92) -> 2477.558225
A119: 1930-08-31 | B119: =INDIRECT(CONCATENATE("'",B$1,"'!",B$4,(YEAR($A119)-1921)*12+MONTH($A119)+3+IF(ISNUMBER(FIND("PRV",B$6)),1,0)))*IF(AND(B$3>0,TRIM(B$9)="CFS"),Conv_Flags!$C119,1) -> 2302.315678 | C119: =INDIRECT(CONCATENATE("'",C$1,"'!",C$4,(YEAR($A119)-1921)*12+MONTH($A119)+3+IF(ISNUMBER(FIND("PRV",C$6)),1,0)))*IF(AND(C$3>0,TRIM(C$9)="CFS"),Conv_Flags!$C119,1) -> 2420.236405
A120: 1930-09-30 | B120: =INDIRECT(CONCATENATE("'",B$1,"'!",B$4,(YEAR($A120)-1921)*12+MONTH($A120)+3+IF(ISNUMBER(FIND("PRV",B$6)),1,0)))*IF(AND(B$3>0,TRIM(B$9)="CFS"),Conv_Flags!$C120,1) -> 2270.253417 | C120: =INDIRECT(CONCATENATE("'",C$1,"'!",C$4,(YEAR($A120)-1921)*12+MONTH($A120)+3+IF(ISNUMBER(FIND("PRV",C$6)),1,0)))*IF(AND(C$3>0,TRIM(C$9)="CFS"),Conv_Flags!$C120,1) -> 2392.243426 | J120: =J$11 -> OCT | K120: NOV | L120: DEC | M120: JAN | N120: FEB | O120: MAR | P120: APR | Q120: MAY | R120: JUN | S120: JUL | T120: AUG | U120: SEP | W120: =CONCATENATE(W$10," ",W$11) -> Jan-Dec AVG | X120: =CONCATENATE(X$10," ",X$11) -> Mar-Feb AVG | Y120: =CONCATENATE(Y$10," ",Y$11) -> Oct-Sep AVG | AA120: =CONCATENATE(AA$10," ",AA$11) -> Nov-Mar AVG | AB120: Aug-Oct AVG | AC120: Oct-Jan AVG | AD120: Dec-Feb AVG | AE120: Mar-Jun AVG | AF120: Jun-Sep AVG | AG120: Sep-Nov AVG | AJ120: =AJ$11 -> OCT | AK120: NOV | AL120: DEC | AM120: JAN | AN120: FEB | AO120: MAR | AP120: APR | AQ120: MAY | AR120: JUN | AS120: JUL | AT120: AUG | AU120: SEP | AW120: =CONCATENATE(AW$10," ",AW$11) -> Jan-Dec AVG | AX120: =CONCATENATE(AX$10," ",AX$11) -> Mar-Feb AVG | AY120: =CONCATENATE(AY$10," ",AY$11) -> Oct-Sep AVG | BA120: =CONCATENATE(BA$10," ",BA$11) -> Nov-Mar AVG | BB120: Aug-Oct AVG | BC120: Oct-Jan AVG | BD120: Dec-Feb AVG | BE120: Mar-Jun AVG | BF120: Jun-Sep AVG | BG120: Sep-Nov AVG
A121: 1930-10-31 | B121: =INDIRECT(CONCATENATE("'",B$1,"'!",B$4,(YEAR($A121)-1921)*12+MONTH($A121)+3+IF(ISNUMBER(FIND("PRV",B$6)),1,0)))*IF(AND(B$3>0,TRIM(B$9)="CFS"),Conv_Flags!$C121,1) -> 2150.599558 | C121: =INDIRECT(CONCATENATE("'",C$1,"'!",C$4,(YEAR($A121)-1921)*12+MONTH($A121)+3+IF(ISNUMBER(FIND("PRV",C$6)),1,0)))*IF(AND(C$3>0,TRIM(C$9)="CFS"),Conv_Flags!$C121,1) -> 2304.847233 | E121: 1 | F121: 1 | I121: =($E121-1)/($E$202-1) -> 0 | J121: =IF($B$7="TEMP",LARGE(J$13:J$93,$F121),LARGE(J$12:J$93,$E121)) -> 3250 | K121: =IF($B$7="TEMP",LARGE(K$13:K$93,$F121),LARGE(K$12:K$93,$E121)) -> 3252 | L121: 3369 | M121: =LARGE(M$12:M$93,$E121) -> 3725 | N121: 4099 | O121: 4410.851591 | P121: 4552.100098 | Q121: 4552 | R121: 4500 | S121: 4150 | T121: 3700 | U121: 3400 | W121: =LARGE(W$12:W$93,$E121) -> 3832.068716 | X121: 3835.271496 | Y121: =IF($B$7="TEMP",LARGE(Y$13:Y$93,$F121),LARGE(Y$12:Y$93,$E121)) -> 3809.925454 | AA121: =IF($B$7="TEMP",LARGE(AA$13:AA$93,$F121),LARGE(AA$12:AA$93,$E121)) -> 3622.5 | AB121: =LARGE(AB$12:AB$93,$E121) -> 3600 | AC121: =IF($B$7="TEMP",LARGE(AC$13:AC$93,$F121),LARGE(AC$12:AC$93,$E121)) -> 3355.875 | AD121: 3576.166667 | AE121: =LARGE(AE$12:AE$93,$E121) -> 4373.179277 | AF121: 4081.5 | AG121: 3375.333333 | AI121: =($E121-1)/($E$202-1) -> 0 | AJ121: =IF($B$7="TEMP",LARGE(AJ$13:AJ$93,$F121),LARGE(AJ$12:AJ$93,$E121)) -> 3250 | AK121: =IF($B$7="TEMP",LARGE(AK$13:AK$93,$F121),LARGE(AK$12:AK$93,$E121)) -> 3252 | AL121: 3369 | AM121: =LARGE(AM$12:AM$93,$E121) -> 3725 | AN121: 4099 | AO121: 4410.851591 | AP121: 4552.100098 | AQ121: 4552 | AR121: 4500 | AS121: 4150 | AT121: 3700 | AU121: 3400 | AW121: =LARGE(AW$12:AW$93,$E121) -> 3831.06325 | AX121: 3831.831514 | AY121: =IF($B$7="TEMP",LARGE(AY$13:AY$93,$F121),LARGE(AY$12:AY$93,$E121)) -> 3810.702192 | BA121: =IF($B$7="TEMP",LARGE(BA$13:BA$93,$F121),LARGE(BA$12:BA$93,$E121)) -> 3622.5 | BB121: =LARGE(BB$12:BB$93,$E121) -> 3600 | BC121: =IF($B$7="TEMP",LARGE(BC$13:BC$93,$F121),LARGE(BC$12:BC$93,$E121)) -> 3355.875 | BD121: 3576.166667 | BE121: =LARGE(BE$12:BE$93,$E121) -> 4375.206792 | BF121: 4081.5 | BG121: 3375.333333
A122: 1930-11-30 | B122: =INDIRECT(CONCATENATE("'",B$1,"'!",B$4,(YEAR($A122)-1921)*12+MONTH($A122)+3+IF(ISNUMBER(FIND("PRV",B$6)),1,0)))*IF(AND(B$3>0,TRIM(B$9)="CFS"),Conv_Flags!$C122,1) -> 2062.570417 | C122: =INDIRECT(CONCATENATE("'",C$1,"'!",C$4,(YEAR($A122)-1921)*12+MONTH($A122)+3+IF(ISNUMBER(FIND("PRV",C$6)),1,0)))*IF(AND(C$3>0,TRIM(C$9)="CFS"),Conv_Flags!$C122,1) -> 2217.026775 | E122: 2 | F122: 2 | I122: 0.01234567901 | J122: =IF($B$7="TEMP",LARGE(J$13:J$93,$F122),LARGE(J$12:J$93,$E122)) -> 3250 | K122: 3252 | L122: 3367.600098 | M122: 3722.5 | N122: 4037 | O122: 4280 | P122: 4552.100098 | Q122: 4552 | R122: 4500 | S122: 4150 | T122: 3700 | U122: 3400 | W122: 3813.66448 | X122: 3824.801259 | Y122: =IF($B$7="TEMP",LARGE(Y$13:Y$93,$F122),LARGE(Y$12:Y$93,$E122)) -> 3803.387383 | AA122: =IF($B$7="TEMP",LARGE(AA$13:AA$93,$F122),LARGE(AA$12:AA$93,$E122)) -> 3596.994161 | AB122: 3600 | AC122: 3342.762512 | AD122: 3564.623784 | AE122: 4366.695804 | AF122: 4081.5 | AG122: 3375.333333 | AI122: 0.01234567901 | AJ122: =IF($B$7="TEMP",LARGE(AJ$13:AJ$93,$F122),LARGE(AJ$12:AJ$93,$E122)) -> 3250 | AK122: 3252 | AL122: 3367.600098 | AM122: 3722.5 | AN122: 4037 | AO122: 4280 | AP122: 4552.100098 | AQ122: 4552 | AR122: 4500 | AS122: 4150 | AT122: 3700 | AU122: 3400 | AW122: 3813.546526 | AX122: 3824.683305 | AY122: =IF($B$7="TEMP",LARGE(AY$13:AY$93,$F122),LARGE(AY$12:AY$93,$E122)) -> 3799.909938 | BA122: =IF($B$7="TEMP",LARGE(BA$13:BA$93,$F122),LARGE(BA$12:BA$93,$E122)) -> 3590.934938 | BB122: 3600 | BC122: 3342.762512 | BD122: 3564.623784 | BE122: 4372.155961 | BF122: 4081.5 | BG122: 3375.333333
A123: 1930-12-31 | B123: =INDIRECT(CONCATENATE("'",B$1,"'!",B$4,(YEAR($A123)-1921)*12+MONTH($A123)+3+IF(ISNUMBER(FIND("PRV",B$6)),1,0)))*IF(AND(B$3>0,TRIM(B$9)="CFS"),Conv_Flags!$C123,1) -> 2005.718689 | C123: =INDIRECT(CONCATENATE("'",C$1,"'!",C$4,(YEAR($A123)-1921)*12+MONTH($A123)+3+IF(ISNUMBER(FIND("PRV",C$6)),1,0)))*IF(AND(C$3>0,TRIM(C$9)="CFS"),Conv_Flags!$C123,1) -> 2159.25792 | E123: 3 | F123: 3 | I123: 0.02469135802 | J123: 3250 | K123: 3252 | L123: 3367 | M123: 3714 | N123: 4022 | O123: 4266.697983 | P123: 4552.100098 | Q123: 4552 | R123: 4500 | S123: 4150 | T123: 3700 | U123: 3400 | W123: 3812.717752 | X123: 3819.090068 | Y123: 3799.219166 | AA123: 3588 | AB123: 3600 | AC123: 3341.494971 | AD123: 3552.411801 | AE123: 4362.606457 | AF123: 4081.5 | AG123: 3375.333333 | AI123: 0.02469135802 | AJ123: 3250 | AK123: 3252 | AL123: 3367 | AM123: 3714 | AN123: 4022 | AO123: 4266.697983 | AP123: 4552.100098 | AQ123: 4552 | AR123: 4500 | AS123: 4150 | AT123: 3700 | AU123: 3400 | AW123: 3811.704952 | AX123: 3818.039521 | AY123: 3791.007596 | BA123: 3588 | BB123: 3600 | BC123: 3341.494971 | BD123: 3545.005434 | BE123: 4368.355468 | BF123: 4081.5 | BG123: 3375.333333
A124: 1931-01-31 | B124: =INDIRECT(CONCATENATE("'",B$1,"'!",B$4,(YEAR($A124)-1921)*12+MONTH($A124)+3+IF(ISNUMBER(FIND("PRV",B$6)),1,0)))*IF(AND(B$3>0,TRIM(B$9)="CFS"),Conv_Flags!$C124,1) -> 2083.36916 | C124: =INDIRECT(CONCATENATE("'",C$1,"'!",C$4,(YEAR($A124)-1921)*12+MONTH($A124)+3+IF(ISNUMBER(FIND("PRV",C$6)),1,0)))*IF(AND(C$3>0,TRIM(C$9)="CFS"),Conv_Flags!$C124,1) -> 2236.795084 | E124: 4 | F124: 4 | I124: 0.03703703704 | J124: 3250 | K124: 3252 | L124: 3365 | M124: 3688.282516 | N124: 4005 | O124: 4256 | P124: 4552.100098 | Q124: 4552 | R124: 4500 | S124: 4150 | T124: 3700 | U124: 3400 | W124: 3810.511857 | X124: 3816.148192 | Y124: 3789.527723 | AA124: 3569.812023 | AB124: 3600 | AC124: 3337.367701 | AD124: 3521.166667 | AE124: 4334.860132 | AF124: 4081.5 | AG124: 3375.333333 | AI124: 0.03703703704 | AJ124: 3250 | AK124: 3252 | AL124: 3363 | AM124: 3696.660344 | AN124: 4005 | AO124: 4256 | AP124: 4552.100098 | AQ124: 4552 | AR124: 4500 | AS124: 4150 | AT124: 3700 | AU124: 3400 | AW124: 3809.277771 | AX124: 3816.148192 | AY124: 3786.315516 | BA124: 3568.972741 | BB124: 3600 | BC124: 3332.125 | BD124: 3521.166667 | BE124: 4331.664722 | BF124: 4081.5 | BG124: 3375.333333
A125: 1931-02-28 | B125: =INDIRECT(CONCATENATE("'",B$1,"'!",B$4,(YEAR($A125)-1921)*12+MONTH($A125)+3+IF(ISNUMBER(FIND("PRV",B$6)),1,0)))*IF(AND(B$3>0,TRIM(B$9)="CFS"),Conv_Flags!$C125,1) -> 2167.46549 | C125: =INDIRECT(CONCATENATE("'",C$1,"'!",C$4,(YEAR($A125)-1921)*12+MONTH($A125)+3+IF(ISNUMBER(FIND("PRV",C$6)),1,0)))*IF(AND(C$3>0,TRIM(C$9)="CFS"),Conv_Flags!$C125,1) -> 2320.707191 | E125: 5 | F125: 5 | I125: 0.04938271605 | J125: 3250 | K125: 3252 | L125: 3363 | M125: 3678.399902 | N125: 3979 | O125: 4249 | P125: 4552 | Q125: 4552 | R125: 4500 | S125: 4150 | T125: 3700 | U125: 3400 | W125: 3798.61073 | X125: 3805.121965 | Y125: 3779.264151 | AA125: 3564.246055 | AB125: 3600 | AC125: 3332.125 | AD125: 3505.05871 | AE125: 4329.576301 | AF125: 4081.5 | AG125: 3375.333333 | AI125: 0.04938271605 | AJ125: 3250 | AK125: 3252 | AL125: 3360 | AM125: 3678.399902 | AN125: 3979 | AO125: 4249 | AP125: 4552 | AQ125: 4552 | AR125: 4500 | AS125: 4150 | AT125: 3700 | AU125: 3400 | AW125: 3799.682383 | AX125: 3803.722532 | AY125: 3777.907103 | BA125: 3564.246055 | BB125: 3600 | BC125: 3329.793672 | BD125: 3514.984077 | BE125: 4330.158901 | BF125: 4081.5 | BG125: 3375.333333
A126: 1931-03-31 | B126: =INDIRECT(CONCATENATE("'",B$1,"'!",B$4,(YEAR($A126)-1921)*12+MONTH($A126)+3+IF(ISNUMBER(FIND("PRV",B$6)),1,0)))*IF(AND(B$3>0,TRIM(B$9)="CFS"),Conv_Flags!$C126,1) -> 2330.627022 | C126: =INDIRECT(CONCATENATE("'",C$1,"'!",C$4,(YEAR($A126)-1921)*12+MONTH($A126)+3+IF(ISNUMBER(FIND("PRV",C$6)),1,0)))*IF(AND(C$3>0,TRIM(C$9)="CFS"),Conv_Flags!$C126,1) -> 2483.616793 | E126: 6 | F126: 6 | I126: 0.06172839506 | J126: 3250 | K126: 3252 | L126: 3360 | M126: 3668 | N126: 3948 | O126: 4248.370019 | P126: 4552 | Q126: 4552 | R126: 4500 | S126: 4150 | T126: 3700 | U126: 3400 | W126: 3784.173385 | X126: 3788.541745 | Y126: 3775.04652 | AA126: 3551.025525 | AB126: 3600 | AC126: 3328 | AD126: 3495.076758 | AE126: 4328.347091 | AF126: 4081.5 | AG126: 3375.333333 | AI126: 0.06172839506 | AJ126: 3250 | AK126: 3252 | AL126: 3360 | AM126: 3668 | AN126: 3948 | AO126: 4248.370019 | AP126: 4552 | AQ126: 4552 | AR126: 4500 | AS126: 4150 | AT126: 3700 | AU126: 3400 | AW126: 3781.744907 | AX126: 3789.73484 | AY126: 3772.880777 | BA126: 3558.074892 | BB126: 3600 | BC126: 3328 | BD126: 3495.076758 | BE126: 4329.576301 | BF126: 4081.5 | BG126: 3375.333333
A127: 1931-04-30 | B127: =INDIRECT(CONCATENATE("'",B$1,"'!",B$4,(YEAR($A127)-1921)*12+MONTH($A127)+3+IF(ISNUMBER(FIND("PRV",B$6)),1,0)))*IF(AND(B$3>0,TRIM(B$9)="CFS"),Conv_Flags!$C127,1) -> 2254.455136 | C127: =INDIRECT(CONCATENATE("'",C$1,"'!",C$4,(YEAR($A127)-1921)*12+MONTH($A127)+3+IF(ISNUMBER(FIND("PRV",C$6)),1,0)))*IF(AND(C$3>0,TRIM(C$9)="CFS"),Conv_Flags!$C127,1) -> 2422.333217 | E127: 7 | F127: 7 | I127: 0.07407407407 | J127: 3250 | K127: 3252 | L127: 3360 | M127: 3668 | N127: 3944 | O127: 4246 | P127: 4552 | Q127: 4552 | R127: 4500 | S127: 4150 | T127: 3700 | U127: 3400 | W127: 3781.05405 | X127: 3785.083333 | Y127: 3772.481525 | AA127: 3543.005636 | AB127: 3600 | AC127: 3322.502647 | AD127: 3489.666667 | AE127: 4327.360061 | AF127: 4081.5 | AG127: 3375.333333 | AI127: 0.07407407407 | AJ127: 3250 | AK127: 3252 | AL127: 3359 | AM127: 3668 | AN127: 3944 | AO127: 4248.336846 | AP127: 4552 | AQ127: 4552 | AR127: 4500 | AS127: 4150 | AT127: 3700 | AU127: 3400 | AW127: 3778.83788 | AX127: 3785.083333 | AY127: 3772.481525 | BA127: 3543.916546 | BB127: 3600 | BC127: 3323.397859 | BD127: 3489.666667 | BE127: 4328.884807 | BF127: 4081.5 | BG127: 3375.333333
A128: 1931-05-31 | B128: =INDIRECT(CONCATENATE("'",B$1,"'!",B$4,(YEAR($A128)-1921)*12+MONTH($A128)+3+IF(ISNUMBER(FIND("PRV",B$6)),1,0)))*IF(AND(B$3>0,TRIM(B$9)="CFS"),Conv_Flags!$C128,1) -> 1951.19967 | C128: =INDIRECT(CONCATENATE("'",C$1,"'!",C$4,(YEAR($A128)-1921)*12+MONTH($A128)+3+IF(ISNUMBER(FIND("PRV",C$6)),1,0)))*IF(AND(C$3>0,TRIM(C$9)="CFS"),Conv_Flags!$C128,1) -> 2119.20408 | E128: 8 | F128: 8 | I128: 0.08641975309 | J128: 3250 | K128: 3252 | L128: 3359 | M128: 3655.371351 | N128: 3936 | O128: 4242.441029 | P128: 4552 | Q128: 4552 | R128: 4500 | S128: 4150 | T128: 3700 | U128: 3400 | W128: 3776.224624 | X128: 3783.092398 | Y128: 3760.395223 | AA128: 3540.593037 | AB128: 3600 | AC128: 3314.109822 | AD128: 3483.288321 | AE128: 4318.5 | AF128: 4081.5 | AG128: 3375.333333 | AI128: 0.08641975309 | AJ128: 3250 | AK128: 3252 | AL128: 3356 | AM128: 3655.371351 | AN128: 3936 | AO128: 4246 | AP128: 4552 | AQ128: 4552 | AR128: 4500 | AS128: 4150 | AT128: 3700 | AU128: 3400 | AW128: 3776.097444 | AX128: 3780.633019 | AY128: 3763.708352 | BA128: 3543.005636 | BB128: 3600 | BC128: 3317.324114 | BD128: 3482.333333 | BE128: 4323.168735 | BF128: 4081.5 | BG128: 3372.795498
A129: 1931-06-30 | B129: =INDIRECT(CONCATENATE("'",B$1,"'!",B$4,(YEAR($A129)-1921)*12+MONTH($A129)+3+IF(ISNUMBER(FIND("PRV",B$6)),1,0)))*IF(AND(B$3>0,TRIM(B$9)="CFS"),Conv_Flags!$C129,1) -> 1623.864787 | C129: =INDIRECT(CONCATENATE("'",C$1,"'!",C$4,(YEAR($A129)-1921)*12+MONTH($A129)+3+IF(ISNUMBER(FIND("PRV",C$6)),1,0)))*IF(AND(C$3>0,TRIM(C$9)="CFS"),Conv_Flags!$C129,1) -> 1790.642734 | E129: 9 | F129: 9 | I129: 0.0987654321 | J129: 3250 | K129: 3252 | L129: 3356 | M129: 3650 | N129: 3920 | O129: 4239.54289 | P129: 4552 | Q129: 4552 | R129: 4500 | S129: 4150 | T129: 3700 | U129: 3400 | W129: 3775.814858 | X129: 3773.040214 | Y129: 3757.028969 | AA129: 3536.2 | AB129: 3600 | AC129: 3311.834536 | AD129: 3482.333333 | AE129: 4318.470892 | AF129: 4080.211936 | AG129: 3368.297533 | AI129: 0.0987654321 | AJ129: 3250 | AK129: 3252 | AL129: 3354 | AM129: 3650 | AN129: 3929.416225 | AO129: 4242.441029 | AP129: 4552 | AQ129: 4552 | AR129: 4500 | AS129: 4150 | AT129: 3700 | AU129: 3400 | AW129: 3775.814858 | AX129: 3772.369195 | AY129: 3757.668918 | BA129: 3536.2 | BB129: 3600 | BC129: 3311.607492 | BD129: 3479.832609 | BE129: 4318.5 | BF129: 4080.021167 | BG129: 3367.075039
A130: 1931-07-31 | B130: =INDIRECT(CONCATENATE("'",B$1,"'!",B$4,(YEAR($A130)-1921)*12+MONTH($A130)+3+IF(ISNUMBER(FIND("PRV",B$6)),1,0)))*IF(AND(B$3>0,TRIM(B$9)="CFS"),Conv_Flags!$C130,1) -> 1279.853952 | C130: =INDIRECT(CONCATENATE("'",C$1,"'!",C$4,(YEAR($A130)-1921)*12+MONTH($A130)+3+IF(ISNUMBER(FIND("PRV",C$6)),1,0)))*IF(AND(C$3>0,TRIM(C$9)="CFS"),Conv_Flags!$C130,1) -> 1458.509401 | E130: 10 | F130: 10 | I130: 0.1111111111 | J130: 3250 | K130: 3252 | L130: 3350 | M130: 3648 | N130: 3918.953082 | O130: 4229 | P130: 4552 | Q130: 4552 | R130: 4500 | S130: 4150 | T130: 3700 | U130: 3400 | W130: 3771.333333 | X130: 3770.801174 | Y130: 3749.494449 | AA130: 3511.256736 | AB130: 3600 | AC130: 3308.911151 | AD130: 3478.365624 | AE130: 4304.154236 | AF130: 4074.97041 | AG130: 3364.217288 | AI130: 0.1111111111 | AJ130: 3250 | AK130: 3252 | AL130: 3350.857915 | AM130: 3648 | AN130: 3928.328175 | AO130: 4229 | AP130: 4552 | AQ130: 4552 | AR130: 4500 | AS130: 4150 | AT130: 3700 | AU130: 3400 | AW130: 3771.333333 | AX130: 3770.801174 | AY130: 3749.445667 | BA130: 3516.941146 | BB130: 3600 | BC130: 3311.363044 | BD130: 3474.093805 | BE130: 4311.768519 | BF130: 4074.972288 | BG130: 3366.575777
A131: 1931-08-31 | B131: =INDIRECT(CONCATENATE("'",B$1,"'!",B$4,(YEAR($A131)-1921)*12+MONTH($A131)+3+IF(ISNUMBER(FIND("PRV",B$6)),1,0)))*IF(AND(B$3>0,TRIM(B$9)="CFS"),Conv_Flags!$C131,1) -> 983.2549847 | C131: =INDIRECT(CONCATENATE("'",C$1,"'!",C$4,(YEAR($A131)-1921)*12+MONTH($A131)+3+IF(ISNUMBER(FIND("PRV",C$6)),1,0)))*IF(AND(C$3>0,TRIM(C$9)="CFS"),Conv_Flags!$C131,1) -> 1166.872487 | E131: 11 | F131: 11 | I131: 0.1234567901 | J131: 3250 | K131: 3252 | L131: 3349 | M131: 3640.100098 | N131: 3914 | O131: 4226 | P131: 4552 | Q131: 4552 | R131: 4500 | S131: 4150 | T131: 3700 | U131: 3400 | W131: 3768.314185 | X131: 3769.583333 | Y131: 3747.795551 | AA131: 3491.002118 | AB131: 3600 | AC131: 3306.100603 | AD131: 3472.831567 | AE131: 4302.4185 | AF131: 4074.25204 | AG131: 3363.709242 | AI131: 0.1234567901 | AJ131: 3250 | AK131: 3252 | AL131: 3349 | AM131: 3640.100098 | AN131: 3920 | AO131: 4226 | AP131: 4552 | AQ131: 4552 | AR131: 4500 | AS131: 4150 | AT131: 3700 | AU131: 3400 | AW131: 3768.269485 | AX131: 3770.176174 | AY131: 3746.060763 | BA131: 3491.957549 | BB131: 3600 | BC131: 3305.268969 | BD131: 3470.915119 | BE131: 4310.078734 | BF131: 4074.524353 | BG131: 3364.743237
A132: 1931-09-30 | B132: =INDIRECT(CONCATENATE("'",B$1,"'!",B$4,(YEAR($A132)-1921)*12+MONTH($A132)+3+IF(ISNUMBER(FIND("PRV",B$6)),1,0)))*IF(AND(B$3>0,TRIM(B$9)="CFS"),Conv_Flags!$C132,1) -> 803.2013275 | C132: =INDIRECT(CONCATENATE("'",C$1,"'!",C$4,(YEAR($A132)-1921)*12+MONTH($A132)+3+IF(ISNUMBER(FIND("PRV",C$6)),1,0)))*IF(AND(C$3>0,TRIM(C$9)="CFS"),Conv_Flags!$C132,1) -> 985.5209879 | E132: 12 | F132: 12 | I132: 0.1358024691 | J132: 3250 | K132: 3252 | L132: 3349 | M132: 3624 | N132: 3907.355076 | O132: 4221.081231 | P132: 4552 | Q132: 4552 | R132: 4500 | S132: 4121.008162 | T132: 3700 | U132: 3400 | W132: 3768.190308 | X132: 3768.781722 | Y132: 3743.810385 | AA132: 3490.694491 | AB132: 3595.168027 | AC132: 3303.875 | AD132: 3466.633382 | AE132: 4290.660289 | AF132: 4073.943742 | AG132: 3362.911801 | AI132: 0.1358024691 | AJ132: 3250 | AK132: 3252 | AL132: 3349 | AM132: 3624 | AN132: 3914 | AO132: 4221.081232 | AP132: 4552 | AQ132: 4552 | AR132: 4500 | AS132: 4122.097412 | AT132: 3700 | AU132: 3400 | AW132: 3767.46204 | AX132: 3769.583333 | AY132: 3743.425925 | BA132: 3491.718287 | BB132: 3595.349569 | BC132: 3304.948584 | BD132: 3466.633382 | BE132: 4296.340347 | BF132: 4073.976451 | BG132: 3363.7639
A133: 1931-10-31 | B133: =INDIRECT(CONCATENATE("'",B$1,"'!",B$4,(YEAR($A133)-1921)*12+MONTH($A133)+3+IF(ISNUMBER(FIND("PRV",B$6)),1,0)))*IF(AND(B$3>0,TRIM(B$9)="CFS"),Conv_Flags!$C133,1) -> 650 | C133: =INDIRECT(CONCATENATE("'",C$1,"'!",C$4,(YEAR($A133)-1921)*12+MONTH($A133)+3+IF(ISNUMBER(FIND("PRV",C$6)),1,0)))*IF(AND(C$3>0,TRIM(C$9)="CFS"),Conv_Flags!$C133,1) -> 855.4474812 | E133: 13 | F133: 13 | I133: 0.1481481481 | J133: 3250 | K133: 3252 | L133: 3347.383473 | M133: 3622 | N133: 3899.173832 | O133: 4209.334355 | P133: 4552 | Q133: 4552 | R133: 4500 | S133: 4115.122098 | T133: 3700 | U133: 3400 | W133: 3767.292863 | X133: 3768.615398 | Y133: 3726.186898 | AA133: 3487.337852 | AB133: 3594.187016 | AC133: 3303.125 | AD133: 3461.468772 | AE133: 4286.704482 | AF133: 4063.280418 | AG133: 3362.616972 | AI133: 0.1481481481 | AJ133: 3250 | AK133: 3252 | AL133: 3347.771918 | AM133: 3622 | AN133: 3907.355076 | AO133: 4209.334355 | AP133: 4552 | AQ133: 4552 | AR133: 4500 | AS133: 4115.665073 | AT133: 3700 | AU133: 3400 | AW133: 3766.242316 | AX133: 3767.585782 | AY133: 3734.904204 | BA133: 3490.633978 | BB133: 3594.277512 | BC133: 3303.875 | BD133: 3462.291108 | BE133: 4290.605518 | BF133: 4064.028289 | BG133: 3362.681758
A134: 1931-11-30 | B134: =INDIRECT(CONCATENATE("'",B$1,"'!",B$4,(YEAR($A134)-1921)*12+MONTH($A134)+3+IF(ISNUMBER(FIND("PRV",B$6)),1,0)))*IF(AND(B$3>0,TRIM(B$9)="CFS"),Conv_Flags!$C134,1) -> 639.6800438 | C134: =INDIRECT(CONCATENATE("'",C$1,"'!",C$4,(YEAR($A134)-1921)*12+MONTH($A134)+3+IF(ISNUMBER(FIND("PRV",C$6)),1,0)))*IF(AND(C$3>0,TRIM(C$9)="CFS"),Conv_Flags!$C134,1) -> 815.9698633 | E134: 14 | F134: 14 | I134: 0.1604938272 | J134: 3250 | K134: 3252 | L134: 3347 | M134: 3616 | N134: 3848 | O134: 4196.056362 | P134: 4552 | Q134: 4552 | R134: 4500 | S134: 4061.953491 | T134: 3700 | U134: 3400 | W134: 3750.750415 | X134: 3764.655199 | Y134: 3716.821506 | AA134: 3485.140039 | AB134: 3585.325582 | AC134: 3300.402512 | AD134: 3461.333333 | AE134: 4277.443268 | AF134: 4058.74466 | AG134: 3362.357047 | AI134: 0.1604938272 | AJ134: 3250 | AK134: 3252 | AL134: 3346 | AM134: 3616 | AN134: 3852.995656 | AO134: 4196.056362 | AP134: 4551.511387 | AQ134: 4552 | AR134: 4500 | AS134: 4061.333066 | AT134: 3700 | AU134: 3400 | AW134: 3754.128894 | AX134: 3766.353244 | AY134: 3728.663644 | BA134: 3485.140039 | BB134: 3585.222178 | BC134: 3303.125 | BD134: 3461.468771 | BE134: 4289.267867 | BF134: 4057.495586 | BG134: 3361.774006
A135: 1931-12-31 | B135: =INDIRECT(CONCATENATE("'",B$1,"'!",B$4,(YEAR($A135)-1921)*12+MONTH($A135)+3+IF(ISNUMBER(FIND("PRV",B$6)),1,0)))*IF(AND(B$3>0,TRIM(B$9)="CFS"),Conv_Flags!$C135,1) -> 828.4984693 | C135: =INDIRECT(CONCATENATE("'",C$1,"'!",C$4,(YEAR($A135)-1921)*12+MONTH($A135)+3+IF(ISNUMBER(FIND("PRV",C$6)),1,0)))*IF(AND(C$3>0,TRIM(C$9)="CFS"),Conv_Flags!$C135,1) -> 1004.607359 | E135: 15 | F135: 15 | I135: 0.1728395062 | J135: 3250 | K135: 3252 | L135: 3346 | M135: 3614.5 | N135: 3844.193742 | O135: 4162 | P135: 4546 | Q135: 4552 | R135: 4473.881639 | S135: 4058.978641 | T135: 3700 | U135: 3400 | W135: 3748.720367 | X135: 3761.770589 | Y135: 3714.920734 | AA135: 3480.909746 | AB135: 3584.829773 | AC135: 3300.085702 | AD135: 3460.148247 | AE135: 4275.766835 | AF135: 4048.128691 | AG135: 3359.375758 | AI135: 0.1728395062 | AJ135: 3250 | AK135: 3252 | AL135: 3345 | AM135: 3614.5 | AN135: 3848 | AO135: 4191.73766 | AP135: 4546 | AQ135: 4552 | AR135: 4473.88915 | AS135: 4053.982346 | AT135: 3700 | AU135: 3400 | AW135: 3748.766718 | AX135: 3765.653484 | AY135: 3722.686949 | BA135: 3483.180686 | BB135: 3583.997058 | BC135: 3302.700762 | BD135: 3461.333333 | BE135: 4286.704482 | BF135: 4053.851986 | BG135: 3359.749508
A136: 1932-01-31 | B136: =INDIRECT(CONCATENATE("'",B$1,"'!",B$4,(YEAR($A136)-1921)*12+MONTH($A136)+3+IF(ISNUMBER(FIND("PRV",B$6)),1,0)))*IF(AND(B$3>0,TRIM(B$9)="CFS"),Conv_Flags!$C136,1) -> 1078.196311 | C136: =INDIRECT(CONCATENATE("'",C$1,"'!",C$4,(YEAR($A136)-1921)*12+MONTH($A136)+3+IF(ISNUMBER(FIND("PRV",C$6)),1,0)))*IF(AND(C$3>0,TRIM(C$9)="CFS"),Conv_Flags!$C136,1) -> 1236.430648 | E136: 16 | F136: 16 | I136: 0.1851851852 | J136: 3250 | K136: 3252 | L136: 3345 | M136: 3604 | N136: 3830.987098 | O136: 4161.666041 | P136: 4538.920429 | Q136: 4552 | R136: 4469.77497 | S136: 4020.16129 | T136: 3700 | U136: 3400 | W136: 3729.699163 | X136: 3761.167525 | Y136: 3709.5 | AA136: 3480.005141 | AB136: 3574.107793 | AC136: 3298.013876 | AD136: 3452.667633 | AE136: 4273.386678 | AF136: 4044.381031 | AG136: 3357.431546 | AI136: 0.1851851852 | AJ136: 3250 | AK136: 3252 | AL136: 3342.101175 | AM136: 3604 | AN136: 3830.987098 | AO136: 4162 | AP136: 4538.920429 | AQ136: 4552 | AR136: 4469.905806 | AS136: 4042.248492 | AT136: 3697.159452 | AU136: 3400 | AW136: 3732.345148 | AX136: 3761.339441 | AY136: 3718.786853 | BA136: 3481.636827 | BB136: 3576.603523 | BC136: 3299.541279 | BD136: 3458.447699 | BE136: 4279.834354 | BF136: 4047.912603 | BG136: 3359.228932
A137: 1932-02-29 | B137: =INDIRECT(CONCATENATE("'",B$1,"'!",B$4,(YEAR($A137)-1921)*12+MONTH($A137)+3+IF(ISNUMBER(FIND("PRV",B$6)),1,0)))*IF(AND(B$3>0,TRIM(B$9)="CFS"),Conv_Flags!$C137,1) -> 1194.436351 | C137: =INDIRECT(CONCATENATE("'",C$1,"'!",C$4,(YEAR($A137)-1921)*12+MONTH($A137)+3+IF(ISNUMBER(FIND("PRV",C$6)),1,0)))*IF(AND(C$3>0,TRIM(C$9)="CFS"),Conv_Flags!$C137,1) -> 1365.902461 | E137: 17 | F137: 17 | I137: 0.1975308642 | J137: 3250 | K137: 3252 | L137: 3341.657016 | M137: =LARGE(M$12:M$93,$E137) -> 3589.959766 | N137: 3794 | O137: 4147.313395 | P137: 4530.802107 | Q137: 4552 | R137: 4461.999572 | S137: 3994.646761 | T137: 3700 | U137: 3400 | W137: 3724.997245 | X137: 3760.658946 | Y137: 3706.629122 | AA137: 3474.730809 | AB137: 3568.151502 | AC137: =IF($B$7="TEMP",LARGE(AC$13:AC$93,$F137),LARGE(AC$12:AC$93,$E137)) -> 3292.854218 | AD137: 3451.479727 | AE137: =LARGE(AE$12:AE$93,$E137) -> 4272.753346 | AF137: 4042.66169 | AG137: 3357.067704 | AI137: 0.1975308642 | AJ137: 3250 | AK137: 3252 | AL137: 3338 | AM137: =LARGE(AM$12:AM$93,$E137) -> 3589.959766 | AN137: 3794 | AO137: 4147.313395 | AP137: 4530.802107 | AQ137: 4552 | AR137: 4465.727004 | AS137: 3989.60628 | AT137: 3694.056816 | AU137: 3400 | AW137: 3726.093776 | AX137: 3760.663238 | AY137: 3709.5 | BA137: 3479.820071 | BB137: 3571.286652 | BC137: =IF($B$7="TEMP",LARGE(BC$13:BC$93,$F137),LARGE(BC$12:BC$93,$E137)) -> 3299.130825 | BD137: 3454.911902 | BE137: =LARGE(BE$12:BE$93,$E137) -> 4277.127659 | BF137: 4039.915774 | BG137: 3355.963107
